Workbook

Sheet ADS_spreadsheet_metadata
A1: File Name | B1: Title | C1: Description | D1: Creator (if more than one individual/organisation, add on a new row) | G1: Copyright holder (if more than one individual/organisation, add on a new row) | J1: Period of Creation | L1: Language | M1: Software used | N1: Software version
D2: First Name | E2: Last Name | F2: Organisation | G2: First Name | H2: Last Name | I2: Organisation | J2: Start Date | K2: End Date
A3: This is the name of the file - e.g., Caerleon Roman Coins.xlsx | B3: This is the title of the spreadsheet - e.g., 'Caerleon: Roman coin report' | C3: Brief description of the contents of the spreadsheet (include site name and OASIS reference number) | M3: Microsoft Excel | N3: 2019 v16.0
A7: Sheet Name | B7: Sheet Description | C7: Number of rows | E7: Primary Field name | F7: Primary Field description
A8: ADS_Spreadsheet_metadata | B8: Metadata suitable for depositing this workbook with the Archaeology Data Service | C8: n/a | E8: SITE CODE | F8: Unique code for site or fieldwork project.
A9: Roman Coin ID Template | B9: Data table listing coins following CIfA's Toolkit for Finds Reporting: Roman Coinage | C9: n/a | E9: COIN ID | F9: Unique number for each coin in an assemblage. Most commonly the registration number allocated on-site to archaeological artefacts that are recorded individually (usually made of metal, glass, or worked bone and stone), including coins. Artefacts in this category are variously referred to as Registered Finds (RF), Registered Artefacts (RA) and Small Finds (SF). RFs often require special treatment, including conservation and/or individual protective packaging, or are subject to decay or disintegration and thus require specific storage environments (e.g. low humidity for metalwork).
A10: Emperor-Issuer list_ dropdown | B10: Controlled list of terms for authorities responsible for issuing Roman coins (emperors, empresses, princes, dynasties), with dates and RCIPs. | C10: 237 | E10: CONTEXT | F10: Number denoting the context from which the coin was recovered. Context numbers are allocated on-site to excavated deposits or archaeological features (e.g., layers and fills of negative features such as ditches and pits).
A11: Denominations list_dropdown | B11: Controlled list of terms for Roman currency denominations | C11: 30 | E11: DATE | F11: Broad date of the coin’s production. Can be a: • specific year: e.g., 81 for a coin of Domitian struck during the emperor’s 7th consulship • emperor’s reign: e.g., 81-96 for a coin of Domitian that cannot be more closely dated • dynastic date: e.g., 69-96 for a coin struck for a Flavian emperor (Vespasian, Titus or Domitian), or 364-392 for a coin issued by the House of Valentinian (Valentinian I, Gratian or Valentinian II). • Issue Period for 4th-century reverse types: e.g., 364-378 for a coin of the SECVRITAS REIPVLICAE type • general date: e.g., Uncertain (1st-2nd century) for early coins that cannot be identified to an emperor or dynasty, or Uncertain (late 3rd-4th century) for bronzes that could be radiates or post-Diocletianic ‘nummi’
A12: Mints list_dropdown | B12: Controlled list of terms for Roman mints | C12: 37 | E12: DATE FROM | F12: The earliest date the coin could have been struck. For example: • 81 for a coin of Domitian struck during the emperor’s 7th consulship • 81 for a coin of Domitian that cannot be more closely identified • 69 for a coin struck for a Flavian emperor • 260 for a bronze coin that could be a later 3rd century radiate or post-Diocletianic ‘nummus’ • 364 for a coin of the reverse type SECVRITAS REIPVLICAE Dates BC are indicated with minus sign (-) before the date (e.g., -32 for a legionary denarius for Mark Antony)
A13: RCIP_dropdown | B13: Controlled list of terms for Roman Coinage Issue Period sequence | C13: 22 | E13: DATE TO | F13: The latest date the coin could have been struck. For example: • 81 for a coin of Domitian struck during the emperor’s 7th consulship (i.e., same as the ‘date from’ entry) • 96 for a coin of Domitian that cannot be more closely identified • 96 for a coin struck for a Flavian emperor • 378 for a coin with the reverse type SECVRITAS REIPVLICAE that cannot be more closely identified • 402 for a bronze coin that could be a later 3rd century radiate or post-Diocletianic ‘nummus’ Dates BC are indicated with minus sign (-) before the date (e.g., -31 for a legionary denarius for Mark Antony).
E14: RCIP | F14: Roman Coinage Issue Period (abbreviated to Issue Period). Available from a dropdown list. Standard sequence of 21 periods representing the production of Roman coins from Augustus to the beginning of the 5th century. (Also known as ‘Reece Periods’, ‘Reece Coin Periods’, ‘Coin Period’s, ‘Numismatic Issue Periods’, or just 'Periods').
E15: DENOMINATION | F15: Denomination of the coin when known (e.g., Sestertius, Radiate, or Siliqua). Available from a dropdown list. Alternatives that can be used when the denomination cannot be determined include: • Uncertain Au – gold coins of uncertain denomination • Uncertain Ag – silver coins of uncertain denomination • Dupondius/As – for 1st and 2nd century large bronzes that could be dupondii or ases • Nummus – for 4th century bronze coins (usually post-318) • AE1 – bronze coin of any period with a diameter greater than 25mm • AE2 - bronze coin of any period with a 19-25mm diameter • AE3 - bronze coin of any period with a 14-18mm diameter • AE4 - bronze coin of any period with a 5-14mm diameter • AE4 minim - bronze coin of any period with a diameter less than 5mm
E16: COPY? | F16: Copy if the coin is identified as an imitation (copy or forgery), otherwise blank.
E17: RULER / OBVERSE | F17: Authority responsible for issuing the coin. Available from a dropdown list. Can be: • an Emperor, such as Antoninus Pius • an Empress, such as Faustina I • a Prince, such as Marcus Aurelius Caesar (Antoninus Pius) • a Dynasty, such as Uncertain (Antonine). In instances where the individual ruler cannot be identified from the legend or obverse bust, or the reverse type, entries can include options such as: • Uncertain (Flavian) • Uncertain (1st/2nd century) • Uncertain (Radiate) • Uncertain (late 3rd/4th century)
E18: REVERSE | F18: Reverse type of the coin. Usually referred to using standardised numismatic types or reverse legends, such as: • Minerva type • SALVS AVG • FEL TEMP REPARATIO - falling horseman Also can be non-standard entries for very worn or corroded coins (for example, ‘Female figure standing facing with left arm raised’), or ‘Uncertain’ or ‘Illegible’
E19: MINT MARK | F19: Details of any mint mark. Follows British Museum method of recording mint marks, which is explained in the series ‘Coin Hoards from Roman Britain’ thus: 'The following convention is used to denote the marks used on the reverses: - -//-, where the first - refers to the left field, the second to the right field and the third, after the //, to the exergue. Marks in the centre field are indicated as follows: A//XXI, and where marks in the field are on more than one level they are shown as follows: R - /A F//BSISC.'
E20: MINT | F20: Mint where coin was struck (if known). Available from a dropdown list.
E21: REFERENCE | F21: Reference to a standard numismatic catalogue, where identification is possible.
E22: REMARKS | F22: Used to indicate unusual treatment or condition of the coin, such as if pierced, cut, clipped or countermarked.
E24: Secondary Field name | F24: Secondary Field description
E25: OBVERSE LEGEND | F25: Obverse legend of the coin (preferably as catalogued if fully identifiable): ANTONINVS AVG PIVS PP TRP COS III, rather than ANTONINVS AVG PIV-S PP TRP COS III, or ANTONINVS AVG PIVS PP [TRP COS III]
E26: REVERSE LEGEND | F26: Reverse legend of the coin (preferably as catalogued if fully identifiable): SECVRITAS REIPVBLICAE, rather than SECVRITAS REI-PVBLICAE, or SECVRI[TAS REIPVBLICAE]
E27: DIAMETER (mm) | F27: Maximum diameter of the coin (recorded in millimetres). The project’s archaeological numismatist will decide which coins, if any, should be measured. Likely to include coins where their it been shown that their diameters reveal information about them (e.g., Claudian copies and siliquae).
E28: WEIGHT (g) | F28: Weight of the coin (recorded in grammes). The project’s archaeological numismatist will decide which coins, if any, should be weighed. Likely to include coins where it been shown that their weights reveal information about them (e.g., Claudian copies and siliquae).
E29: WEAR | F29: Records the level of wear of the coin. Various schemes are available. It is misleading to attempt to record the wear of corroded coins
E30: DIE-AXIS | F30: Alignment of the obverse and reverse dies.

Sheet Roman Coin ID Template
A1: SITE CODE | B1: COIN ID | C1: CONTEXT | D1: DATE | E1: DATE FROM | F1: DATE TO | G1: IP | H1: DENOMINATION | I1: COPY? | J1: EMPEROR/ISSUER | K1: REVERSE | L1: MINT MARK | M1: MINT | N1: REFERENCE | O1: REMARKS | P1: OBVERSE LEGEND | Q1: REVERSE LEGEND | R1: DIAMETER (mm) | S1: WEIGHT (g) | T1: WEAR | U1: DIE-AXIS
A3: =REPT(" 'Add coin data above this row' 'Additional information can be recorded in Column V onwards (deleted automatically when the Template is saved as an .xlxs file by pressing the blue button on the coversheet)' ",2) -> 'Add coin data above this row' 'Additional information can be recorded in Column V onwards (deleted automatically when the Template is saved as an .xlxs file by pressing the blue button on the coversheet)' 'Add coin data above this row' 'Additional information can be recorded in Column V onwards (deleted automatically when the Template is saved as an .xlxs file by pressing the blue button on the coversheet)'

Sheet Emperor-Issuer tbl
A1: Turn OFF Controls | B1: Date | C1: Date from | D1: Date to | E1: IP | F1: heirarchy | G1: Helper Key | H1: Helper 1 | I1: Helper 2 | J1: Helper 3 | K1: Helper 4 | L1: Helper 5 | M1: Link | N1: FilterEmpIss | P1: rng_Emp_Filter >>> | R1: <<< Hidden Technical Area
A2: Roman Republican | B2: 200-31 BC | C2: -200 | D2: -31 | E2: 1 | F2: 100 | G2: =tbl_Emp[[#This Row],[Turn OFF Controls]] -> Roman Republican | H2: =IF(ISTEXT(OFFSET(tbl_Emp[[#This Row],[Helper 1]],-1,0)),1,OFFSET(tbl_Emp[[#This Row],[Helper 1]],-1,0)+1) -> 1 | I2: =IF(rng_Emp_Filter="",0,IF(ISNUMBER(SEARCH(rng_Emp_Filter,tbl_Emp[[#This Row],[Helper Key]])),tbl_Emp[[#This Row],[Helper 1]],"")) -> 0 | J2: =IFERROR(SMALL(tbl_Emp[Helper 2],tbl_Emp[[#This Row],[Helper 1]]),"") -> 0 | K2: =IF(OR(tbl_Emp[[#This Row],[Helper 2]]<>"",tbl_Emp[[#This Row],[Helper 3]]<>""),1,0) -> 1 | L2: =IF(rng_Emp_Filter="",0,IF(tbl_Emp[[#This Row],[Helper 2]]<>"",1,0)) -> 0 | M2: =IF(rng_Emp_Filter="",tbl_Emp[[#This Row],[Helper 1]],INDEX(tbl_Emp[Helper 3],tbl_Emp[[#This Row],[Helper 1]])) -> 1 | N2: =IFERROR(INDEX(tbl_Emp[Turn OFF Controls],tbl_Emp[[#This Row],[Link]]),"") -> Roman Republican | P2: rng_Emp_Count >>> | Q2: =COUNTA(tbl_Emp[FilterEmpIss])-COUNTIF(tbl_Emp[Link],"") -> 237
A3: MARC ANTONY | B3: 41-31 BC | C3: -41 | D3: -31 | E3: 1 | F3: =F2+100 -> 200 | G3: =tbl_Emp[[#This Row],[Turn OFF Controls]] -> MARC ANTONY | H3: =IF(ISTEXT(OFFSET(tbl_Emp[[#This Row],[Helper 1]],-1,0)),1,OFFSET(tbl_Emp[[#This Row],[Helper 1]],-1,0)+1) -> 2 | I3: =IF(rng_Emp_Filter="",0,IF(ISNUMBER(SEARCH(rng_Emp_Filter,tbl_Emp[[#This Row],[Helper Key]])),tbl_Emp[[#This Row],[Helper 1]],"")) -> 0 | J3: =IFERROR(SMALL(tbl_Emp[Helper 2],tbl_Emp[[#This Row],[Helper 1]]),"") -> 0 | K3: =IF(OR(tbl_Emp[[#This Row],[Helper 2]]<>"",tbl_Emp[[#This Row],[Helper 3]]<>""),1,0) -> 1 | L3: =IF(rng_Emp_Filter="",0,IF(tbl_Emp[[#This Row],[Helper 2]]<>"",1,0)) -> 0 | M3: =IF(rng_Emp_Filter="",tbl_Emp[[#This Row],[Helper 1]],INDEX(tbl_Emp[Helper 3],tbl_Emp[[#This Row],[Helper 1]])) -> 2 | N3: =IFERROR(INDEX(tbl_Emp[Turn OFF Controls],tbl_Emp[[#This Row],[Link]]),"") -> MARC ANTONY | P3: rng_EmpSel >>> | Q3: TIBERIUS
A4: AUGUSTUS | B4: 31 BC-14 | C4: -31 | D4: 14 | E4: 1 | F4: 300 | G4: =tbl_Emp[[#This Row],[Turn OFF Controls]] -> AUGUSTUS | H4: =IF(ISTEXT(OFFSET(tbl_Emp[[#This Row],[Helper 1]],-1,0)),1,OFFSET(tbl_Emp[[#This Row],[Helper 1]],-1,0)+1) -> 3 | I4: =IF(rng_Emp_Filter="",0,IF(ISNUMBER(SEARCH(rng_Emp_Filter,tbl_Emp[[#This Row],[Helper Key]])),tbl_Emp[[#This Row],[Helper 1]],"")) -> 0 | J4: =IFERROR(SMALL(tbl_Emp[Helper 2],tbl_Emp[[#This Row],[Helper 1]]),"") -> 0 | K4: =IF(OR(tbl_Emp[[#This Row],[Helper 2]]<>"",tbl_Emp[[#This Row],[Helper 3]]<>""),1,0) -> 1 | L4: =IF(rng_Emp_Filter="",0,IF(tbl_Emp[[#This Row],[Helper 2]]<>"",1,0)) -> 0 | M4: =IF(rng_Emp_Filter="",tbl_Emp[[#This Row],[Helper 1]],INDEX(tbl_Emp[Helper 3],tbl_Emp[[#This Row],[Helper 1]])) -> 3 | N4: =IFERROR(INDEX(tbl_Emp[Turn OFF Controls],tbl_Emp[[#This Row],[Link]]),"") -> AUGUSTUS | P4: rng_EmpSelDate >>> | Q4: =INDEX(tbl_Emp[Date],MATCH(rng_EmpSel,tbl_Emp[Turn OFF Controls],0)) -> 14-37
A5: LIVIA (Augustus) | B5: 27 BC-14 | C5: -27 | D5: 14 | E5: 1 | F5: 400 | G5: =tbl_Emp[[#This Row],[Turn OFF Controls]] -> LIVIA (Augustus) | H5: =IF(ISTEXT(OFFSET(tbl_Emp[[#This Row],[Helper 1]],-1,0)),1,OFFSET(tbl_Emp[[#This Row],[Helper 1]],-1,0)+1) -> 4 | I5: =IF(rng_Emp_Filter="",0,IF(ISNUMBER(SEARCH(rng_Emp_Filter,tbl_Emp[[#This Row],[Helper Key]])),tbl_Emp[[#This Row],[Helper 1]],"")) -> 0 | J5: =IFERROR(SMALL(tbl_Emp[Helper 2],tbl_Emp[[#This Row],[Helper 1]]),"") -> 0 | K5: =IF(OR(tbl_Emp[[#This Row],[Helper 2]]<>"",tbl_Emp[[#This Row],[Helper 3]]<>""),1,0) -> 1 | L5: =IF(rng_Emp_Filter="",0,IF(tbl_Emp[[#This Row],[Helper 2]]<>"",1,0)) -> 0 | M5: =IF(rng_Emp_Filter="",tbl_Emp[[#This Row],[Helper 1]],INDEX(tbl_Emp[Helper 3],tbl_Emp[[#This Row],[Helper 1]])) -> 4 | N5: =IFERROR(INDEX(tbl_Emp[Turn OFF Controls],tbl_Emp[[#This Row],[Link]]),"") -> LIVIA (Augustus) | P5: rng_EmpSelDateFrom >>> | Q5: =INDEX(tbl_Emp[Date from],MATCH(rng_EmpSel,tbl_Emp[Turn OFF Controls],0)) -> 14
A6: AGRIPPA (Augustus) | B6: 27-12 BC | C6: -27 | D6: -12 | E6: 1 | F6: 500 | G6: =tbl_Emp[[#This Row],[Turn OFF Controls]] -> AGRIPPA (Augustus) | H6: =IF(ISTEXT(OFFSET(tbl_Emp[[#This Row],[Helper 1]],-1,0)),1,OFFSET(tbl_Emp[[#This Row],[Helper 1]],-1,0)+1) -> 5 | I6: =IF(rng_Emp_Filter="",0,IF(ISNUMBER(SEARCH(rng_Emp_Filter,tbl_Emp[[#This Row],[Helper Key]])),tbl_Emp[[#This Row],[Helper 1]],"")) -> 0 | J6: =IFERROR(SMALL(tbl_Emp[Helper 2],tbl_Emp[[#This Row],[Helper 1]]),"") -> 0 | K6: =IF(OR(tbl_Emp[[#This Row],[Helper 2]]<>"",tbl_Emp[[#This Row],[Helper 3]]<>""),1,0) -> 1 | L6: =IF(rng_Emp_Filter="",0,IF(tbl_Emp[[#This Row],[Helper 2]]<>"",1,0)) -> 0 | M6: =IF(rng_Emp_Filter="",tbl_Emp[[#This Row],[Helper 1]],INDEX(tbl_Emp[Helper 3],tbl_Emp[[#This Row],[Helper 1]])) -> 5 | N6: =IFERROR(INDEX(tbl_Emp[Turn OFF Controls],tbl_Emp[[#This Row],[Link]]),"") -> AGRIPPA (Augustus) | P6: rng_EmpSelDateTo >>> | Q6: =INDEX(tbl_Emp[Date to],MATCH(rng_EmpSel,tbl_Emp[Turn OFF Controls],0)) -> 37
A7: TIBERIUS Caesar (Augustus) | B7: 4-14 | C7: 4 | D7: 14 | E7: 1 | F7: 600 | G7: =tbl_Emp[[#This Row],[Turn OFF Controls]] -> TIBERIUS Caesar (Augustus) | H7: =IF(ISTEXT(OFFSET(tbl_Emp[[#This Row],[Helper 1]],-1,0)),1,OFFSET(tbl_Emp[[#This Row],[Helper 1]],-1,0)+1) -> 6 | I7: =IF(rng_Emp_Filter="",0,IF(ISNUMBER(SEARCH(rng_Emp_Filter,tbl_Emp[[#This Row],[Helper Key]])),tbl_Emp[[#This Row],[Helper 1]],"")) -> 0 | J7: =IFERROR(SMALL(tbl_Emp[Helper 2],tbl_Emp[[#This Row],[Helper 1]]),"") -> 0 | K7: =IF(OR(tbl_Emp[[#This Row],[Helper 2]]<>"",tbl_Emp[[#This Row],[Helper 3]]<>""),1,0) -> 1 | L7: =IF(rng_Emp_Filter="",0,IF(tbl_Emp[[#This Row],[Helper 2]]<>"",1,0)) -> 0 | M7: =IF(rng_Emp_Filter="",tbl_Emp[[#This Row],[Helper 1]],INDEX(tbl_Emp[Helper 3],tbl_Emp[[#This Row],[Helper 1]])) -> 6 | N7: =IFERROR(INDEX(tbl_Emp[Turn OFF Controls],tbl_Emp[[#This Row],[Link]]),"") -> TIBERIUS Caesar (Augustus) | P7: rng_EmpSelIP >>> | Q7: =INDEX(tbl_Emp[IP],MATCH(rng_EmpSel,tbl_Emp[Turn OFF Controls],0)) -> 1
A8: TIBERIUS | B8: 14-37 | C8: 14 | D8: 37 | E8: 1 | F8: 700 | G8: =tbl_Emp[[#This Row],[Turn OFF Controls]] -> TIBERIUS | H8: =IF(ISTEXT(OFFSET(tbl_Emp[[#This Row],[Helper 1]],-1,0)),1,OFFSET(tbl_Emp[[#This Row],[Helper 1]],-1,0)+1) -> 7 | I8: =IF(rng_Emp_Filter="",0,IF(ISNUMBER(SEARCH(rng_Emp_Filter,tbl_Emp[[#This Row],[Helper Key]])),tbl_Emp[[#This Row],[Helper 1]],"")) -> 0 | J8: =IFERROR(SMALL(tbl_Emp[Helper 2],tbl_Emp[[#This Row],[Helper 1]]),"") -> 0 | K8: =IF(OR(tbl_Emp[[#This Row],[Helper 2]]<>"",tbl_Emp[[#This Row],[Helper 3]]<>""),1,0) -> 1 | L8: =IF(rng_Emp_Filter="",0,IF(tbl_Emp[[#This Row],[Helper 2]]<>"",1,0)) -> 0 | M8: =IF(rng_Emp_Filter="",tbl_Emp[[#This Row],[Helper 1]],INDEX(tbl_Emp[Helper 3],tbl_Emp[[#This Row],[Helper 1]])) -> 7 | N8: =IFERROR(INDEX(tbl_Emp[Turn OFF Controls],tbl_Emp[[#This Row],[Link]]),"") -> TIBERIUS
A9: DRUSUS Caesar (Tiberius) | B9: 19-23 | C9: 19 | D9: 23 | E9: 1 | F9: 800 | G9: =tbl_Emp[[#This Row],[Turn OFF Controls]] -> DRUSUS Caesar (Tiberius) | H9: =IF(ISTEXT(OFFSET(tbl_Emp[[#This Row],[Helper 1]],-1,0)),1,OFFSET(tbl_Emp[[#This Row],[Helper 1]],-1,0)+1) -> 8 | I9: =IF(rng_Emp_Filter="",0,IF(ISNUMBER(SEARCH(rng_Emp_Filter,tbl_Emp[[#This Row],[Helper Key]])),tbl_Emp[[#This Row],[Helper 1]],"")) -> 0 | J9: =IFERROR(SMALL(tbl_Emp[Helper 2],tbl_Emp[[#This Row],[Helper 1]]),"") -> 0 | K9: =IF(OR(tbl_Emp[[#This Row],[Helper 2]]<>"",tbl_Emp[[#This Row],[Helper 3]]<>""),1,0) -> 1 | L9: =IF(rng_Emp_Filter="",0,IF(tbl_Emp[[#This Row],[Helper 2]]<>"",1,0)) -> 0 | M9: =IF(rng_Emp_Filter="",tbl_Emp[[#This Row],[Helper 1]],INDEX(tbl_Emp[Helper 3],tbl_Emp[[#This Row],[Helper 1]])) -> 8 | N9: =IFERROR(INDEX(tbl_Emp[Turn OFF Controls],tbl_Emp[[#This Row],[Link]]),"") -> DRUSUS Caesar (Tiberius)
A10: CALIGULA | B10: 37-41 | C10: 37 | D10: 41 | E10: 1 | F10: 900 | G10: =tbl_Emp[[#This Row],[Turn OFF Controls]] -> CALIGULA | H10: =IF(ISTEXT(OFFSET(tbl_Emp[[#This Row],[Helper 1]],-1,0)),1,OFFSET(tbl_Emp[[#This Row],[Helper 1]],-1,0)+1) -> 9 | I10: =IF(rng_Emp_Filter="",0,IF(ISNUMBER(SEARCH(rng_Emp_Filter,tbl_Emp[[#This Row],[Helper Key]])),tbl_Emp[[#This Row],[Helper 1]],"")) -> 0 | J10: =IFERROR(SMALL(tbl_Emp[Helper 2],tbl_Emp[[#This Row],[Helper 1]]),"") -> 0 | K10: =IF(OR(tbl_Emp[[#This Row],[Helper 2]]<>"",tbl_Emp[[#This Row],[Helper 3]]<>""),1,0) -> 1 | L10: =IF(rng_Emp_Filter="",0,IF(tbl_Emp[[#This Row],[Helper 2]]<>"",1,0)) -> 0 | M10: =IF(rng_Emp_Filter="",tbl_Emp[[#This Row],[Helper 1]],INDEX(tbl_Emp[Helper 3],tbl_Emp[[#This Row],[Helper 1]])) -> 9 | N10: =IFERROR(INDEX(tbl_Emp[Turn OFF Controls],tbl_Emp[[#This Row],[Link]]),"") -> CALIGULA
A11: GERMANICUS (Caligula) | B11: 37-41 | C11: 37 | D11: 41 | E11: 1 | F11: 1000 | G11: =tbl_Emp[[#This Row],[Turn OFF Controls]] -> GERMANICUS (Caligula) | H11: =IF(ISTEXT(OFFSET(tbl_Emp[[#This Row],[Helper 1]],-1,0)),1,OFFSET(tbl_Emp[[#This Row],[Helper 1]],-1,0)+1) -> 10 | I11: =IF(rng_Emp_Filter="",0,IF(ISNUMBER(SEARCH(rng_Emp_Filter,tbl_Emp[[#This Row],[Helper Key]])),tbl_Emp[[#This Row],[Helper 1]],"")) -> 0 | J11: =IFERROR(SMALL(tbl_Emp[Helper 2],tbl_Emp[[#This Row],[Helper 1]]),"") -> 0 | K11: =IF(OR(tbl_Emp[[#This Row],[Helper 2]]<>"",tbl_Emp[[#This Row],[Helper 3]]<>""),1,0) -> 1 | L11: =IF(rng_Emp_Filter="",0,IF(tbl_Emp[[#This Row],[Helper 2]]<>"",1,0)) -> 0 | M11: =IF(rng_Emp_Filter="",tbl_Emp[[#This Row],[Helper 1]],INDEX(tbl_Emp[Helper 3],tbl_Emp[[#This Row],[Helper 1]])) -> 10 | N11: =IFERROR(INDEX(tbl_Emp[Turn OFF Controls],tbl_Emp[[#This Row],[Link]]),"") -> GERMANICUS (Caligula)
A12: AGRIPPA (Caligula) | B12: 37-41 | C12: 37 | D12: 41 | E12: 1 | F12: 1100 | G12: =tbl_Emp[[#This Row],[Turn OFF Controls]] -> AGRIPPA (Caligula) | H12: =IF(ISTEXT(OFFSET(tbl_Emp[[#This Row],[Helper 1]],-1,0)),1,OFFSET(tbl_Emp[[#This Row],[Helper 1]],-1,0)+1) -> 11 | I12: =IF(rng_Emp_Filter="",0,IF(ISNUMBER(SEARCH(rng_Emp_Filter,tbl_Emp[[#This Row],[Helper Key]])),tbl_Emp[[#This Row],[Helper 1]],"")) -> 0 | J12: =IFERROR(SMALL(tbl_Emp[Helper 2],tbl_Emp[[#This Row],[Helper 1]]),"") -> 0 | K12: =IF(OR(tbl_Emp[[#This Row],[Helper 2]]<>"",tbl_Emp[[#This Row],[Helper 3]]<>""),1,0) -> 1 | L12: =IF(rng_Emp_Filter="",0,IF(tbl_Emp[[#This Row],[Helper 2]]<>"",1,0)) -> 0 | M12: =IF(rng_Emp_Filter="",tbl_Emp[[#This Row],[Helper 1]],INDEX(tbl_Emp[Helper 3],tbl_Emp[[#This Row],[Helper 1]])) -> 11 | N12: =IFERROR(INDEX(tbl_Emp[Turn OFF Controls],tbl_Emp[[#This Row],[Link]]),"") -> AGRIPPA (Caligula)
A13: AGRIPPINA THE ELDER (Caligula) | B13: 37-41 | C13: 37 | D13: 41 | E13: 1 | F13: 1200 | G13: =tbl_Emp[[#This Row],[Turn OFF Controls]] -> AGRIPPINA THE ELDER (Caligula) | H13: =IF(ISTEXT(OFFSET(tbl_Emp[[#This Row],[Helper 1]],-1,0)),1,OFFSET(tbl_Emp[[#This Row],[Helper 1]],-1,0)+1) -> 12 | I13: =IF(rng_Emp_Filter="",0,IF(ISNUMBER(SEARCH(rng_Emp_Filter,tbl_Emp[[#This Row],[Helper Key]])),tbl_Emp[[#This Row],[Helper 1]],"")) -> 0 | J13: =IFERROR(SMALL(tbl_Emp[Helper 2],tbl_Emp[[#This Row],[Helper 1]]),"") -> 0 | K13: =IF(OR(tbl_Emp[[#This Row],[Helper 2]]<>"",tbl_Emp[[#This Row],[Helper 3]]<>""),1,0) -> 1 | L13: =IF(rng_Emp_Filter="",0,IF(tbl_Emp[[#This Row],[Helper 2]]<>"",1,0)) -> 0 | M13: =IF(rng_Emp_Filter="",tbl_Emp[[#This Row],[Helper 1]],INDEX(tbl_Emp[Helper 3],tbl_Emp[[#This Row],[Helper 1]])) -> 12 | N13: =IFERROR(INDEX(tbl_Emp[Turn OFF Controls],tbl_Emp[[#This Row],[Link]]),"") -> AGRIPPINA THE ELDER (Caligula)
A14: AGRIPPINA THE YOUNGER (Caligula) | B14: 37-41 | C14: 37 | D14: 41 | E14: 1 | F14: 1300 | G14: =tbl_Emp[[#This Row],[Turn OFF Controls]] -> AGRIPPINA THE YOUNGER (Caligula) | H14: =IF(ISTEXT(OFFSET(tbl_Emp[[#This Row],[Helper 1]],-1,0)),1,OFFSET(tbl_Emp[[#This Row],[Helper 1]],-1,0)+1) -> 13 | I14: =IF(rng_Emp_Filter="",0,IF(ISNUMBER(SEARCH(rng_Emp_Filter,tbl_Emp[[#This Row],[Helper Key]])),tbl_Emp[[#This Row],[Helper 1]],"")) -> 0 | J14: =IFERROR(SMALL(tbl_Emp[Helper 2],tbl_Emp[[#This Row],[Helper 1]]),"") -> 0 | K14: =IF(OR(tbl_Emp[[#This Row],[Helper 2]]<>"",tbl_Emp[[#This Row],[Helper 3]]<>""),1,0) -> 1 | L14: =IF(rng_Emp_Filter="",0,IF(tbl_Emp[[#This Row],[Helper 2]]<>"",1,0)) -> 0 | M14: =IF(rng_Emp_Filter="",tbl_Emp[[#This Row],[Helper 1]],INDEX(tbl_Emp[Helper 3],tbl_Emp[[#This Row],[Helper 1]])) -> 13 | N14: =IFERROR(INDEX(tbl_Emp[Turn OFF Controls],tbl_Emp[[#This Row],[Link]]),"") -> AGRIPPINA THE YOUNGER (Caligula)
A15: CLAUDIUS I | B15: 41-54 | C15: 41 | D15: 54 | E15: 2 | F15: 1400 | G15: =tbl_Emp[[#This Row],[Turn OFF Controls]] -> CLAUDIUS I | H15: =IF(ISTEXT(OFFSET(tbl_Emp[[#This Row],[Helper 1]],-1,0)),1,OFFSET(tbl_Emp[[#This Row],[Helper 1]],-1,0)+1) -> 14 | I15: =IF(rng_Emp_Filter="",0,IF(ISNUMBER(SEARCH(rng_Emp_Filter,tbl_Emp[[#This Row],[Helper Key]])),tbl_Emp[[#This Row],[Helper 1]],"")) -> 0 | J15: =IFERROR(SMALL(tbl_Emp[Helper 2],tbl_Emp[[#This Row],[Helper 1]]),"") -> 0 | K15: =IF(OR(tbl_Emp[[#This Row],[Helper 2]]<>"",tbl_Emp[[#This Row],[Helper 3]]<>""),1,0) -> 1 | L15: =IF(rng_Emp_Filter="",0,IF(tbl_Emp[[#This Row],[Helper 2]]<>"",1,0)) -> 0 | M15: =IF(rng_Emp_Filter="",tbl_Emp[[#This Row],[Helper 1]],INDEX(tbl_Emp[Helper 3],tbl_Emp[[#This Row],[Helper 1]])) -> 14 | N15: =IFERROR(INDEX(tbl_Emp[Turn OFF Controls],tbl_Emp[[#This Row],[Link]]),"") -> CLAUDIUS I
A16: DRUSUS (Claudius) | B16: 41-54 | C16: 41 | D16: 54 | E16: 2 | F16: 1500 | G16: =tbl_Emp[[#This Row],[Turn OFF Controls]] -> DRUSUS (Claudius) | H16: =IF(ISTEXT(OFFSET(tbl_Emp[[#This Row],[Helper 1]],-1,0)),1,OFFSET(tbl_Emp[[#This Row],[Helper 1]],-1,0)+1) -> 15 | I16: =IF(rng_Emp_Filter="",0,IF(ISNUMBER(SEARCH(rng_Emp_Filter,tbl_Emp[[#This Row],[Helper Key]])),tbl_Emp[[#This Row],[Helper 1]],"")) -> 0 | J16: =IFERROR(SMALL(tbl_Emp[Helper 2],tbl_Emp[[#This Row],[Helper 1]]),"") -> 0 | K16: =IF(OR(tbl_Emp[[#This Row],[Helper 2]]<>"",tbl_Emp[[#This Row],[Helper 3]]<>""),1,0) -> 1 | L16: =IF(rng_Emp_Filter="",0,IF(tbl_Emp[[#This Row],[Helper 2]]<>"",1,0)) -> 0 | M16: =IF(rng_Emp_Filter="",tbl_Emp[[#This Row],[Helper 1]],INDEX(tbl_Emp[Helper 3],tbl_Emp[[#This Row],[Helper 1]])) -> 15 | N16: =IFERROR(INDEX(tbl_Emp[Turn OFF Controls],tbl_Emp[[#This Row],[Link]]),"") -> DRUSUS (Claudius)
A17: ANTONIA MINOR (Claudius) | B17: 41-54 | C17: 41 | D17: 54 | E17: 2 | F17: 1600 | G17: =tbl_Emp[[#This Row],[Turn OFF Controls]] -> ANTONIA MINOR (Claudius) | H17: =IF(ISTEXT(OFFSET(tbl_Emp[[#This Row],[Helper 1]],-1,0)),1,OFFSET(tbl_Emp[[#This Row],[Helper 1]],-1,0)+1) -> 16 | I17: =IF(rng_Emp_Filter="",0,IF(ISNUMBER(SEARCH(rng_Emp_Filter,tbl_Emp[[#This Row],[Helper Key]])),tbl_Emp[[#This Row],[Helper 1]],"")) -> 0 | J17: =IFERROR(SMALL(tbl_Emp[Helper 2],tbl_Emp[[#This Row],[Helper 1]]),"") -> 0 | K17: =IF(OR(tbl_Emp[[#This Row],[Helper 2]]<>"",tbl_Emp[[#This Row],[Helper 3]]<>""),1,0) -> 1 | L17: =IF(rng_Emp_Filter="",0,IF(tbl_Emp[[#This Row],[Helper 2]]<>"",1,0)) -> 0 | M17: =IF(rng_Emp_Filter="",tbl_Emp[[#This Row],[Helper 1]],INDEX(tbl_Emp[Helper 3],tbl_Emp[[#This Row],[Helper 1]])) -> 16 | N17: =IFERROR(INDEX(tbl_Emp[Turn OFF Controls],tbl_Emp[[#This Row],[Link]]),"") -> ANTONIA MINOR (Claudius)
A18: AGRIPPINA THE ELDER (Claudius) | B18: 41-54 | C18: 41 | D18: 54 | E18: 2 | F18: 1700 | G18: =tbl_Emp[[#This Row],[Turn OFF Controls]] -> AGRIPPINA THE ELDER (Claudius) | H18: =IF(ISTEXT(OFFSET(tbl_Emp[[#This Row],[Helper 1]],-1,0)),1,OFFSET(tbl_Emp[[#This Row],[Helper 1]],-1,0)+1) -> 17 | I18: =IF(rng_Emp_Filter="",0,IF(ISNUMBER(SEARCH(rng_Emp_Filter,tbl_Emp[[#This Row],[Helper Key]])),tbl_Emp[[#This Row],[Helper 1]],"")) -> 0 | J18: =IFERROR(SMALL(tbl_Emp[Helper 2],tbl_Emp[[#This Row],[Helper 1]]),"") -> 0 | K18: =IF(OR(tbl_Emp[[#This Row],[Helper 2]]<>"",tbl_Emp[[#This Row],[Helper 3]]<>""),1,0) -> 1 | L18: =IF(rng_Emp_Filter="",0,IF(tbl_Emp[[#This Row],[Helper 2]]<>"",1,0)) -> 0 | M18: =IF(rng_Emp_Filter="",tbl_Emp[[#This Row],[Helper 1]],INDEX(tbl_Emp[Helper 3],tbl_Emp[[#This Row],[Helper 1]])) -> 17 | N18: =IFERROR(INDEX(tbl_Emp[Turn OFF Controls],tbl_Emp[[#This Row],[Link]]),"") -> AGRIPPINA THE ELDER (Claudius)
A19: AGRIPPINA THE YOUNGER (Claudius) | B19: 43-54 | C19: 43 | D19: 54 | E19: 2 | F19: 1800 | G19: =tbl_Emp[[#This Row],[Turn OFF Controls]] -> AGRIPPINA THE YOUNGER (Claudius) | H19: =IF(ISTEXT(OFFSET(tbl_Emp[[#This Row],[Helper 1]],-1,0)),1,OFFSET(tbl_Emp[[#This Row],[Helper 1]],-1,0)+1) -> 18 | I19: =IF(rng_Emp_Filter="",0,IF(ISNUMBER(SEARCH(rng_Emp_Filter,tbl_Emp[[#This Row],[Helper Key]])),tbl_Emp[[#This Row],[Helper 1]],"")) -> 0 | J19: =IFERROR(SMALL(tbl_Emp[Helper 2],tbl_Emp[[#This Row],[Helper 1]]),"") -> 0 | K19: =IF(OR(tbl_Emp[[#This Row],[Helper 2]]<>"",tbl_Emp[[#This Row],[Helper 3]]<>""),1,0) -> 1 | L19: =IF(rng_Emp_Filter="",0,IF(tbl_Emp[[#This Row],[Helper 2]]<>"",1,0)) -> 0 | M19: =IF(rng_Emp_Filter="",tbl_Emp[[#This Row],[Helper 1]],INDEX(tbl_Emp[Helper 3],tbl_Emp[[#This Row],[Helper 1]])) -> 18 | N19: =IFERROR(INDEX(tbl_Emp[Turn OFF Controls],tbl_Emp[[#This Row],[Link]]),"") -> AGRIPPINA THE YOUNGER (Claudius)
A20: BRITANNICUS (Claudius) | B20: 49-54 | C20: 49 | D20: 54 | E20: 2 | F20: 1900 | G20: =tbl_Emp[[#This Row],[Turn OFF Controls]] -> BRITANNICUS (Claudius) | H20: =IF(ISTEXT(OFFSET(tbl_Emp[[#This Row],[Helper 1]],-1,0)),1,OFFSET(tbl_Emp[[#This Row],[Helper 1]],-1,0)+1) -> 19 | I20: =IF(rng_Emp_Filter="",0,IF(ISNUMBER(SEARCH(rng_Emp_Filter,tbl_Emp[[#This Row],[Helper Key]])),tbl_Emp[[#This Row],[Helper 1]],"")) -> 0 | J20: =IFERROR(SMALL(tbl_Emp[Helper 2],tbl_Emp[[#This Row],[Helper 1]]),"") -> 0 | K20: =IF(OR(tbl_Emp[[#This Row],[Helper 2]]<>"",tbl_Emp[[#This Row],[Helper 3]]<>""),1,0) -> 1 | L20: =IF(rng_Emp_Filter="",0,IF(tbl_Emp[[#This Row],[Helper 2]]<>"",1,0)) -> 0 | M20: =IF(rng_Emp_Filter="",tbl_Emp[[#This Row],[Helper 1]],INDEX(tbl_Emp[Helper 3],tbl_Emp[[#This Row],[Helper 1]])) -> 19 | N20: =IFERROR(INDEX(tbl_Emp[Turn OFF Controls],tbl_Emp[[#This Row],[Link]]),"") -> BRITANNICUS (Claudius)
A21: NERO Caesar (Claudius) | B21: 50-54 | C21: 50 | D21: 54 | E21: 2 | F21: 2000 | G21: =tbl_Emp[[#This Row],[Turn OFF Controls]] -> NERO Caesar (Claudius) | H21: =IF(ISTEXT(OFFSET(tbl_Emp[[#This Row],[Helper 1]],-1,0)),1,OFFSET(tbl_Emp[[#This Row],[Helper 1]],-1,0)+1) -> 20 | I21: =IF(rng_Emp_Filter="",0,IF(ISNUMBER(SEARCH(rng_Emp_Filter,tbl_Emp[[#This Row],[Helper Key]])),tbl_Emp[[#This Row],[Helper 1]],"")) -> 0 | J21: =IFERROR(SMALL(tbl_Emp[Helper 2],tbl_Emp[[#This Row],[Helper 1]]),"") -> 0 | K21: =IF(OR(tbl_Emp[[#This Row],[Helper 2]]<>"",tbl_Emp[[#This Row],[Helper 3]]<>""),1,0) -> 1 | L21: =IF(rng_Emp_Filter="",0,IF(tbl_Emp[[#This Row],[Helper 2]]<>"",1,0)) -> 0 | M21: =IF(rng_Emp_Filter="",tbl_Emp[[#This Row],[Helper 1]],INDEX(tbl_Emp[Helper 3],tbl_Emp[[#This Row],[Helper 1]])) -> 20 | N21: =IFERROR(INDEX(tbl_Emp[Turn OFF Controls],tbl_Emp[[#This Row],[Link]]),"") -> NERO Caesar (Claudius)
A22: NERO | B22: 54-68 | C22: 54 | D22: 68 | E22: 3 | F22: 2100 | G22: =tbl_Emp[[#This Row],[Turn OFF Controls]] -> NERO | H22: =IF(ISTEXT(OFFSET(tbl_Emp[[#This Row],[Helper 1]],-1,0)),1,OFFSET(tbl_Emp[[#This Row],[Helper 1]],-1,0)+1) -> 21 | I22: =IF(rng_Emp_Filter="",0,IF(ISNUMBER(SEARCH(rng_Emp_Filter,tbl_Emp[[#This Row],[Helper Key]])),tbl_Emp[[#This Row],[Helper 1]],"")) -> 0 | J22: =IFERROR(SMALL(tbl_Emp[Helper 2],tbl_Emp[[#This Row],[Helper 1]]),"") -> 0 | K22: =IF(OR(tbl_Emp[[#This Row],[Helper 2]]<>"",tbl_Emp[[#This Row],[Helper 3]]<>""),1,0) -> 1 | L22: =IF(rng_Emp_Filter="",0,IF(tbl_Emp[[#This Row],[Helper 2]]<>"",1,0)) -> 0 | M22: =IF(rng_Emp_Filter="",tbl_Emp[[#This Row],[Helper 1]],INDEX(tbl_Emp[Helper 3],tbl_Emp[[#This Row],[Helper 1]])) -> 21 | N22: =IFERROR(INDEX(tbl_Emp[Turn OFF Controls],tbl_Emp[[#This Row],[Link]]),"") -> NERO
A23: CLODIUS MACER | B23: 68 | C23: 68 | D23: 68 | E23: 3 | F23: 2200 | G23: =tbl_Emp[[#This Row],[Turn OFF Controls]] -> CLODIUS MACER | H23: =IF(ISTEXT(OFFSET(tbl_Emp[[#This Row],[Helper 1]],-1,0)),1,OFFSET(tbl_Emp[[#This Row],[Helper 1]],-1,0)+1) -> 22 | I23: =IF(rng_Emp_Filter="",0,IF(ISNUMBER(SEARCH(rng_Emp_Filter,tbl_Emp[[#This Row],[Helper Key]])),tbl_Emp[[#This Row],[Helper 1]],"")) -> 0 | J23: =IFERROR(SMALL(tbl_Emp[Helper 2],tbl_Emp[[#This Row],[Helper 1]]),"") -> 0 | K23: =IF(OR(tbl_Emp[[#This Row],[Helper 2]]<>"",tbl_Emp[[#This Row],[Helper 3]]<>""),1,0) -> 1 | L23: =IF(rng_Emp_Filter="",0,IF(tbl_Emp[[#This Row],[Helper 2]]<>"",1,0)) -> 0 | M23: =IF(rng_Emp_Filter="",tbl_Emp[[#This Row],[Helper 1]],INDEX(tbl_Emp[Helper 3],tbl_Emp[[#This Row],[Helper 1]])) -> 22 | N23: =IFERROR(INDEX(tbl_Emp[Turn OFF Controls],tbl_Emp[[#This Row],[Link]]),"") -> CLODIUS MACER
A24: GALBA | B24: 68-69 | C24: 68 | D24: 69 | E24: 3 | F24: 2300 | G24: =tbl_Emp[[#This Row],[Turn OFF Controls]] -> GALBA | H24: =IF(ISTEXT(OFFSET(tbl_Emp[[#This Row],[Helper 1]],-1,0)),1,OFFSET(tbl_Emp[[#This Row],[Helper 1]],-1,0)+1) -> 23 | I24: =IF(rng_Emp_Filter="",0,IF(ISNUMBER(SEARCH(rng_Emp_Filter,tbl_Emp[[#This Row],[Helper Key]])),tbl_Emp[[#This Row],[Helper 1]],"")) -> 0 | J24: =IFERROR(SMALL(tbl_Emp[Helper 2],tbl_Emp[[#This Row],[Helper 1]]),"") -> 0 | K24: =IF(OR(tbl_Emp[[#This Row],[Helper 2]]<>"",tbl_Emp[[#This Row],[Helper 3]]<>""),1,0) -> 1 | L24: =IF(rng_Emp_Filter="",0,IF(tbl_Emp[[#This Row],[Helper 2]]<>"",1,0)) -> 0 | M24: =IF(rng_Emp_Filter="",tbl_Emp[[#This Row],[Helper 1]],INDEX(tbl_Emp[Helper 3],tbl_Emp[[#This Row],[Helper 1]])) -> 23 | N24: =IFERROR(INDEX(tbl_Emp[Turn OFF Controls],tbl_Emp[[#This Row],[Link]]),"") -> GALBA
A25: OTHO | B25: 69 | C25: 69 | D25: 69 | E25: 3 | F25: 2400 | G25: =tbl_Emp[[#This Row],[Turn OFF Controls]] -> OTHO | H25: =IF(ISTEXT(OFFSET(tbl_Emp[[#This Row],[Helper 1]],-1,0)),1,OFFSET(tbl_Emp[[#This Row],[Helper 1]],-1,0)+1) -> 24 | I25: =IF(rng_Emp_Filter="",0,IF(ISNUMBER(SEARCH(rng_Emp_Filter,tbl_Emp[[#This Row],[Helper Key]])),tbl_Emp[[#This Row],[Helper 1]],"")) -> 0 | J25: =IFERROR(SMALL(tbl_Emp[Helper 2],tbl_Emp[[#This Row],[Helper 1]]),"") -> 0 | K25: =IF(OR(tbl_Emp[[#This Row],[Helper 2]]<>"",tbl_Emp[[#This Row],[Helper 3]]<>""),1,0) -> 1 | L25: =IF(rng_Emp_Filter="",0,IF(tbl_Emp[[#This Row],[Helper 2]]<>"",1,0)) -> 0 | M25: =IF(rng_Emp_Filter="",tbl_Emp[[#This Row],[Helper 1]],INDEX(tbl_Emp[Helper 3],tbl_Emp[[#This Row],[Helper 1]])) -> 24 | N25: =IFERROR(INDEX(tbl_Emp[Turn OFF Controls],tbl_Emp[[#This Row],[Link]]),"") -> OTHO
A26: VITELLIUS | B26: 69 | C26: 69 | D26: 69 | E26: 3 | F26: 2500 | G26: =tbl_Emp[[#This Row],[Turn OFF Controls]] -> VITELLIUS | H26: =IF(ISTEXT(OFFSET(tbl_Emp[[#This Row],[Helper 1]],-1,0)),1,OFFSET(tbl_Emp[[#This Row],[Helper 1]],-1,0)+1) -> 25 | I26: =IF(rng_Emp_Filter="",0,IF(ISNUMBER(SEARCH(rng_Emp_Filter,tbl_Emp[[#This Row],[Helper Key]])),tbl_Emp[[#This Row],[Helper 1]],"")) -> 0 | J26: =IFERROR(SMALL(tbl_Emp[Helper 2],tbl_Emp[[#This Row],[Helper 1]]),"") -> 0 | K26: =IF(OR(tbl_Emp[[#This Row],[Helper 2]]<>"",tbl_Emp[[#This Row],[Helper 3]]<>""),1,0) -> 1 | L26: =IF(rng_Emp_Filter="",0,IF(tbl_Emp[[#This Row],[Helper 2]]<>"",1,0)) -> 0 | M26: =IF(rng_Emp_Filter="",tbl_Emp[[#This Row],[Helper 1]],INDEX(tbl_Emp[Helper 3],tbl_Emp[[#This Row],[Helper 1]])) -> 25 | N26: =IFERROR(INDEX(tbl_Emp[Turn OFF Controls],tbl_Emp[[#This Row],[Link]]),"") -> VITELLIUS
A27: Anonymous (Civil War) | B27: 68-69 | C27: 68 | D27: 69 | E27: 3 | F27: 2600 | G27: =tbl_Emp[[#This Row],[Turn OFF Controls]] -> Anonymous (Civil War) | H27: =IF(ISTEXT(OFFSET(tbl_Emp[[#This Row],[Helper 1]],-1,0)),1,OFFSET(tbl_Emp[[#This Row],[Helper 1]],-1,0)+1) -> 26 | I27: =IF(rng_Emp_Filter="",0,IF(ISNUMBER(SEARCH(rng_Emp_Filter,tbl_Emp[[#This Row],[Helper Key]])),tbl_Emp[[#This Row],[Helper 1]],"")) -> 0 | J27: =IFERROR(SMALL(tbl_Emp[Helper 2],tbl_Emp[[#This Row],[Helper 1]]),"") -> 0 | K27: =IF(OR(tbl_Emp[[#This Row],[Helper 2]]<>"",tbl_Emp[[#This Row],[Helper 3]]<>""),1,0) -> 1 | L27: =IF(rng_Emp_Filter="",0,IF(tbl_Emp[[#This Row],[Helper 2]]<>"",1,0)) -> 0 | M27: =IF(rng_Emp_Filter="",tbl_Emp[[#This Row],[Helper 1]],INDEX(tbl_Emp[Helper 3],tbl_Emp[[#This Row],[Helper 1]])) -> 26 | N27: =IFERROR(INDEX(tbl_Emp[Turn OFF Controls],tbl_Emp[[#This Row],[Link]]),"") -> Anonymous (Civil War)
A28: VESPASIAN | B28: 69-79 | C28: 69 | D28: 79 | E28: 4 | F28: 2700 | G28: =tbl_Emp[[#This Row],[Turn OFF Controls]] -> VESPASIAN | H28: =IF(ISTEXT(OFFSET(tbl_Emp[[#This Row],[Helper 1]],-1,0)),1,OFFSET(tbl_Emp[[#This Row],[Helper 1]],-1,0)+1) -> 27 | I28: =IF(rng_Emp_Filter="",0,IF(ISNUMBER(SEARCH(rng_Emp_Filter,tbl_Emp[[#This Row],[Helper Key]])),tbl_Emp[[#This Row],[Helper 1]],"")) -> 0 | J28: =IFERROR(SMALL(tbl_Emp[Helper 2],tbl_Emp[[#This Row],[Helper 1]]),"") -> 0 | K28: =IF(OR(tbl_Emp[[#This Row],[Helper 2]]<>"",tbl_Emp[[#This Row],[Helper 3]]<>""),1,0) -> 1 | L28: =IF(rng_Emp_Filter="",0,IF(tbl_Emp[[#This Row],[Helper 2]]<>"",1,0)) -> 0 | M28: =IF(rng_Emp_Filter="",tbl_Emp[[#This Row],[Helper 1]],INDEX(tbl_Emp[Helper 3],tbl_Emp[[#This Row],[Helper 1]])) -> 27 | N28: =IFERROR(INDEX(tbl_Emp[Turn OFF Controls],tbl_Emp[[#This Row],[Link]]),"") -> VESPASIAN
A29: TITUS Caesar (Vespasian) | B29: 69-79 | C29: 69 | D29: 79 | E29: 4 | F29: 2800 | G29: =tbl_Emp[[#This Row],[Turn OFF Controls]] -> TITUS Caesar (Vespasian) | H29: =IF(ISTEXT(OFFSET(tbl_Emp[[#This Row],[Helper 1]],-1,0)),1,OFFSET(tbl_Emp[[#This Row],[Helper 1]],-1,0)+1) -> 28 | I29: =IF(rng_Emp_Filter="",0,IF(ISNUMBER(SEARCH(rng_Emp_Filter,tbl_Emp[[#This Row],[Helper Key]])),tbl_Emp[[#This Row],[Helper 1]],"")) -> 0 | J29: =IFERROR(SMALL(tbl_Emp[Helper 2],tbl_Emp[[#This Row],[Helper 1]]),"") -> 0 | K29: =IF(OR(tbl_Emp[[#This Row],[Helper 2]]<>"",tbl_Emp[[#This Row],[Helper 3]]<>""),1,0) -> 1 | L29: =IF(rng_Emp_Filter="",0,IF(tbl_Emp[[#This Row],[Helper 2]]<>"",1,0)) -> 0 | M29: =IF(rng_Emp_Filter="",tbl_Emp[[#This Row],[Helper 1]],INDEX(tbl_Emp[Helper 3],tbl_Emp[[#This Row],[Helper 1]])) -> 28 | N29: =IFERROR(INDEX(tbl_Emp[Turn OFF Controls],tbl_Emp[[#This Row],[Link]]),"") -> TITUS Caesar (Vespasian)
A30: DOMITIAN Caesar (Vespasian) | B30: 69-79 | C30: 69 | D30: 79 | E30: 4 | F30: 2900 | G30: =tbl_Emp[[#This Row],[Turn OFF Controls]] -> DOMITIAN Caesar (Vespasian) | H30: =IF(ISTEXT(OFFSET(tbl_Emp[[#This Row],[Helper 1]],-1,0)),1,OFFSET(tbl_Emp[[#This Row],[Helper 1]],-1,0)+1) -> 29 | I30: =IF(rng_Emp_Filter="",0,IF(ISNUMBER(SEARCH(rng_Emp_Filter,tbl_Emp[[#This Row],[Helper Key]])),tbl_Emp[[#This Row],[Helper 1]],"")) -> 0 | J30: =IFERROR(SMALL(tbl_Emp[Helper 2],tbl_Emp[[#This Row],[Helper 1]]),"") -> 0 | K30: =IF(OR(tbl_Emp[[#This Row],[Helper 2]]<>"",tbl_Emp[[#This Row],[Helper 3]]<>""),1,0) -> 1 | L30: =IF(rng_Emp_Filter="",0,IF(tbl_Emp[[#This Row],[Helper 2]]<>"",1,0)) -> 0 | M30: =IF(rng_Emp_Filter="",tbl_Emp[[#This Row],[Helper 1]],INDEX(tbl_Emp[Helper 3],tbl_Emp[[#This Row],[Helper 1]])) -> 29 | N30: =IFERROR(INDEX(tbl_Emp[Turn OFF Controls],tbl_Emp[[#This Row],[Link]]),"") -> DOMITIAN Caesar (Vespasian)
A31: TITUS | B31: 79-81 | C31: 79 | D31: 81 | E31: 4 | F31: 3000 | G31: =tbl_Emp[[#This Row],[Turn OFF Controls]] -> TITUS | H31: =IF(ISTEXT(OFFSET(tbl_Emp[[#This Row],[Helper 1]],-1,0)),1,OFFSET(tbl_Emp[[#This Row],[Helper 1]],-1,0)+1) -> 30 | I31: =IF(rng_Emp_Filter="",0,IF(ISNUMBER(SEARCH(rng_Emp_Filter,tbl_Emp[[#This Row],[Helper Key]])),tbl_Emp[[#This Row],[Helper 1]],"")) -> 0 | J31: =IFERROR(SMALL(tbl_Emp[Helper 2],tbl_Emp[[#This Row],[Helper 1]]),"") -> 0 | K31: =IF(OR(tbl_Emp[[#This Row],[Helper 2]]<>"",tbl_Emp[[#This Row],[Helper 3]]<>""),1,0) -> 1 | L31: =IF(rng_Emp_Filter="",0,IF(tbl_Emp[[#This Row],[Helper 2]]<>"",1,0)) -> 0 | M31: =IF(rng_Emp_Filter="",tbl_Emp[[#This Row],[Helper 1]],INDEX(tbl_Emp[Helper 3],tbl_Emp[[#This Row],[Helper 1]])) -> 30 | N31: =IFERROR(INDEX(tbl_Emp[Turn OFF Controls],tbl_Emp[[#This Row],[Link]]),"") -> TITUS
A32: DIVUS VESPASIAN (Titus) | B32: 79-81 | C32: 79 | D32: 81 | E32: 4 | F32: 3100 | G32: =tbl_Emp[[#This Row],[Turn OFF Controls]] -> DIVUS VESPASIAN (Titus) | H32: =IF(ISTEXT(OFFSET(tbl_Emp[[#This Row],[Helper 1]],-1,0)),1,OFFSET(tbl_Emp[[#This Row],[Helper 1]],-1,0)+1) -> 31 | I32: =IF(rng_Emp_Filter="",0,IF(ISNUMBER(SEARCH(rng_Emp_Filter,tbl_Emp[[#This Row],[Helper Key]])),tbl_Emp[[#This Row],[Helper 1]],"")) -> 0 | J32: =IFERROR(SMALL(tbl_Emp[Helper 2],tbl_Emp[[#This Row],[Helper 1]]),"") -> 0 | K32: =IF(OR(tbl_Emp[[#This Row],[Helper 2]]<>"",tbl_Emp[[#This Row],[Helper 3]]<>""),1,0) -> 1 | L32: =IF(rng_Emp_Filter="",0,IF(tbl_Emp[[#This Row],[Helper 2]]<>"",1,0)) -> 0 | M32: =IF(rng_Emp_Filter="",tbl_Emp[[#This Row],[Helper 1]],INDEX(tbl_Emp[Helper 3],tbl_Emp[[#This Row],[Helper 1]])) -> 31 | N32: =IFERROR(INDEX(tbl_Emp[Turn OFF Controls],tbl_Emp[[#This Row],[Link]]),"") -> DIVUS VESPASIAN (Titus)
A33: JULIA FLAVIA (Titus) | B33: 79-81 | C33: 79 | D33: 81 | E33: 4 | F33: 3200 | G33: =tbl_Emp[[#This Row],[Turn OFF Controls]] -> JULIA FLAVIA (Titus) | H33: =IF(ISTEXT(OFFSET(tbl_Emp[[#This Row],[Helper 1]],-1,0)),1,OFFSET(tbl_Emp[[#This Row],[Helper 1]],-1,0)+1) -> 32 | I33: =IF(rng_Emp_Filter="",0,IF(ISNUMBER(SEARCH(rng_Emp_Filter,tbl_Emp[[#This Row],[Helper Key]])),tbl_Emp[[#This Row],[Helper 1]],"")) -> 0 | J33: =IFERROR(SMALL(tbl_Emp[Helper 2],tbl_Emp[[#This Row],[Helper 1]]),"") -> 0 | K33: =IF(OR(tbl_Emp[[#This Row],[Helper 2]]<>"",tbl_Emp[[#This Row],[Helper 3]]<>""),1,0) -> 1 | L33: =IF(rng_Emp_Filter="",0,IF(tbl_Emp[[#This Row],[Helper 2]]<>"",1,0)) -> 0 | M33: =IF(rng_Emp_Filter="",tbl_Emp[[#This Row],[Helper 1]],INDEX(tbl_Emp[Helper 3],tbl_Emp[[#This Row],[Helper 1]])) -> 32 | N33: =IFERROR(INDEX(tbl_Emp[Turn OFF Controls],tbl_Emp[[#This Row],[Link]]),"") -> JULIA FLAVIA (Titus)
A34: DOMITIAN Caesar (Titus) | B34: 79-81 | C34: 79 | D34: 81 | E34: 4 | F34: 3300 | G34: =tbl_Emp[[#This Row],[Turn OFF Controls]] -> DOMITIAN Caesar (Titus) | H34: =IF(ISTEXT(OFFSET(tbl_Emp[[#This Row],[Helper 1]],-1,0)),1,OFFSET(tbl_Emp[[#This Row],[Helper 1]],-1,0)+1) -> 33 | I34: =IF(rng_Emp_Filter="",0,IF(ISNUMBER(SEARCH(rng_Emp_Filter,tbl_Emp[[#This Row],[Helper Key]])),tbl_Emp[[#This Row],[Helper 1]],"")) -> 0 | J34: =IFERROR(SMALL(tbl_Emp[Helper 2],tbl_Emp[[#This Row],[Helper 1]]),"") -> 0 | K34: =IF(OR(tbl_Emp[[#This Row],[Helper 2]]<>"",tbl_Emp[[#This Row],[Helper 3]]<>""),1,0) -> 1 | L34: =IF(rng_Emp_Filter="",0,IF(tbl_Emp[[#This Row],[Helper 2]]<>"",1,0)) -> 0 | M34: =IF(rng_Emp_Filter="",tbl_Emp[[#This Row],[Helper 1]],INDEX(tbl_Emp[Helper 3],tbl_Emp[[#This Row],[Helper 1]])) -> 33 | N34: =IFERROR(INDEX(tbl_Emp[Turn OFF Controls],tbl_Emp[[#This Row],[Link]]),"") -> DOMITIAN Caesar (Titus)
A35: DIVA DOMITILLA (Titus) | B35: 80-81 | C35: 80 | D35: 81 | E35: 4 | F35: 3400 | G35: =tbl_Emp[[#This Row],[Turn OFF Controls]] -> DIVA DOMITILLA (Titus) | H35: =IF(ISTEXT(OFFSET(tbl_Emp[[#This Row],[Helper 1]],-1,0)),1,OFFSET(tbl_Emp[[#This Row],[Helper 1]],-1,0)+1) -> 34 | I35: =IF(rng_Emp_Filter="",0,IF(ISNUMBER(SEARCH(rng_Emp_Filter,tbl_Emp[[#This Row],[Helper Key]])),tbl_Emp[[#This Row],[Helper 1]],"")) -> 0 | J35: =IFERROR(SMALL(tbl_Emp[Helper 2],tbl_Emp[[#This Row],[Helper 1]]),"") -> 0 | K35: =IF(OR(tbl_Emp[[#This Row],[Helper 2]]<>"",tbl_Emp[[#This Row],[Helper 3]]<>""),1,0) -> 1 | L35: =IF(rng_Emp_Filter="",0,IF(tbl_Emp[[#This Row],[Helper 2]]<>"",1,0)) -> 0 | M35: =IF(rng_Emp_Filter="",tbl_Emp[[#This Row],[Helper 1]],INDEX(tbl_Emp[Helper 3],tbl_Emp[[#This Row],[Helper 1]])) -> 34 | N35: =IFERROR(INDEX(tbl_Emp[Turn OFF Controls],tbl_Emp[[#This Row],[Link]]),"") -> DIVA DOMITILLA (Titus)
A36: DOMITIAN | B36: 81-96 | C36: 81 | D36: 96 | E36: 4 | F36: 3500 | G36: =tbl_Emp[[#This Row],[Turn OFF Controls]] -> DOMITIAN | H36: =IF(ISTEXT(OFFSET(tbl_Emp[[#This Row],[Helper 1]],-1,0)),1,OFFSET(tbl_Emp[[#This Row],[Helper 1]],-1,0)+1) -> 35 | I36: =IF(rng_Emp_Filter="",0,IF(ISNUMBER(SEARCH(rng_Emp_Filter,tbl_Emp[[#This Row],[Helper Key]])),tbl_Emp[[#This Row],[Helper 1]],"")) -> 0 | J36: =IFERROR(SMALL(tbl_Emp[Helper 2],tbl_Emp[[#This Row],[Helper 1]]),"") -> 0 | K36: =IF(OR(tbl_Emp[[#This Row],[Helper 2]]<>"",tbl_Emp[[#This Row],[Helper 3]]<>""),1,0) -> 1 | L36: =IF(rng_Emp_Filter="",0,IF(tbl_Emp[[#This Row],[Helper 2]]<>"",1,0)) -> 0 | M36: =IF(rng_Emp_Filter="",tbl_Emp[[#This Row],[Helper 1]],INDEX(tbl_Emp[Helper 3],tbl_Emp[[#This Row],[Helper 1]])) -> 35 | N36: =IFERROR(INDEX(tbl_Emp[Turn OFF Controls],tbl_Emp[[#This Row],[Link]]),"") -> DOMITIAN
A37: JULIA FLAVIA (Domitian) | B37: 81-96 | C37: 81 | D37: 96 | E37: 4 | F37: 3600 | G37: =tbl_Emp[[#This Row],[Turn OFF Controls]] -> JULIA FLAVIA (Domitian) | H37: =IF(ISTEXT(OFFSET(tbl_Emp[[#This Row],[Helper 1]],-1,0)),1,OFFSET(tbl_Emp[[#This Row],[Helper 1]],-1,0)+1) -> 36 | I37: =IF(rng_Emp_Filter="",0,IF(ISNUMBER(SEARCH(rng_Emp_Filter,tbl_Emp[[#This Row],[Helper Key]])),tbl_Emp[[#This Row],[Helper 1]],"")) -> 0 | J37: =IFERROR(SMALL(tbl_Emp[Helper 2],tbl_Emp[[#This Row],[Helper 1]]),"") -> 0 | K37: =IF(OR(tbl_Emp[[#This Row],[Helper 2]]<>"",tbl_Emp[[#This Row],[Helper 3]]<>""),1,0) -> 1 | L37: =IF(rng_Emp_Filter="",0,IF(tbl_Emp[[#This Row],[Helper 2]]<>"",1,0)) -> 0 | M37: =IF(rng_Emp_Filter="",tbl_Emp[[#This Row],[Helper 1]],INDEX(tbl_Emp[Helper 3],tbl_Emp[[#This Row],[Helper 1]])) -> 36 | N37: =IFERROR(INDEX(tbl_Emp[Turn OFF Controls],tbl_Emp[[#This Row],[Link]]),"") -> JULIA FLAVIA (Domitian)
A38: DOMITIA LONGINA (Domitian) | B38: 82-96 | C38: 82 | D38: 96 | E38: 4 | F38: 3700 | G38: =tbl_Emp[[#This Row],[Turn OFF Controls]] -> DOMITIA LONGINA (Domitian) | H38: =IF(ISTEXT(OFFSET(tbl_Emp[[#This Row],[Helper 1]],-1,0)),1,OFFSET(tbl_Emp[[#This Row],[Helper 1]],-1,0)+1) -> 37 | I38: =IF(rng_Emp_Filter="",0,IF(ISNUMBER(SEARCH(rng_Emp_Filter,tbl_Emp[[#This Row],[Helper Key]])),tbl_Emp[[#This Row],[Helper 1]],"")) -> 0 | J38: =IFERROR(SMALL(tbl_Emp[Helper 2],tbl_Emp[[#This Row],[Helper 1]]),"") -> 0 | K38: =IF(OR(tbl_Emp[[#This Row],[Helper 2]]<>"",tbl_Emp[[#This Row],[Helper 3]]<>""),1,0) -> 1 | L38: =IF(rng_Emp_Filter="",0,IF(tbl_Emp[[#This Row],[Helper 2]]<>"",1,0)) -> 0 | M38: =IF(rng_Emp_Filter="",tbl_Emp[[#This Row],[Helper 1]],INDEX(tbl_Emp[Helper 3],tbl_Emp[[#This Row],[Helper 1]])) -> 37 | N38: =IFERROR(INDEX(tbl_Emp[Turn OFF Controls],tbl_Emp[[#This Row],[Link]]),"") -> DOMITIA LONGINA (Domitian)
A39: NERVA | B39: 96-98 | C39: 96 | D39: 98 | E39: 5 | F39: 3800 | G39: =tbl_Emp[[#This Row],[Turn OFF Controls]] -> NERVA | H39: =IF(ISTEXT(OFFSET(tbl_Emp[[#This Row],[Helper 1]],-1,0)),1,OFFSET(tbl_Emp[[#This Row],[Helper 1]],-1,0)+1) -> 38 | I39: =IF(rng_Emp_Filter="",0,IF(ISNUMBER(SEARCH(rng_Emp_Filter,tbl_Emp[[#This Row],[Helper Key]])),tbl_Emp[[#This Row],[Helper 1]],"")) -> 0 | J39: =IFERROR(SMALL(tbl_Emp[Helper 2],tbl_Emp[[#This Row],[Helper 1]]),"") -> 0 | K39: =IF(OR(tbl_Emp[[#This Row],[Helper 2]]<>"",tbl_Emp[[#This Row],[Helper 3]]<>""),1,0) -> 1 | L39: =IF(rng_Emp_Filter="",0,IF(tbl_Emp[[#This Row],[Helper 2]]<>"",1,0)) -> 0 | M39: =IF(rng_Emp_Filter="",tbl_Emp[[#This Row],[Helper 1]],INDEX(tbl_Emp[Helper 3],tbl_Emp[[#This Row],[Helper 1]])) -> 38 | N39: =IFERROR(INDEX(tbl_Emp[Turn OFF Controls],tbl_Emp[[#This Row],[Link]]),"") -> NERVA
A40: TRAJAN | B40: 98-117 | C40: 98 | D40: 117 | E40: 5 | F40: 3900 | G40: =tbl_Emp[[#This Row],[Turn OFF Controls]] -> TRAJAN | H40: =IF(ISTEXT(OFFSET(tbl_Emp[[#This Row],[Helper 1]],-1,0)),1,OFFSET(tbl_Emp[[#This Row],[Helper 1]],-1,0)+1) -> 39 | I40: =IF(rng_Emp_Filter="",0,IF(ISNUMBER(SEARCH(rng_Emp_Filter,tbl_Emp[[#This Row],[Helper Key]])),tbl_Emp[[#This Row],[Helper 1]],"")) -> 0 | J40: =IFERROR(SMALL(tbl_Emp[Helper 2],tbl_Emp[[#This Row],[Helper 1]]),"") -> 0 | K40: =IF(OR(tbl_Emp[[#This Row],[Helper 2]]<>"",tbl_Emp[[#This Row],[Helper 3]]<>""),1,0) -> 1 | L40: =IF(rng_Emp_Filter="",0,IF(tbl_Emp[[#This Row],[Helper 2]]<>"",1,0)) -> 0 | M40: =IF(rng_Emp_Filter="",tbl_Emp[[#This Row],[Helper 1]],INDEX(tbl_Emp[Helper 3],tbl_Emp[[#This Row],[Helper 1]])) -> 39 | N40: =IFERROR(INDEX(tbl_Emp[Turn OFF Controls],tbl_Emp[[#This Row],[Link]]),"") -> TRAJAN
A41: PLOTINA (Trajan) | B41: 98-117 | C41: 98 | D41: 117 | E41: 5 | F41: 4000 | G41: =tbl_Emp[[#This Row],[Turn OFF Controls]] -> PLOTINA (Trajan) | H41: =IF(ISTEXT(OFFSET(tbl_Emp[[#This Row],[Helper 1]],-1,0)),1,OFFSET(tbl_Emp[[#This Row],[Helper 1]],-1,0)+1) -> 40 | I41: =IF(rng_Emp_Filter="",0,IF(ISNUMBER(SEARCH(rng_Emp_Filter,tbl_Emp[[#This Row],[Helper Key]])),tbl_Emp[[#This Row],[Helper 1]],"")) -> 0 | J41: =IFERROR(SMALL(tbl_Emp[Helper 2],tbl_Emp[[#This Row],[Helper 1]]),"") -> 0 | K41: =IF(OR(tbl_Emp[[#This Row],[Helper 2]]<>"",tbl_Emp[[#This Row],[Helper 3]]<>""),1,0) -> 1 | L41: =IF(rng_Emp_Filter="",0,IF(tbl_Emp[[#This Row],[Helper 2]]<>"",1,0)) -> 0 | M41: =IF(rng_Emp_Filter="",tbl_Emp[[#This Row],[Helper 1]],INDEX(tbl_Emp[Helper 3],tbl_Emp[[#This Row],[Helper 1]])) -> 40 | N41: =IFERROR(INDEX(tbl_Emp[Turn OFF Controls],tbl_Emp[[#This Row],[Link]]),"") -> PLOTINA (Trajan)
A42: MARCIANA (Trajan) | B42: 98-114 | C42: 98 | D42: 114 | E42: 5 | F42: 4100 | G42: =tbl_Emp[[#This Row],[Turn OFF Controls]] -> MARCIANA (Trajan) | H42: =IF(ISTEXT(OFFSET(tbl_Emp[[#This Row],[Helper 1]],-1,0)),1,OFFSET(tbl_Emp[[#This Row],[Helper 1]],-1,0)+1) -> 41 | I42: =IF(rng_Emp_Filter="",0,IF(ISNUMBER(SEARCH(rng_Emp_Filter,tbl_Emp[[#This Row],[Helper Key]])),tbl_Emp[[#This Row],[Helper 1]],"")) -> 0 | J42: =IFERROR(SMALL(tbl_Emp[Helper 2],tbl_Emp[[#This Row],[Helper 1]]),"") -> 0 | K42: =IF(OR(tbl_Emp[[#This Row],[Helper 2]]<>"",tbl_Emp[[#This Row],[Helper 3]]<>""),1,0) -> 1 | L42: =IF(rng_Emp_Filter="",0,IF(tbl_Emp[[#This Row],[Helper 2]]<>"",1,0)) -> 0 | M42: =IF(rng_Emp_Filter="",tbl_Emp[[#This Row],[Helper 1]],INDEX(tbl_Emp[Helper 3],tbl_Emp[[#This Row],[Helper 1]])) -> 41 | N42: =IFERROR(INDEX(tbl_Emp[Turn OFF Controls],tbl_Emp[[#This Row],[Link]]),"") -> MARCIANA (Trajan)
A43: MATIDIA (Trajan) | B43: 113-117 | C43: 113 | D43: 117 | E43: 5 | F43: 4200 | G43: =tbl_Emp[[#This Row],[Turn OFF Controls]] -> MATIDIA (Trajan) | H43: =IF(ISTEXT(OFFSET(tbl_Emp[[#This Row],[Helper 1]],-1,0)),1,OFFSET(tbl_Emp[[#This Row],[Helper 1]],-1,0)+1) -> 42 | I43: =IF(rng_Emp_Filter="",0,IF(ISNUMBER(SEARCH(rng_Emp_Filter,tbl_Emp[[#This Row],[Helper Key]])),tbl_Emp[[#This Row],[Helper 1]],"")) -> 0 | J43: =IFERROR(SMALL(tbl_Emp[Helper 2],tbl_Emp[[#This Row],[Helper 1]]),"") -> 0 | K43: =IF(OR(tbl_Emp[[#This Row],[Helper 2]]<>"",tbl_Emp[[#This Row],[Helper 3]]<>""),1,0) -> 1 | L43: =IF(rng_Emp_Filter="",0,IF(tbl_Emp[[#This Row],[Helper 2]]<>"",1,0)) -> 0 | M43: =IF(rng_Emp_Filter="",tbl_Emp[[#This Row],[Helper 1]],INDEX(tbl_Emp[Helper 3],tbl_Emp[[#This Row],[Helper 1]])) -> 42 | N43: =IFERROR(INDEX(tbl_Emp[Turn OFF Controls],tbl_Emp[[#This Row],[Link]]),"") -> MATIDIA (Trajan)
A44: DIVA MARCIANA (Trajan) | B44: 114-117 | C44: 114 | D44: 117 | E44: 5 | F44: 4300 | G44: =tbl_Emp[[#This Row],[Turn OFF Controls]] -> DIVA MARCIANA (Trajan) | H44: =IF(ISTEXT(OFFSET(tbl_Emp[[#This Row],[Helper 1]],-1,0)),1,OFFSET(tbl_Emp[[#This Row],[Helper 1]],-1,0)+1) -> 43 | I44: =IF(rng_Emp_Filter="",0,IF(ISNUMBER(SEARCH(rng_Emp_Filter,tbl_Emp[[#This Row],[Helper Key]])),tbl_Emp[[#This Row],[Helper 1]],"")) -> 0 | J44: =IFERROR(SMALL(tbl_Emp[Helper 2],tbl_Emp[[#This Row],[Helper 1]]),"") -> 0 | K44: =IF(OR(tbl_Emp[[#This Row],[Helper 2]]<>"",tbl_Emp[[#This Row],[Helper 3]]<>""),1,0) -> 1 | L44: =IF(rng_Emp_Filter="",0,IF(tbl_Emp[[#This Row],[Helper 2]]<>"",1,0)) -> 0 | M44: =IF(rng_Emp_Filter="",tbl_Emp[[#This Row],[Helper 1]],INDEX(tbl_Emp[Helper 3],tbl_Emp[[#This Row],[Helper 1]])) -> 43 | N44: =IFERROR(INDEX(tbl_Emp[Turn OFF Controls],tbl_Emp[[#This Row],[Link]]),"") -> DIVA MARCIANA (Trajan)
A45: HADRIAN | B45: 117-138 | C45: 117 | D45: 138 | E45: 6 | F45: 4400 | G45: =tbl_Emp[[#This Row],[Turn OFF Controls]] -> HADRIAN | H45: =IF(ISTEXT(OFFSET(tbl_Emp[[#This Row],[Helper 1]],-1,0)),1,OFFSET(tbl_Emp[[#This Row],[Helper 1]],-1,0)+1) -> 44 | I45: =IF(rng_Emp_Filter="",0,IF(ISNUMBER(SEARCH(rng_Emp_Filter,tbl_Emp[[#This Row],[Helper Key]])),tbl_Emp[[#This Row],[Helper 1]],"")) -> 0 | J45: =IFERROR(SMALL(tbl_Emp[Helper 2],tbl_Emp[[#This Row],[Helper 1]]),"") -> 0 | K45: =IF(OR(tbl_Emp[[#This Row],[Helper 2]]<>"",tbl_Emp[[#This Row],[Helper 3]]<>""),1,0) -> 1 | L45: =IF(rng_Emp_Filter="",0,IF(tbl_Emp[[#This Row],[Helper 2]]<>"",1,0)) -> 0 | M45: =IF(rng_Emp_Filter="",tbl_Emp[[#This Row],[Helper 1]],INDEX(tbl_Emp[Helper 3],tbl_Emp[[#This Row],[Helper 1]])) -> 44 | N45: =IFERROR(INDEX(tbl_Emp[Turn OFF Controls],tbl_Emp[[#This Row],[Link]]),"") -> HADRIAN
A46: SABINA (Hadrian) | B46: 117-138 | C46: 117 | D46: 138 | E46: 6 | F46: 4500 | G46: =tbl_Emp[[#This Row],[Turn OFF Controls]] -> SABINA (Hadrian) | H46: =IF(ISTEXT(OFFSET(tbl_Emp[[#This Row],[Helper 1]],-1,0)),1,OFFSET(tbl_Emp[[#This Row],[Helper 1]],-1,0)+1) -> 45 | I46: =IF(rng_Emp_Filter="",0,IF(ISNUMBER(SEARCH(rng_Emp_Filter,tbl_Emp[[#This Row],[Helper Key]])),tbl_Emp[[#This Row],[Helper 1]],"")) -> 0 | J46: =IFERROR(SMALL(tbl_Emp[Helper 2],tbl_Emp[[#This Row],[Helper 1]]),"") -> 0 | K46: =IF(OR(tbl_Emp[[#This Row],[Helper 2]]<>"",tbl_Emp[[#This Row],[Helper 3]]<>""),1,0) -> 1 | L46: =IF(rng_Emp_Filter="",0,IF(tbl_Emp[[#This Row],[Helper 2]]<>"",1,0)) -> 0 | M46: =IF(rng_Emp_Filter="",tbl_Emp[[#This Row],[Helper 1]],INDEX(tbl_Emp[Helper 3],tbl_Emp[[#This Row],[Helper 1]])) -> 45 | N46: =IFERROR(INDEX(tbl_Emp[Turn OFF Controls],tbl_Emp[[#This Row],[Link]]),"") -> SABINA (Hadrian)
A47: LUCIUS AELIUS Caesar (Hadrian) | B47: 136-138 | C47: 136 | D47: 138 | E47: 6 | F47: 4600 | G47: =tbl_Emp[[#This Row],[Turn OFF Controls]] -> LUCIUS AELIUS Caesar (Hadrian) | H47: =IF(ISTEXT(OFFSET(tbl_Emp[[#This Row],[Helper 1]],-1,0)),1,OFFSET(tbl_Emp[[#This Row],[Helper 1]],-1,0)+1) -> 46 | I47: =IF(rng_Emp_Filter="",0,IF(ISNUMBER(SEARCH(rng_Emp_Filter,tbl_Emp[[#This Row],[Helper Key]])),tbl_Emp[[#This Row],[Helper 1]],"")) -> 0 | J47: =IFERROR(SMALL(tbl_Emp[Helper 2],tbl_Emp[[#This Row],[Helper 1]]),"") -> 0 | K47: =IF(OR(tbl_Emp[[#This Row],[Helper 2]]<>"",tbl_Emp[[#This Row],[Helper 3]]<>""),1,0) -> 1 | L47: =IF(rng_Emp_Filter="",0,IF(tbl_Emp[[#This Row],[Helper 2]]<>"",1,0)) -> 0 | M47: =IF(rng_Emp_Filter="",tbl_Emp[[#This Row],[Helper 1]],INDEX(tbl_Emp[Helper 3],tbl_Emp[[#This Row],[Helper 1]])) -> 46 | N47: =IFERROR(INDEX(tbl_Emp[Turn OFF Controls],tbl_Emp[[#This Row],[Link]]),"") -> LUCIUS AELIUS Caesar (Hadrian)
A48: ANTONINUS PIUS Caesar (Hadrian) | B48: 138 | C48: 138 | D48: 138 | E48: 6 | F48: 4700 | G48: =tbl_Emp[[#This Row],[Turn OFF Controls]] -> ANTONINUS PIUS Caesar (Hadrian) | H48: =IF(ISTEXT(OFFSET(tbl_Emp[[#This Row],[Helper 1]],-1,0)),1,OFFSET(tbl_Emp[[#This Row],[Helper 1]],-1,0)+1) -> 47 | I48: =IF(rng_Emp_Filter="",0,IF(ISNUMBER(SEARCH(rng_Emp_Filter,tbl_Emp[[#This Row],[Helper Key]])),tbl_Emp[[#This Row],[Helper 1]],"")) -> 0 | J48: =IFERROR(SMALL(tbl_Emp[Helper 2],tbl_Emp[[#This Row],[Helper 1]]),"") -> 0 | K48: =IF(OR(tbl_Emp[[#This Row],[Helper 2]]<>"",tbl_Emp[[#This Row],[Helper 3]]<>""),1,0) -> 1 | L48: =IF(rng_Emp_Filter="",0,IF(tbl_Emp[[#This Row],[Helper 2]]<>"",1,0)) -> 0 | M48: =IF(rng_Emp_Filter="",tbl_Emp[[#This Row],[Helper 1]],INDEX(tbl_Emp[Helper 3],tbl_Emp[[#This Row],[Helper 1]])) -> 47 | N48: =IFERROR(INDEX(tbl_Emp[Turn OFF Controls],tbl_Emp[[#This Row],[Link]]),"") -> ANTONINUS PIUS Caesar (Hadrian)
A49: ANTONINUS PIUS | B49: 138-161 | C49: 138 | D49: 161 | E49: 7 | F49: 4800 | G49: =tbl_Emp[[#This Row],[Turn OFF Controls]] -> ANTONINUS PIUS | H49: =IF(ISTEXT(OFFSET(tbl_Emp[[#This Row],[Helper 1]],-1,0)),1,OFFSET(tbl_Emp[[#This Row],[Helper 1]],-1,0)+1) -> 48 | I49: =IF(rng_Emp_Filter="",0,IF(ISNUMBER(SEARCH(rng_Emp_Filter,tbl_Emp[[#This Row],[Helper Key]])),tbl_Emp[[#This Row],[Helper 1]],"")) -> 0 | J49: =IFERROR(SMALL(tbl_Emp[Helper 2],tbl_Emp[[#This Row],[Helper 1]]),"") -> 0 | K49: =IF(OR(tbl_Emp[[#This Row],[Helper 2]]<>"",tbl_Emp[[#This Row],[Helper 3]]<>""),1,0) -> 1 | L49: =IF(rng_Emp_Filter="",0,IF(tbl_Emp[[#This Row],[Helper 2]]<>"",1,0)) -> 0 | M49: =IF(rng_Emp_Filter="",tbl_Emp[[#This Row],[Helper 1]],INDEX(tbl_Emp[Helper 3],tbl_Emp[[#This Row],[Helper 1]])) -> 48 | N49: =IFERROR(INDEX(tbl_Emp[Turn OFF Controls],tbl_Emp[[#This Row],[Link]]),"") -> ANTONINUS PIUS
A50: DIVUS HADRIAN (Antoninus Pius) | B50: 138-139 | C50: 138 | D50: 139 | E50: 7 | F50: 4900 | G50: =tbl_Emp[[#This Row],[Turn OFF Controls]] -> DIVUS HADRIAN (Antoninus Pius) | H50: =IF(ISTEXT(OFFSET(tbl_Emp[[#This Row],[Helper 1]],-1,0)),1,OFFSET(tbl_Emp[[#This Row],[Helper 1]],-1,0)+1) -> 49 | I50: =IF(rng_Emp_Filter="",0,IF(ISNUMBER(SEARCH(rng_Emp_Filter,tbl_Emp[[#This Row],[Helper Key]])),tbl_Emp[[#This Row],[Helper 1]],"")) -> 0 | J50: =IFERROR(SMALL(tbl_Emp[Helper 2],tbl_Emp[[#This Row],[Helper 1]]),"") -> 0 | K50: =IF(OR(tbl_Emp[[#This Row],[Helper 2]]<>"",tbl_Emp[[#This Row],[Helper 3]]<>""),1,0) -> 1 | L50: =IF(rng_Emp_Filter="",0,IF(tbl_Emp[[#This Row],[Helper 2]]<>"",1,0)) -> 0 | M50: =IF(rng_Emp_Filter="",tbl_Emp[[#This Row],[Helper 1]],INDEX(tbl_Emp[Helper 3],tbl_Emp[[#This Row],[Helper 1]])) -> 49 | N50: =IFERROR(INDEX(tbl_Emp[Turn OFF Controls],tbl_Emp[[#This Row],[Link]]),"") -> DIVUS HADRIAN (Antoninus Pius)
A51: FAUSTINA I (Antoninus Pius) | B51: 138-141 | C51: 138 | D51: 141 | E51: 7 | F51: 5000 | G51: =tbl_Emp[[#This Row],[Turn OFF Controls]] -> FAUSTINA I (Antoninus Pius) | H51: =IF(ISTEXT(OFFSET(tbl_Emp[[#This Row],[Helper 1]],-1,0)),1,OFFSET(tbl_Emp[[#This Row],[Helper 1]],-1,0)+1) -> 50 | I51: =IF(rng_Emp_Filter="",0,IF(ISNUMBER(SEARCH(rng_Emp_Filter,tbl_Emp[[#This Row],[Helper Key]])),tbl_Emp[[#This Row],[Helper 1]],"")) -> 0 | J51: =IFERROR(SMALL(tbl_Emp[Helper 2],tbl_Emp[[#This Row],[Helper 1]]),"") -> 0 | K51: =IF(OR(tbl_Emp[[#This Row],[Helper 2]]<>"",tbl_Emp[[#This Row],[Helper 3]]<>""),1,0) -> 1 | L51: =IF(rng_Emp_Filter="",0,IF(tbl_Emp[[#This Row],[Helper 2]]<>"",1,0)) -> 0 | M51: =IF(rng_Emp_Filter="",tbl_Emp[[#This Row],[Helper 1]],INDEX(tbl_Emp[Helper 3],tbl_Emp[[#This Row],[Helper 1]])) -> 50 | N51: =IFERROR(INDEX(tbl_Emp[Turn OFF Controls],tbl_Emp[[#This Row],[Link]]),"") -> FAUSTINA I (Antoninus Pius)
A52: DIVA FAUSTINA I (Antoninus Pius) | B52: 141-161 | C52: 141 | D52: 161 | E52: 7 | F52: 5100 | G52: =tbl_Emp[[#This Row],[Turn OFF Controls]] -> DIVA FAUSTINA I (Antoninus Pius) | H52: =IF(ISTEXT(OFFSET(tbl_Emp[[#This Row],[Helper 1]],-1,0)),1,OFFSET(tbl_Emp[[#This Row],[Helper 1]],-1,0)+1) -> 51 | I52: =IF(rng_Emp_Filter="",0,IF(ISNUMBER(SEARCH(rng_Emp_Filter,tbl_Emp[[#This Row],[Helper Key]])),tbl_Emp[[#This Row],[Helper 1]],"")) -> 0 | J52: =IFERROR(SMALL(tbl_Emp[Helper 2],tbl_Emp[[#This Row],[Helper 1]]),"") -> 0 | K52: =IF(OR(tbl_Emp[[#This Row],[Helper 2]]<>"",tbl_Emp[[#This Row],[Helper 3]]<>""),1,0) -> 1 | L52: =IF(rng_Emp_Filter="",0,IF(tbl_Emp[[#This Row],[Helper 2]]<>"",1,0)) -> 0 | M52: =IF(rng_Emp_Filter="",tbl_Emp[[#This Row],[Helper 1]],INDEX(tbl_Emp[Helper 3],tbl_Emp[[#This Row],[Helper 1]])) -> 51 | N52: =IFERROR(INDEX(tbl_Emp[Turn OFF Controls],tbl_Emp[[#This Row],[Link]]),"") -> DIVA FAUSTINA I (Antoninus Pius)
A53: MARCUS AURELIUS Caesar (Antoninus Pius) | B53: 139-161 | C53: 139 | D53: 161 | E53: 7 | F53: 5200 | G53: =tbl_Emp[[#This Row],[Turn OFF Controls]] -> MARCUS AURELIUS Caesar (Antoninus Pius) | H53: =IF(ISTEXT(OFFSET(tbl_Emp[[#This Row],[Helper 1]],-1,0)),1,OFFSET(tbl_Emp[[#This Row],[Helper 1]],-1,0)+1) -> 52 | I53: =IF(rng_Emp_Filter="",0,IF(ISNUMBER(SEARCH(rng_Emp_Filter,tbl_Emp[[#This Row],[Helper Key]])),tbl_Emp[[#This Row],[Helper 1]],"")) -> 0 | J53: =IFERROR(SMALL(tbl_Emp[Helper 2],tbl_Emp[[#This Row],[Helper 1]]),"") -> 0 | K53: =IF(OR(tbl_Emp[[#This Row],[Helper 2]]<>"",tbl_Emp[[#This Row],[Helper 3]]<>""),1,0) -> 1 | L53: =IF(rng_Emp_Filter="",0,IF(tbl_Emp[[#This Row],[Helper 2]]<>"",1,0)) -> 0 | M53: =IF(rng_Emp_Filter="",tbl_Emp[[#This Row],[Helper 1]],INDEX(tbl_Emp[Helper 3],tbl_Emp[[#This Row],[Helper 1]])) -> 52 | N53: =IFERROR(INDEX(tbl_Emp[Turn OFF Controls],tbl_Emp[[#This Row],[Link]]),"") -> MARCUS AURELIUS Caesar (Antoninus Pius)
A54: FAUSTINA II (Antoninus Pius) | B54: 146-161 | C54: 146 | D54: 161 | E54: 7 | F54: 5300 | G54: =tbl_Emp[[#This Row],[Turn OFF Controls]] -> FAUSTINA II (Antoninus Pius) | H54: =IF(ISTEXT(OFFSET(tbl_Emp[[#This Row],[Helper 1]],-1,0)),1,OFFSET(tbl_Emp[[#This Row],[Helper 1]],-1,0)+1) -> 53 | I54: =IF(rng_Emp_Filter="",0,IF(ISNUMBER(SEARCH(rng_Emp_Filter,tbl_Emp[[#This Row],[Helper Key]])),tbl_Emp[[#This Row],[Helper 1]],"")) -> 0 | J54: =IFERROR(SMALL(tbl_Emp[Helper 2],tbl_Emp[[#This Row],[Helper 1]]),"") -> 0 | K54: =IF(OR(tbl_Emp[[#This Row],[Helper 2]]<>"",tbl_Emp[[#This Row],[Helper 3]]<>""),1,0) -> 1 | L54: =IF(rng_Emp_Filter="",0,IF(tbl_Emp[[#This Row],[Helper 2]]<>"",1,0)) -> 0 | M54: =IF(rng_Emp_Filter="",tbl_Emp[[#This Row],[Helper 1]],INDEX(tbl_Emp[Helper 3],tbl_Emp[[#This Row],[Helper 1]])) -> 53 | N54: =IFERROR(INDEX(tbl_Emp[Turn OFF Controls],tbl_Emp[[#This Row],[Link]]),"") -> FAUSTINA II (Antoninus Pius)
A55: MARCUS AURELIUS | B55: 161-180 | C55: 161 | D55: 180 | E55: 8 | F55: 5400 | G55: =tbl_Emp[[#This Row],[Turn OFF Controls]] -> MARCUS AURELIUS | H55: =IF(ISTEXT(OFFSET(tbl_Emp[[#This Row],[Helper 1]],-1,0)),1,OFFSET(tbl_Emp[[#This Row],[Helper 1]],-1,0)+1) -> 54 | I55: =IF(rng_Emp_Filter="",0,IF(ISNUMBER(SEARCH(rng_Emp_Filter,tbl_Emp[[#This Row],[Helper Key]])),tbl_Emp[[#This Row],[Helper 1]],"")) -> 0 | J55: =IFERROR(SMALL(tbl_Emp[Helper 2],tbl_Emp[[#This Row],[Helper 1]]),"") -> 0 | K55: =IF(OR(tbl_Emp[[#This Row],[Helper 2]]<>"",tbl_Emp[[#This Row],[Helper 3]]<>""),1,0) -> 1 | L55: =IF(rng_Emp_Filter="",0,IF(tbl_Emp[[#This Row],[Helper 2]]<>"",1,0)) -> 0 | M55: =IF(rng_Emp_Filter="",tbl_Emp[[#This Row],[Helper 1]],INDEX(tbl_Emp[Helper 3],tbl_Emp[[#This Row],[Helper 1]])) -> 54 | N55: =IFERROR(INDEX(tbl_Emp[Turn OFF Controls],tbl_Emp[[#This Row],[Link]]),"") -> MARCUS AURELIUS
A56: DIVUS ANTONINUS PIUS (Marcus Aurelius) | B56: 161 | C56: 161 | D56: 161 | E56: 8 | F56: 5500 | G56: =tbl_Emp[[#This Row],[Turn OFF Controls]] -> DIVUS ANTONINUS PIUS (Marcus Aurelius) | H56: =IF(ISTEXT(OFFSET(tbl_Emp[[#This Row],[Helper 1]],-1,0)),1,OFFSET(tbl_Emp[[#This Row],[Helper 1]],-1,0)+1) -> 55 | I56: =IF(rng_Emp_Filter="",0,IF(ISNUMBER(SEARCH(rng_Emp_Filter,tbl_Emp[[#This Row],[Helper Key]])),tbl_Emp[[#This Row],[Helper 1]],"")) -> 0 | J56: =IFERROR(SMALL(tbl_Emp[Helper 2],tbl_Emp[[#This Row],[Helper 1]]),"") -> 0 | K56: =IF(OR(tbl_Emp[[#This Row],[Helper 2]]<>"",tbl_Emp[[#This Row],[Helper 3]]<>""),1,0) -> 1 | L56: =IF(rng_Emp_Filter="",0,IF(tbl_Emp[[#This Row],[Helper 2]]<>"",1,0)) -> 0 | M56: =IF(rng_Emp_Filter="",tbl_Emp[[#This Row],[Helper 1]],INDEX(tbl_Emp[Helper 3],tbl_Emp[[#This Row],[Helper 1]])) -> 55 | N56: =IFERROR(INDEX(tbl_Emp[Turn OFF Controls],tbl_Emp[[#This Row],[Link]]),"") -> DIVUS ANTONINUS PIUS (Marcus Aurelius)
A57: FAUSTINA II (Marcus Aurelius) | B57: 161-175 | C57: 161 | D57: 175 | E57: 8 | F57: 5600 | G57: =tbl_Emp[[#This Row],[Turn OFF Controls]] -> FAUSTINA II (Marcus Aurelius) | H57: =IF(ISTEXT(OFFSET(tbl_Emp[[#This Row],[Helper 1]],-1,0)),1,OFFSET(tbl_Emp[[#This Row],[Helper 1]],-1,0)+1) -> 56 | I57: =IF(rng_Emp_Filter="",0,IF(ISNUMBER(SEARCH(rng_Emp_Filter,tbl_Emp[[#This Row],[Helper Key]])),tbl_Emp[[#This Row],[Helper 1]],"")) -> 0 | J57: =IFERROR(SMALL(tbl_Emp[Helper 2],tbl_Emp[[#This Row],[Helper 1]]),"") -> 0 | K57: =IF(OR(tbl_Emp[[#This Row],[Helper 2]]<>"",tbl_Emp[[#This Row],[Helper 3]]<>""),1,0) -> 1 | L57: =IF(rng_Emp_Filter="",0,IF(tbl_Emp[[#This Row],[Helper 2]]<>"",1,0)) -> 0 | M57: =IF(rng_Emp_Filter="",tbl_Emp[[#This Row],[Helper 1]],INDEX(tbl_Emp[Helper 3],tbl_Emp[[#This Row],[Helper 1]])) -> 56 | N57: =IFERROR(INDEX(tbl_Emp[Turn OFF Controls],tbl_Emp[[#This Row],[Link]]),"") -> FAUSTINA II (Marcus Aurelius)
A58: DIVA FAUSTINA II (Marcus Aurelius) | B58: 175-180 | C58: 175 | D58: 180 | E58: 8 | F58: 5700 | G58: =tbl_Emp[[#This Row],[Turn OFF Controls]] -> DIVA FAUSTINA II (Marcus Aurelius) | H58: =IF(ISTEXT(OFFSET(tbl_Emp[[#This Row],[Helper 1]],-1,0)),1,OFFSET(tbl_Emp[[#This Row],[Helper 1]],-1,0)+1) -> 57 | I58: =IF(rng_Emp_Filter="",0,IF(ISNUMBER(SEARCH(rng_Emp_Filter,tbl_Emp[[#This Row],[Helper Key]])),tbl_Emp[[#This Row],[Helper 1]],"")) -> 0 | J58: =IFERROR(SMALL(tbl_Emp[Helper 2],tbl_Emp[[#This Row],[Helper 1]]),"") -> 0 | K58: =IF(OR(tbl_Emp[[#This Row],[Helper 2]]<>"",tbl_Emp[[#This Row],[Helper 3]]<>""),1,0) -> 1 | L58: =IF(rng_Emp_Filter="",0,IF(tbl_Emp[[#This Row],[Helper 2]]<>"",1,0)) -> 0 | M58: =IF(rng_Emp_Filter="",tbl_Emp[[#This Row],[Helper 1]],INDEX(tbl_Emp[Helper 3],tbl_Emp[[#This Row],[Helper 1]])) -> 57 | N58: =IFERROR(INDEX(tbl_Emp[Turn OFF Controls],tbl_Emp[[#This Row],[Link]]),"") -> DIVA FAUSTINA II (Marcus Aurelius)
A59: LUCIUS VERUS | B59: 161-169 | C59: 161 | D59: 169 | E59: 8 | F59: 5800 | G59: =tbl_Emp[[#This Row],[Turn OFF Controls]] -> LUCIUS VERUS | H59: =IF(ISTEXT(OFFSET(tbl_Emp[[#This Row],[Helper 1]],-1,0)),1,OFFSET(tbl_Emp[[#This Row],[Helper 1]],-1,0)+1) -> 58 | I59: =IF(rng_Emp_Filter="",0,IF(ISNUMBER(SEARCH(rng_Emp_Filter,tbl_Emp[[#This Row],[Helper Key]])),tbl_Emp[[#This Row],[Helper 1]],"")) -> 0 | J59: =IFERROR(SMALL(tbl_Emp[Helper 2],tbl_Emp[[#This Row],[Helper 1]]),"") -> 0 | K59: =IF(OR(tbl_Emp[[#This Row],[Helper 2]]<>"",tbl_Emp[[#This Row],[Helper 3]]<>""),1,0) -> 1 | L59: =IF(rng_Emp_Filter="",0,IF(tbl_Emp[[#This Row],[Helper 2]]<>"",1,0)) -> 0 | M59: =IF(rng_Emp_Filter="",tbl_Emp[[#This Row],[Helper 1]],INDEX(tbl_Emp[Helper 3],tbl_Emp[[#This Row],[Helper 1]])) -> 58 | N59: =IFERROR(INDEX(tbl_Emp[Turn OFF Controls],tbl_Emp[[#This Row],[Link]]),"") -> LUCIUS VERUS
A60: LUCILLA (Verus) | B60: 164-169 | C60: 164 | D60: 169 | E60: 8 | F60: 5900 | G60: =tbl_Emp[[#This Row],[Turn OFF Controls]] -> LUCILLA (Verus) | H60: =IF(ISTEXT(OFFSET(tbl_Emp[[#This Row],[Helper 1]],-1,0)),1,OFFSET(tbl_Emp[[#This Row],[Helper 1]],-1,0)+1) -> 59 | I60: =IF(rng_Emp_Filter="",0,IF(ISNUMBER(SEARCH(rng_Emp_Filter,tbl_Emp[[#This Row],[Helper Key]])),tbl_Emp[[#This Row],[Helper 1]],"")) -> 0 | J60: =IFERROR(SMALL(tbl_Emp[Helper 2],tbl_Emp[[#This Row],[Helper 1]]),"") -> 0 | K60: =IF(OR(tbl_Emp[[#This Row],[Helper 2]]<>"",tbl_Emp[[#This Row],[Helper 3]]<>""),1,0) -> 1 | L60: =IF(rng_Emp_Filter="",0,IF(tbl_Emp[[#This Row],[Helper 2]]<>"",1,0)) -> 0 | M60: =IF(rng_Emp_Filter="",tbl_Emp[[#This Row],[Helper 1]],INDEX(tbl_Emp[Helper 3],tbl_Emp[[#This Row],[Helper 1]])) -> 59 | N60: =IFERROR(INDEX(tbl_Emp[Turn OFF Controls],tbl_Emp[[#This Row],[Link]]),"") -> LUCILLA (Verus)
A61: DIVUS VERUS (Marcus Aurelius) | B61: 169 | C61: 169 | D61: 169 | E61: 8 | F61: 6000 | G61: =tbl_Emp[[#This Row],[Turn OFF Controls]] -> DIVUS VERUS (Marcus Aurelius) | H61: =IF(ISTEXT(OFFSET(tbl_Emp[[#This Row],[Helper 1]],-1,0)),1,OFFSET(tbl_Emp[[#This Row],[Helper 1]],-1,0)+1) -> 60 | I61: =IF(rng_Emp_Filter="",0,IF(ISNUMBER(SEARCH(rng_Emp_Filter,tbl_Emp[[#This Row],[Helper Key]])),tbl_Emp[[#This Row],[Helper 1]],"")) -> 0 | J61: =IFERROR(SMALL(tbl_Emp[Helper 2],tbl_Emp[[#This Row],[Helper 1]]),"") -> 0 | K61: =IF(OR(tbl_Emp[[#This Row],[Helper 2]]<>"",tbl_Emp[[#This Row],[Helper 3]]<>""),1,0) -> 1 | L61: =IF(rng_Emp_Filter="",0,IF(tbl_Emp[[#This Row],[Helper 2]]<>"",1,0)) -> 0 | M61: =IF(rng_Emp_Filter="",tbl_Emp[[#This Row],[Helper 1]],INDEX(tbl_Emp[Helper 3],tbl_Emp[[#This Row],[Helper 1]])) -> 60 | N61: =IFERROR(INDEX(tbl_Emp[Turn OFF Controls],tbl_Emp[[#This Row],[Link]]),"") -> DIVUS VERUS (Marcus Aurelius)
A62: COMMODUS Caesar (Marcus Aurelius) | B62: 172-180 | C62: 172 | D62: 180 | E62: 8 | F62: 6100 | G62: =tbl_Emp[[#This Row],[Turn OFF Controls]] -> COMMODUS Caesar (Marcus Aurelius) | H62: =IF(ISTEXT(OFFSET(tbl_Emp[[#This Row],[Helper 1]],-1,0)),1,OFFSET(tbl_Emp[[#This Row],[Helper 1]],-1,0)+1) -> 61 | I62: =IF(rng_Emp_Filter="",0,IF(ISNUMBER(SEARCH(rng_Emp_Filter,tbl_Emp[[#This Row],[Helper Key]])),tbl_Emp[[#This Row],[Helper 1]],"")) -> 0 | J62: =IFERROR(SMALL(tbl_Emp[Helper 2],tbl_Emp[[#This Row],[Helper 1]]),"") -> 0 | K62: =IF(OR(tbl_Emp[[#This Row],[Helper 2]]<>"",tbl_Emp[[#This Row],[Helper 3]]<>""),1,0) -> 1 | L62: =IF(rng_Emp_Filter="",0,IF(tbl_Emp[[#This Row],[Helper 2]]<>"",1,0)) -> 0 | M62: =IF(rng_Emp_Filter="",tbl_Emp[[#This Row],[Helper 1]],INDEX(tbl_Emp[Helper 3],tbl_Emp[[#This Row],[Helper 1]])) -> 61 | N62: =IFERROR(INDEX(tbl_Emp[Turn OFF Controls],tbl_Emp[[#This Row],[Link]]),"") -> COMMODUS Caesar (Marcus Aurelius)
A63: FAUSTINA I/II | B63: 138-180 | C63: 138 | D63: 180 | F63: 6200 | G63: =tbl_Emp[[#This Row],[Turn OFF Controls]] -> FAUSTINA I/II | H63: =IF(ISTEXT(OFFSET(tbl_Emp[[#This Row],[Helper 1]],-1,0)),1,OFFSET(tbl_Emp[[#This Row],[Helper 1]],-1,0)+1) -> 62 | I63: =IF(rng_Emp_Filter="",0,IF(ISNUMBER(SEARCH(rng_Emp_Filter,tbl_Emp[[#This Row],[Helper Key]])),tbl_Emp[[#This Row],[Helper 1]],"")) -> 0 | J63: =IFERROR(SMALL(tbl_Emp[Helper 2],tbl_Emp[[#This Row],[Helper 1]]),"") -> 0 | K63: =IF(OR(tbl_Emp[[#This Row],[Helper 2]]<>"",tbl_Emp[[#This Row],[Helper 3]]<>""),1,0) -> 1 | L63: =IF(rng_Emp_Filter="",0,IF(tbl_Emp[[#This Row],[Helper 2]]<>"",1,0)) -> 0 | M63: =IF(rng_Emp_Filter="",tbl_Emp[[#This Row],[Helper 1]],INDEX(tbl_Emp[Helper 3],tbl_Emp[[#This Row],[Helper 1]])) -> 62 | N63: =IFERROR(INDEX(tbl_Emp[Turn OFF Controls],tbl_Emp[[#This Row],[Link]]),"") -> FAUSTINA I/II
A64: COMMODUS | B64: 180-192 | C64: 180 | D64: 192 | E64: 9 | F64: 6300 | G64: =tbl_Emp[[#This Row],[Turn OFF Controls]] -> COMMODUS | H64: =IF(ISTEXT(OFFSET(tbl_Emp[[#This Row],[Helper 1]],-1,0)),1,OFFSET(tbl_Emp[[#This Row],[Helper 1]],-1,0)+1) -> 63 | I64: =IF(rng_Emp_Filter="",0,IF(ISNUMBER(SEARCH(rng_Emp_Filter,tbl_Emp[[#This Row],[Helper Key]])),tbl_Emp[[#This Row],[Helper 1]],"")) -> 0 | J64: =IFERROR(SMALL(tbl_Emp[Helper 2],tbl_Emp[[#This Row],[Helper 1]]),"") -> 0 | K64: =IF(OR(tbl_Emp[[#This Row],[Helper 2]]<>"",tbl_Emp[[#This Row],[Helper 3]]<>""),1,0) -> 1 | L64: =IF(rng_Emp_Filter="",0,IF(tbl_Emp[[#This Row],[Helper 2]]<>"",1,0)) -> 0 | M64: =IF(rng_Emp_Filter="",tbl_Emp[[#This Row],[Helper 1]],INDEX(tbl_Emp[Helper 3],tbl_Emp[[#This Row],[Helper 1]])) -> 63 | N64: =IFERROR(INDEX(tbl_Emp[Turn OFF Controls],tbl_Emp[[#This Row],[Link]]),"") -> COMMODUS
A65: CRISPINA (Commodus) | B65: 180-187 | C65: 180 | D65: 187 | E65: 9 | F65: 6400 | G65: =tbl_Emp[[#This Row],[Turn OFF Controls]] -> CRISPINA (Commodus) | H65: =IF(ISTEXT(OFFSET(tbl_Emp[[#This Row],[Helper 1]],-1,0)),1,OFFSET(tbl_Emp[[#This Row],[Helper 1]],-1,0)+1) -> 64 | I65: =IF(rng_Emp_Filter="",0,IF(ISNUMBER(SEARCH(rng_Emp_Filter,tbl_Emp[[#This Row],[Helper Key]])),tbl_Emp[[#This Row],[Helper 1]],"")) -> 0 | J65: =IFERROR(SMALL(tbl_Emp[Helper 2],tbl_Emp[[#This Row],[Helper 1]]),"") -> 0 | K65: =IF(OR(tbl_Emp[[#This Row],[Helper 2]]<>"",tbl_Emp[[#This Row],[Helper 3]]<>""),1,0) -> 1 | L65: =IF(rng_Emp_Filter="",0,IF(tbl_Emp[[#This Row],[Helper 2]]<>"",1,0)) -> 0 | M65: =IF(rng_Emp_Filter="",tbl_Emp[[#This Row],[Helper 1]],INDEX(tbl_Emp[Helper 3],tbl_Emp[[#This Row],[Helper 1]])) -> 64 | N65: =IFERROR(INDEX(tbl_Emp[Turn OFF Controls],tbl_Emp[[#This Row],[Link]]),"") -> CRISPINA (Commodus)
A66: DIVUS MARCUS AURELIUS (Commodus) | B66: 180 | C66: 180 | D66: 180 | E66: 9 | F66: 6500 | G66: =tbl_Emp[[#This Row],[Turn OFF Controls]] -> DIVUS MARCUS AURELIUS (Commodus) | H66: =IF(ISTEXT(OFFSET(tbl_Emp[[#This Row],[Helper 1]],-1,0)),1,OFFSET(tbl_Emp[[#This Row],[Helper 1]],-1,0)+1) -> 65 | I66: =IF(rng_Emp_Filter="",0,IF(ISNUMBER(SEARCH(rng_Emp_Filter,tbl_Emp[[#This Row],[Helper Key]])),tbl_Emp[[#This Row],[Helper 1]],"")) -> 0 | J66: =IFERROR(SMALL(tbl_Emp[Helper 2],tbl_Emp[[#This Row],[Helper 1]]),"") -> 0 | K66: =IF(OR(tbl_Emp[[#This Row],[Helper 2]]<>"",tbl_Emp[[#This Row],[Helper 3]]<>""),1,0) -> 1 | L66: =IF(rng_Emp_Filter="",0,IF(tbl_Emp[[#This Row],[Helper 2]]<>"",1,0)) -> 0 | M66: =IF(rng_Emp_Filter="",tbl_Emp[[#This Row],[Helper 1]],INDEX(tbl_Emp[Helper 3],tbl_Emp[[#This Row],[Helper 1]])) -> 65 | N66: =IFERROR(INDEX(tbl_Emp[Turn OFF Controls],tbl_Emp[[#This Row],[Link]]),"") -> DIVUS MARCUS AURELIUS (Commodus)
A67: PERTINAX | B67: 193 | C67: 193 | D67: 193 | E67: 10 | F67: =F66+100 -> 6600 | G67: =tbl_Emp[[#This Row],[Turn OFF Controls]] -> PERTINAX | H67: =IF(ISTEXT(OFFSET(tbl_Emp[[#This Row],[Helper 1]],-1,0)),1,OFFSET(tbl_Emp[[#This Row],[Helper 1]],-1,0)+1) -> 66 | I67: =IF(rng_Emp_Filter="",0,IF(ISNUMBER(SEARCH(rng_Emp_Filter,tbl_Emp[[#This Row],[Helper Key]])),tbl_Emp[[#This Row],[Helper 1]],"")) -> 0 | J67: =IFERROR(SMALL(tbl_Emp[Helper 2],tbl_Emp[[#This Row],[Helper 1]]),"") -> 0 | K67: =IF(OR(tbl_Emp[[#This Row],[Helper 2]]<>"",tbl_Emp[[#This Row],[Helper 3]]<>""),1,0) -> 1 | L67: =IF(rng_Emp_Filter="",0,IF(tbl_Emp[[#This Row],[Helper 2]]<>"",1,0)) -> 0 | M67: =IF(rng_Emp_Filter="",tbl_Emp[[#This Row],[Helper 1]],INDEX(tbl_Emp[Helper 3],tbl_Emp[[#This Row],[Helper 1]])) -> 66 | N67: =IFERROR(INDEX(tbl_Emp[Turn OFF Controls],tbl_Emp[[#This Row],[Link]]),"") -> PERTINAX
A68: DIDIUS JULIANUS | B68: 193 | C68: 193 | D68: 193 | E68: 10 | F68: 6700 | G68: =tbl_Emp[[#This Row],[Turn OFF Controls]] -> DIDIUS JULIANUS | H68: =IF(ISTEXT(OFFSET(tbl_Emp[[#This Row],[Helper 1]],-1,0)),1,OFFSET(tbl_Emp[[#This Row],[Helper 1]],-1,0)+1) -> 67 | I68: =IF(rng_Emp_Filter="",0,IF(ISNUMBER(SEARCH(rng_Emp_Filter,tbl_Emp[[#This Row],[Helper Key]])),tbl_Emp[[#This Row],[Helper 1]],"")) -> 0 | J68: =IFERROR(SMALL(tbl_Emp[Helper 2],tbl_Emp[[#This Row],[Helper 1]]),"") -> 0 | K68: =IF(OR(tbl_Emp[[#This Row],[Helper 2]]<>"",tbl_Emp[[#This Row],[Helper 3]]<>""),1,0) -> 1 | L68: =IF(rng_Emp_Filter="",0,IF(tbl_Emp[[#This Row],[Helper 2]]<>"",1,0)) -> 0 | M68: =IF(rng_Emp_Filter="",tbl_Emp[[#This Row],[Helper 1]],INDEX(tbl_Emp[Helper 3],tbl_Emp[[#This Row],[Helper 1]])) -> 67 | N68: =IFERROR(INDEX(tbl_Emp[Turn OFF Controls],tbl_Emp[[#This Row],[Link]]),"") -> DIDIUS JULIANUS
A69: MANLIA SCANTILLA (Julianus) | B69: 193 | C69: 193 | D69: 193 | E69: 10 | F69: 6800 | G69: =tbl_Emp[[#This Row],[Turn OFF Controls]] -> MANLIA SCANTILLA (Julianus) | H69: =IF(ISTEXT(OFFSET(tbl_Emp[[#This Row],[Helper 1]],-1,0)),1,OFFSET(tbl_Emp[[#This Row],[Helper 1]],-1,0)+1) -> 68 | I69: =IF(rng_Emp_Filter="",0,IF(ISNUMBER(SEARCH(rng_Emp_Filter,tbl_Emp[[#This Row],[Helper Key]])),tbl_Emp[[#This Row],[Helper 1]],"")) -> 0 | J69: =IFERROR(SMALL(tbl_Emp[Helper 2],tbl_Emp[[#This Row],[Helper 1]]),"") -> 0 | K69: =IF(OR(tbl_Emp[[#This Row],[Helper 2]]<>"",tbl_Emp[[#This Row],[Helper 3]]<>""),1,0) -> 1 | L69: =IF(rng_Emp_Filter="",0,IF(tbl_Emp[[#This Row],[Helper 2]]<>"",1,0)) -> 0 | M69: =IF(rng_Emp_Filter="",tbl_Emp[[#This Row],[Helper 1]],INDEX(tbl_Emp[Helper 3],tbl_Emp[[#This Row],[Helper 1]])) -> 68 | N69: =IFERROR(INDEX(tbl_Emp[Turn OFF Controls],tbl_Emp[[#This Row],[Link]]),"") -> MANLIA SCANTILLA (Julianus)
A70: DIDIA CLARA (Julianus) | B70: 193 | C70: 193 | D70: 193 | E70: 10 | F70: 6900 | G70: =tbl_Emp[[#This Row],[Turn OFF Controls]] -> DIDIA CLARA (Julianus) | H70: =IF(ISTEXT(OFFSET(tbl_Emp[[#This Row],[Helper 1]],-1,0)),1,OFFSET(tbl_Emp[[#This Row],[Helper 1]],-1,0)+1) -> 69 | I70: =IF(rng_Emp_Filter="",0,IF(ISNUMBER(SEARCH(rng_Emp_Filter,tbl_Emp[[#This Row],[Helper Key]])),tbl_Emp[[#This Row],[Helper 1]],"")) -> 0 | J70: =IFERROR(SMALL(tbl_Emp[Helper 2],tbl_Emp[[#This Row],[Helper 1]]),"") -> 0 | K70: =IF(OR(tbl_Emp[[#This Row],[Helper 2]]<>"",tbl_Emp[[#This Row],[Helper 3]]<>""),1,0) -> 1 | L70: =IF(rng_Emp_Filter="",0,IF(tbl_Emp[[#This Row],[Helper 2]]<>"",1,0)) -> 0 | M70: =IF(rng_Emp_Filter="",tbl_Emp[[#This Row],[Helper 1]],INDEX(tbl_Emp[Helper 3],tbl_Emp[[#This Row],[Helper 1]])) -> 69 | N70: =IFERROR(INDEX(tbl_Emp[Turn OFF Controls],tbl_Emp[[#This Row],[Link]]),"") -> DIDIA CLARA (Julianus)
A71: PESCENNIUS NIGER | B71: 193-194 | C71: 193 | D71: 194 | E71: 10 | F71: 7000 | G71: =tbl_Emp[[#This Row],[Turn OFF Controls]] -> PESCENNIUS NIGER | H71: =IF(ISTEXT(OFFSET(tbl_Emp[[#This Row],[Helper 1]],-1,0)),1,OFFSET(tbl_Emp[[#This Row],[Helper 1]],-1,0)+1) -> 70 | I71: =IF(rng_Emp_Filter="",0,IF(ISNUMBER(SEARCH(rng_Emp_Filter,tbl_Emp[[#This Row],[Helper Key]])),tbl_Emp[[#This Row],[Helper 1]],"")) -> 0 | J71: =IFERROR(SMALL(tbl_Emp[Helper 2],tbl_Emp[[#This Row],[Helper 1]]),"") -> 0 | K71: =IF(OR(tbl_Emp[[#This Row],[Helper 2]]<>"",tbl_Emp[[#This Row],[Helper 3]]<>""),1,0) -> 1 | L71: =IF(rng_Emp_Filter="",0,IF(tbl_Emp[[#This Row],[Helper 2]]<>"",1,0)) -> 0 | M71: =IF(rng_Emp_Filter="",tbl_Emp[[#This Row],[Helper 1]],INDEX(tbl_Emp[Helper 3],tbl_Emp[[#This Row],[Helper 1]])) -> 70 | N71: =IFERROR(INDEX(tbl_Emp[Turn OFF Controls],tbl_Emp[[#This Row],[Link]]),"") -> PESCENNIUS NIGER
A72: CLODIUS ALBINUS | B72: 193-197 | C72: 193 | D72: 197 | E72: 10 | F72: 7100 | G72: =tbl_Emp[[#This Row],[Turn OFF Controls]] -> CLODIUS ALBINUS | H72: =IF(ISTEXT(OFFSET(tbl_Emp[[#This Row],[Helper 1]],-1,0)),1,OFFSET(tbl_Emp[[#This Row],[Helper 1]],-1,0)+1) -> 71 | I72: =IF(rng_Emp_Filter="",0,IF(ISNUMBER(SEARCH(rng_Emp_Filter,tbl_Emp[[#This Row],[Helper Key]])),tbl_Emp[[#This Row],[Helper 1]],"")) -> 0 | J72: =IFERROR(SMALL(tbl_Emp[Helper 2],tbl_Emp[[#This Row],[Helper 1]]),"") -> 0 | K72: =IF(OR(tbl_Emp[[#This Row],[Helper 2]]<>"",tbl_Emp[[#This Row],[Helper 3]]<>""),1,0) -> 1 | L72: =IF(rng_Emp_Filter="",0,IF(tbl_Emp[[#This Row],[Helper 2]]<>"",1,0)) -> 0 | M72: =IF(rng_Emp_Filter="",tbl_Emp[[#This Row],[Helper 1]],INDEX(tbl_Emp[Helper 3],tbl_Emp[[#This Row],[Helper 1]])) -> 71 | N72: =IFERROR(INDEX(tbl_Emp[Turn OFF Controls],tbl_Emp[[#This Row],[Link]]),"") -> CLODIUS ALBINUS
A73: SEPTIMIUS SEVERUS | B73: 193-211 | C73: 193 | D73: 211 | E73: 10 | F73: 7200 | G73: =tbl_Emp[[#This Row],[Turn OFF Controls]] -> SEPTIMIUS SEVERUS | H73: =IF(ISTEXT(OFFSET(tbl_Emp[[#This Row],[Helper 1]],-1,0)),1,OFFSET(tbl_Emp[[#This Row],[Helper 1]],-1,0)+1) -> 72 | I73: =IF(rng_Emp_Filter="",0,IF(ISNUMBER(SEARCH(rng_Emp_Filter,tbl_Emp[[#This Row],[Helper Key]])),tbl_Emp[[#This Row],[Helper 1]],"")) -> 0 | J73: =IFERROR(SMALL(tbl_Emp[Helper 2],tbl_Emp[[#This Row],[Helper 1]]),"") -> 0 | K73: =IF(OR(tbl_Emp[[#This Row],[Helper 2]]<>"",tbl_Emp[[#This Row],[Helper 3]]<>""),1,0) -> 1 | L73: =IF(rng_Emp_Filter="",0,IF(tbl_Emp[[#This Row],[Helper 2]]<>"",1,0)) -> 0 | M73: =IF(rng_Emp_Filter="",tbl_Emp[[#This Row],[Helper 1]],INDEX(tbl_Emp[Helper 3],tbl_Emp[[#This Row],[Helper 1]])) -> 72 | N73: =IFERROR(INDEX(tbl_Emp[Turn OFF Controls],tbl_Emp[[#This Row],[Link]]),"") -> SEPTIMIUS SEVERUS
A74: JULIA DOMNA (Septimius Severus) | B74: 193-211 | C74: 193 | D74: 211 | E74: 10 | F74: 7300 | G74: =tbl_Emp[[#This Row],[Turn OFF Controls]] -> JULIA DOMNA (Septimius Severus) | H74: =IF(ISTEXT(OFFSET(tbl_Emp[[#This Row],[Helper 1]],-1,0)),1,OFFSET(tbl_Emp[[#This Row],[Helper 1]],-1,0)+1) -> 73 | I74: =IF(rng_Emp_Filter="",0,IF(ISNUMBER(SEARCH(rng_Emp_Filter,tbl_Emp[[#This Row],[Helper Key]])),tbl_Emp[[#This Row],[Helper 1]],"")) -> 0 | J74: =IFERROR(SMALL(tbl_Emp[Helper 2],tbl_Emp[[#This Row],[Helper 1]]),"") -> 0 | K74: =IF(OR(tbl_Emp[[#This Row],[Helper 2]]<>"",tbl_Emp[[#This Row],[Helper 3]]<>""),1,0) -> 1 | L74: =IF(rng_Emp_Filter="",0,IF(tbl_Emp[[#This Row],[Helper 2]]<>"",1,0)) -> 0 | M74: =IF(rng_Emp_Filter="",tbl_Emp[[#This Row],[Helper 1]],INDEX(tbl_Emp[Helper 3],tbl_Emp[[#This Row],[Helper 1]])) -> 73 | N74: =IFERROR(INDEX(tbl_Emp[Turn OFF Controls],tbl_Emp[[#This Row],[Link]]),"") -> JULIA DOMNA (Septimius Severus)
A75: CARACALLA Caesar (Septimius Severus) | B75: 196-198 | C75: 196 | D75: 198 | E75: 10 | F75: 7400 | G75: =tbl_Emp[[#This Row],[Turn OFF Controls]] -> CARACALLA Caesar (Septimius Severus) | H75: =IF(ISTEXT(OFFSET(tbl_Emp[[#This Row],[Helper 1]],-1,0)),1,OFFSET(tbl_Emp[[#This Row],[Helper 1]],-1,0)+1) -> 74 | I75: =IF(rng_Emp_Filter="",0,IF(ISNUMBER(SEARCH(rng_Emp_Filter,tbl_Emp[[#This Row],[Helper Key]])),tbl_Emp[[#This Row],[Helper 1]],"")) -> 0 | J75: =IFERROR(SMALL(tbl_Emp[Helper 2],tbl_Emp[[#This Row],[Helper 1]]),"") -> 0 | K75: =IF(OR(tbl_Emp[[#This Row],[Helper 2]]<>"",tbl_Emp[[#This Row],[Helper 3]]<>""),1,0) -> 1 | L75: =IF(rng_Emp_Filter="",0,IF(tbl_Emp[[#This Row],[Helper 2]]<>"",1,0)) -> 0 | M75: =IF(rng_Emp_Filter="",tbl_Emp[[#This Row],[Helper 1]],INDEX(tbl_Emp[Helper 3],tbl_Emp[[#This Row],[Helper 1]])) -> 74 | N75: =IFERROR(INDEX(tbl_Emp[Turn OFF Controls],tbl_Emp[[#This Row],[Link]]),"") -> CARACALLA Caesar (Septimius Severus)
A76: GETA Caesar (Septimius Severus) | B76: 198-209 | C76: 198 | D76: 209 | E76: 10 | F76: 7500 | G76: =tbl_Emp[[#This Row],[Turn OFF Controls]] -> GETA Caesar (Septimius Severus) | H76: =IF(ISTEXT(OFFSET(tbl_Emp[[#This Row],[Helper 1]],-1,0)),1,OFFSET(tbl_Emp[[#This Row],[Helper 1]],-1,0)+1) -> 75 | I76: =IF(rng_Emp_Filter="",0,IF(ISNUMBER(SEARCH(rng_Emp_Filter,tbl_Emp[[#This Row],[Helper Key]])),tbl_Emp[[#This Row],[Helper 1]],"")) -> 0 | J76: =IFERROR(SMALL(tbl_Emp[Helper 2],tbl_Emp[[#This Row],[Helper 1]]),"") -> 0 | K76: =IF(OR(tbl_Emp[[#This Row],[Helper 2]]<>"",tbl_Emp[[#This Row],[Helper 3]]<>""),1,0) -> 1 | L76: =IF(rng_Emp_Filter="",0,IF(tbl_Emp[[#This Row],[Helper 2]]<>"",1,0)) -> 0 | M76: =IF(rng_Emp_Filter="",tbl_Emp[[#This Row],[Helper 1]],INDEX(tbl_Emp[Helper 3],tbl_Emp[[#This Row],[Helper 1]])) -> 75 | N76: =IFERROR(INDEX(tbl_Emp[Turn OFF Controls],tbl_Emp[[#This Row],[Link]]),"") -> GETA Caesar (Septimius Severus)
A77: PLAUTILLA (Septimius Severus) | B77: 202-205 | C77: 202 | D77: 205 | E77: 10 | F77: 7600 | G77: =tbl_Emp[[#This Row],[Turn OFF Controls]] -> PLAUTILLA (Septimius Severus) | H77: =IF(ISTEXT(OFFSET(tbl_Emp[[#This Row],[Helper 1]],-1,0)),1,OFFSET(tbl_Emp[[#This Row],[Helper 1]],-1,0)+1) -> 76 | I77: =IF(rng_Emp_Filter="",0,IF(ISNUMBER(SEARCH(rng_Emp_Filter,tbl_Emp[[#This Row],[Helper Key]])),tbl_Emp[[#This Row],[Helper 1]],"")) -> 0 | J77: =IFERROR(SMALL(tbl_Emp[Helper 2],tbl_Emp[[#This Row],[Helper 1]]),"") -> 0 | K77: =IF(OR(tbl_Emp[[#This Row],[Helper 2]]<>"",tbl_Emp[[#This Row],[Helper 3]]<>""),1,0) -> 1 | L77: =IF(rng_Emp_Filter="",0,IF(tbl_Emp[[#This Row],[Helper 2]]<>"",1,0)) -> 0 | M77: =IF(rng_Emp_Filter="",tbl_Emp[[#This Row],[Helper 1]],INDEX(tbl_Emp[Helper 3],tbl_Emp[[#This Row],[Helper 1]])) -> 76 | N77: =IFERROR(INDEX(tbl_Emp[Turn OFF Controls],tbl_Emp[[#This Row],[Link]]),"") -> PLAUTILLA (Septimius Severus)
A78: GETA | B78: 209-212 | C78: 209 | D78: 212 | E78: 10 | F78: 7700 | G78: =tbl_Emp[[#This Row],[Turn OFF Controls]] -> GETA | H78: =IF(ISTEXT(OFFSET(tbl_Emp[[#This Row],[Helper 1]],-1,0)),1,OFFSET(tbl_Emp[[#This Row],[Helper 1]],-1,0)+1) -> 77 | I78: =IF(rng_Emp_Filter="",0,IF(ISNUMBER(SEARCH(rng_Emp_Filter,tbl_Emp[[#This Row],[Helper Key]])),tbl_Emp[[#This Row],[Helper 1]],"")) -> 0 | J78: =IFERROR(SMALL(tbl_Emp[Helper 2],tbl_Emp[[#This Row],[Helper 1]]),"") -> 0 | K78: =IF(OR(tbl_Emp[[#This Row],[Helper 2]]<>"",tbl_Emp[[#This Row],[Helper 3]]<>""),1,0) -> 1 | L78: =IF(rng_Emp_Filter="",0,IF(tbl_Emp[[#This Row],[Helper 2]]<>"",1,0)) -> 0 | M78: =IF(rng_Emp_Filter="",tbl_Emp[[#This Row],[Helper 1]],INDEX(tbl_Emp[Helper 3],tbl_Emp[[#This Row],[Helper 1]])) -> 77 | N78: =IFERROR(INDEX(tbl_Emp[Turn OFF Controls],tbl_Emp[[#This Row],[Link]]),"") -> GETA
A79: CARACALLA | B79: 198-217 | C79: 198 | D79: 217 | E79: 10 | F79: 7800 | G79: =tbl_Emp[[#This Row],[Turn OFF Controls]] -> CARACALLA | H79: =IF(ISTEXT(OFFSET(tbl_Emp[[#This Row],[Helper 1]],-1,0)),1,OFFSET(tbl_Emp[[#This Row],[Helper 1]],-1,0)+1) -> 78 | I79: =IF(rng_Emp_Filter="",0,IF(ISNUMBER(SEARCH(rng_Emp_Filter,tbl_Emp[[#This Row],[Helper Key]])),tbl_Emp[[#This Row],[Helper 1]],"")) -> 0 | J79: =IFERROR(SMALL(tbl_Emp[Helper 2],tbl_Emp[[#This Row],[Helper 1]]),"") -> 0 | K79: =IF(OR(tbl_Emp[[#This Row],[Helper 2]]<>"",tbl_Emp[[#This Row],[Helper 3]]<>""),1,0) -> 1 | L79: =IF(rng_Emp_Filter="",0,IF(tbl_Emp[[#This Row],[Helper 2]]<>"",1,0)) -> 0 | M79: =IF(rng_Emp_Filter="",tbl_Emp[[#This Row],[Helper 1]],INDEX(tbl_Emp[Helper 3],tbl_Emp[[#This Row],[Helper 1]])) -> 78 | N79: =IFERROR(INDEX(tbl_Emp[Turn OFF Controls],tbl_Emp[[#This Row],[Link]]),"") -> CARACALLA
A80: JULIA DOMNA (Caracalla) | B80: 211-217 | C80: 211 | D80: 217 | E80: 10 | F80: 7900 | G80: =tbl_Emp[[#This Row],[Turn OFF Controls]] -> JULIA DOMNA (Caracalla) | H80: =IF(ISTEXT(OFFSET(tbl_Emp[[#This Row],[Helper 1]],-1,0)),1,OFFSET(tbl_Emp[[#This Row],[Helper 1]],-1,0)+1) -> 79 | I80: =IF(rng_Emp_Filter="",0,IF(ISNUMBER(SEARCH(rng_Emp_Filter,tbl_Emp[[#This Row],[Helper Key]])),tbl_Emp[[#This Row],[Helper 1]],"")) -> 0 | J80: =IFERROR(SMALL(tbl_Emp[Helper 2],tbl_Emp[[#This Row],[Helper 1]]),"") -> 0 | K80: =IF(OR(tbl_Emp[[#This Row],[Helper 2]]<>"",tbl_Emp[[#This Row],[Helper 3]]<>""),1,0) -> 1 | L80: =IF(rng_Emp_Filter="",0,IF(tbl_Emp[[#This Row],[Helper 2]]<>"",1,0)) -> 0 | M80: =IF(rng_Emp_Filter="",tbl_Emp[[#This Row],[Helper 1]],INDEX(tbl_Emp[Helper 3],tbl_Emp[[#This Row],[Helper 1]])) -> 79 | N80: =IFERROR(INDEX(tbl_Emp[Turn OFF Controls],tbl_Emp[[#This Row],[Link]]),"") -> JULIA DOMNA (Caracalla)
A81: MACRINUS | B81: 217-218 | C81: 217 | D81: 218 | E81: 10 | F81: 8000 | G81: =tbl_Emp[[#This Row],[Turn OFF Controls]] -> MACRINUS | H81: =IF(ISTEXT(OFFSET(tbl_Emp[[#This Row],[Helper 1]],-1,0)),1,OFFSET(tbl_Emp[[#This Row],[Helper 1]],-1,0)+1) -> 80 | I81: =IF(rng_Emp_Filter="",0,IF(ISNUMBER(SEARCH(rng_Emp_Filter,tbl_Emp[[#This Row],[Helper Key]])),tbl_Emp[[#This Row],[Helper 1]],"")) -> 0 | J81: =IFERROR(SMALL(tbl_Emp[Helper 2],tbl_Emp[[#This Row],[Helper 1]]),"") -> 0 | K81: =IF(OR(tbl_Emp[[#This Row],[Helper 2]]<>"",tbl_Emp[[#This Row],[Helper 3]]<>""),1,0) -> 1 | L81: =IF(rng_Emp_Filter="",0,IF(tbl_Emp[[#This Row],[Helper 2]]<>"",1,0)) -> 0 | M81: =IF(rng_Emp_Filter="",tbl_Emp[[#This Row],[Helper 1]],INDEX(tbl_Emp[Helper 3],tbl_Emp[[#This Row],[Helper 1]])) -> 80 | N81: =IFERROR(INDEX(tbl_Emp[Turn OFF Controls],tbl_Emp[[#This Row],[Link]]),"") -> MACRINUS
A82: DIADUMENIAN Caesar (Macrinus) | B82: 217-218 | C82: 217 | D82: 218 | E82: 10 | F82: 8100 | G82: =tbl_Emp[[#This Row],[Turn OFF Controls]] -> DIADUMENIAN Caesar (Macrinus) | H82: =IF(ISTEXT(OFFSET(tbl_Emp[[#This Row],[Helper 1]],-1,0)),1,OFFSET(tbl_Emp[[#This Row],[Helper 1]],-1,0)+1) -> 81 | I82: =IF(rng_Emp_Filter="",0,IF(ISNUMBER(SEARCH(rng_Emp_Filter,tbl_Emp[[#This Row],[Helper Key]])),tbl_Emp[[#This Row],[Helper 1]],"")) -> 0 | J82: =IFERROR(SMALL(tbl_Emp[Helper 2],tbl_Emp[[#This Row],[Helper 1]]),"") -> 0 | K82: =IF(OR(tbl_Emp[[#This Row],[Helper 2]]<>"",tbl_Emp[[#This Row],[Helper 3]]<>""),1,0) -> 1 | L82: =IF(rng_Emp_Filter="",0,IF(tbl_Emp[[#This Row],[Helper 2]]<>"",1,0)) -> 0 | M82: =IF(rng_Emp_Filter="",tbl_Emp[[#This Row],[Helper 1]],INDEX(tbl_Emp[Helper 3],tbl_Emp[[#This Row],[Helper 1]])) -> 81 | N82: =IFERROR(INDEX(tbl_Emp[Turn OFF Controls],tbl_Emp[[#This Row],[Link]]),"") -> DIADUMENIAN Caesar (Macrinus)
A83: DIADUMENIAN | B83: 218 | C83: 218 | D83: 218 | E83: 10 | F83: 8200 | G83: =tbl_Emp[[#This Row],[Turn OFF Controls]] -> DIADUMENIAN | H83: =IF(ISTEXT(OFFSET(tbl_Emp[[#This Row],[Helper 1]],-1,0)),1,OFFSET(tbl_Emp[[#This Row],[Helper 1]],-1,0)+1) -> 82 | I83: =IF(rng_Emp_Filter="",0,IF(ISNUMBER(SEARCH(rng_Emp_Filter,tbl_Emp[[#This Row],[Helper Key]])),tbl_Emp[[#This Row],[Helper 1]],"")) -> 0 | J83: =IFERROR(SMALL(tbl_Emp[Helper 2],tbl_Emp[[#This Row],[Helper 1]]),"") -> 0 | K83: =IF(OR(tbl_Emp[[#This Row],[Helper 2]]<>"",tbl_Emp[[#This Row],[Helper 3]]<>""),1,0) -> 1 | L83: =IF(rng_Emp_Filter="",0,IF(tbl_Emp[[#This Row],[Helper 2]]<>"",1,0)) -> 0 | M83: =IF(rng_Emp_Filter="",tbl_Emp[[#This Row],[Helper 1]],INDEX(tbl_Emp[Helper 3],tbl_Emp[[#This Row],[Helper 1]])) -> 82 | N83: =IFERROR(INDEX(tbl_Emp[Turn OFF Controls],tbl_Emp[[#This Row],[Link]]),"") -> DIADUMENIAN
A84: ELAGABALUS | B84: 218-222 | C84: 218 | D84: 222 | E84: 10 | F84: 8300 | G84: =tbl_Emp[[#This Row],[Turn OFF Controls]] -> ELAGABALUS | H84: =IF(ISTEXT(OFFSET(tbl_Emp[[#This Row],[Helper 1]],-1,0)),1,OFFSET(tbl_Emp[[#This Row],[Helper 1]],-1,0)+1) -> 83 | I84: =IF(rng_Emp_Filter="",0,IF(ISNUMBER(SEARCH(rng_Emp_Filter,tbl_Emp[[#This Row],[Helper Key]])),tbl_Emp[[#This Row],[Helper 1]],"")) -> 0 | J84: =IFERROR(SMALL(tbl_Emp[Helper 2],tbl_Emp[[#This Row],[Helper 1]]),"") -> 0 | K84: =IF(OR(tbl_Emp[[#This Row],[Helper 2]]<>"",tbl_Emp[[#This Row],[Helper 3]]<>""),1,0) -> 1 | L84: =IF(rng_Emp_Filter="",0,IF(tbl_Emp[[#This Row],[Helper 2]]<>"",1,0)) -> 0 | M84: =IF(rng_Emp_Filter="",tbl_Emp[[#This Row],[Helper 1]],INDEX(tbl_Emp[Helper 3],tbl_Emp[[#This Row],[Helper 1]])) -> 83 | N84: =IFERROR(INDEX(tbl_Emp[Turn OFF Controls],tbl_Emp[[#This Row],[Link]]),"") -> ELAGABALUS
A85: JULIA MAESA (Elagabalus) | B85: 218-222 | C85: 218 | D85: 222 | E85: 10 | F85: 8400 | G85: =tbl_Emp[[#This Row],[Turn OFF Controls]] -> JULIA MAESA (Elagabalus) | H85: =IF(ISTEXT(OFFSET(tbl_Emp[[#This Row],[Helper 1]],-1,0)),1,OFFSET(tbl_Emp[[#This Row],[Helper 1]],-1,0)+1) -> 84 | I85: =IF(rng_Emp_Filter="",0,IF(ISNUMBER(SEARCH(rng_Emp_Filter,tbl_Emp[[#This Row],[Helper Key]])),tbl_Emp[[#This Row],[Helper 1]],"")) -> 0 | J85: =IFERROR(SMALL(tbl_Emp[Helper 2],tbl_Emp[[#This Row],[Helper 1]]),"") -> 0 | K85: =IF(OR(tbl_Emp[[#This Row],[Helper 2]]<>"",tbl_Emp[[#This Row],[Helper 3]]<>""),1,0) -> 1 | L85: =IF(rng_Emp_Filter="",0,IF(tbl_Emp[[#This Row],[Helper 2]]<>"",1,0)) -> 0 | M85: =IF(rng_Emp_Filter="",tbl_Emp[[#This Row],[Helper 1]],INDEX(tbl_Emp[Helper 3],tbl_Emp[[#This Row],[Helper 1]])) -> 84 | N85: =IFERROR(INDEX(tbl_Emp[Turn OFF Controls],tbl_Emp[[#This Row],[Link]]),"") -> JULIA MAESA (Elagabalus)
A86: JULIA SOAEMIAS (Elagabalus) | B86: 218-222 | C86: 218 | D86: 222 | E86: 10 | F86: 8500 | G86: =tbl_Emp[[#This Row],[Turn OFF Controls]] -> JULIA SOAEMIAS (Elagabalus) | H86: =IF(ISTEXT(OFFSET(tbl_Emp[[#This Row],[Helper 1]],-1,0)),1,OFFSET(tbl_Emp[[#This Row],[Helper 1]],-1,0)+1) -> 85 | I86: =IF(rng_Emp_Filter="",0,IF(ISNUMBER(SEARCH(rng_Emp_Filter,tbl_Emp[[#This Row],[Helper Key]])),tbl_Emp[[#This Row],[Helper 1]],"")) -> 0 | J86: =IFERROR(SMALL(tbl_Emp[Helper 2],tbl_Emp[[#This Row],[Helper 1]]),"") -> 0 | K86: =IF(OR(tbl_Emp[[#This Row],[Helper 2]]<>"",tbl_Emp[[#This Row],[Helper 3]]<>""),1,0) -> 1 | L86: =IF(rng_Emp_Filter="",0,IF(tbl_Emp[[#This Row],[Helper 2]]<>"",1,0)) -> 0 | M86: =IF(rng_Emp_Filter="",tbl_Emp[[#This Row],[Helper 1]],INDEX(tbl_Emp[Helper 3],tbl_Emp[[#This Row],[Helper 1]])) -> 85 | N86: =IFERROR(INDEX(tbl_Emp[Turn OFF Controls],tbl_Emp[[#This Row],[Link]]),"") -> JULIA SOAEMIAS (Elagabalus)
A87: JULIA PAULA (Elagabalus) | B87: 219-220 | C87: 219 | D87: 220 | E87: 10 | F87: 8600 | G87: =tbl_Emp[[#This Row],[Turn OFF Controls]] -> JULIA PAULA (Elagabalus) | H87: =IF(ISTEXT(OFFSET(tbl_Emp[[#This Row],[Helper 1]],-1,0)),1,OFFSET(tbl_Emp[[#This Row],[Helper 1]],-1,0)+1) -> 86 | I87: =IF(rng_Emp_Filter="",0,IF(ISNUMBER(SEARCH(rng_Emp_Filter,tbl_Emp[[#This Row],[Helper Key]])),tbl_Emp[[#This Row],[Helper 1]],"")) -> 0 | J87: =IFERROR(SMALL(tbl_Emp[Helper 2],tbl_Emp[[#This Row],[Helper 1]]),"") -> 0 | K87: =IF(OR(tbl_Emp[[#This Row],[Helper 2]]<>"",tbl_Emp[[#This Row],[Helper 3]]<>""),1,0) -> 1 | L87: =IF(rng_Emp_Filter="",0,IF(tbl_Emp[[#This Row],[Helper 2]]<>"",1,0)) -> 0 | M87: =IF(rng_Emp_Filter="",tbl_Emp[[#This Row],[Helper 1]],INDEX(tbl_Emp[Helper 3],tbl_Emp[[#This Row],[Helper 1]])) -> 86 | N87: =IFERROR(INDEX(tbl_Emp[Turn OFF Controls],tbl_Emp[[#This Row],[Link]]),"") -> JULIA PAULA (Elagabalus)
A88: AQUILIA SEVERA (Elagabalus) | B88: 220-222 | C88: 220 | D88: 222 | E88: 10 | F88: 8700 | G88: =tbl_Emp[[#This Row],[Turn OFF Controls]] -> AQUILIA SEVERA (Elagabalus) | H88: =IF(ISTEXT(OFFSET(tbl_Emp[[#This Row],[Helper 1]],-1,0)),1,OFFSET(tbl_Emp[[#This Row],[Helper 1]],-1,0)+1) -> 87 | I88: =IF(rng_Emp_Filter="",0,IF(ISNUMBER(SEARCH(rng_Emp_Filter,tbl_Emp[[#This Row],[Helper Key]])),tbl_Emp[[#This Row],[Helper 1]],"")) -> 0 | J88: =IFERROR(SMALL(tbl_Emp[Helper 2],tbl_Emp[[#This Row],[Helper 1]]),"") -> 0 | K88: =IF(OR(tbl_Emp[[#This Row],[Helper 2]]<>"",tbl_Emp[[#This Row],[Helper 3]]<>""),1,0) -> 1 | L88: =IF(rng_Emp_Filter="",0,IF(tbl_Emp[[#This Row],[Helper 2]]<>"",1,0)) -> 0 | M88: =IF(rng_Emp_Filter="",tbl_Emp[[#This Row],[Helper 1]],INDEX(tbl_Emp[Helper 3],tbl_Emp[[#This Row],[Helper 1]])) -> 87 | N88: =IFERROR(INDEX(tbl_Emp[Turn OFF Controls],tbl_Emp[[#This Row],[Link]]),"") -> AQUILIA SEVERA (Elagabalus)
A89: ANNIA FAUSTINA (Elagabalus) | B89: 220-221 | C89: 220 | D89: 221 | E89: 10 | F89: 8800 | G89: =tbl_Emp[[#This Row],[Turn OFF Controls]] -> ANNIA FAUSTINA (Elagabalus) | H89: =IF(ISTEXT(OFFSET(tbl_Emp[[#This Row],[Helper 1]],-1,0)),1,OFFSET(tbl_Emp[[#This Row],[Helper 1]],-1,0)+1) -> 88 | I89: =IF(rng_Emp_Filter="",0,IF(ISNUMBER(SEARCH(rng_Emp_Filter,tbl_Emp[[#This Row],[Helper Key]])),tbl_Emp[[#This Row],[Helper 1]],"")) -> 0 | J89: =IFERROR(SMALL(tbl_Emp[Helper 2],tbl_Emp[[#This Row],[Helper 1]]),"") -> 0 | K89: =IF(OR(tbl_Emp[[#This Row],[Helper 2]]<>"",tbl_Emp[[#This Row],[Helper 3]]<>""),1,0) -> 1 | L89: =IF(rng_Emp_Filter="",0,IF(tbl_Emp[[#This Row],[Helper 2]]<>"",1,0)) -> 0 | M89: =IF(rng_Emp_Filter="",tbl_Emp[[#This Row],[Helper 1]],INDEX(tbl_Emp[Helper 3],tbl_Emp[[#This Row],[Helper 1]])) -> 88 | N89: =IFERROR(INDEX(tbl_Emp[Turn OFF Controls],tbl_Emp[[#This Row],[Link]]),"") -> ANNIA FAUSTINA (Elagabalus)
A90: SEVERUS ALEXANDER Caesar (Elagabalus) | B90: 221-222 | C90: 221 | D90: 222 | E90: 10 | F90: 8900 | G90: =tbl_Emp[[#This Row],[Turn OFF Controls]] -> SEVERUS ALEXANDER Caesar (Elagabalus) | H90: =IF(ISTEXT(OFFSET(tbl_Emp[[#This Row],[Helper 1]],-1,0)),1,OFFSET(tbl_Emp[[#This Row],[Helper 1]],-1,0)+1) -> 89 | I90: =IF(rng_Emp_Filter="",0,IF(ISNUMBER(SEARCH(rng_Emp_Filter,tbl_Emp[[#This Row],[Helper Key]])),tbl_Emp[[#This Row],[Helper 1]],"")) -> 0 | J90: =IFERROR(SMALL(tbl_Emp[Helper 2],tbl_Emp[[#This Row],[Helper 1]]),"") -> 0 | K90: =IF(OR(tbl_Emp[[#This Row],[Helper 2]]<>"",tbl_Emp[[#This Row],[Helper 3]]<>""),1,0) -> 1 | L90: =IF(rng_Emp_Filter="",0,IF(tbl_Emp[[#This Row],[Helper 2]]<>"",1,0)) -> 0 | M90: =IF(rng_Emp_Filter="",tbl_Emp[[#This Row],[Helper 1]],INDEX(tbl_Emp[Helper 3],tbl_Emp[[#This Row],[Helper 1]])) -> 89 | N90: =IFERROR(INDEX(tbl_Emp[Turn OFF Controls],tbl_Emp[[#This Row],[Link]]),"") -> SEVERUS ALEXANDER Caesar (Elagabalus)
A91: SEVERUS ALEXANDER | B91: 222-235 | C91: 222 | D91: 235 | E91: 11 | F91: 9000 | G91: =tbl_Emp[[#This Row],[Turn OFF Controls]] -> SEVERUS ALEXANDER | H91: =IF(ISTEXT(OFFSET(tbl_Emp[[#This Row],[Helper 1]],-1,0)),1,OFFSET(tbl_Emp[[#This Row],[Helper 1]],-1,0)+1) -> 90 | I91: =IF(rng_Emp_Filter="",0,IF(ISNUMBER(SEARCH(rng_Emp_Filter,tbl_Emp[[#This Row],[Helper Key]])),tbl_Emp[[#This Row],[Helper 1]],"")) -> 0 | J91: =IFERROR(SMALL(tbl_Emp[Helper 2],tbl_Emp[[#This Row],[Helper 1]]),"") -> 0 | K91: =IF(OR(tbl_Emp[[#This Row],[Helper 2]]<>"",tbl_Emp[[#This Row],[Helper 3]]<>""),1,0) -> 1 | L91: =IF(rng_Emp_Filter="",0,IF(tbl_Emp[[#This Row],[Helper 2]]<>"",1,0)) -> 0 | M91: =IF(rng_Emp_Filter="",tbl_Emp[[#This Row],[Helper 1]],INDEX(tbl_Emp[Helper 3],tbl_Emp[[#This Row],[Helper 1]])) -> 90 | N91: =IFERROR(INDEX(tbl_Emp[Turn OFF Controls],tbl_Emp[[#This Row],[Link]]),"") -> SEVERUS ALEXANDER
A92: JULIA MAMAEA (Severus Alexander) | B92: 222-235 | C92: 222 | D92: 235 | E92: 11 | F92: 9100 | G92: =tbl_Emp[[#This Row],[Turn OFF Controls]] -> JULIA MAMAEA (Severus Alexander) | H92: =IF(ISTEXT(OFFSET(tbl_Emp[[#This Row],[Helper 1]],-1,0)),1,OFFSET(tbl_Emp[[#This Row],[Helper 1]],-1,0)+1) -> 91 | I92: =IF(rng_Emp_Filter="",0,IF(ISNUMBER(SEARCH(rng_Emp_Filter,tbl_Emp[[#This Row],[Helper Key]])),tbl_Emp[[#This Row],[Helper 1]],"")) -> 0 | J92: =IFERROR(SMALL(tbl_Emp[Helper 2],tbl_Emp[[#This Row],[Helper 1]]),"") -> 0 | K92: =IF(OR(tbl_Emp[[#This Row],[Helper 2]]<>"",tbl_Emp[[#This Row],[Helper 3]]<>""),1,0) -> 1 | L92: =IF(rng_Emp_Filter="",0,IF(tbl_Emp[[#This Row],[Helper 2]]<>"",1,0)) -> 0 | M92: =IF(rng_Emp_Filter="",tbl_Emp[[#This Row],[Helper 1]],INDEX(tbl_Emp[Helper 3],tbl_Emp[[#This Row],[Helper 1]])) -> 91 | N92: =IFERROR(INDEX(tbl_Emp[Turn OFF Controls],tbl_Emp[[#This Row],[Link]]),"") -> JULIA MAMAEA (Severus Alexander)
A93: ORBIANA (Severus Alexander) | B93: 225-227 | C93: 225 | D93: 227 | E93: 11 | F93: 9200 | G93: =tbl_Emp[[#This Row],[Turn OFF Controls]] -> ORBIANA (Severus Alexander) | H93: =IF(ISTEXT(OFFSET(tbl_Emp[[#This Row],[Helper 1]],-1,0)),1,OFFSET(tbl_Emp[[#This Row],[Helper 1]],-1,0)+1) -> 92 | I93: =IF(rng_Emp_Filter="",0,IF(ISNUMBER(SEARCH(rng_Emp_Filter,tbl_Emp[[#This Row],[Helper Key]])),tbl_Emp[[#This Row],[Helper 1]],"")) -> 0 | J93: =IFERROR(SMALL(tbl_Emp[Helper 2],tbl_Emp[[#This Row],[Helper 1]]),"") -> 0 | K93: =IF(OR(tbl_Emp[[#This Row],[Helper 2]]<>"",tbl_Emp[[#This Row],[Helper 3]]<>""),1,0) -> 1 | L93: =IF(rng_Emp_Filter="",0,IF(tbl_Emp[[#This Row],[Helper 2]]<>"",1,0)) -> 0 | M93: =IF(rng_Emp_Filter="",tbl_Emp[[#This Row],[Helper 1]],INDEX(tbl_Emp[Helper 3],tbl_Emp[[#This Row],[Helper 1]])) -> 92 | N93: =IFERROR(INDEX(tbl_Emp[Turn OFF Controls],tbl_Emp[[#This Row],[Link]]),"") -> ORBIANA (Severus Alexander)
A94: MAXIMINUS I | B94: 235-238 | C94: 235 | D94: 238 | E94: 11 | F94: 9300 | G94: =tbl_Emp[[#This Row],[Turn OFF Controls]] -> MAXIMINUS I | H94: =IF(ISTEXT(OFFSET(tbl_Emp[[#This Row],[Helper 1]],-1,0)),1,OFFSET(tbl_Emp[[#This Row],[Helper 1]],-1,0)+1) -> 93 | I94: =IF(rng_Emp_Filter="",0,IF(ISNUMBER(SEARCH(rng_Emp_Filter,tbl_Emp[[#This Row],[Helper Key]])),tbl_Emp[[#This Row],[Helper 1]],"")) -> 0 | J94: =IFERROR(SMALL(tbl_Emp[Helper 2],tbl_Emp[[#This Row],[Helper 1]]),"") -> 0 | K94: =IF(OR(tbl_Emp[[#This Row],[Helper 2]]<>"",tbl_Emp[[#This Row],[Helper 3]]<>""),1,0) -> 1 | L94: =IF(rng_Emp_Filter="",0,IF(tbl_Emp[[#This Row],[Helper 2]]<>"",1,0)) -> 0 | M94: =IF(rng_Emp_Filter="",tbl_Emp[[#This Row],[Helper 1]],INDEX(tbl_Emp[Helper 3],tbl_Emp[[#This Row],[Helper 1]])) -> 93 | N94: =IFERROR(INDEX(tbl_Emp[Turn OFF Controls],tbl_Emp[[#This Row],[Link]]),"") -> MAXIMINUS I
A95: CAECILIA PAULINA (Maximinus) | B95: 235-238 | C95: 235 | D95: 238 | E95: 11 | F95: 9400 | G95: =tbl_Emp[[#This Row],[Turn OFF Controls]] -> CAECILIA PAULINA (Maximinus) | H95: =IF(ISTEXT(OFFSET(tbl_Emp[[#This Row],[Helper 1]],-1,0)),1,OFFSET(tbl_Emp[[#This Row],[Helper 1]],-1,0)+1) -> 94 | I95: =IF(rng_Emp_Filter="",0,IF(ISNUMBER(SEARCH(rng_Emp_Filter,tbl_Emp[[#This Row],[Helper Key]])),tbl_Emp[[#This Row],[Helper 1]],"")) -> 0 | J95: =IFERROR(SMALL(tbl_Emp[Helper 2],tbl_Emp[[#This Row],[Helper 1]]),"") -> 0 | K95: =IF(OR(tbl_Emp[[#This Row],[Helper 2]]<>"",tbl_Emp[[#This Row],[Helper 3]]<>""),1,0) -> 1 | L95: =IF(rng_Emp_Filter="",0,IF(tbl_Emp[[#This Row],[Helper 2]]<>"",1,0)) -> 0 | M95: =IF(rng_Emp_Filter="",tbl_Emp[[#This Row],[Helper 1]],INDEX(tbl_Emp[Helper 3],tbl_Emp[[#This Row],[Helper 1]])) -> 94 | N95: =IFERROR(INDEX(tbl_Emp[Turn OFF Controls],tbl_Emp[[#This Row],[Link]]),"") -> CAECILIA PAULINA (Maximinus)
A96: MAXIMUS Caesar (Maximinus) | B96: 235-238 | C96: 235 | D96: 238 | E96: 11 | F96: 9500 | G96: =tbl_Emp[[#This Row],[Turn OFF Controls]] -> MAXIMUS Caesar (Maximinus) | H96: =IF(ISTEXT(OFFSET(tbl_Emp[[#This Row],[Helper 1]],-1,0)),1,OFFSET(tbl_Emp[[#This Row],[Helper 1]],-1,0)+1) -> 95 | I96: =IF(rng_Emp_Filter="",0,IF(ISNUMBER(SEARCH(rng_Emp_Filter,tbl_Emp[[#This Row],[Helper Key]])),tbl_Emp[[#This Row],[Helper 1]],"")) -> 0 | J96: =IFERROR(SMALL(tbl_Emp[Helper 2],tbl_Emp[[#This Row],[Helper 1]]),"") -> 0 | K96: =IF(OR(tbl_Emp[[#This Row],[Helper 2]]<>"",tbl_Emp[[#This Row],[Helper 3]]<>""),1,0) -> 1 | L96: =IF(rng_Emp_Filter="",0,IF(tbl_Emp[[#This Row],[Helper 2]]<>"",1,0)) -> 0 | M96: =IF(rng_Emp_Filter="",tbl_Emp[[#This Row],[Helper 1]],INDEX(tbl_Emp[Helper 3],tbl_Emp[[#This Row],[Helper 1]])) -> 95 | N96: =IFERROR(INDEX(tbl_Emp[Turn OFF Controls],tbl_Emp[[#This Row],[Link]]),"") -> MAXIMUS Caesar (Maximinus)
A97: GORDIAN I | B97: 238 | C97: 238 | D97: 238 | E97: 11 | F97: 9600 | G97: =tbl_Emp[[#This Row],[Turn OFF Controls]] -> GORDIAN I | H97: =IF(ISTEXT(OFFSET(tbl_Emp[[#This Row],[Helper 1]],-1,0)),1,OFFSET(tbl_Emp[[#This Row],[Helper 1]],-1,0)+1) -> 96 | I97: =IF(rng_Emp_Filter="",0,IF(ISNUMBER(SEARCH(rng_Emp_Filter,tbl_Emp[[#This Row],[Helper Key]])),tbl_Emp[[#This Row],[Helper 1]],"")) -> 0 | J97: =IFERROR(SMALL(tbl_Emp[Helper 2],tbl_Emp[[#This Row],[Helper 1]]),"") -> 0 | K97: =IF(OR(tbl_Emp[[#This Row],[Helper 2]]<>"",tbl_Emp[[#This Row],[Helper 3]]<>""),1,0) -> 1 | L97: =IF(rng_Emp_Filter="",0,IF(tbl_Emp[[#This Row],[Helper 2]]<>"",1,0)) -> 0 | M97: =IF(rng_Emp_Filter="",tbl_Emp[[#This Row],[Helper 1]],INDEX(tbl_Emp[Helper 3],tbl_Emp[[#This Row],[Helper 1]])) -> 96 | N97: =IFERROR(INDEX(tbl_Emp[Turn OFF Controls],tbl_Emp[[#This Row],[Link]]),"") -> GORDIAN I
A98: GORDIAN II | B98: 238 | C98: 238 | D98: 238 | E98: 11 | F98: 9700 | G98: =tbl_Emp[[#This Row],[Turn OFF Controls]] -> GORDIAN II | H98: =IF(ISTEXT(OFFSET(tbl_Emp[[#This Row],[Helper 1]],-1,0)),1,OFFSET(tbl_Emp[[#This Row],[Helper 1]],-1,0)+1) -> 97 | I98: =IF(rng_Emp_Filter="",0,IF(ISNUMBER(SEARCH(rng_Emp_Filter,tbl_Emp[[#This Row],[Helper Key]])),tbl_Emp[[#This Row],[Helper 1]],"")) -> 0 | J98: =IFERROR(SMALL(tbl_Emp[Helper 2],tbl_Emp[[#This Row],[Helper 1]]),"") -> 0 | K98: =IF(OR(tbl_Emp[[#This Row],[Helper 2]]<>"",tbl_Emp[[#This Row],[Helper 3]]<>""),1,0) -> 1 | L98: =IF(rng_Emp_Filter="",0,IF(tbl_Emp[[#This Row],[Helper 2]]<>"",1,0)) -> 0 | M98: =IF(rng_Emp_Filter="",tbl_Emp[[#This Row],[Helper 1]],INDEX(tbl_Emp[Helper 3],tbl_Emp[[#This Row],[Helper 1]])) -> 97 | N98: =IFERROR(INDEX(tbl_Emp[Turn OFF Controls],tbl_Emp[[#This Row],[Link]]),"") -> GORDIAN II
A99: BALBINUS | B99: 238 | C99: 238 | D99: 238 | E99: 11 | F99: 9800 | G99: =tbl_Emp[[#This Row],[Turn OFF Controls]] -> BALBINUS | H99: =IF(ISTEXT(OFFSET(tbl_Emp[[#This Row],[Helper 1]],-1,0)),1,OFFSET(tbl_Emp[[#This Row],[Helper 1]],-1,0)+1) -> 98 | I99: =IF(rng_Emp_Filter="",0,IF(ISNUMBER(SEARCH(rng_Emp_Filter,tbl_Emp[[#This Row],[Helper Key]])),tbl_Emp[[#This Row],[Helper 1]],"")) -> 0 | J99: =IFERROR(SMALL(tbl_Emp[Helper 2],tbl_Emp[[#This Row],[Helper 1]]),"") -> 0 | K99: =IF(OR(tbl_Emp[[#This Row],[Helper 2]]<>"",tbl_Emp[[#This Row],[Helper 3]]<>""),1,0) -> 1 | L99: =IF(rng_Emp_Filter="",0,IF(tbl_Emp[[#This Row],[Helper 2]]<>"",1,0)) -> 0 | M99: =IF(rng_Emp_Filter="",tbl_Emp[[#This Row],[Helper 1]],INDEX(tbl_Emp[Helper 3],tbl_Emp[[#This Row],[Helper 1]])) -> 98 | N99: =IFERROR(INDEX(tbl_Emp[Turn OFF Controls],tbl_Emp[[#This Row],[Link]]),"") -> BALBINUS
A100: PUPIENUS | B100: 238 | C100: 238 | D100: 238 | E100: 11 | F100: 9900 | G100: =tbl_Emp[[#This Row],[Turn OFF Controls]] -> PUPIENUS | H100: =IF(ISTEXT(OFFSET(tbl_Emp[[#This Row],[Helper 1]],-1,0)),1,OFFSET(tbl_Emp[[#This Row],[Helper 1]],-1,0)+1) -> 99 | I100: =IF(rng_Emp_Filter="",0,IF(ISNUMBER(SEARCH(rng_Emp_Filter,tbl_Emp[[#This Row],[Helper Key]])),tbl_Emp[[#This Row],[Helper 1]],"")) -> 0 | J100: =IFERROR(SMALL(tbl_Emp[Helper 2],tbl_Emp[[#This Row],[Helper 1]]),"") -> 0 | K100: =IF(OR(tbl_Emp[[#This Row],[Helper 2]]<>"",tbl_Emp[[#This Row],[Helper 3]]<>""),1,0) -> 1 | L100: =IF(rng_Emp_Filter="",0,IF(tbl_Emp[[#This Row],[Helper 2]]<>"",1,0)) -> 0 | M100: =IF(rng_Emp_Filter="",tbl_Emp[[#This Row],[Helper 1]],INDEX(tbl_Emp[Helper 3],tbl_Emp[[#This Row],[Helper 1]])) -> 99 | N100: =IFERROR(INDEX(tbl_Emp[Turn OFF Controls],tbl_Emp[[#This Row],[Link]]),"") -> PUPIENUS
A101: GORDIAN III | B101: 238-244 | C101: 238 | D101: 244 | E101: 12 | F101: 10000 | G101: =tbl_Emp[[#This Row],[Turn OFF Controls]] -> GORDIAN III | H101: =IF(ISTEXT(OFFSET(tbl_Emp[[#This Row],[Helper 1]],-1,0)),1,OFFSET(tbl_Emp[[#This Row],[Helper 1]],-1,0)+1) -> 100 | I101: =IF(rng_Emp_Filter="",0,IF(ISNUMBER(SEARCH(rng_Emp_Filter,tbl_Emp[[#This Row],[Helper Key]])),tbl_Emp[[#This Row],[Helper 1]],"")) -> 0 | J101: =IFERROR(SMALL(tbl_Emp[Helper 2],tbl_Emp[[#This Row],[Helper 1]]),"") -> 0 | K101: =IF(OR(tbl_Emp[[#This Row],[Helper 2]]<>"",tbl_Emp[[#This Row],[Helper 3]]<>""),1,0) -> 1 | L101: =IF(rng_Emp_Filter="",0,IF(tbl_Emp[[#This Row],[Helper 2]]<>"",1,0)) -> 0 | M101: =IF(rng_Emp_Filter="",tbl_Emp[[#This Row],[Helper 1]],INDEX(tbl_Emp[Helper 3],tbl_Emp[[#This Row],[Helper 1]])) -> 100 | N101: =IFERROR(INDEX(tbl_Emp[Turn OFF Controls],tbl_Emp[[#This Row],[Link]]),"") -> GORDIAN III
A102: TRANQUILLINA (Gordian III) | B102: 241-244 | C102: 241 | D102: 244 | E102: 12 | F102: 10100 | G102: =tbl_Emp[[#This Row],[Turn OFF Controls]] -> TRANQUILLINA (Gordian III) | H102: =IF(ISTEXT(OFFSET(tbl_Emp[[#This Row],[Helper 1]],-1,0)),1,OFFSET(tbl_Emp[[#This Row],[Helper 1]],-1,0)+1) -> 101 | I102: =IF(rng_Emp_Filter="",0,IF(ISNUMBER(SEARCH(rng_Emp_Filter,tbl_Emp[[#This Row],[Helper Key]])),tbl_Emp[[#This Row],[Helper 1]],"")) -> 0 | J102: =IFERROR(SMALL(tbl_Emp[Helper 2],tbl_Emp[[#This Row],[Helper 1]]),"") -> 0 | K102: =IF(OR(tbl_Emp[[#This Row],[Helper 2]]<>"",tbl_Emp[[#This Row],[Helper 3]]<>""),1,0) -> 1 | L102: =IF(rng_Emp_Filter="",0,IF(tbl_Emp[[#This Row],[Helper 2]]<>"",1,0)) -> 0 | M102: =IF(rng_Emp_Filter="",tbl_Emp[[#This Row],[Helper 1]],INDEX(tbl_Emp[Helper 3],tbl_Emp[[#This Row],[Helper 1]])) -> 101 | N102: =IFERROR(INDEX(tbl_Emp[Turn OFF Controls],tbl_Emp[[#This Row],[Link]]),"") -> TRANQUILLINA (Gordian III)
A103: PHILIP I | B103: 244-249 | C103: 244 | D103: 249 | E103: 12 | F103: 10200 | G103: =tbl_Emp[[#This Row],[Turn OFF Controls]] -> PHILIP I | H103: =IF(ISTEXT(OFFSET(tbl_Emp[[#This Row],[Helper 1]],-1,0)),1,OFFSET(tbl_Emp[[#This Row],[Helper 1]],-1,0)+1) -> 102 | I103: =IF(rng_Emp_Filter="",0,IF(ISNUMBER(SEARCH(rng_Emp_Filter,tbl_Emp[[#This Row],[Helper Key]])),tbl_Emp[[#This Row],[Helper 1]],"")) -> 0 | J103: =IFERROR(SMALL(tbl_Emp[Helper 2],tbl_Emp[[#This Row],[Helper 1]]),"") -> 0 | K103: =IF(OR(tbl_Emp[[#This Row],[Helper 2]]<>"",tbl_Emp[[#This Row],[Helper 3]]<>""),1,0) -> 1 | L103: =IF(rng_Emp_Filter="",0,IF(tbl_Emp[[#This Row],[Helper 2]]<>"",1,0)) -> 0 | M103: =IF(rng_Emp_Filter="",tbl_Emp[[#This Row],[Helper 1]],INDEX(tbl_Emp[Helper 3],tbl_Emp[[#This Row],[Helper 1]])) -> 102 | N103: =IFERROR(INDEX(tbl_Emp[Turn OFF Controls],tbl_Emp[[#This Row],[Link]]),"") -> PHILIP I
A104: OTACILIA SEVERA (Philip I) | B104: 244-249 | C104: 244 | D104: 249 | E104: 12 | F104: 10300 | G104: =tbl_Emp[[#This Row],[Turn OFF Controls]] -> OTACILIA SEVERA (Philip I) | H104: =IF(ISTEXT(OFFSET(tbl_Emp[[#This Row],[Helper 1]],-1,0)),1,OFFSET(tbl_Emp[[#This Row],[Helper 1]],-1,0)+1) -> 103 | I104: =IF(rng_Emp_Filter="",0,IF(ISNUMBER(SEARCH(rng_Emp_Filter,tbl_Emp[[#This Row],[Helper Key]])),tbl_Emp[[#This Row],[Helper 1]],"")) -> 0 | J104: =IFERROR(SMALL(tbl_Emp[Helper 2],tbl_Emp[[#This Row],[Helper 1]]),"") -> 0 | K104: =IF(OR(tbl_Emp[[#This Row],[Helper 2]]<>"",tbl_Emp[[#This Row],[Helper 3]]<>""),1,0) -> 1 | L104: =IF(rng_Emp_Filter="",0,IF(tbl_Emp[[#This Row],[Helper 2]]<>"",1,0)) -> 0 | M104: =IF(rng_Emp_Filter="",tbl_Emp[[#This Row],[Helper 1]],INDEX(tbl_Emp[Helper 3],tbl_Emp[[#This Row],[Helper 1]])) -> 103 | N104: =IFERROR(INDEX(tbl_Emp[Turn OFF Controls],tbl_Emp[[#This Row],[Link]]),"") -> OTACILIA SEVERA (Philip I)
A105: PHILIP II Caesar (Philip I) | B105: 244-247 | C105: 244 | D105: 247 | E105: 12 | F105: 10400 | G105: =tbl_Emp[[#This Row],[Turn OFF Controls]] -> PHILIP II Caesar (Philip I) | H105: =IF(ISTEXT(OFFSET(tbl_Emp[[#This Row],[Helper 1]],-1,0)),1,OFFSET(tbl_Emp[[#This Row],[Helper 1]],-1,0)+1) -> 104 | I105: =IF(rng_Emp_Filter="",0,IF(ISNUMBER(SEARCH(rng_Emp_Filter,tbl_Emp[[#This Row],[Helper Key]])),tbl_Emp[[#This Row],[Helper 1]],"")) -> 0 | J105: =IFERROR(SMALL(tbl_Emp[Helper 2],tbl_Emp[[#This Row],[Helper 1]]),"") -> 0 | K105: =IF(OR(tbl_Emp[[#This Row],[Helper 2]]<>"",tbl_Emp[[#This Row],[Helper 3]]<>""),1,0) -> 1 | L105: =IF(rng_Emp_Filter="",0,IF(tbl_Emp[[#This Row],[Helper 2]]<>"",1,0)) -> 0 | M105: =IF(rng_Emp_Filter="",tbl_Emp[[#This Row],[Helper 1]],INDEX(tbl_Emp[Helper 3],tbl_Emp[[#This Row],[Helper 1]])) -> 104 | N105: =IFERROR(INDEX(tbl_Emp[Turn OFF Controls],tbl_Emp[[#This Row],[Link]]),"") -> PHILIP II Caesar (Philip I)
A106: PHILIP II | B106: 247-249 | C106: 247 | D106: 249 | E106: 12 | F106: 10500 | G106: =tbl_Emp[[#This Row],[Turn OFF Controls]] -> PHILIP II | H106: =IF(ISTEXT(OFFSET(tbl_Emp[[#This Row],[Helper 1]],-1,0)),1,OFFSET(tbl_Emp[[#This Row],[Helper 1]],-1,0)+1) -> 105 | I106: =IF(rng_Emp_Filter="",0,IF(ISNUMBER(SEARCH(rng_Emp_Filter,tbl_Emp[[#This Row],[Helper Key]])),tbl_Emp[[#This Row],[Helper 1]],"")) -> 0 | J106: =IFERROR(SMALL(tbl_Emp[Helper 2],tbl_Emp[[#This Row],[Helper 1]]),"") -> 0 | K106: =IF(OR(tbl_Emp[[#This Row],[Helper 2]]<>"",tbl_Emp[[#This Row],[Helper 3]]<>""),1,0) -> 1 | L106: =IF(rng_Emp_Filter="",0,IF(tbl_Emp[[#This Row],[Helper 2]]<>"",1,0)) -> 0 | M106: =IF(rng_Emp_Filter="",tbl_Emp[[#This Row],[Helper 1]],INDEX(tbl_Emp[Helper 3],tbl_Emp[[#This Row],[Helper 1]])) -> 105 | N106: =IFERROR(INDEX(tbl_Emp[Turn OFF Controls],tbl_Emp[[#This Row],[Link]]),"") -> PHILIP II
A107: PACATIAN | B107: 248-249 | C107: 248 | D107: 249 | E107: 12 | F107: 10600 | G107: =tbl_Emp[[#This Row],[Turn OFF Controls]] -> PACATIAN | H107: =IF(ISTEXT(OFFSET(tbl_Emp[[#This Row],[Helper 1]],-1,0)),1,OFFSET(tbl_Emp[[#This Row],[Helper 1]],-1,0)+1) -> 106 | I107: =IF(rng_Emp_Filter="",0,IF(ISNUMBER(SEARCH(rng_Emp_Filter,tbl_Emp[[#This Row],[Helper Key]])),tbl_Emp[[#This Row],[Helper 1]],"")) -> 0 | J107: =IFERROR(SMALL(tbl_Emp[Helper 2],tbl_Emp[[#This Row],[Helper 1]]),"") -> 0 | K107: =IF(OR(tbl_Emp[[#This Row],[Helper 2]]<>"",tbl_Emp[[#This Row],[Helper 3]]<>""),1,0) -> 1 | L107: =IF(rng_Emp_Filter="",0,IF(tbl_Emp[[#This Row],[Helper 2]]<>"",1,0)) -> 0 | M107: =IF(rng_Emp_Filter="",tbl_Emp[[#This Row],[Helper 1]],INDEX(tbl_Emp[Helper 3],tbl_Emp[[#This Row],[Helper 1]])) -> 106 | N107: =IFERROR(INDEX(tbl_Emp[Turn OFF Controls],tbl_Emp[[#This Row],[Link]]),"") -> PACATIAN
A108: JOTAPIAN | B108: 248-249 | C108: 248 | D108: 249 | E108: 12 | F108: 10700 | G108: =tbl_Emp[[#This Row],[Turn OFF Controls]] -> JOTAPIAN | H108: =IF(ISTEXT(OFFSET(tbl_Emp[[#This Row],[Helper 1]],-1,0)),1,OFFSET(tbl_Emp[[#This Row],[Helper 1]],-1,0)+1) -> 107 | I108: =IF(rng_Emp_Filter="",0,IF(ISNUMBER(SEARCH(rng_Emp_Filter,tbl_Emp[[#This Row],[Helper Key]])),tbl_Emp[[#This Row],[Helper 1]],"")) -> 0 | J108: =IFERROR(SMALL(tbl_Emp[Helper 2],tbl_Emp[[#This Row],[Helper 1]]),"") -> 0 | K108: =IF(OR(tbl_Emp[[#This Row],[Helper 2]]<>"",tbl_Emp[[#This Row],[Helper 3]]<>""),1,0) -> 1 | L108: =IF(rng_Emp_Filter="",0,IF(tbl_Emp[[#This Row],[Helper 2]]<>"",1,0)) -> 0 | M108: =IF(rng_Emp_Filter="",tbl_Emp[[#This Row],[Helper 1]],INDEX(tbl_Emp[Helper 3],tbl_Emp[[#This Row],[Helper 1]])) -> 107 | N108: =IFERROR(INDEX(tbl_Emp[Turn OFF Controls],tbl_Emp[[#This Row],[Link]]),"") -> JOTAPIAN
A109: TRAJAN DECIUS | B109: 249-251 | C109: 249 | D109: 251 | E109: 12 | F109: 10800 | G109: =tbl_Emp[[#This Row],[Turn OFF Controls]] -> TRAJAN DECIUS | H109: =IF(ISTEXT(OFFSET(tbl_Emp[[#This Row],[Helper 1]],-1,0)),1,OFFSET(tbl_Emp[[#This Row],[Helper 1]],-1,0)+1) -> 108 | I109: =IF(rng_Emp_Filter="",0,IF(ISNUMBER(SEARCH(rng_Emp_Filter,tbl_Emp[[#This Row],[Helper Key]])),tbl_Emp[[#This Row],[Helper 1]],"")) -> 0 | J109: =IFERROR(SMALL(tbl_Emp[Helper 2],tbl_Emp[[#This Row],[Helper 1]]),"") -> 0 | K109: =IF(OR(tbl_Emp[[#This Row],[Helper 2]]<>"",tbl_Emp[[#This Row],[Helper 3]]<>""),1,0) -> 1 | L109: =IF(rng_Emp_Filter="",0,IF(tbl_Emp[[#This Row],[Helper 2]]<>"",1,0)) -> 0 | M109: =IF(rng_Emp_Filter="",tbl_Emp[[#This Row],[Helper 1]],INDEX(tbl_Emp[Helper 3],tbl_Emp[[#This Row],[Helper 1]])) -> 108 | N109: =IFERROR(INDEX(tbl_Emp[Turn OFF Controls],tbl_Emp[[#This Row],[Link]]),"") -> TRAJAN DECIUS
A110: HERENNIA ETRUSCILLA (Trajan Decius) | B110: 249-251 | C110: 249 | D110: 251 | E110: 12 | F110: 10900 | G110: =tbl_Emp[[#This Row],[Turn OFF Controls]] -> HERENNIA ETRUSCILLA (Trajan Decius) | H110: =IF(ISTEXT(OFFSET(tbl_Emp[[#This Row],[Helper 1]],-1,0)),1,OFFSET(tbl_Emp[[#This Row],[Helper 1]],-1,0)+1) -> 109 | I110: =IF(rng_Emp_Filter="",0,IF(ISNUMBER(SEARCH(rng_Emp_Filter,tbl_Emp[[#This Row],[Helper Key]])),tbl_Emp[[#This Row],[Helper 1]],"")) -> 0 | J110: =IFERROR(SMALL(tbl_Emp[Helper 2],tbl_Emp[[#This Row],[Helper 1]]),"") -> 0 | K110: =IF(OR(tbl_Emp[[#This Row],[Helper 2]]<>"",tbl_Emp[[#This Row],[Helper 3]]<>""),1,0) -> 1 | L110: =IF(rng_Emp_Filter="",0,IF(tbl_Emp[[#This Row],[Helper 2]]<>"",1,0)) -> 0 | M110: =IF(rng_Emp_Filter="",tbl_Emp[[#This Row],[Helper 1]],INDEX(tbl_Emp[Helper 3],tbl_Emp[[#This Row],[Helper 1]])) -> 109 | N110: =IFERROR(INDEX(tbl_Emp[Turn OFF Controls],tbl_Emp[[#This Row],[Link]]),"") -> HERENNIA ETRUSCILLA (Trajan Decius)
A111: HERENNIUS ETRUSCUS Caesar (Trajan Decius) | B111: 250-251 | C111: 250 | D111: 251 | E111: 12 | F111: 11000 | G111: =tbl_Emp[[#This Row],[Turn OFF Controls]] -> HERENNIUS ETRUSCUS Caesar (Trajan Decius) | H111: =IF(ISTEXT(OFFSET(tbl_Emp[[#This Row],[Helper 1]],-1,0)),1,OFFSET(tbl_Emp[[#This Row],[Helper 1]],-1,0)+1) -> 110 | I111: =IF(rng_Emp_Filter="",0,IF(ISNUMBER(SEARCH(rng_Emp_Filter,tbl_Emp[[#This Row],[Helper Key]])),tbl_Emp[[#This Row],[Helper 1]],"")) -> 0 | J111: =IFERROR(SMALL(tbl_Emp[Helper 2],tbl_Emp[[#This Row],[Helper 1]]),"") -> 0 | K111: =IF(OR(tbl_Emp[[#This Row],[Helper 2]]<>"",tbl_Emp[[#This Row],[Helper 3]]<>""),1,0) -> 1 | L111: =IF(rng_Emp_Filter="",0,IF(tbl_Emp[[#This Row],[Helper 2]]<>"",1,0)) -> 0 | M111: =IF(rng_Emp_Filter="",tbl_Emp[[#This Row],[Helper 1]],INDEX(tbl_Emp[Helper 3],tbl_Emp[[#This Row],[Helper 1]])) -> 110 | N111: =IFERROR(INDEX(tbl_Emp[Turn OFF Controls],tbl_Emp[[#This Row],[Link]]),"") -> HERENNIUS ETRUSCUS Caesar (Trajan Decius)
A112: HOSTILIAN Caesar (Trajan Decius) | B112: 251 | C112: 251 | D112: 251 | E112: 12 | F112: 11100 | G112: =tbl_Emp[[#This Row],[Turn OFF Controls]] -> HOSTILIAN Caesar (Trajan Decius) | H112: =IF(ISTEXT(OFFSET(tbl_Emp[[#This Row],[Helper 1]],-1,0)),1,OFFSET(tbl_Emp[[#This Row],[Helper 1]],-1,0)+1) -> 111 | I112: =IF(rng_Emp_Filter="",0,IF(ISNUMBER(SEARCH(rng_Emp_Filter,tbl_Emp[[#This Row],[Helper Key]])),tbl_Emp[[#This Row],[Helper 1]],"")) -> 0 | J112: =IFERROR(SMALL(tbl_Emp[Helper 2],tbl_Emp[[#This Row],[Helper 1]]),"") -> 0 | K112: =IF(OR(tbl_Emp[[#This Row],[Helper 2]]<>"",tbl_Emp[[#This Row],[Helper 3]]<>""),1,0) -> 1 | L112: =IF(rng_Emp_Filter="",0,IF(tbl_Emp[[#This Row],[Helper 2]]<>"",1,0)) -> 0 | M112: =IF(rng_Emp_Filter="",tbl_Emp[[#This Row],[Helper 1]],INDEX(tbl_Emp[Helper 3],tbl_Emp[[#This Row],[Helper 1]])) -> 111 | N112: =IFERROR(INDEX(tbl_Emp[Turn OFF Controls],tbl_Emp[[#This Row],[Link]]),"") -> HOSTILIAN Caesar (Trajan Decius)
A113: TREBONIANUS GALLUS | B113: 251-253 | C113: 251 | D113: 253 | E113: 12 | F113: 11200 | G113: =tbl_Emp[[#This Row],[Turn OFF Controls]] -> TREBONIANUS GALLUS | H113: =IF(ISTEXT(OFFSET(tbl_Emp[[#This Row],[Helper 1]],-1,0)),1,OFFSET(tbl_Emp[[#This Row],[Helper 1]],-1,0)+1) -> 112 | I113: =IF(rng_Emp_Filter="",0,IF(ISNUMBER(SEARCH(rng_Emp_Filter,tbl_Emp[[#This Row],[Helper Key]])),tbl_Emp[[#This Row],[Helper 1]],"")) -> 0 | J113: =IFERROR(SMALL(tbl_Emp[Helper 2],tbl_Emp[[#This Row],[Helper 1]]),"") -> 0 | K113: =IF(OR(tbl_Emp[[#This Row],[Helper 2]]<>"",tbl_Emp[[#This Row],[Helper 3]]<>""),1,0) -> 1 | L113: =IF(rng_Emp_Filter="",0,IF(tbl_Emp[[#This Row],[Helper 2]]<>"",1,0)) -> 0 | M113: =IF(rng_Emp_Filter="",tbl_Emp[[#This Row],[Helper 1]],INDEX(tbl_Emp[Helper 3],tbl_Emp[[#This Row],[Helper 1]])) -> 112 | N113: =IFERROR(INDEX(tbl_Emp[Turn OFF Controls],tbl_Emp[[#This Row],[Link]]),"") -> TREBONIANUS GALLUS
A114: HERENNIUS ETRUSCUS | B114: 251 | C114: 251 | D114: 251 | E114: 12 | F114: 11300 | G114: =tbl_Emp[[#This Row],[Turn OFF Controls]] -> HERENNIUS ETRUSCUS | H114: =IF(ISTEXT(OFFSET(tbl_Emp[[#This Row],[Helper 1]],-1,0)),1,OFFSET(tbl_Emp[[#This Row],[Helper 1]],-1,0)+1) -> 113 | I114: =IF(rng_Emp_Filter="",0,IF(ISNUMBER(SEARCH(rng_Emp_Filter,tbl_Emp[[#This Row],[Helper Key]])),tbl_Emp[[#This Row],[Helper 1]],"")) -> 0 | J114: =IFERROR(SMALL(tbl_Emp[Helper 2],tbl_Emp[[#This Row],[Helper 1]]),"") -> 0 | K114: =IF(OR(tbl_Emp[[#This Row],[Helper 2]]<>"",tbl_Emp[[#This Row],[Helper 3]]<>""),1,0) -> 1 | L114: =IF(rng_Emp_Filter="",0,IF(tbl_Emp[[#This Row],[Helper 2]]<>"",1,0)) -> 0 | M114: =IF(rng_Emp_Filter="",tbl_Emp[[#This Row],[Helper 1]],INDEX(tbl_Emp[Helper 3],tbl_Emp[[#This Row],[Helper 1]])) -> 113 | N114: =IFERROR(INDEX(tbl_Emp[Turn OFF Controls],tbl_Emp[[#This Row],[Link]]),"") -> HERENNIUS ETRUSCUS
A115: HOSTILIAN | B115: 251 | C115: 251 | D115: 251 | E115: 12 | F115: 11400 | G115: =tbl_Emp[[#This Row],[Turn OFF Controls]] -> HOSTILIAN | H115: =IF(ISTEXT(OFFSET(tbl_Emp[[#This Row],[Helper 1]],-1,0)),1,OFFSET(tbl_Emp[[#This Row],[Helper 1]],-1,0)+1) -> 114 | I115: =IF(rng_Emp_Filter="",0,IF(ISNUMBER(SEARCH(rng_Emp_Filter,tbl_Emp[[#This Row],[Helper Key]])),tbl_Emp[[#This Row],[Helper 1]],"")) -> 0 | J115: =IFERROR(SMALL(tbl_Emp[Helper 2],tbl_Emp[[#This Row],[Helper 1]]),"") -> 0 | K115: =IF(OR(tbl_Emp[[#This Row],[Helper 2]]<>"",tbl_Emp[[#This Row],[Helper 3]]<>""),1,0) -> 1 | L115: =IF(rng_Emp_Filter="",0,IF(tbl_Emp[[#This Row],[Helper 2]]<>"",1,0)) -> 0 | M115: =IF(rng_Emp_Filter="",tbl_Emp[[#This Row],[Helper 1]],INDEX(tbl_Emp[Helper 3],tbl_Emp[[#This Row],[Helper 1]])) -> 114 | N115: =IFERROR(INDEX(tbl_Emp[Turn OFF Controls],tbl_Emp[[#This Row],[Link]]),"") -> HOSTILIAN
A116: VOLUSIAN Caesar (Treb. Gallus) | B116: 251 | C116: 251 | D116: 251 | E116: 12 | F116: 11500 | G116: =tbl_Emp[[#This Row],[Turn OFF Controls]] -> VOLUSIAN Caesar (Treb. Gallus) | H116: =IF(ISTEXT(OFFSET(tbl_Emp[[#This Row],[Helper 1]],-1,0)),1,OFFSET(tbl_Emp[[#This Row],[Helper 1]],-1,0)+1) -> 115 | I116: =IF(rng_Emp_Filter="",0,IF(ISNUMBER(SEARCH(rng_Emp_Filter,tbl_Emp[[#This Row],[Helper Key]])),tbl_Emp[[#This Row],[Helper 1]],"")) -> 0 | J116: =IFERROR(SMALL(tbl_Emp[Helper 2],tbl_Emp[[#This Row],[Helper 1]]),"") -> 0 | K116: =IF(OR(tbl_Emp[[#This Row],[Helper 2]]<>"",tbl_Emp[[#This Row],[Helper 3]]<>""),1,0) -> 1 | L116: =IF(rng_Emp_Filter="",0,IF(tbl_Emp[[#This Row],[Helper 2]]<>"",1,0)) -> 0 | M116: =IF(rng_Emp_Filter="",tbl_Emp[[#This Row],[Helper 1]],INDEX(tbl_Emp[Helper 3],tbl_Emp[[#This Row],[Helper 1]])) -> 115 | N116: =IFERROR(INDEX(tbl_Emp[Turn OFF Controls],tbl_Emp[[#This Row],[Link]]),"") -> VOLUSIAN Caesar (Treb. Gallus)
A117: VOLUSIAN | B117: 251-253 | C117: 251 | D117: 253 | E117: 12 | F117: 11600 | G117: =tbl_Emp[[#This Row],[Turn OFF Controls]] -> VOLUSIAN | H117: =IF(ISTEXT(OFFSET(tbl_Emp[[#This Row],[Helper 1]],-1,0)),1,OFFSET(tbl_Emp[[#This Row],[Helper 1]],-1,0)+1) -> 116 | I117: =IF(rng_Emp_Filter="",0,IF(ISNUMBER(SEARCH(rng_Emp_Filter,tbl_Emp[[#This Row],[Helper Key]])),tbl_Emp[[#This Row],[Helper 1]],"")) -> 0 | J117: =IFERROR(SMALL(tbl_Emp[Helper 2],tbl_Emp[[#This Row],[Helper 1]]),"") -> 0 | K117: =IF(OR(tbl_Emp[[#This Row],[Helper 2]]<>"",tbl_Emp[[#This Row],[Helper 3]]<>""),1,0) -> 1 | L117: =IF(rng_Emp_Filter="",0,IF(tbl_Emp[[#This Row],[Helper 2]]<>"",1,0)) -> 0 | M117: =IF(rng_Emp_Filter="",tbl_Emp[[#This Row],[Helper 1]],INDEX(tbl_Emp[Helper 3],tbl_Emp[[#This Row],[Helper 1]])) -> 116 | N117: =IFERROR(INDEX(tbl_Emp[Turn OFF Controls],tbl_Emp[[#This Row],[Link]]),"") -> VOLUSIAN
A118: AEMILIAN | B118: 253 | C118: 253 | D118: 253 | E118: 12 | F118: 11700 | G118: =tbl_Emp[[#This Row],[Turn OFF Controls]] -> AEMILIAN | H118: =IF(ISTEXT(OFFSET(tbl_Emp[[#This Row],[Helper 1]],-1,0)),1,OFFSET(tbl_Emp[[#This Row],[Helper 1]],-1,0)+1) -> 117 | I118: =IF(rng_Emp_Filter="",0,IF(ISNUMBER(SEARCH(rng_Emp_Filter,tbl_Emp[[#This Row],[Helper Key]])),tbl_Emp[[#This Row],[Helper 1]],"")) -> 0 | J118: =IFERROR(SMALL(tbl_Emp[Helper 2],tbl_Emp[[#This Row],[Helper 1]]),"") -> 0 | K118: =IF(OR(tbl_Emp[[#This Row],[Helper 2]]<>"",tbl_Emp[[#This Row],[Helper 3]]<>""),1,0) -> 1 | L118: =IF(rng_Emp_Filter="",0,IF(tbl_Emp[[#This Row],[Helper 2]]<>"",1,0)) -> 0 | M118: =IF(rng_Emp_Filter="",tbl_Emp[[#This Row],[Helper 1]],INDEX(tbl_Emp[Helper 3],tbl_Emp[[#This Row],[Helper 1]])) -> 117 | N118: =IFERROR(INDEX(tbl_Emp[Turn OFF Controls],tbl_Emp[[#This Row],[Link]]),"") -> AEMILIAN
A119: CORNELIA SUPERA (Aemilian) | B119: 253 | C119: 253 | D119: 253 | E119: 12 | F119: 11800 | G119: =tbl_Emp[[#This Row],[Turn OFF Controls]] -> CORNELIA SUPERA (Aemilian) | H119: =IF(ISTEXT(OFFSET(tbl_Emp[[#This Row],[Helper 1]],-1,0)),1,OFFSET(tbl_Emp[[#This Row],[Helper 1]],-1,0)+1) -> 118 | I119: =IF(rng_Emp_Filter="",0,IF(ISNUMBER(SEARCH(rng_Emp_Filter,tbl_Emp[[#This Row],[Helper Key]])),tbl_Emp[[#This Row],[Helper 1]],"")) -> 0 | J119: =IFERROR(SMALL(tbl_Emp[Helper 2],tbl_Emp[[#This Row],[Helper 1]]),"") -> 0 | K119: =IF(OR(tbl_Emp[[#This Row],[Helper 2]]<>"",tbl_Emp[[#This Row],[Helper 3]]<>""),1,0) -> 1 | L119: =IF(rng_Emp_Filter="",0,IF(tbl_Emp[[#This Row],[Helper 2]]<>"",1,0)) -> 0 | M119: =IF(rng_Emp_Filter="",tbl_Emp[[#This Row],[Helper 1]],INDEX(tbl_Emp[Helper 3],tbl_Emp[[#This Row],[Helper 1]])) -> 118 | N119: =IFERROR(INDEX(tbl_Emp[Turn OFF Controls],tbl_Emp[[#This Row],[Link]]),"") -> CORNELIA SUPERA (Aemilian)
A120: VALERIAN I | B120: 253-260 | C120: 253 | D120: 260 | E120: 12 | F120: 11900 | G120: =tbl_Emp[[#This Row],[Turn OFF Controls]] -> VALERIAN I | H120: =IF(ISTEXT(OFFSET(tbl_Emp[[#This Row],[Helper 1]],-1,0)),1,OFFSET(tbl_Emp[[#This Row],[Helper 1]],-1,0)+1) -> 119 | I120: =IF(rng_Emp_Filter="",0,IF(ISNUMBER(SEARCH(rng_Emp_Filter,tbl_Emp[[#This Row],[Helper Key]])),tbl_Emp[[#This Row],[Helper 1]],"")) -> 0 | J120: =IFERROR(SMALL(tbl_Emp[Helper 2],tbl_Emp[[#This Row],[Helper 1]]),"") -> 0 | K120: =IF(OR(tbl_Emp[[#This Row],[Helper 2]]<>"",tbl_Emp[[#This Row],[Helper 3]]<>""),1,0) -> 1 | L120: =IF(rng_Emp_Filter="",0,IF(tbl_Emp[[#This Row],[Helper 2]]<>"",1,0)) -> 0 | M120: =IF(rng_Emp_Filter="",tbl_Emp[[#This Row],[Helper 1]],INDEX(tbl_Emp[Helper 3],tbl_Emp[[#This Row],[Helper 1]])) -> 119 | N120: =IFERROR(INDEX(tbl_Emp[Turn OFF Controls],tbl_Emp[[#This Row],[Link]]),"") -> VALERIAN I
A121: MARINIANA (Valerian) | B121: 253-260 | C121: 253 | D121: 260 | E121: 12 | F121: 12000 | G121: =tbl_Emp[[#This Row],[Turn OFF Controls]] -> MARINIANA (Valerian) | H121: =IF(ISTEXT(OFFSET(tbl_Emp[[#This Row],[Helper 1]],-1,0)),1,OFFSET(tbl_Emp[[#This Row],[Helper 1]],-1,0)+1) -> 120 | I121: =IF(rng_Emp_Filter="",0,IF(ISNUMBER(SEARCH(rng_Emp_Filter,tbl_Emp[[#This Row],[Helper Key]])),tbl_Emp[[#This Row],[Helper 1]],"")) -> 0 | J121: =IFERROR(SMALL(tbl_Emp[Helper 2],tbl_Emp[[#This Row],[Helper 1]]),"") -> 0 | K121: =IF(OR(tbl_Emp[[#This Row],[Helper 2]]<>"",tbl_Emp[[#This Row],[Helper 3]]<>""),1,0) -> 1 | L121: =IF(rng_Emp_Filter="",0,IF(tbl_Emp[[#This Row],[Helper 2]]<>"",1,0)) -> 0 | M121: =IF(rng_Emp_Filter="",tbl_Emp[[#This Row],[Helper 1]],INDEX(tbl_Emp[Helper 3],tbl_Emp[[#This Row],[Helper 1]])) -> 120 | N121: =IFERROR(INDEX(tbl_Emp[Turn OFF Controls],tbl_Emp[[#This Row],[Link]]),"") -> MARINIANA (Valerian)
A122: GALLIENUS (joint reign with Valerian) | B122: 253-260 | C122: 253 | D122: 260 | E122: 12 | F122: 12100 | G122: =tbl_Emp[[#This Row],[Turn OFF Controls]] -> GALLIENUS (joint reign with Valerian) | H122: =IF(ISTEXT(OFFSET(tbl_Emp[[#This Row],[Helper 1]],-1,0)),1,OFFSET(tbl_Emp[[#This Row],[Helper 1]],-1,0)+1) -> 121 | I122: =IF(rng_Emp_Filter="",0,IF(ISNUMBER(SEARCH(rng_Emp_Filter,tbl_Emp[[#This Row],[Helper Key]])),tbl_Emp[[#This Row],[Helper 1]],"")) -> 0 | J122: =IFERROR(SMALL(tbl_Emp[Helper 2],tbl_Emp[[#This Row],[Helper 1]]),"") -> 0 | K122: =IF(OR(tbl_Emp[[#This Row],[Helper 2]]<>"",tbl_Emp[[#This Row],[Helper 3]]<>""),1,0) -> 1 | L122: =IF(rng_Emp_Filter="",0,IF(tbl_Emp[[#This Row],[Helper 2]]<>"",1,0)) -> 0 | M122: =IF(rng_Emp_Filter="",tbl_Emp[[#This Row],[Helper 1]],INDEX(tbl_Emp[Helper 3],tbl_Emp[[#This Row],[Helper 1]])) -> 121 | N122: =IFERROR(INDEX(tbl_Emp[Turn OFF Controls],tbl_Emp[[#This Row],[Link]]),"") -> GALLIENUS (joint reign with Valerian)
A123: SALONINA (joint reign with Valerian) | B123: 253-260 | C123: 253 | D123: 260 | E123: 12 | F123: 12200 | G123: =tbl_Emp[[#This Row],[Turn OFF Controls]] -> SALONINA (joint reign with Valerian) | H123: =IF(ISTEXT(OFFSET(tbl_Emp[[#This Row],[Helper 1]],-1,0)),1,OFFSET(tbl_Emp[[#This Row],[Helper 1]],-1,0)+1) -> 122 | I123: =IF(rng_Emp_Filter="",0,IF(ISNUMBER(SEARCH(rng_Emp_Filter,tbl_Emp[[#This Row],[Helper Key]])),tbl_Emp[[#This Row],[Helper 1]],"")) -> 0 | J123: =IFERROR(SMALL(tbl_Emp[Helper 2],tbl_Emp[[#This Row],[Helper 1]]),"") -> 0 | K123: =IF(OR(tbl_Emp[[#This Row],[Helper 2]]<>"",tbl_Emp[[#This Row],[Helper 3]]<>""),1,0) -> 1 | L123: =IF(rng_Emp_Filter="",0,IF(tbl_Emp[[#This Row],[Helper 2]]<>"",1,0)) -> 0 | M123: =IF(rng_Emp_Filter="",tbl_Emp[[#This Row],[Helper 1]],INDEX(tbl_Emp[Helper 3],tbl_Emp[[#This Row],[Helper 1]])) -> 122 | N123: =IFERROR(INDEX(tbl_Emp[Turn OFF Controls],tbl_Emp[[#This Row],[Link]]),"") -> SALONINA (joint reign with Valerian)
A124: VALERIAN II (Valerian) | B124: 253-255 | C124: 253 | D124: 255 | E124: 12 | F124: 12300 | G124: =tbl_Emp[[#This Row],[Turn OFF Controls]] -> VALERIAN II (Valerian) | H124: =IF(ISTEXT(OFFSET(tbl_Emp[[#This Row],[Helper 1]],-1,0)),1,OFFSET(tbl_Emp[[#This Row],[Helper 1]],-1,0)+1) -> 123 | I124: =IF(rng_Emp_Filter="",0,IF(ISNUMBER(SEARCH(rng_Emp_Filter,tbl_Emp[[#This Row],[Helper Key]])),tbl_Emp[[#This Row],[Helper 1]],"")) -> 0 | J124: =IFERROR(SMALL(tbl_Emp[Helper 2],tbl_Emp[[#This Row],[Helper 1]]),"") -> 0 | K124: =IF(OR(tbl_Emp[[#This Row],[Helper 2]]<>"",tbl_Emp[[#This Row],[Helper 3]]<>""),1,0) -> 1 | L124: =IF(rng_Emp_Filter="",0,IF(tbl_Emp[[#This Row],[Helper 2]]<>"",1,0)) -> 0 | M124: =IF(rng_Emp_Filter="",tbl_Emp[[#This Row],[Helper 1]],INDEX(tbl_Emp[Helper 3],tbl_Emp[[#This Row],[Helper 1]])) -> 123 | N124: =IFERROR(INDEX(tbl_Emp[Turn OFF Controls],tbl_Emp[[#This Row],[Link]]),"") -> VALERIAN II (Valerian)
A125: DIVUS VALERIAN II (Valerian) | B125: 255 | C125: 255 | D125: 255 | E125: 12 | F125: 12400 | G125: =tbl_Emp[[#This Row],[Turn OFF Controls]] -> DIVUS VALERIAN II (Valerian) | H125: =IF(ISTEXT(OFFSET(tbl_Emp[[#This Row],[Helper 1]],-1,0)),1,OFFSET(tbl_Emp[[#This Row],[Helper 1]],-1,0)+1) -> 124 | I125: =IF(rng_Emp_Filter="",0,IF(ISNUMBER(SEARCH(rng_Emp_Filter,tbl_Emp[[#This Row],[Helper Key]])),tbl_Emp[[#This Row],[Helper 1]],"")) -> 0 | J125: =IFERROR(SMALL(tbl_Emp[Helper 2],tbl_Emp[[#This Row],[Helper 1]]),"") -> 0 | K125: =IF(OR(tbl_Emp[[#This Row],[Helper 2]]<>"",tbl_Emp[[#This Row],[Helper 3]]<>""),1,0) -> 1 | L125: =IF(rng_Emp_Filter="",0,IF(tbl_Emp[[#This Row],[Helper 2]]<>"",1,0)) -> 0 | M125: =IF(rng_Emp_Filter="",tbl_Emp[[#This Row],[Helper 1]],INDEX(tbl_Emp[Helper 3],tbl_Emp[[#This Row],[Helper 1]])) -> 124 | N125: =IFERROR(INDEX(tbl_Emp[Turn OFF Controls],tbl_Emp[[#This Row],[Link]]),"") -> DIVUS VALERIAN II (Valerian)
A126: SALONINUS Caesar (Valerian) | B126: 255-259 | C126: 255 | D126: 259 | E126: 12 | F126: 12500 | G126: =tbl_Emp[[#This Row],[Turn OFF Controls]] -> SALONINUS Caesar (Valerian) | H126: =IF(ISTEXT(OFFSET(tbl_Emp[[#This Row],[Helper 1]],-1,0)),1,OFFSET(tbl_Emp[[#This Row],[Helper 1]],-1,0)+1) -> 125 | I126: =IF(rng_Emp_Filter="",0,IF(ISNUMBER(SEARCH(rng_Emp_Filter,tbl_Emp[[#This Row],[Helper Key]])),tbl_Emp[[#This Row],[Helper 1]],"")) -> 0 | J126: =IFERROR(SMALL(tbl_Emp[Helper 2],tbl_Emp[[#This Row],[Helper 1]]),"") -> 0 | K126: =IF(OR(tbl_Emp[[#This Row],[Helper 2]]<>"",tbl_Emp[[#This Row],[Helper 3]]<>""),1,0) -> 1 | L126: =IF(rng_Emp_Filter="",0,IF(tbl_Emp[[#This Row],[Helper 2]]<>"",1,0)) -> 0 | M126: =IF(rng_Emp_Filter="",tbl_Emp[[#This Row],[Helper 1]],INDEX(tbl_Emp[Helper 3],tbl_Emp[[#This Row],[Helper 1]])) -> 125 | N126: =IFERROR(INDEX(tbl_Emp[Turn OFF Controls],tbl_Emp[[#This Row],[Link]]),"") -> SALONINUS Caesar (Valerian)
A127: SALONINUS | B127: 259 | C127: 259 | D127: 259 | E127: 12 | F127: 12600 | G127: =tbl_Emp[[#This Row],[Turn OFF Controls]] -> SALONINUS | H127: =IF(ISTEXT(OFFSET(tbl_Emp[[#This Row],[Helper 1]],-1,0)),1,OFFSET(tbl_Emp[[#This Row],[Helper 1]],-1,0)+1) -> 126 | I127: =IF(rng_Emp_Filter="",0,IF(ISNUMBER(SEARCH(rng_Emp_Filter,tbl_Emp[[#This Row],[Helper Key]])),tbl_Emp[[#This Row],[Helper 1]],"")) -> 0 | J127: =IFERROR(SMALL(tbl_Emp[Helper 2],tbl_Emp[[#This Row],[Helper 1]]),"") -> 0 | K127: =IF(OR(tbl_Emp[[#This Row],[Helper 2]]<>"",tbl_Emp[[#This Row],[Helper 3]]<>""),1,0) -> 1 | L127: =IF(rng_Emp_Filter="",0,IF(tbl_Emp[[#This Row],[Helper 2]]<>"",1,0)) -> 0 | M127: =IF(rng_Emp_Filter="",tbl_Emp[[#This Row],[Helper 1]],INDEX(tbl_Emp[Helper 3],tbl_Emp[[#This Row],[Helper 1]])) -> 126 | N127: =IFERROR(INDEX(tbl_Emp[Turn OFF Controls],tbl_Emp[[#This Row],[Link]]),"") -> SALONINUS
A128: URANIUS ANTONINUS | B128: 253-254 | C128: 253 | D128: 254 | E128: 12 | F128: 12700 | G128: =tbl_Emp[[#This Row],[Turn OFF Controls]] -> URANIUS ANTONINUS | H128: =IF(ISTEXT(OFFSET(tbl_Emp[[#This Row],[Helper 1]],-1,0)),1,OFFSET(tbl_Emp[[#This Row],[Helper 1]],-1,0)+1) -> 127 | I128: =IF(rng_Emp_Filter="",0,IF(ISNUMBER(SEARCH(rng_Emp_Filter,tbl_Emp[[#This Row],[Helper Key]])),tbl_Emp[[#This Row],[Helper 1]],"")) -> 0 | J128: =IFERROR(SMALL(tbl_Emp[Helper 2],tbl_Emp[[#This Row],[Helper 1]]),"") -> 0 | K128: =IF(OR(tbl_Emp[[#This Row],[Helper 2]]<>"",tbl_Emp[[#This Row],[Helper 3]]<>""),1,0) -> 1 | L128: =IF(rng_Emp_Filter="",0,IF(tbl_Emp[[#This Row],[Helper 2]]<>"",1,0)) -> 0 | M128: =IF(rng_Emp_Filter="",tbl_Emp[[#This Row],[Helper 1]],INDEX(tbl_Emp[Helper 3],tbl_Emp[[#This Row],[Helper 1]])) -> 127 | N128: =IFERROR(INDEX(tbl_Emp[Turn OFF Controls],tbl_Emp[[#This Row],[Link]]),"") -> URANIUS ANTONINUS
A129: GALLIENUS (sole reign) | B129: 260-268 | C129: 260 | D129: 268 | E129: 13 | F129: 12800 | G129: =tbl_Emp[[#This Row],[Turn OFF Controls]] -> GALLIENUS (sole reign) | H129: =IF(ISTEXT(OFFSET(tbl_Emp[[#This Row],[Helper 1]],-1,0)),1,OFFSET(tbl_Emp[[#This Row],[Helper 1]],-1,0)+1) -> 128 | I129: =IF(rng_Emp_Filter="",0,IF(ISNUMBER(SEARCH(rng_Emp_Filter,tbl_Emp[[#This Row],[Helper Key]])),tbl_Emp[[#This Row],[Helper 1]],"")) -> 0 | J129: =IFERROR(SMALL(tbl_Emp[Helper 2],tbl_Emp[[#This Row],[Helper 1]]),"") -> 0 | K129: =IF(OR(tbl_Emp[[#This Row],[Helper 2]]<>"",tbl_Emp[[#This Row],[Helper 3]]<>""),1,0) -> 1 | L129: =IF(rng_Emp_Filter="",0,IF(tbl_Emp[[#This Row],[Helper 2]]<>"",1,0)) -> 0 | M129: =IF(rng_Emp_Filter="",tbl_Emp[[#This Row],[Helper 1]],INDEX(tbl_Emp[Helper 3],tbl_Emp[[#This Row],[Helper 1]])) -> 128 | N129: =IFERROR(INDEX(tbl_Emp[Turn OFF Controls],tbl_Emp[[#This Row],[Link]]),"") -> GALLIENUS (sole reign)
A130: SALONINA (sole reign) | B130: 260-268 | C130: 260 | D130: 268 | E130: 13 | F130: 12900 | G130: =tbl_Emp[[#This Row],[Turn OFF Controls]] -> SALONINA (sole reign) | H130: =IF(ISTEXT(OFFSET(tbl_Emp[[#This Row],[Helper 1]],-1,0)),1,OFFSET(tbl_Emp[[#This Row],[Helper 1]],-1,0)+1) -> 129 | I130: =IF(rng_Emp_Filter="",0,IF(ISNUMBER(SEARCH(rng_Emp_Filter,tbl_Emp[[#This Row],[Helper Key]])),tbl_Emp[[#This Row],[Helper 1]],"")) -> 0 | J130: =IFERROR(SMALL(tbl_Emp[Helper 2],tbl_Emp[[#This Row],[Helper 1]]),"") -> 0 | K130: =IF(OR(tbl_Emp[[#This Row],[Helper 2]]<>"",tbl_Emp[[#This Row],[Helper 3]]<>""),1,0) -> 1 | L130: =IF(rng_Emp_Filter="",0,IF(tbl_Emp[[#This Row],[Helper 2]]<>"",1,0)) -> 0 | M130: =IF(rng_Emp_Filter="",tbl_Emp[[#This Row],[Helper 1]],INDEX(tbl_Emp[Helper 3],tbl_Emp[[#This Row],[Helper 1]])) -> 129 | N130: =IFERROR(INDEX(tbl_Emp[Turn OFF Controls],tbl_Emp[[#This Row],[Link]]),"") -> SALONINA (sole reign)
A131: REGALIANUS | B131: 260 | C131: 260 | D131: 260 | E131: 13 | F131: =F130+100 -> 13000 | G131: =tbl_Emp[[#This Row],[Turn OFF Controls]] -> REGALIANUS | H131: =IF(ISTEXT(OFFSET(tbl_Emp[[#This Row],[Helper 1]],-1,0)),1,OFFSET(tbl_Emp[[#This Row],[Helper 1]],-1,0)+1) -> 130 | I131: =IF(rng_Emp_Filter="",0,IF(ISNUMBER(SEARCH(rng_Emp_Filter,tbl_Emp[[#This Row],[Helper Key]])),tbl_Emp[[#This Row],[Helper 1]],"")) -> 0 | J131: =IFERROR(SMALL(tbl_Emp[Helper 2],tbl_Emp[[#This Row],[Helper 1]]),"") -> 0 | K131: =IF(OR(tbl_Emp[[#This Row],[Helper 2]]<>"",tbl_Emp[[#This Row],[Helper 3]]<>""),1,0) -> 1 | L131: =IF(rng_Emp_Filter="",0,IF(tbl_Emp[[#This Row],[Helper 2]]<>"",1,0)) -> 0 | M131: =IF(rng_Emp_Filter="",tbl_Emp[[#This Row],[Helper 1]],INDEX(tbl_Emp[Helper 3],tbl_Emp[[#This Row],[Helper 1]])) -> 130 | N131: =IFERROR(INDEX(tbl_Emp[Turn OFF Controls],tbl_Emp[[#This Row],[Link]]),"") -> REGALIANUS
A132: DRYANTILLA (Regalianus) | B132: 260 | C132: 260 | D132: 260 | E132: 13 | F132: 13100 | G132: =tbl_Emp[[#This Row],[Turn OFF Controls]] -> DRYANTILLA (Regalianus) | H132: =IF(ISTEXT(OFFSET(tbl_Emp[[#This Row],[Helper 1]],-1,0)),1,OFFSET(tbl_Emp[[#This Row],[Helper 1]],-1,0)+1) -> 131 | I132: =IF(rng_Emp_Filter="",0,IF(ISNUMBER(SEARCH(rng_Emp_Filter,tbl_Emp[[#This Row],[Helper Key]])),tbl_Emp[[#This Row],[Helper 1]],"")) -> 0 | J132: =IFERROR(SMALL(tbl_Emp[Helper 2],tbl_Emp[[#This Row],[Helper 1]]),"") -> 0 | K132: =IF(OR(tbl_Emp[[#This Row],[Helper 2]]<>"",tbl_Emp[[#This Row],[Helper 3]]<>""),1,0) -> 1 | L132: =IF(rng_Emp_Filter="",0,IF(tbl_Emp[[#This Row],[Helper 2]]<>"",1,0)) -> 0 | M132: =IF(rng_Emp_Filter="",tbl_Emp[[#This Row],[Helper 1]],INDEX(tbl_Emp[Helper 3],tbl_Emp[[#This Row],[Helper 1]])) -> 131 | N132: =IFERROR(INDEX(tbl_Emp[Turn OFF Controls],tbl_Emp[[#This Row],[Link]]),"") -> DRYANTILLA (Regalianus)
A133: MACRIANUS | B133: 260-261 | C133: 260 | D133: 261 | E133: 13 | F133: 13200 | G133: =tbl_Emp[[#This Row],[Turn OFF Controls]] -> MACRIANUS | H133: =IF(ISTEXT(OFFSET(tbl_Emp[[#This Row],[Helper 1]],-1,0)),1,OFFSET(tbl_Emp[[#This Row],[Helper 1]],-1,0)+1) -> 132 | I133: =IF(rng_Emp_Filter="",0,IF(ISNUMBER(SEARCH(rng_Emp_Filter,tbl_Emp[[#This Row],[Helper Key]])),tbl_Emp[[#This Row],[Helper 1]],"")) -> 0 | J133: =IFERROR(SMALL(tbl_Emp[Helper 2],tbl_Emp[[#This Row],[Helper 1]]),"") -> 0 | K133: =IF(OR(tbl_Emp[[#This Row],[Helper 2]]<>"",tbl_Emp[[#This Row],[Helper 3]]<>""),1,0) -> 1 | L133: =IF(rng_Emp_Filter="",0,IF(tbl_Emp[[#This Row],[Helper 2]]<>"",1,0)) -> 0 | M133: =IF(rng_Emp_Filter="",tbl_Emp[[#This Row],[Helper 1]],INDEX(tbl_Emp[Helper 3],tbl_Emp[[#This Row],[Helper 1]])) -> 132 | N133: =IFERROR(INDEX(tbl_Emp[Turn OFF Controls],tbl_Emp[[#This Row],[Link]]),"") -> MACRIANUS
A134: QUIETUS (Macrianus) | B134: 260-261 | C134: 260 | D134: 261 | E134: 13 | F134: 13300 | G134: =tbl_Emp[[#This Row],[Turn OFF Controls]] -> QUIETUS (Macrianus) | H134: =IF(ISTEXT(OFFSET(tbl_Emp[[#This Row],[Helper 1]],-1,0)),1,OFFSET(tbl_Emp[[#This Row],[Helper 1]],-1,0)+1) -> 133 | I134: =IF(rng_Emp_Filter="",0,IF(ISNUMBER(SEARCH(rng_Emp_Filter,tbl_Emp[[#This Row],[Helper Key]])),tbl_Emp[[#This Row],[Helper 1]],"")) -> 0 | J134: =IFERROR(SMALL(tbl_Emp[Helper 2],tbl_Emp[[#This Row],[Helper 1]]),"") -> 0 | K134: =IF(OR(tbl_Emp[[#This Row],[Helper 2]]<>"",tbl_Emp[[#This Row],[Helper 3]]<>""),1,0) -> 1 | L134: =IF(rng_Emp_Filter="",0,IF(tbl_Emp[[#This Row],[Helper 2]]<>"",1,0)) -> 0 | M134: =IF(rng_Emp_Filter="",tbl_Emp[[#This Row],[Helper 1]],INDEX(tbl_Emp[Helper 3],tbl_Emp[[#This Row],[Helper 1]])) -> 133 | N134: =IFERROR(INDEX(tbl_Emp[Turn OFF Controls],tbl_Emp[[#This Row],[Link]]),"") -> QUIETUS (Macrianus)
A135: CLAUDIUS II | B135: 268-270 | C135: 268 | D135: 270 | E135: 13 | F135: 13400 | G135: =tbl_Emp[[#This Row],[Turn OFF Controls]] -> CLAUDIUS II | H135: =IF(ISTEXT(OFFSET(tbl_Emp[[#This Row],[Helper 1]],-1,0)),1,OFFSET(tbl_Emp[[#This Row],[Helper 1]],-1,0)+1) -> 134 | I135: =IF(rng_Emp_Filter="",0,IF(ISNUMBER(SEARCH(rng_Emp_Filter,tbl_Emp[[#This Row],[Helper Key]])),tbl_Emp[[#This Row],[Helper 1]],"")) -> 0 | J135: =IFERROR(SMALL(tbl_Emp[Helper 2],tbl_Emp[[#This Row],[Helper 1]]),"") -> 0 | K135: =IF(OR(tbl_Emp[[#This Row],[Helper 2]]<>"",tbl_Emp[[#This Row],[Helper 3]]<>""),1,0) -> 1 | L135: =IF(rng_Emp_Filter="",0,IF(tbl_Emp[[#This Row],[Helper 2]]<>"",1,0)) -> 0 | M135: =IF(rng_Emp_Filter="",tbl_Emp[[#This Row],[Helper 1]],INDEX(tbl_Emp[Helper 3],tbl_Emp[[#This Row],[Helper 1]])) -> 134 | N135: =IFERROR(INDEX(tbl_Emp[Turn OFF Controls],tbl_Emp[[#This Row],[Link]]),"") -> CLAUDIUS II
A136: DIVUS CLAUDIUS II | B136: 270 | C136: 270 | D136: 270 | E136: 13 | F136: 13500 | G136: =tbl_Emp[[#This Row],[Turn OFF Controls]] -> DIVUS CLAUDIUS II | H136: =IF(ISTEXT(OFFSET(tbl_Emp[[#This Row],[Helper 1]],-1,0)),1,OFFSET(tbl_Emp[[#This Row],[Helper 1]],-1,0)+1) -> 135 | I136: =IF(rng_Emp_Filter="",0,IF(ISNUMBER(SEARCH(rng_Emp_Filter,tbl_Emp[[#This Row],[Helper Key]])),tbl_Emp[[#This Row],[Helper 1]],"")) -> 0 | J136: =IFERROR(SMALL(tbl_Emp[Helper 2],tbl_Emp[[#This Row],[Helper 1]]),"") -> 0 | K136: =IF(OR(tbl_Emp[[#This Row],[Helper 2]]<>"",tbl_Emp[[#This Row],[Helper 3]]<>""),1,0) -> 1 | L136: =IF(rng_Emp_Filter="",0,IF(tbl_Emp[[#This Row],[Helper 2]]<>"",1,0)) -> 0 | M136: =IF(rng_Emp_Filter="",tbl_Emp[[#This Row],[Helper 1]],INDEX(tbl_Emp[Helper 3],tbl_Emp[[#This Row],[Helper 1]])) -> 135 | N136: =IFERROR(INDEX(tbl_Emp[Turn OFF Controls],tbl_Emp[[#This Row],[Link]]),"") -> DIVUS CLAUDIUS II
A137: QUINTILLUS | B137: 270 | C137: 270 | D137: 270 | E137: 13 | F137: 13600 | G137: =tbl_Emp[[#This Row],[Turn OFF Controls]] -> QUINTILLUS | H137: =IF(ISTEXT(OFFSET(tbl_Emp[[#This Row],[Helper 1]],-1,0)),1,OFFSET(tbl_Emp[[#This Row],[Helper 1]],-1,0)+1) -> 136 | I137: =IF(rng_Emp_Filter="",0,IF(ISNUMBER(SEARCH(rng_Emp_Filter,tbl_Emp[[#This Row],[Helper Key]])),tbl_Emp[[#This Row],[Helper 1]],"")) -> 0 | J137: =IFERROR(SMALL(tbl_Emp[Helper 2],tbl_Emp[[#This Row],[Helper 1]]),"") -> 0 | K137: =IF(OR(tbl_Emp[[#This Row],[Helper 2]]<>"",tbl_Emp[[#This Row],[Helper 3]]<>""),1,0) -> 1 | L137: =IF(rng_Emp_Filter="",0,IF(tbl_Emp[[#This Row],[Helper 2]]<>"",1,0)) -> 0 | M137: =IF(rng_Emp_Filter="",tbl_Emp[[#This Row],[Helper 1]],INDEX(tbl_Emp[Helper 3],tbl_Emp[[#This Row],[Helper 1]])) -> 136 | N137: =IFERROR(INDEX(tbl_Emp[Turn OFF Controls],tbl_Emp[[#This Row],[Link]]),"") -> QUINTILLUS
A138: AURELIAN | B138: 270-275 | C138: 270 | D138: 275 | E138: 13 | F138: 13700 | G138: =tbl_Emp[[#This Row],[Turn OFF Controls]] -> AURELIAN | H138: =IF(ISTEXT(OFFSET(tbl_Emp[[#This Row],[Helper 1]],-1,0)),1,OFFSET(tbl_Emp[[#This Row],[Helper 1]],-1,0)+1) -> 137 | I138: =IF(rng_Emp_Filter="",0,IF(ISNUMBER(SEARCH(rng_Emp_Filter,tbl_Emp[[#This Row],[Helper Key]])),tbl_Emp[[#This Row],[Helper 1]],"")) -> 0 | J138: =IFERROR(SMALL(tbl_Emp[Helper 2],tbl_Emp[[#This Row],[Helper 1]]),"") -> 0 | K138: =IF(OR(tbl_Emp[[#This Row],[Helper 2]]<>"",tbl_Emp[[#This Row],[Helper 3]]<>""),1,0) -> 1 | L138: =IF(rng_Emp_Filter="",0,IF(tbl_Emp[[#This Row],[Helper 2]]<>"",1,0)) -> 0 | M138: =IF(rng_Emp_Filter="",tbl_Emp[[#This Row],[Helper 1]],INDEX(tbl_Emp[Helper 3],tbl_Emp[[#This Row],[Helper 1]])) -> 137 | N138: =IFERROR(INDEX(tbl_Emp[Turn OFF Controls],tbl_Emp[[#This Row],[Link]]),"") -> AURELIAN
A139: SEVERINA | B139: 270-275 | C139: 270 | D139: 275 | E139: 13 | F139: 13800 | G139: =tbl_Emp[[#This Row],[Turn OFF Controls]] -> SEVERINA | H139: =IF(ISTEXT(OFFSET(tbl_Emp[[#This Row],[Helper 1]],-1,0)),1,OFFSET(tbl_Emp[[#This Row],[Helper 1]],-1,0)+1) -> 138 | I139: =IF(rng_Emp_Filter="",0,IF(ISNUMBER(SEARCH(rng_Emp_Filter,tbl_Emp[[#This Row],[Helper Key]])),tbl_Emp[[#This Row],[Helper 1]],"")) -> 0 | J139: =IFERROR(SMALL(tbl_Emp[Helper 2],tbl_Emp[[#This Row],[Helper 1]]),"") -> 0 | K139: =IF(OR(tbl_Emp[[#This Row],[Helper 2]]<>"",tbl_Emp[[#This Row],[Helper 3]]<>""),1,0) -> 1 | L139: =IF(rng_Emp_Filter="",0,IF(tbl_Emp[[#This Row],[Helper 2]]<>"",1,0)) -> 0 | M139: =IF(rng_Emp_Filter="",tbl_Emp[[#This Row],[Helper 1]],INDEX(tbl_Emp[Helper 3],tbl_Emp[[#This Row],[Helper 1]])) -> 138 | N139: =IFERROR(INDEX(tbl_Emp[Turn OFF Controls],tbl_Emp[[#This Row],[Link]]),"") -> SEVERINA
A140: VABALATHUS | B140: 270-271 | C140: 270 | D140: 271 | E140: 13 | F140: 13900 | G140: =tbl_Emp[[#This Row],[Turn OFF Controls]] -> VABALATHUS | H140: =IF(ISTEXT(OFFSET(tbl_Emp[[#This Row],[Helper 1]],-1,0)),1,OFFSET(tbl_Emp[[#This Row],[Helper 1]],-1,0)+1) -> 139 | I140: =IF(rng_Emp_Filter="",0,IF(ISNUMBER(SEARCH(rng_Emp_Filter,tbl_Emp[[#This Row],[Helper Key]])),tbl_Emp[[#This Row],[Helper 1]],"")) -> 0 | J140: =IFERROR(SMALL(tbl_Emp[Helper 2],tbl_Emp[[#This Row],[Helper 1]]),"") -> 0 | K140: =IF(OR(tbl_Emp[[#This Row],[Helper 2]]<>"",tbl_Emp[[#This Row],[Helper 3]]<>""),1,0) -> 1 | L140: =IF(rng_Emp_Filter="",0,IF(tbl_Emp[[#This Row],[Helper 2]]<>"",1,0)) -> 0 | M140: =IF(rng_Emp_Filter="",tbl_Emp[[#This Row],[Helper 1]],INDEX(tbl_Emp[Helper 3],tbl_Emp[[#This Row],[Helper 1]])) -> 139 | N140: =IFERROR(INDEX(tbl_Emp[Turn OFF Controls],tbl_Emp[[#This Row],[Link]]),"") -> VABALATHUS
A141: ZENOBIA | B141: 270-271 | C141: 270 | D141: 271 | E141: 13 | F141: 14000 | G141: =tbl_Emp[[#This Row],[Turn OFF Controls]] -> ZENOBIA | H141: =IF(ISTEXT(OFFSET(tbl_Emp[[#This Row],[Helper 1]],-1,0)),1,OFFSET(tbl_Emp[[#This Row],[Helper 1]],-1,0)+1) -> 140 | I141: =IF(rng_Emp_Filter="",0,IF(ISNUMBER(SEARCH(rng_Emp_Filter,tbl_Emp[[#This Row],[Helper Key]])),tbl_Emp[[#This Row],[Helper 1]],"")) -> 0 | J141: =IFERROR(SMALL(tbl_Emp[Helper 2],tbl_Emp[[#This Row],[Helper 1]]),"") -> 0 | K141: =IF(OR(tbl_Emp[[#This Row],[Helper 2]]<>"",tbl_Emp[[#This Row],[Helper 3]]<>""),1,0) -> 1 | L141: =IF(rng_Emp_Filter="",0,IF(tbl_Emp[[#This Row],[Helper 2]]<>"",1,0)) -> 0 | M141: =IF(rng_Emp_Filter="",tbl_Emp[[#This Row],[Helper 1]],INDEX(tbl_Emp[Helper 3],tbl_Emp[[#This Row],[Helper 1]])) -> 140 | N141: =IFERROR(INDEX(tbl_Emp[Turn OFF Controls],tbl_Emp[[#This Row],[Link]]),"") -> ZENOBIA
A142: POSTUMUS | B142: 260-269 | C142: 260 | D142: 269 | E142: 13 | F142: 14100 | G142: =tbl_Emp[[#This Row],[Turn OFF Controls]] -> POSTUMUS | H142: =IF(ISTEXT(OFFSET(tbl_Emp[[#This Row],[Helper 1]],-1,0)),1,OFFSET(tbl_Emp[[#This Row],[Helper 1]],-1,0)+1) -> 141 | I142: =IF(rng_Emp_Filter="",0,IF(ISNUMBER(SEARCH(rng_Emp_Filter,tbl_Emp[[#This Row],[Helper Key]])),tbl_Emp[[#This Row],[Helper 1]],"")) -> 0 | J142: =IFERROR(SMALL(tbl_Emp[Helper 2],tbl_Emp[[#This Row],[Helper 1]]),"") -> 0 | K142: =IF(OR(tbl_Emp[[#This Row],[Helper 2]]<>"",tbl_Emp[[#This Row],[Helper 3]]<>""),1,0) -> 1 | L142: =IF(rng_Emp_Filter="",0,IF(tbl_Emp[[#This Row],[Helper 2]]<>"",1,0)) -> 0 | M142: =IF(rng_Emp_Filter="",tbl_Emp[[#This Row],[Helper 1]],INDEX(tbl_Emp[Helper 3],tbl_Emp[[#This Row],[Helper 1]])) -> 141 | N142: =IFERROR(INDEX(tbl_Emp[Turn OFF Controls],tbl_Emp[[#This Row],[Link]]),"") -> POSTUMUS
A143: LAELIANUS | B143: 269 | C143: 269 | D143: 269 | E143: 13 | F143: 14200 | G143: =tbl_Emp[[#This Row],[Turn OFF Controls]] -> LAELIANUS | H143: =IF(ISTEXT(OFFSET(tbl_Emp[[#This Row],[Helper 1]],-1,0)),1,OFFSET(tbl_Emp[[#This Row],[Helper 1]],-1,0)+1) -> 142 | I143: =IF(rng_Emp_Filter="",0,IF(ISNUMBER(SEARCH(rng_Emp_Filter,tbl_Emp[[#This Row],[Helper Key]])),tbl_Emp[[#This Row],[Helper 1]],"")) -> 0 | J143: =IFERROR(SMALL(tbl_Emp[Helper 2],tbl_Emp[[#This Row],[Helper 1]]),"") -> 0 | K143: =IF(OR(tbl_Emp[[#This Row],[Helper 2]]<>"",tbl_Emp[[#This Row],[Helper 3]]<>""),1,0) -> 1 | L143: =IF(rng_Emp_Filter="",0,IF(tbl_Emp[[#This Row],[Helper 2]]<>"",1,0)) -> 0 | M143: =IF(rng_Emp_Filter="",tbl_Emp[[#This Row],[Helper 1]],INDEX(tbl_Emp[Helper 3],tbl_Emp[[#This Row],[Helper 1]])) -> 142 | N143: =IFERROR(INDEX(tbl_Emp[Turn OFF Controls],tbl_Emp[[#This Row],[Link]]),"") -> LAELIANUS
A144: MARIUS | B144: 269 | C144: 269 | D144: 269 | E144: 13 | F144: 14300 | G144: =tbl_Emp[[#This Row],[Turn OFF Controls]] -> MARIUS | H144: =IF(ISTEXT(OFFSET(tbl_Emp[[#This Row],[Helper 1]],-1,0)),1,OFFSET(tbl_Emp[[#This Row],[Helper 1]],-1,0)+1) -> 143 | I144: =IF(rng_Emp_Filter="",0,IF(ISNUMBER(SEARCH(rng_Emp_Filter,tbl_Emp[[#This Row],[Helper Key]])),tbl_Emp[[#This Row],[Helper 1]],"")) -> 0 | J144: =IFERROR(SMALL(tbl_Emp[Helper 2],tbl_Emp[[#This Row],[Helper 1]]),"") -> 0 | K144: =IF(OR(tbl_Emp[[#This Row],[Helper 2]]<>"",tbl_Emp[[#This Row],[Helper 3]]<>""),1,0) -> 1 | L144: =IF(rng_Emp_Filter="",0,IF(tbl_Emp[[#This Row],[Helper 2]]<>"",1,0)) -> 0 | M144: =IF(rng_Emp_Filter="",tbl_Emp[[#This Row],[Helper 1]],INDEX(tbl_Emp[Helper 3],tbl_Emp[[#This Row],[Helper 1]])) -> 143 | N144: =IFERROR(INDEX(tbl_Emp[Turn OFF Controls],tbl_Emp[[#This Row],[Link]]),"") -> MARIUS
A145: VICTORINUS | B145: 269-271 | C145: 269 | D145: 271 | E145: 13 | F145: 14400 | G145: =tbl_Emp[[#This Row],[Turn OFF Controls]] -> VICTORINUS | H145: =IF(ISTEXT(OFFSET(tbl_Emp[[#This Row],[Helper 1]],-1,0)),1,OFFSET(tbl_Emp[[#This Row],[Helper 1]],-1,0)+1) -> 144 | I145: =IF(rng_Emp_Filter="",0,IF(ISNUMBER(SEARCH(rng_Emp_Filter,tbl_Emp[[#This Row],[Helper Key]])),tbl_Emp[[#This Row],[Helper 1]],"")) -> 0 | J145: =IFERROR(SMALL(tbl_Emp[Helper 2],tbl_Emp[[#This Row],[Helper 1]]),"") -> 0 | K145: =IF(OR(tbl_Emp[[#This Row],[Helper 2]]<>"",tbl_Emp[[#This Row],[Helper 3]]<>""),1,0) -> 1 | L145: =IF(rng_Emp_Filter="",0,IF(tbl_Emp[[#This Row],[Helper 2]]<>"",1,0)) -> 0 | M145: =IF(rng_Emp_Filter="",tbl_Emp[[#This Row],[Helper 1]],INDEX(tbl_Emp[Helper 3],tbl_Emp[[#This Row],[Helper 1]])) -> 144 | N145: =IFERROR(INDEX(tbl_Emp[Turn OFF Controls],tbl_Emp[[#This Row],[Link]]),"") -> VICTORINUS
A146: DIVUS VICTORINUS | B146: 271 | C146: 271 | D146: 271 | E146: 13 | F146: 14500 | G146: =tbl_Emp[[#This Row],[Turn OFF Controls]] -> DIVUS VICTORINUS | H146: =IF(ISTEXT(OFFSET(tbl_Emp[[#This Row],[Helper 1]],-1,0)),1,OFFSET(tbl_Emp[[#This Row],[Helper 1]],-1,0)+1) -> 145 | I146: =IF(rng_Emp_Filter="",0,IF(ISNUMBER(SEARCH(rng_Emp_Filter,tbl_Emp[[#This Row],[Helper Key]])),tbl_Emp[[#This Row],[Helper 1]],"")) -> 0 | J146: =IFERROR(SMALL(tbl_Emp[Helper 2],tbl_Emp[[#This Row],[Helper 1]]),"") -> 0 | K146: =IF(OR(tbl_Emp[[#This Row],[Helper 2]]<>"",tbl_Emp[[#This Row],[Helper 3]]<>""),1,0) -> 1 | L146: =IF(rng_Emp_Filter="",0,IF(tbl_Emp[[#This Row],[Helper 2]]<>"",1,0)) -> 0 | M146: =IF(rng_Emp_Filter="",tbl_Emp[[#This Row],[Helper 1]],INDEX(tbl_Emp[Helper 3],tbl_Emp[[#This Row],[Helper 1]])) -> 145 | N146: =IFERROR(INDEX(tbl_Emp[Turn OFF Controls],tbl_Emp[[#This Row],[Link]]),"") -> DIVUS VICTORINUS
A147: TETRICUS I | B147: 271-274 | C147: 271 | D147: 274 | E147: 13 | F147: 14600 | G147: =tbl_Emp[[#This Row],[Turn OFF Controls]] -> TETRICUS I | H147: =IF(ISTEXT(OFFSET(tbl_Emp[[#This Row],[Helper 1]],-1,0)),1,OFFSET(tbl_Emp[[#This Row],[Helper 1]],-1,0)+1) -> 146 | I147: =IF(rng_Emp_Filter="",0,IF(ISNUMBER(SEARCH(rng_Emp_Filter,tbl_Emp[[#This Row],[Helper Key]])),tbl_Emp[[#This Row],[Helper 1]],"")) -> 0 | J147: =IFERROR(SMALL(tbl_Emp[Helper 2],tbl_Emp[[#This Row],[Helper 1]]),"") -> 0 | K147: =IF(OR(tbl_Emp[[#This Row],[Helper 2]]<>"",tbl_Emp[[#This Row],[Helper 3]]<>""),1,0) -> 1 | L147: =IF(rng_Emp_Filter="",0,IF(tbl_Emp[[#This Row],[Helper 2]]<>"",1,0)) -> 0 | M147: =IF(rng_Emp_Filter="",tbl_Emp[[#This Row],[Helper 1]],INDEX(tbl_Emp[Helper 3],tbl_Emp[[#This Row],[Helper 1]])) -> 146 | N147: =IFERROR(INDEX(tbl_Emp[Turn OFF Controls],tbl_Emp[[#This Row],[Link]]),"") -> TETRICUS I
A148: TETRICUS II | B148: 273-274 | C148: 273 | D148: 274 | E148: 13 | F148: 14700 | G148: =tbl_Emp[[#This Row],[Turn OFF Controls]] -> TETRICUS II | H148: =IF(ISTEXT(OFFSET(tbl_Emp[[#This Row],[Helper 1]],-1,0)),1,OFFSET(tbl_Emp[[#This Row],[Helper 1]],-1,0)+1) -> 147 | I148: =IF(rng_Emp_Filter="",0,IF(ISNUMBER(SEARCH(rng_Emp_Filter,tbl_Emp[[#This Row],[Helper Key]])),tbl_Emp[[#This Row],[Helper 1]],"")) -> 0 | J148: =IFERROR(SMALL(tbl_Emp[Helper 2],tbl_Emp[[#This Row],[Helper 1]]),"") -> 0 | K148: =IF(OR(tbl_Emp[[#This Row],[Helper 2]]<>"",tbl_Emp[[#This Row],[Helper 3]]<>""),1,0) -> 1 | L148: =IF(rng_Emp_Filter="",0,IF(tbl_Emp[[#This Row],[Helper 2]]<>"",1,0)) -> 0 | M148: =IF(rng_Emp_Filter="",tbl_Emp[[#This Row],[Helper 1]],INDEX(tbl_Emp[Helper 3],tbl_Emp[[#This Row],[Helper 1]])) -> 147 | N148: =IFERROR(INDEX(tbl_Emp[Turn OFF Controls],tbl_Emp[[#This Row],[Link]]),"") -> TETRICUS II
A149: TETRICUS I/II | B149: 271-274 | C149: 271 | D149: 274 | E149: 13 | F149: 14800 | G149: =tbl_Emp[[#This Row],[Turn OFF Controls]] -> TETRICUS I/II | H149: =IF(ISTEXT(OFFSET(tbl_Emp[[#This Row],[Helper 1]],-1,0)),1,OFFSET(tbl_Emp[[#This Row],[Helper 1]],-1,0)+1) -> 148 | I149: =IF(rng_Emp_Filter="",0,IF(ISNUMBER(SEARCH(rng_Emp_Filter,tbl_Emp[[#This Row],[Helper Key]])),tbl_Emp[[#This Row],[Helper 1]],"")) -> 0 | J149: =IFERROR(SMALL(tbl_Emp[Helper 2],tbl_Emp[[#This Row],[Helper 1]]),"") -> 0 | K149: =IF(OR(tbl_Emp[[#This Row],[Helper 2]]<>"",tbl_Emp[[#This Row],[Helper 3]]<>""),1,0) -> 1 | L149: =IF(rng_Emp_Filter="",0,IF(tbl_Emp[[#This Row],[Helper 2]]<>"",1,0)) -> 0 | M149: =IF(rng_Emp_Filter="",tbl_Emp[[#This Row],[Helper 1]],INDEX(tbl_Emp[Helper 3],tbl_Emp[[#This Row],[Helper 1]])) -> 148 | N149: =IFERROR(INDEX(tbl_Emp[Turn OFF Controls],tbl_Emp[[#This Row],[Link]]),"") -> TETRICUS I/II
A150: TACITUS | B150: 275-276 | C150: 275 | D150: 276 | E150: 14 | F150: 14900 | G150: =tbl_Emp[[#This Row],[Turn OFF Controls]] -> TACITUS | H150: =IF(ISTEXT(OFFSET(tbl_Emp[[#This Row],[Helper 1]],-1,0)),1,OFFSET(tbl_Emp[[#This Row],[Helper 1]],-1,0)+1) -> 149 | I150: =IF(rng_Emp_Filter="",0,IF(ISNUMBER(SEARCH(rng_Emp_Filter,tbl_Emp[[#This Row],[Helper Key]])),tbl_Emp[[#This Row],[Helper 1]],"")) -> 0 | J150: =IFERROR(SMALL(tbl_Emp[Helper 2],tbl_Emp[[#This Row],[Helper 1]]),"") -> 0 | K150: =IF(OR(tbl_Emp[[#This Row],[Helper 2]]<>"",tbl_Emp[[#This Row],[Helper 3]]<>""),1,0) -> 1 | L150: =IF(rng_Emp_Filter="",0,IF(tbl_Emp[[#This Row],[Helper 2]]<>"",1,0)) -> 0 | M150: =IF(rng_Emp_Filter="",tbl_Emp[[#This Row],[Helper 1]],INDEX(tbl_Emp[Helper 3],tbl_Emp[[#This Row],[Helper 1]])) -> 149 | N150: =IFERROR(INDEX(tbl_Emp[Turn OFF Controls],tbl_Emp[[#This Row],[Link]]),"") -> TACITUS
A151: FLORIAN | B151: 276 | C151: 276 | D151: 276 | E151: 14 | F151: 15000 | G151: =tbl_Emp[[#This Row],[Turn OFF Controls]] -> FLORIAN | H151: =IF(ISTEXT(OFFSET(tbl_Emp[[#This Row],[Helper 1]],-1,0)),1,OFFSET(tbl_Emp[[#This Row],[Helper 1]],-1,0)+1) -> 150 | I151: =IF(rng_Emp_Filter="",0,IF(ISNUMBER(SEARCH(rng_Emp_Filter,tbl_Emp[[#This Row],[Helper Key]])),tbl_Emp[[#This Row],[Helper 1]],"")) -> 0 | J151: =IFERROR(SMALL(tbl_Emp[Helper 2],tbl_Emp[[#This Row],[Helper 1]]),"") -> 0 | K151: =IF(OR(tbl_Emp[[#This Row],[Helper 2]]<>"",tbl_Emp[[#This Row],[Helper 3]]<>""),1,0) -> 1 | L151: =IF(rng_Emp_Filter="",0,IF(tbl_Emp[[#This Row],[Helper 2]]<>"",1,0)) -> 0 | M151: =IF(rng_Emp_Filter="",tbl_Emp[[#This Row],[Helper 1]],INDEX(tbl_Emp[Helper 3],tbl_Emp[[#This Row],[Helper 1]])) -> 150 | N151: =IFERROR(INDEX(tbl_Emp[Turn OFF Controls],tbl_Emp[[#This Row],[Link]]),"") -> FLORIAN
A152: PROBUS | B152: 276-282 | C152: 276 | D152: 282 | E152: 14 | F152: 15100 | G152: =tbl_Emp[[#This Row],[Turn OFF Controls]] -> PROBUS | H152: =IF(ISTEXT(OFFSET(tbl_Emp[[#This Row],[Helper 1]],-1,0)),1,OFFSET(tbl_Emp[[#This Row],[Helper 1]],-1,0)+1) -> 151 | I152: =IF(rng_Emp_Filter="",0,IF(ISNUMBER(SEARCH(rng_Emp_Filter,tbl_Emp[[#This Row],[Helper Key]])),tbl_Emp[[#This Row],[Helper 1]],"")) -> 0 | J152: =IFERROR(SMALL(tbl_Emp[Helper 2],tbl_Emp[[#This Row],[Helper 1]]),"") -> 0 | K152: =IF(OR(tbl_Emp[[#This Row],[Helper 2]]<>"",tbl_Emp[[#This Row],[Helper 3]]<>""),1,0) -> 1 | L152: =IF(rng_Emp_Filter="",0,IF(tbl_Emp[[#This Row],[Helper 2]]<>"",1,0)) -> 0 | M152: =IF(rng_Emp_Filter="",tbl_Emp[[#This Row],[Helper 1]],INDEX(tbl_Emp[Helper 3],tbl_Emp[[#This Row],[Helper 1]])) -> 151 | N152: =IFERROR(INDEX(tbl_Emp[Turn OFF Controls],tbl_Emp[[#This Row],[Link]]),"") -> PROBUS
A153: SATURNINUS | B153: 280 | C153: 280 | D153: 280 | E153: 14 | F153: 15200 | G153: =tbl_Emp[[#This Row],[Turn OFF Controls]] -> SATURNINUS | H153: =IF(ISTEXT(OFFSET(tbl_Emp[[#This Row],[Helper 1]],-1,0)),1,OFFSET(tbl_Emp[[#This Row],[Helper 1]],-1,0)+1) -> 152 | I153: =IF(rng_Emp_Filter="",0,IF(ISNUMBER(SEARCH(rng_Emp_Filter,tbl_Emp[[#This Row],[Helper Key]])),tbl_Emp[[#This Row],[Helper 1]],"")) -> 0 | J153: =IFERROR(SMALL(tbl_Emp[Helper 2],tbl_Emp[[#This Row],[Helper 1]]),"") -> 0 | K153: =IF(OR(tbl_Emp[[#This Row],[Helper 2]]<>"",tbl_Emp[[#This Row],[Helper 3]]<>""),1,0) -> 1 | L153: =IF(rng_Emp_Filter="",0,IF(tbl_Emp[[#This Row],[Helper 2]]<>"",1,0)) -> 0 | M153: =IF(rng_Emp_Filter="",tbl_Emp[[#This Row],[Helper 1]],INDEX(tbl_Emp[Helper 3],tbl_Emp[[#This Row],[Helper 1]])) -> 152 | N153: =IFERROR(INDEX(tbl_Emp[Turn OFF Controls],tbl_Emp[[#This Row],[Link]]),"") -> SATURNINUS
A154: CARUS | B154: 282-283 | C154: 282 | D154: 283 | E154: 14 | F154: 15300 | G154: =tbl_Emp[[#This Row],[Turn OFF Controls]] -> CARUS | H154: =IF(ISTEXT(OFFSET(tbl_Emp[[#This Row],[Helper 1]],-1,0)),1,OFFSET(tbl_Emp[[#This Row],[Helper 1]],-1,0)+1) -> 153 | I154: =IF(rng_Emp_Filter="",0,IF(ISNUMBER(SEARCH(rng_Emp_Filter,tbl_Emp[[#This Row],[Helper Key]])),tbl_Emp[[#This Row],[Helper 1]],"")) -> 0 | J154: =IFERROR(SMALL(tbl_Emp[Helper 2],tbl_Emp[[#This Row],[Helper 1]]),"") -> 0 | K154: =IF(OR(tbl_Emp[[#This Row],[Helper 2]]<>"",tbl_Emp[[#This Row],[Helper 3]]<>""),1,0) -> 1 | L154: =IF(rng_Emp_Filter="",0,IF(tbl_Emp[[#This Row],[Helper 2]]<>"",1,0)) -> 0 | M154: =IF(rng_Emp_Filter="",tbl_Emp[[#This Row],[Helper 1]],INDEX(tbl_Emp[Helper 3],tbl_Emp[[#This Row],[Helper 1]])) -> 153 | N154: =IFERROR(INDEX(tbl_Emp[Turn OFF Controls],tbl_Emp[[#This Row],[Link]]),"") -> CARUS
A155: NUMERIAN Caesar (Carus) | B155: 282-283 | C155: 282 | D155: 283 | E155: 14 | F155: 15400 | G155: =tbl_Emp[[#This Row],[Turn OFF Controls]] -> NUMERIAN Caesar (Carus) | H155: =IF(ISTEXT(OFFSET(tbl_Emp[[#This Row],[Helper 1]],-1,0)),1,OFFSET(tbl_Emp[[#This Row],[Helper 1]],-1,0)+1) -> 154 | I155: =IF(rng_Emp_Filter="",0,IF(ISNUMBER(SEARCH(rng_Emp_Filter,tbl_Emp[[#This Row],[Helper Key]])),tbl_Emp[[#This Row],[Helper 1]],"")) -> 0 | J155: =IFERROR(SMALL(tbl_Emp[Helper 2],tbl_Emp[[#This Row],[Helper 1]]),"") -> 0 | K155: =IF(OR(tbl_Emp[[#This Row],[Helper 2]]<>"",tbl_Emp[[#This Row],[Helper 3]]<>""),1,0) -> 1 | L155: =IF(rng_Emp_Filter="",0,IF(tbl_Emp[[#This Row],[Helper 2]]<>"",1,0)) -> 0 | M155: =IF(rng_Emp_Filter="",tbl_Emp[[#This Row],[Helper 1]],INDEX(tbl_Emp[Helper 3],tbl_Emp[[#This Row],[Helper 1]])) -> 154 | N155: =IFERROR(INDEX(tbl_Emp[Turn OFF Controls],tbl_Emp[[#This Row],[Link]]),"") -> NUMERIAN Caesar (Carus)
A156: CARINUS Caesar (Carus) | B156: 282-283 | C156: 282 | D156: 283 | E156: 14 | F156: 15500 | G156: =tbl_Emp[[#This Row],[Turn OFF Controls]] -> CARINUS Caesar (Carus) | H156: =IF(ISTEXT(OFFSET(tbl_Emp[[#This Row],[Helper 1]],-1,0)),1,OFFSET(tbl_Emp[[#This Row],[Helper 1]],-1,0)+1) -> 155 | I156: =IF(rng_Emp_Filter="",0,IF(ISNUMBER(SEARCH(rng_Emp_Filter,tbl_Emp[[#This Row],[Helper Key]])),tbl_Emp[[#This Row],[Helper 1]],"")) -> 0 | J156: =IFERROR(SMALL(tbl_Emp[Helper 2],tbl_Emp[[#This Row],[Helper 1]]),"") -> 0 | K156: =IF(OR(tbl_Emp[[#This Row],[Helper 2]]<>"",tbl_Emp[[#This Row],[Helper 3]]<>""),1,0) -> 1 | L156: =IF(rng_Emp_Filter="",0,IF(tbl_Emp[[#This Row],[Helper 2]]<>"",1,0)) -> 0 | M156: =IF(rng_Emp_Filter="",tbl_Emp[[#This Row],[Helper 1]],INDEX(tbl_Emp[Helper 3],tbl_Emp[[#This Row],[Helper 1]])) -> 155 | N156: =IFERROR(INDEX(tbl_Emp[Turn OFF Controls],tbl_Emp[[#This Row],[Link]]),"") -> CARINUS Caesar (Carus)
A157: NUMERIAN | B157: 283-284 | C157: 283 | D157: 284 | E157: 14 | F157: 15600 | G157: =tbl_Emp[[#This Row],[Turn OFF Controls]] -> NUMERIAN | H157: =IF(ISTEXT(OFFSET(tbl_Emp[[#This Row],[Helper 1]],-1,0)),1,OFFSET(tbl_Emp[[#This Row],[Helper 1]],-1,0)+1) -> 156 | I157: =IF(rng_Emp_Filter="",0,IF(ISNUMBER(SEARCH(rng_Emp_Filter,tbl_Emp[[#This Row],[Helper Key]])),tbl_Emp[[#This Row],[Helper 1]],"")) -> 0 | J157: =IFERROR(SMALL(tbl_Emp[Helper 2],tbl_Emp[[#This Row],[Helper 1]]),"") -> 0 | K157: =IF(OR(tbl_Emp[[#This Row],[Helper 2]]<>"",tbl_Emp[[#This Row],[Helper 3]]<>""),1,0) -> 1 | L157: =IF(rng_Emp_Filter="",0,IF(tbl_Emp[[#This Row],[Helper 2]]<>"",1,0)) -> 0 | M157: =IF(rng_Emp_Filter="",tbl_Emp[[#This Row],[Helper 1]],INDEX(tbl_Emp[Helper 3],tbl_Emp[[#This Row],[Helper 1]])) -> 156 | N157: =IFERROR(INDEX(tbl_Emp[Turn OFF Controls],tbl_Emp[[#This Row],[Link]]),"") -> NUMERIAN
A158: CARINUS | B158: 283-285 | C158: 283 | D158: 285 | E158: 14 | F158: 15700 | G158: =tbl_Emp[[#This Row],[Turn OFF Controls]] -> CARINUS | H158: =IF(ISTEXT(OFFSET(tbl_Emp[[#This Row],[Helper 1]],-1,0)),1,OFFSET(tbl_Emp[[#This Row],[Helper 1]],-1,0)+1) -> 157 | I158: =IF(rng_Emp_Filter="",0,IF(ISNUMBER(SEARCH(rng_Emp_Filter,tbl_Emp[[#This Row],[Helper Key]])),tbl_Emp[[#This Row],[Helper 1]],"")) -> 0 | J158: =IFERROR(SMALL(tbl_Emp[Helper 2],tbl_Emp[[#This Row],[Helper 1]]),"") -> 0 | K158: =IF(OR(tbl_Emp[[#This Row],[Helper 2]]<>"",tbl_Emp[[#This Row],[Helper 3]]<>""),1,0) -> 1 | L158: =IF(rng_Emp_Filter="",0,IF(tbl_Emp[[#This Row],[Helper 2]]<>"",1,0)) -> 0 | M158: =IF(rng_Emp_Filter="",tbl_Emp[[#This Row],[Helper 1]],INDEX(tbl_Emp[Helper 3],tbl_Emp[[#This Row],[Helper 1]])) -> 157 | N158: =IFERROR(INDEX(tbl_Emp[Turn OFF Controls],tbl_Emp[[#This Row],[Link]]),"") -> CARINUS
A159: MAGNIA URBICA (Carinus) | B159: 283-285 | C159: 283 | D159: 285 | E159: 14 | F159: 15800 | G159: =tbl_Emp[[#This Row],[Turn OFF Controls]] -> MAGNIA URBICA (Carinus) | H159: =IF(ISTEXT(OFFSET(tbl_Emp[[#This Row],[Helper 1]],-1,0)),1,OFFSET(tbl_Emp[[#This Row],[Helper 1]],-1,0)+1) -> 158 | I159: =IF(rng_Emp_Filter="",0,IF(ISNUMBER(SEARCH(rng_Emp_Filter,tbl_Emp[[#This Row],[Helper Key]])),tbl_Emp[[#This Row],[Helper 1]],"")) -> 0 | J159: =IFERROR(SMALL(tbl_Emp[Helper 2],tbl_Emp[[#This Row],[Helper 1]]),"") -> 0 | K159: =IF(OR(tbl_Emp[[#This Row],[Helper 2]]<>"",tbl_Emp[[#This Row],[Helper 3]]<>""),1,0) -> 1 | L159: =IF(rng_Emp_Filter="",0,IF(tbl_Emp[[#This Row],[Helper 2]]<>"",1,0)) -> 0 | M159: =IF(rng_Emp_Filter="",tbl_Emp[[#This Row],[Helper 1]],INDEX(tbl_Emp[Helper 3],tbl_Emp[[#This Row],[Helper 1]])) -> 158 | N159: =IFERROR(INDEX(tbl_Emp[Turn OFF Controls],tbl_Emp[[#This Row],[Link]]),"") -> MAGNIA URBICA (Carinus)
A160: DIVUS NIGRINIAN | B160: 284-285 | C160: 284 | D160: 285 | E160: 14 | F160: 15900 | G160: =tbl_Emp[[#This Row],[Turn OFF Controls]] -> DIVUS NIGRINIAN | H160: =IF(ISTEXT(OFFSET(tbl_Emp[[#This Row],[Helper 1]],-1,0)),1,OFFSET(tbl_Emp[[#This Row],[Helper 1]],-1,0)+1) -> 159 | I160: =IF(rng_Emp_Filter="",0,IF(ISNUMBER(SEARCH(rng_Emp_Filter,tbl_Emp[[#This Row],[Helper Key]])),tbl_Emp[[#This Row],[Helper 1]],"")) -> 0 | J160: =IFERROR(SMALL(tbl_Emp[Helper 2],tbl_Emp[[#This Row],[Helper 1]]),"") -> 0 | K160: =IF(OR(tbl_Emp[[#This Row],[Helper 2]]<>"",tbl_Emp[[#This Row],[Helper 3]]<>""),1,0) -> 1 | L160: =IF(rng_Emp_Filter="",0,IF(tbl_Emp[[#This Row],[Helper 2]]<>"",1,0)) -> 0 | M160: =IF(rng_Emp_Filter="",tbl_Emp[[#This Row],[Helper 1]],INDEX(tbl_Emp[Helper 3],tbl_Emp[[#This Row],[Helper 1]])) -> 159 | N160: =IFERROR(INDEX(tbl_Emp[Turn OFF Controls],tbl_Emp[[#This Row],[Link]]),"") -> DIVUS NIGRINIAN
A161: JULIANUS | B161: 284-285 | C161: 284 | D161: 285 | E161: 14 | F161: 16000 | G161: =tbl_Emp[[#This Row],[Turn OFF Controls]] -> JULIANUS | H161: =IF(ISTEXT(OFFSET(tbl_Emp[[#This Row],[Helper 1]],-1,0)),1,OFFSET(tbl_Emp[[#This Row],[Helper 1]],-1,0)+1) -> 160 | I161: =IF(rng_Emp_Filter="",0,IF(ISNUMBER(SEARCH(rng_Emp_Filter,tbl_Emp[[#This Row],[Helper Key]])),tbl_Emp[[#This Row],[Helper 1]],"")) -> 0 | J161: =IFERROR(SMALL(tbl_Emp[Helper 2],tbl_Emp[[#This Row],[Helper 1]]),"") -> 0 | K161: =IF(OR(tbl_Emp[[#This Row],[Helper 2]]<>"",tbl_Emp[[#This Row],[Helper 3]]<>""),1,0) -> 1 | L161: =IF(rng_Emp_Filter="",0,IF(tbl_Emp[[#This Row],[Helper 2]]<>"",1,0)) -> 0 | M161: =IF(rng_Emp_Filter="",tbl_Emp[[#This Row],[Helper 1]],INDEX(tbl_Emp[Helper 3],tbl_Emp[[#This Row],[Helper 1]])) -> 160 | N161: =IFERROR(INDEX(tbl_Emp[Turn OFF Controls],tbl_Emp[[#This Row],[Link]]),"") -> JULIANUS
A162: CARAUSIUS | B162: 286-293 | C162: 286 | D162: 293 | E162: 14 | F162: 16100 | G162: =tbl_Emp[[#This Row],[Turn OFF Controls]] -> CARAUSIUS | H162: =IF(ISTEXT(OFFSET(tbl_Emp[[#This Row],[Helper 1]],-1,0)),1,OFFSET(tbl_Emp[[#This Row],[Helper 1]],-1,0)+1) -> 161 | I162: =IF(rng_Emp_Filter="",0,IF(ISNUMBER(SEARCH(rng_Emp_Filter,tbl_Emp[[#This Row],[Helper Key]])),tbl_Emp[[#This Row],[Helper 1]],"")) -> 0 | J162: =IFERROR(SMALL(tbl_Emp[Helper 2],tbl_Emp[[#This Row],[Helper 1]]),"") -> 0 | K162: =IF(OR(tbl_Emp[[#This Row],[Helper 2]]<>"",tbl_Emp[[#This Row],[Helper 3]]<>""),1,0) -> 1 | L162: =IF(rng_Emp_Filter="",0,IF(tbl_Emp[[#This Row],[Helper 2]]<>"",1,0)) -> 0 | M162: =IF(rng_Emp_Filter="",tbl_Emp[[#This Row],[Helper 1]],INDEX(tbl_Emp[Helper 3],tbl_Emp[[#This Row],[Helper 1]])) -> 161 | N162: =IFERROR(INDEX(tbl_Emp[Turn OFF Controls],tbl_Emp[[#This Row],[Link]]),"") -> CARAUSIUS
A163: ALLECTUS | B163: 293-296 | C163: 293 | D163: 296 | E163: 14 | F163: 16200 | G163: =tbl_Emp[[#This Row],[Turn OFF Controls]] -> ALLECTUS | H163: =IF(ISTEXT(OFFSET(tbl_Emp[[#This Row],[Helper 1]],-1,0)),1,OFFSET(tbl_Emp[[#This Row],[Helper 1]],-1,0)+1) -> 162 | I163: =IF(rng_Emp_Filter="",0,IF(ISNUMBER(SEARCH(rng_Emp_Filter,tbl_Emp[[#This Row],[Helper Key]])),tbl_Emp[[#This Row],[Helper 1]],"")) -> 0 | J163: =IFERROR(SMALL(tbl_Emp[Helper 2],tbl_Emp[[#This Row],[Helper 1]]),"") -> 0 | K163: =IF(OR(tbl_Emp[[#This Row],[Helper 2]]<>"",tbl_Emp[[#This Row],[Helper 3]]<>""),1,0) -> 1 | L163: =IF(rng_Emp_Filter="",0,IF(tbl_Emp[[#This Row],[Helper 2]]<>"",1,0)) -> 0 | M163: =IF(rng_Emp_Filter="",tbl_Emp[[#This Row],[Helper 1]],INDEX(tbl_Emp[Helper 3],tbl_Emp[[#This Row],[Helper 1]])) -> 162 | N163: =IFERROR(INDEX(tbl_Emp[Turn OFF Controls],tbl_Emp[[#This Row],[Link]]),"") -> ALLECTUS
A164: DOMITIUS DOMITIANUS | B164: 295-296 | C164: 295 | D164: 296 | E164: 14 | F164: 16300 | G164: =tbl_Emp[[#This Row],[Turn OFF Controls]] -> DOMITIUS DOMITIANUS | H164: =IF(ISTEXT(OFFSET(tbl_Emp[[#This Row],[Helper 1]],-1,0)),1,OFFSET(tbl_Emp[[#This Row],[Helper 1]],-1,0)+1) -> 163 | I164: =IF(rng_Emp_Filter="",0,IF(ISNUMBER(SEARCH(rng_Emp_Filter,tbl_Emp[[#This Row],[Helper Key]])),tbl_Emp[[#This Row],[Helper 1]],"")) -> 0 | J164: =IFERROR(SMALL(tbl_Emp[Helper 2],tbl_Emp[[#This Row],[Helper 1]]),"") -> 0 | K164: =IF(OR(tbl_Emp[[#This Row],[Helper 2]]<>"",tbl_Emp[[#This Row],[Helper 3]]<>""),1,0) -> 1 | L164: =IF(rng_Emp_Filter="",0,IF(tbl_Emp[[#This Row],[Helper 2]]<>"",1,0)) -> 0 | M164: =IF(rng_Emp_Filter="",tbl_Emp[[#This Row],[Helper 1]],INDEX(tbl_Emp[Helper 3],tbl_Emp[[#This Row],[Helper 1]])) -> 163 | N164: =IFERROR(INDEX(tbl_Emp[Turn OFF Controls],tbl_Emp[[#This Row],[Link]]),"") -> DOMITIUS DOMITIANUS
A165: DIOCLETIAN | B165: 284-305 | C165: 284 | D165: 305 | E165: 14 or 15 | F165: 16400 | G165: =tbl_Emp[[#This Row],[Turn OFF Controls]] -> DIOCLETIAN | H165: =IF(ISTEXT(OFFSET(tbl_Emp[[#This Row],[Helper 1]],-1,0)),1,OFFSET(tbl_Emp[[#This Row],[Helper 1]],-1,0)+1) -> 164 | I165: =IF(rng_Emp_Filter="",0,IF(ISNUMBER(SEARCH(rng_Emp_Filter,tbl_Emp[[#This Row],[Helper Key]])),tbl_Emp[[#This Row],[Helper 1]],"")) -> 0 | J165: =IFERROR(SMALL(tbl_Emp[Helper 2],tbl_Emp[[#This Row],[Helper 1]]),"") -> 0 | K165: =IF(OR(tbl_Emp[[#This Row],[Helper 2]]<>"",tbl_Emp[[#This Row],[Helper 3]]<>""),1,0) -> 1 | L165: =IF(rng_Emp_Filter="",0,IF(tbl_Emp[[#This Row],[Helper 2]]<>"",1,0)) -> 0 | M165: =IF(rng_Emp_Filter="",tbl_Emp[[#This Row],[Helper 1]],INDEX(tbl_Emp[Helper 3],tbl_Emp[[#This Row],[Helper 1]])) -> 164 | N165: =IFERROR(INDEX(tbl_Emp[Turn OFF Controls],tbl_Emp[[#This Row],[Link]]),"") -> DIOCLETIAN
A166: MAXIMIAN | B166: 286-310 | C166: 286 | D166: 310 | E166: 14 or 15 | F166: 16500 | G166: =tbl_Emp[[#This Row],[Turn OFF Controls]] -> MAXIMIAN | H166: =IF(ISTEXT(OFFSET(tbl_Emp[[#This Row],[Helper 1]],-1,0)),1,OFFSET(tbl_Emp[[#This Row],[Helper 1]],-1,0)+1) -> 165 | I166: =IF(rng_Emp_Filter="",0,IF(ISNUMBER(SEARCH(rng_Emp_Filter,tbl_Emp[[#This Row],[Helper Key]])),tbl_Emp[[#This Row],[Helper 1]],"")) -> 0 | J166: =IFERROR(SMALL(tbl_Emp[Helper 2],tbl_Emp[[#This Row],[Helper 1]]),"") -> 0 | K166: =IF(OR(tbl_Emp[[#This Row],[Helper 2]]<>"",tbl_Emp[[#This Row],[Helper 3]]<>""),1,0) -> 1 | L166: =IF(rng_Emp_Filter="",0,IF(tbl_Emp[[#This Row],[Helper 2]]<>"",1,0)) -> 0 | M166: =IF(rng_Emp_Filter="",tbl_Emp[[#This Row],[Helper 1]],INDEX(tbl_Emp[Helper 3],tbl_Emp[[#This Row],[Helper 1]])) -> 165 | N166: =IFERROR(INDEX(tbl_Emp[Turn OFF Controls],tbl_Emp[[#This Row],[Link]]),"") -> MAXIMIAN
A167: GALERIUS Caesar | B167: 293-305 | C167: 293 | D167: 305 | E167: 15 | F167: 16600 | G167: =tbl_Emp[[#This Row],[Turn OFF Controls]] -> GALERIUS Caesar | H167: =IF(ISTEXT(OFFSET(tbl_Emp[[#This Row],[Helper 1]],-1,0)),1,OFFSET(tbl_Emp[[#This Row],[Helper 1]],-1,0)+1) -> 166 | I167: =IF(rng_Emp_Filter="",0,IF(ISNUMBER(SEARCH(rng_Emp_Filter,tbl_Emp[[#This Row],[Helper Key]])),tbl_Emp[[#This Row],[Helper 1]],"")) -> 0 | J167: =IFERROR(SMALL(tbl_Emp[Helper 2],tbl_Emp[[#This Row],[Helper 1]]),"") -> 0 | K167: =IF(OR(tbl_Emp[[#This Row],[Helper 2]]<>"",tbl_Emp[[#This Row],[Helper 3]]<>""),1,0) -> 1 | L167: =IF(rng_Emp_Filter="",0,IF(tbl_Emp[[#This Row],[Helper 2]]<>"",1,0)) -> 0 | M167: =IF(rng_Emp_Filter="",tbl_Emp[[#This Row],[Helper 1]],INDEX(tbl_Emp[Helper 3],tbl_Emp[[#This Row],[Helper 1]])) -> 166 | N167: =IFERROR(INDEX(tbl_Emp[Turn OFF Controls],tbl_Emp[[#This Row],[Link]]),"") -> GALERIUS Caesar
A168: CONSTANTIUS I Caesar | B168: 293-305 | C168: 293 | D168: 305 | E168: 15 | F168: 16700 | G168: =tbl_Emp[[#This Row],[Turn OFF Controls]] -> CONSTANTIUS I Caesar | H168: =IF(ISTEXT(OFFSET(tbl_Emp[[#This Row],[Helper 1]],-1,0)),1,OFFSET(tbl_Emp[[#This Row],[Helper 1]],-1,0)+1) -> 167 | I168: =IF(rng_Emp_Filter="",0,IF(ISNUMBER(SEARCH(rng_Emp_Filter,tbl_Emp[[#This Row],[Helper Key]])),tbl_Emp[[#This Row],[Helper 1]],"")) -> 0 | J168: =IFERROR(SMALL(tbl_Emp[Helper 2],tbl_Emp[[#This Row],[Helper 1]]),"") -> 0 | K168: =IF(OR(tbl_Emp[[#This Row],[Helper 2]]<>"",tbl_Emp[[#This Row],[Helper 3]]<>""),1,0) -> 1 | L168: =IF(rng_Emp_Filter="",0,IF(tbl_Emp[[#This Row],[Helper 2]]<>"",1,0)) -> 0 | M168: =IF(rng_Emp_Filter="",tbl_Emp[[#This Row],[Helper 1]],INDEX(tbl_Emp[Helper 3],tbl_Emp[[#This Row],[Helper 1]])) -> 167 | N168: =IFERROR(INDEX(tbl_Emp[Turn OFF Controls],tbl_Emp[[#This Row],[Link]]),"") -> CONSTANTIUS I Caesar
A169: CONSTANTIUS I | B169: 305-306 | C169: 305 | D169: 306 | E169: 15 | F169: 16800 | G169: =tbl_Emp[[#This Row],[Turn OFF Controls]] -> CONSTANTIUS I | H169: =IF(ISTEXT(OFFSET(tbl_Emp[[#This Row],[Helper 1]],-1,0)),1,OFFSET(tbl_Emp[[#This Row],[Helper 1]],-1,0)+1) -> 168 | I169: =IF(rng_Emp_Filter="",0,IF(ISNUMBER(SEARCH(rng_Emp_Filter,tbl_Emp[[#This Row],[Helper Key]])),tbl_Emp[[#This Row],[Helper 1]],"")) -> 0 | J169: =IFERROR(SMALL(tbl_Emp[Helper 2],tbl_Emp[[#This Row],[Helper 1]]),"") -> 0 | K169: =IF(OR(tbl_Emp[[#This Row],[Helper 2]]<>"",tbl_Emp[[#This Row],[Helper 3]]<>""),1,0) -> 1 | L169: =IF(rng_Emp_Filter="",0,IF(tbl_Emp[[#This Row],[Helper 2]]<>"",1,0)) -> 0 | M169: =IF(rng_Emp_Filter="",tbl_Emp[[#This Row],[Helper 1]],INDEX(tbl_Emp[Helper 3],tbl_Emp[[#This Row],[Helper 1]])) -> 168 | N169: =IFERROR(INDEX(tbl_Emp[Turn OFF Controls],tbl_Emp[[#This Row],[Link]]),"") -> CONSTANTIUS I
A170: DIVUS CONSTANTIUS I | B170: 307-308 | C170: 307 | D170: 308 | E170: 15 | F170: 16900 | G170: =tbl_Emp[[#This Row],[Turn OFF Controls]] -> DIVUS CONSTANTIUS I | H170: =IF(ISTEXT(OFFSET(tbl_Emp[[#This Row],[Helper 1]],-1,0)),1,OFFSET(tbl_Emp[[#This Row],[Helper 1]],-1,0)+1) -> 169 | I170: =IF(rng_Emp_Filter="",0,IF(ISNUMBER(SEARCH(rng_Emp_Filter,tbl_Emp[[#This Row],[Helper Key]])),tbl_Emp[[#This Row],[Helper 1]],"")) -> 0 | J170: =IFERROR(SMALL(tbl_Emp[Helper 2],tbl_Emp[[#This Row],[Helper 1]]),"") -> 0 | K170: =IF(OR(tbl_Emp[[#This Row],[Helper 2]]<>"",tbl_Emp[[#This Row],[Helper 3]]<>""),1,0) -> 1 | L170: =IF(rng_Emp_Filter="",0,IF(tbl_Emp[[#This Row],[Helper 2]]<>"",1,0)) -> 0 | M170: =IF(rng_Emp_Filter="",tbl_Emp[[#This Row],[Helper 1]],INDEX(tbl_Emp[Helper 3],tbl_Emp[[#This Row],[Helper 1]])) -> 169 | N170: =IFERROR(INDEX(tbl_Emp[Turn OFF Controls],tbl_Emp[[#This Row],[Link]]),"") -> DIVUS CONSTANTIUS I
A171: SEVERUS II Caesar | B171: 305-306 | C171: 305 | D171: 306 | E171: 15 | F171: 17000 | G171: =tbl_Emp[[#This Row],[Turn OFF Controls]] -> SEVERUS II Caesar | H171: =IF(ISTEXT(OFFSET(tbl_Emp[[#This Row],[Helper 1]],-1,0)),1,OFFSET(tbl_Emp[[#This Row],[Helper 1]],-1,0)+1) -> 170 | I171: =IF(rng_Emp_Filter="",0,IF(ISNUMBER(SEARCH(rng_Emp_Filter,tbl_Emp[[#This Row],[Helper Key]])),tbl_Emp[[#This Row],[Helper 1]],"")) -> 0 | J171: =IFERROR(SMALL(tbl_Emp[Helper 2],tbl_Emp[[#This Row],[Helper 1]]),"") -> 0 | K171: =IF(OR(tbl_Emp[[#This Row],[Helper 2]]<>"",tbl_Emp[[#This Row],[Helper 3]]<>""),1,0) -> 1 | L171: =IF(rng_Emp_Filter="",0,IF(tbl_Emp[[#This Row],[Helper 2]]<>"",1,0)) -> 0 | M171: =IF(rng_Emp_Filter="",tbl_Emp[[#This Row],[Helper 1]],INDEX(tbl_Emp[Helper 3],tbl_Emp[[#This Row],[Helper 1]])) -> 170 | N171: =IFERROR(INDEX(tbl_Emp[Turn OFF Controls],tbl_Emp[[#This Row],[Link]]),"") -> SEVERUS II Caesar
A172: CONSTANTINE I Caesar | B172: 306-307 | C172: 306 | D172: 307 | E172: 15 | F172: 17100 | G172: =tbl_Emp[[#This Row],[Turn OFF Controls]] -> CONSTANTINE I Caesar | H172: =IF(ISTEXT(OFFSET(tbl_Emp[[#This Row],[Helper 1]],-1,0)),1,OFFSET(tbl_Emp[[#This Row],[Helper 1]],-1,0)+1) -> 171 | I172: =IF(rng_Emp_Filter="",0,IF(ISNUMBER(SEARCH(rng_Emp_Filter,tbl_Emp[[#This Row],[Helper Key]])),tbl_Emp[[#This Row],[Helper 1]],"")) -> 0 | J172: =IFERROR(SMALL(tbl_Emp[Helper 2],tbl_Emp[[#This Row],[Helper 1]]),"") -> 0 | K172: =IF(OR(tbl_Emp[[#This Row],[Helper 2]]<>"",tbl_Emp[[#This Row],[Helper 3]]<>""),1,0) -> 1 | L172: =IF(rng_Emp_Filter="",0,IF(tbl_Emp[[#This Row],[Helper 2]]<>"",1,0)) -> 0 | M172: =IF(rng_Emp_Filter="",tbl_Emp[[#This Row],[Helper 1]],INDEX(tbl_Emp[Helper 3],tbl_Emp[[#This Row],[Helper 1]])) -> 171 | N172: =IFERROR(INDEX(tbl_Emp[Turn OFF Controls],tbl_Emp[[#This Row],[Link]]),"") -> CONSTANTINE I Caesar
A173: GALERIUS | B173: 305-311 | C173: 305 | D173: 311 | E173: 15 | F173: 17200 | G173: =tbl_Emp[[#This Row],[Turn OFF Controls]] -> GALERIUS | H173: =IF(ISTEXT(OFFSET(tbl_Emp[[#This Row],[Helper 1]],-1,0)),1,OFFSET(tbl_Emp[[#This Row],[Helper 1]],-1,0)+1) -> 172 | I173: =IF(rng_Emp_Filter="",0,IF(ISNUMBER(SEARCH(rng_Emp_Filter,tbl_Emp[[#This Row],[Helper Key]])),tbl_Emp[[#This Row],[Helper 1]],"")) -> 0 | J173: =IFERROR(SMALL(tbl_Emp[Helper 2],tbl_Emp[[#This Row],[Helper 1]]),"") -> 0 | K173: =IF(OR(tbl_Emp[[#This Row],[Helper 2]]<>"",tbl_Emp[[#This Row],[Helper 3]]<>""),1,0) -> 1 | L173: =IF(rng_Emp_Filter="",0,IF(tbl_Emp[[#This Row],[Helper 2]]<>"",1,0)) -> 0 | M173: =IF(rng_Emp_Filter="",tbl_Emp[[#This Row],[Helper 1]],INDEX(tbl_Emp[Helper 3],tbl_Emp[[#This Row],[Helper 1]])) -> 172 | N173: =IFERROR(INDEX(tbl_Emp[Turn OFF Controls],tbl_Emp[[#This Row],[Link]]),"") -> GALERIUS
A174: GALERIA VALERIA | B174: 305-311 | C174: 305 | D174: 311 | E174: 15 | F174: 17300 | G174: =tbl_Emp[[#This Row],[Turn OFF Controls]] -> GALERIA VALERIA | H174: =IF(ISTEXT(OFFSET(tbl_Emp[[#This Row],[Helper 1]],-1,0)),1,OFFSET(tbl_Emp[[#This Row],[Helper 1]],-1,0)+1) -> 173 | I174: =IF(rng_Emp_Filter="",0,IF(ISNUMBER(SEARCH(rng_Emp_Filter,tbl_Emp[[#This Row],[Helper Key]])),tbl_Emp[[#This Row],[Helper 1]],"")) -> 0 | J174: =IFERROR(SMALL(tbl_Emp[Helper 2],tbl_Emp[[#This Row],[Helper 1]]),"") -> 0 | K174: =IF(OR(tbl_Emp[[#This Row],[Helper 2]]<>"",tbl_Emp[[#This Row],[Helper 3]]<>""),1,0) -> 1 | L174: =IF(rng_Emp_Filter="",0,IF(tbl_Emp[[#This Row],[Helper 2]]<>"",1,0)) -> 0 | M174: =IF(rng_Emp_Filter="",tbl_Emp[[#This Row],[Helper 1]],INDEX(tbl_Emp[Helper 3],tbl_Emp[[#This Row],[Helper 1]])) -> 173 | N174: =IFERROR(INDEX(tbl_Emp[Turn OFF Controls],tbl_Emp[[#This Row],[Link]]),"") -> GALERIA VALERIA
A175: MAXIMINUS II Caesar | B175: 305-310 | C175: 305 | D175: 310 | E175: 15 | F175: 17400 | G175: =tbl_Emp[[#This Row],[Turn OFF Controls]] -> MAXIMINUS II Caesar | H175: =IF(ISTEXT(OFFSET(tbl_Emp[[#This Row],[Helper 1]],-1,0)),1,OFFSET(tbl_Emp[[#This Row],[Helper 1]],-1,0)+1) -> 174 | I175: =IF(rng_Emp_Filter="",0,IF(ISNUMBER(SEARCH(rng_Emp_Filter,tbl_Emp[[#This Row],[Helper Key]])),tbl_Emp[[#This Row],[Helper 1]],"")) -> 0 | J175: =IFERROR(SMALL(tbl_Emp[Helper 2],tbl_Emp[[#This Row],[Helper 1]]),"") -> 0 | K175: =IF(OR(tbl_Emp[[#This Row],[Helper 2]]<>"",tbl_Emp[[#This Row],[Helper 3]]<>""),1,0) -> 1 | L175: =IF(rng_Emp_Filter="",0,IF(tbl_Emp[[#This Row],[Helper 2]]<>"",1,0)) -> 0 | M175: =IF(rng_Emp_Filter="",tbl_Emp[[#This Row],[Helper 1]],INDEX(tbl_Emp[Helper 3],tbl_Emp[[#This Row],[Helper 1]])) -> 174 | N175: =IFERROR(INDEX(tbl_Emp[Turn OFF Controls],tbl_Emp[[#This Row],[Link]]),"") -> MAXIMINUS II Caesar
A176: SEVERUS II | B176: 306-307 | C176: 306 | D176: 307 | E176: 15 | F176: 17500 | G176: =tbl_Emp[[#This Row],[Turn OFF Controls]] -> SEVERUS II | H176: =IF(ISTEXT(OFFSET(tbl_Emp[[#This Row],[Helper 1]],-1,0)),1,OFFSET(tbl_Emp[[#This Row],[Helper 1]],-1,0)+1) -> 175 | I176: =IF(rng_Emp_Filter="",0,IF(ISNUMBER(SEARCH(rng_Emp_Filter,tbl_Emp[[#This Row],[Helper Key]])),tbl_Emp[[#This Row],[Helper 1]],"")) -> 0 | J176: =IFERROR(SMALL(tbl_Emp[Helper 2],tbl_Emp[[#This Row],[Helper 1]]),"") -> 0 | K176: =IF(OR(tbl_Emp[[#This Row],[Helper 2]]<>"",tbl_Emp[[#This Row],[Helper 3]]<>""),1,0) -> 1 | L176: =IF(rng_Emp_Filter="",0,IF(tbl_Emp[[#This Row],[Helper 2]]<>"",1,0)) -> 0 | M176: =IF(rng_Emp_Filter="",tbl_Emp[[#This Row],[Helper 1]],INDEX(tbl_Emp[Helper 3],tbl_Emp[[#This Row],[Helper 1]])) -> 175 | N176: =IFERROR(INDEX(tbl_Emp[Turn OFF Controls],tbl_Emp[[#This Row],[Link]]),"") -> SEVERUS II
A177: MAXENTIUS | B177: 306-312 | C177: 306 | D177: 312 | E177: 15 | F177: 17600 | G177: =tbl_Emp[[#This Row],[Turn OFF Controls]] -> MAXENTIUS | H177: =IF(ISTEXT(OFFSET(tbl_Emp[[#This Row],[Helper 1]],-1,0)),1,OFFSET(tbl_Emp[[#This Row],[Helper 1]],-1,0)+1) -> 176 | I177: =IF(rng_Emp_Filter="",0,IF(ISNUMBER(SEARCH(rng_Emp_Filter,tbl_Emp[[#This Row],[Helper Key]])),tbl_Emp[[#This Row],[Helper 1]],"")) -> 0 | J177: =IFERROR(SMALL(tbl_Emp[Helper 2],tbl_Emp[[#This Row],[Helper 1]]),"") -> 0 | K177: =IF(OR(tbl_Emp[[#This Row],[Helper 2]]<>"",tbl_Emp[[#This Row],[Helper 3]]<>""),1,0) -> 1 | L177: =IF(rng_Emp_Filter="",0,IF(tbl_Emp[[#This Row],[Helper 2]]<>"",1,0)) -> 0 | M177: =IF(rng_Emp_Filter="",tbl_Emp[[#This Row],[Helper 1]],INDEX(tbl_Emp[Helper 3],tbl_Emp[[#This Row],[Helper 1]])) -> 176 | N177: =IFERROR(INDEX(tbl_Emp[Turn OFF Controls],tbl_Emp[[#This Row],[Link]]),"") -> MAXENTIUS
A178: MAXIMINUS II | B178: 310-313 | C178: 310 | D178: 313 | E178: 15 | F178: 17700 | G178: =tbl_Emp[[#This Row],[Turn OFF Controls]] -> MAXIMINUS II | H178: =IF(ISTEXT(OFFSET(tbl_Emp[[#This Row],[Helper 1]],-1,0)),1,OFFSET(tbl_Emp[[#This Row],[Helper 1]],-1,0)+1) -> 177 | I178: =IF(rng_Emp_Filter="",0,IF(ISNUMBER(SEARCH(rng_Emp_Filter,tbl_Emp[[#This Row],[Helper Key]])),tbl_Emp[[#This Row],[Helper 1]],"")) -> 0 | J178: =IFERROR(SMALL(tbl_Emp[Helper 2],tbl_Emp[[#This Row],[Helper 1]]),"") -> 0 | K178: =IF(OR(tbl_Emp[[#This Row],[Helper 2]]<>"",tbl_Emp[[#This Row],[Helper 3]]<>""),1,0) -> 1 | L178: =IF(rng_Emp_Filter="",0,IF(tbl_Emp[[#This Row],[Helper 2]]<>"",1,0)) -> 0 | M178: =IF(rng_Emp_Filter="",tbl_Emp[[#This Row],[Helper 1]],INDEX(tbl_Emp[Helper 3],tbl_Emp[[#This Row],[Helper 1]])) -> 177 | N178: =IFERROR(INDEX(tbl_Emp[Turn OFF Controls],tbl_Emp[[#This Row],[Link]]),"") -> MAXIMINUS II
A179: CONSTANTINE I | B179: 307-337 | C179: 307 | D179: 337 | F179: 17800 | G179: =tbl_Emp[[#This Row],[Turn OFF Controls]] -> CONSTANTINE I | H179: =IF(ISTEXT(OFFSET(tbl_Emp[[#This Row],[Helper 1]],-1,0)),1,OFFSET(tbl_Emp[[#This Row],[Helper 1]],-1,0)+1) -> 178 | I179: =IF(rng_Emp_Filter="",0,IF(ISNUMBER(SEARCH(rng_Emp_Filter,tbl_Emp[[#This Row],[Helper Key]])),tbl_Emp[[#This Row],[Helper 1]],"")) -> 0 | J179: =IFERROR(SMALL(tbl_Emp[Helper 2],tbl_Emp[[#This Row],[Helper 1]]),"") -> 0 | K179: =IF(OR(tbl_Emp[[#This Row],[Helper 2]]<>"",tbl_Emp[[#This Row],[Helper 3]]<>""),1,0) -> 1 | L179: =IF(rng_Emp_Filter="",0,IF(tbl_Emp[[#This Row],[Helper 2]]<>"",1,0)) -> 0 | M179: =IF(rng_Emp_Filter="",tbl_Emp[[#This Row],[Helper 1]],INDEX(tbl_Emp[Helper 3],tbl_Emp[[#This Row],[Helper 1]])) -> 178 | N179: =IFERROR(INDEX(tbl_Emp[Turn OFF Controls],tbl_Emp[[#This Row],[Link]]),"") -> CONSTANTINE I
A180: LICINIUS I | B180: 308-324 | C180: 308 | D180: 324 | F180: 17900 | G180: =tbl_Emp[[#This Row],[Turn OFF Controls]] -> LICINIUS I | H180: =IF(ISTEXT(OFFSET(tbl_Emp[[#This Row],[Helper 1]],-1,0)),1,OFFSET(tbl_Emp[[#This Row],[Helper 1]],-1,0)+1) -> 179 | I180: =IF(rng_Emp_Filter="",0,IF(ISNUMBER(SEARCH(rng_Emp_Filter,tbl_Emp[[#This Row],[Helper Key]])),tbl_Emp[[#This Row],[Helper 1]],"")) -> 0 | J180: =IFERROR(SMALL(tbl_Emp[Helper 2],tbl_Emp[[#This Row],[Helper 1]]),"") -> 0 | K180: =IF(OR(tbl_Emp[[#This Row],[Helper 2]]<>"",tbl_Emp[[#This Row],[Helper 3]]<>""),1,0) -> 1 | L180: =IF(rng_Emp_Filter="",0,IF(tbl_Emp[[#This Row],[Helper 2]]<>"",1,0)) -> 0 | M180: =IF(rng_Emp_Filter="",tbl_Emp[[#This Row],[Helper 1]],INDEX(tbl_Emp[Helper 3],tbl_Emp[[#This Row],[Helper 1]])) -> 179 | N180: =IFERROR(INDEX(tbl_Emp[Turn OFF Controls],tbl_Emp[[#This Row],[Link]]),"") -> LICINIUS I
A181: CONSTANTIA | B181: 313-324 | C181: 313 | D181: 324 | F181: 18000 | G181: =tbl_Emp[[#This Row],[Turn OFF Controls]] -> CONSTANTIA | H181: =IF(ISTEXT(OFFSET(tbl_Emp[[#This Row],[Helper 1]],-1,0)),1,OFFSET(tbl_Emp[[#This Row],[Helper 1]],-1,0)+1) -> 180 | I181: =IF(rng_Emp_Filter="",0,IF(ISNUMBER(SEARCH(rng_Emp_Filter,tbl_Emp[[#This Row],[Helper Key]])),tbl_Emp[[#This Row],[Helper 1]],"")) -> 0 | J181: =IFERROR(SMALL(tbl_Emp[Helper 2],tbl_Emp[[#This Row],[Helper 1]]),"") -> 0 | K181: =IF(OR(tbl_Emp[[#This Row],[Helper 2]]<>"",tbl_Emp[[#This Row],[Helper 3]]<>""),1,0) -> 1 | L181: =IF(rng_Emp_Filter="",0,IF(tbl_Emp[[#This Row],[Helper 2]]<>"",1,0)) -> 0 | M181: =IF(rng_Emp_Filter="",tbl_Emp[[#This Row],[Helper 1]],INDEX(tbl_Emp[Helper 3],tbl_Emp[[#This Row],[Helper 1]])) -> 180 | N181: =IFERROR(INDEX(tbl_Emp[Turn OFF Controls],tbl_Emp[[#This Row],[Link]]),"") -> CONSTANTIA
A182: LICINIUS II Caesar | B182: 317-324 | C182: 317 | D182: 324 | E182: 16 | F182: 18100 | G182: =tbl_Emp[[#This Row],[Turn OFF Controls]] -> LICINIUS II Caesar | H182: =IF(ISTEXT(OFFSET(tbl_Emp[[#This Row],[Helper 1]],-1,0)),1,OFFSET(tbl_Emp[[#This Row],[Helper 1]],-1,0)+1) -> 181 | I182: =IF(rng_Emp_Filter="",0,IF(ISNUMBER(SEARCH(rng_Emp_Filter,tbl_Emp[[#This Row],[Helper Key]])),tbl_Emp[[#This Row],[Helper 1]],"")) -> 0 | J182: =IFERROR(SMALL(tbl_Emp[Helper 2],tbl_Emp[[#This Row],[Helper 1]]),"") -> 0 | K182: =IF(OR(tbl_Emp[[#This Row],[Helper 2]]<>"",tbl_Emp[[#This Row],[Helper 3]]<>""),1,0) -> 1 | L182: =IF(rng_Emp_Filter="",0,IF(tbl_Emp[[#This Row],[Helper 2]]<>"",1,0)) -> 0 | M182: =IF(rng_Emp_Filter="",tbl_Emp[[#This Row],[Helper 1]],INDEX(tbl_Emp[Helper 3],tbl_Emp[[#This Row],[Helper 1]])) -> 181 | N182: =IFERROR(INDEX(tbl_Emp[Turn OFF Controls],tbl_Emp[[#This Row],[Link]]),"") -> LICINIUS II Caesar
A183: CRISPUS Caesar | B183: 317-326 | C183: 317 | D183: 326 | E183: 16 | F183: 18200 | G183: =tbl_Emp[[#This Row],[Turn OFF Controls]] -> CRISPUS Caesar | H183: =IF(ISTEXT(OFFSET(tbl_Emp[[#This Row],[Helper 1]],-1,0)),1,OFFSET(tbl_Emp[[#This Row],[Helper 1]],-1,0)+1) -> 182 | I183: =IF(rng_Emp_Filter="",0,IF(ISNUMBER(SEARCH(rng_Emp_Filter,tbl_Emp[[#This Row],[Helper Key]])),tbl_Emp[[#This Row],[Helper 1]],"")) -> 0 | J183: =IFERROR(SMALL(tbl_Emp[Helper 2],tbl_Emp[[#This Row],[Helper 1]]),"") -> 0 | K183: =IF(OR(tbl_Emp[[#This Row],[Helper 2]]<>"",tbl_Emp[[#This Row],[Helper 3]]<>""),1,0) -> 1 | L183: =IF(rng_Emp_Filter="",0,IF(tbl_Emp[[#This Row],[Helper 2]]<>"",1,0)) -> 0 | M183: =IF(rng_Emp_Filter="",tbl_Emp[[#This Row],[Helper 1]],INDEX(tbl_Emp[Helper 3],tbl_Emp[[#This Row],[Helper 1]])) -> 182 | N183: =IFERROR(INDEX(tbl_Emp[Turn OFF Controls],tbl_Emp[[#This Row],[Link]]),"") -> CRISPUS Caesar
A184: CONSTANTINE II Caesar | B184: 317-337 | C184: 317 | D184: 337 | F184: 18300 | G184: =tbl_Emp[[#This Row],[Turn OFF Controls]] -> CONSTANTINE II Caesar | H184: =IF(ISTEXT(OFFSET(tbl_Emp[[#This Row],[Helper 1]],-1,0)),1,OFFSET(tbl_Emp[[#This Row],[Helper 1]],-1,0)+1) -> 183 | I184: =IF(rng_Emp_Filter="",0,IF(ISNUMBER(SEARCH(rng_Emp_Filter,tbl_Emp[[#This Row],[Helper Key]])),tbl_Emp[[#This Row],[Helper 1]],"")) -> 0 | J184: =IFERROR(SMALL(tbl_Emp[Helper 2],tbl_Emp[[#This Row],[Helper 1]]),"") -> 0 | K184: =IF(OR(tbl_Emp[[#This Row],[Helper 2]]<>"",tbl_Emp[[#This Row],[Helper 3]]<>""),1,0) -> 1 | L184: =IF(rng_Emp_Filter="",0,IF(tbl_Emp[[#This Row],[Helper 2]]<>"",1,0)) -> 0 | M184: =IF(rng_Emp_Filter="",tbl_Emp[[#This Row],[Helper 1]],INDEX(tbl_Emp[Helper 3],tbl_Emp[[#This Row],[Helper 1]])) -> 183 | N184: =IFERROR(INDEX(tbl_Emp[Turn OFF Controls],tbl_Emp[[#This Row],[Link]]),"") -> CONSTANTINE II Caesar
A185: CONSTANTIUS II Caesar | B185: 323-337 | C185: 323 | D185: 337 | F185: 18400 | G185: =tbl_Emp[[#This Row],[Turn OFF Controls]] -> CONSTANTIUS II Caesar | H185: =IF(ISTEXT(OFFSET(tbl_Emp[[#This Row],[Helper 1]],-1,0)),1,OFFSET(tbl_Emp[[#This Row],[Helper 1]],-1,0)+1) -> 184 | I185: =IF(rng_Emp_Filter="",0,IF(ISNUMBER(SEARCH(rng_Emp_Filter,tbl_Emp[[#This Row],[Helper Key]])),tbl_Emp[[#This Row],[Helper 1]],"")) -> 0 | J185: =IFERROR(SMALL(tbl_Emp[Helper 2],tbl_Emp[[#This Row],[Helper 1]]),"") -> 0 | K185: =IF(OR(tbl_Emp[[#This Row],[Helper 2]]<>"",tbl_Emp[[#This Row],[Helper 3]]<>""),1,0) -> 1 | L185: =IF(rng_Emp_Filter="",0,IF(tbl_Emp[[#This Row],[Helper 2]]<>"",1,0)) -> 0 | M185: =IF(rng_Emp_Filter="",tbl_Emp[[#This Row],[Helper 1]],INDEX(tbl_Emp[Helper 3],tbl_Emp[[#This Row],[Helper 1]])) -> 184 | N185: =IFERROR(INDEX(tbl_Emp[Turn OFF Controls],tbl_Emp[[#This Row],[Link]]),"") -> CONSTANTIUS II Caesar
A186: MARTINIAN | B186: 324 | C186: 324 | D186: 324 | E186: 16 | F186: 18500 | G186: =tbl_Emp[[#This Row],[Turn OFF Controls]] -> MARTINIAN | H186: =IF(ISTEXT(OFFSET(tbl_Emp[[#This Row],[Helper 1]],-1,0)),1,OFFSET(tbl_Emp[[#This Row],[Helper 1]],-1,0)+1) -> 185 | I186: =IF(rng_Emp_Filter="",0,IF(ISNUMBER(SEARCH(rng_Emp_Filter,tbl_Emp[[#This Row],[Helper Key]])),tbl_Emp[[#This Row],[Helper 1]],"")) -> 0 | J186: =IFERROR(SMALL(tbl_Emp[Helper 2],tbl_Emp[[#This Row],[Helper 1]]),"") -> 0 | K186: =IF(OR(tbl_Emp[[#This Row],[Helper 2]]<>"",tbl_Emp[[#This Row],[Helper 3]]<>""),1,0) -> 1 | L186: =IF(rng_Emp_Filter="",0,IF(tbl_Emp[[#This Row],[Helper 2]]<>"",1,0)) -> 0 | M186: =IF(rng_Emp_Filter="",tbl_Emp[[#This Row],[Helper 1]],INDEX(tbl_Emp[Helper 3],tbl_Emp[[#This Row],[Helper 1]])) -> 185 | N186: =IFERROR(INDEX(tbl_Emp[Turn OFF Controls],tbl_Emp[[#This Row],[Link]]),"") -> MARTINIAN
A187: FAUSTA | B187: 324-326 | C187: 324 | D187: 326 | E187: 16 | F187: 18600 | G187: =tbl_Emp[[#This Row],[Turn OFF Controls]] -> FAUSTA | H187: =IF(ISTEXT(OFFSET(tbl_Emp[[#This Row],[Helper 1]],-1,0)),1,OFFSET(tbl_Emp[[#This Row],[Helper 1]],-1,0)+1) -> 186 | I187: =IF(rng_Emp_Filter="",0,IF(ISNUMBER(SEARCH(rng_Emp_Filter,tbl_Emp[[#This Row],[Helper Key]])),tbl_Emp[[#This Row],[Helper 1]],"")) -> 0 | J187: =IFERROR(SMALL(tbl_Emp[Helper 2],tbl_Emp[[#This Row],[Helper 1]]),"") -> 0 | K187: =IF(OR(tbl_Emp[[#This Row],[Helper 2]]<>"",tbl_Emp[[#This Row],[Helper 3]]<>""),1,0) -> 1 | L187: =IF(rng_Emp_Filter="",0,IF(tbl_Emp[[#This Row],[Helper 2]]<>"",1,0)) -> 0 | M187: =IF(rng_Emp_Filter="",tbl_Emp[[#This Row],[Helper 1]],INDEX(tbl_Emp[Helper 3],tbl_Emp[[#This Row],[Helper 1]])) -> 186 | N187: =IFERROR(INDEX(tbl_Emp[Turn OFF Controls],tbl_Emp[[#This Row],[Link]]),"") -> FAUSTA
A188: HELENA | B188: 324-341 | C188: 324 | D188: 341 | F188: 18700 | G188: =tbl_Emp[[#This Row],[Turn OFF Controls]] -> HELENA | H188: =IF(ISTEXT(OFFSET(tbl_Emp[[#This Row],[Helper 1]],-1,0)),1,OFFSET(tbl_Emp[[#This Row],[Helper 1]],-1,0)+1) -> 187 | I188: =IF(rng_Emp_Filter="",0,IF(ISNUMBER(SEARCH(rng_Emp_Filter,tbl_Emp[[#This Row],[Helper Key]])),tbl_Emp[[#This Row],[Helper 1]],"")) -> 0 | J188: =IFERROR(SMALL(tbl_Emp[Helper 2],tbl_Emp[[#This Row],[Helper 1]]),"") -> 0 | K188: =IF(OR(tbl_Emp[[#This Row],[Helper 2]]<>"",tbl_Emp[[#This Row],[Helper 3]]<>""),1,0) -> 1 | L188: =IF(rng_Emp_Filter="",0,IF(tbl_Emp[[#This Row],[Helper 2]]<>"",1,0)) -> 0 | M188: =IF(rng_Emp_Filter="",tbl_Emp[[#This Row],[Helper 1]],INDEX(tbl_Emp[Helper 3],tbl_Emp[[#This Row],[Helper 1]])) -> 187 | N188: =IFERROR(INDEX(tbl_Emp[Turn OFF Controls],tbl_Emp[[#This Row],[Link]]),"") -> HELENA
A189: VRBS ROMA | B189: 330-335 | C189: 330 | D189: 335 | E189: 17 | F189: 18800 | G189: =tbl_Emp[[#This Row],[Turn OFF Controls]] -> VRBS ROMA | H189: =IF(ISTEXT(OFFSET(tbl_Emp[[#This Row],[Helper 1]],-1,0)),1,OFFSET(tbl_Emp[[#This Row],[Helper 1]],-1,0)+1) -> 188 | I189: =IF(rng_Emp_Filter="",0,IF(ISNUMBER(SEARCH(rng_Emp_Filter,tbl_Emp[[#This Row],[Helper Key]])),tbl_Emp[[#This Row],[Helper 1]],"")) -> 0 | J189: =IFERROR(SMALL(tbl_Emp[Helper 2],tbl_Emp[[#This Row],[Helper 1]]),"") -> 0 | K189: =IF(OR(tbl_Emp[[#This Row],[Helper 2]]<>"",tbl_Emp[[#This Row],[Helper 3]]<>""),1,0) -> 1 | L189: =IF(rng_Emp_Filter="",0,IF(tbl_Emp[[#This Row],[Helper 2]]<>"",1,0)) -> 0 | M189: =IF(rng_Emp_Filter="",tbl_Emp[[#This Row],[Helper 1]],INDEX(tbl_Emp[Helper 3],tbl_Emp[[#This Row],[Helper 1]])) -> 188 | N189: =IFERROR(INDEX(tbl_Emp[Turn OFF Controls],tbl_Emp[[#This Row],[Link]]),"") -> VRBS ROMA
A190: CONSTANTINOPOLIS | B190: 330-335 | C190: 330 | D190: 335 | E190: 17 | F190: 18900 | G190: =tbl_Emp[[#This Row],[Turn OFF Controls]] -> CONSTANTINOPOLIS | H190: =IF(ISTEXT(OFFSET(tbl_Emp[[#This Row],[Helper 1]],-1,0)),1,OFFSET(tbl_Emp[[#This Row],[Helper 1]],-1,0)+1) -> 189 | I190: =IF(rng_Emp_Filter="",0,IF(ISNUMBER(SEARCH(rng_Emp_Filter,tbl_Emp[[#This Row],[Helper Key]])),tbl_Emp[[#This Row],[Helper 1]],"")) -> 0 | J190: =IFERROR(SMALL(tbl_Emp[Helper 2],tbl_Emp[[#This Row],[Helper 1]]),"") -> 0 | K190: =IF(OR(tbl_Emp[[#This Row],[Helper 2]]<>"",tbl_Emp[[#This Row],[Helper 3]]<>""),1,0) -> 1 | L190: =IF(rng_Emp_Filter="",0,IF(tbl_Emp[[#This Row],[Helper 2]]<>"",1,0)) -> 0 | M190: =IF(rng_Emp_Filter="",tbl_Emp[[#This Row],[Helper 1]],INDEX(tbl_Emp[Helper 3],tbl_Emp[[#This Row],[Helper 1]])) -> 189 | N190: =IFERROR(INDEX(tbl_Emp[Turn OFF Controls],tbl_Emp[[#This Row],[Link]]),"") -> CONSTANTINOPOLIS
A191: CONSTANS Caesar | B191: 333-337 | C191: 333 | D191: 337 | E191: 17 | F191: 19000 | G191: =tbl_Emp[[#This Row],[Turn OFF Controls]] -> CONSTANS Caesar | H191: =IF(ISTEXT(OFFSET(tbl_Emp[[#This Row],[Helper 1]],-1,0)),1,OFFSET(tbl_Emp[[#This Row],[Helper 1]],-1,0)+1) -> 190 | I191: =IF(rng_Emp_Filter="",0,IF(ISNUMBER(SEARCH(rng_Emp_Filter,tbl_Emp[[#This Row],[Helper Key]])),tbl_Emp[[#This Row],[Helper 1]],"")) -> 0 | J191: =IFERROR(SMALL(tbl_Emp[Helper 2],tbl_Emp[[#This Row],[Helper 1]]),"") -> 0 | K191: =IF(OR(tbl_Emp[[#This Row],[Helper 2]]<>"",tbl_Emp[[#This Row],[Helper 3]]<>""),1,0) -> 1 | L191: =IF(rng_Emp_Filter="",0,IF(tbl_Emp[[#This Row],[Helper 2]]<>"",1,0)) -> 0 | M191: =IF(rng_Emp_Filter="",tbl_Emp[[#This Row],[Helper 1]],INDEX(tbl_Emp[Helper 3],tbl_Emp[[#This Row],[Helper 1]])) -> 190 | N191: =IFERROR(INDEX(tbl_Emp[Turn OFF Controls],tbl_Emp[[#This Row],[Link]]),"") -> CONSTANS Caesar
A192: DELMATIUS Caesar | B192: 335-337 | C192: 335 | D192: 337 | E192: 17 | F192: 19100 | G192: =tbl_Emp[[#This Row],[Turn OFF Controls]] -> DELMATIUS Caesar | H192: =IF(ISTEXT(OFFSET(tbl_Emp[[#This Row],[Helper 1]],-1,0)),1,OFFSET(tbl_Emp[[#This Row],[Helper 1]],-1,0)+1) -> 191 | I192: =IF(rng_Emp_Filter="",0,IF(ISNUMBER(SEARCH(rng_Emp_Filter,tbl_Emp[[#This Row],[Helper Key]])),tbl_Emp[[#This Row],[Helper 1]],"")) -> 0 | J192: =IFERROR(SMALL(tbl_Emp[Helper 2],tbl_Emp[[#This Row],[Helper 1]]),"") -> 0 | K192: =IF(OR(tbl_Emp[[#This Row],[Helper 2]]<>"",tbl_Emp[[#This Row],[Helper 3]]<>""),1,0) -> 1 | L192: =IF(rng_Emp_Filter="",0,IF(tbl_Emp[[#This Row],[Helper 2]]<>"",1,0)) -> 0 | M192: =IF(rng_Emp_Filter="",tbl_Emp[[#This Row],[Helper 1]],INDEX(tbl_Emp[Helper 3],tbl_Emp[[#This Row],[Helper 1]])) -> 191 | N192: =IFERROR(INDEX(tbl_Emp[Turn OFF Controls],tbl_Emp[[#This Row],[Link]]),"") -> DELMATIUS Caesar
A193: HANNIBALLIAN REX | B193: 335-338 | C193: 335 | D193: 338 | E193: 17 | F193: 19200 | G193: =tbl_Emp[[#This Row],[Turn OFF Controls]] -> HANNIBALLIAN REX | H193: =IF(ISTEXT(OFFSET(tbl_Emp[[#This Row],[Helper 1]],-1,0)),1,OFFSET(tbl_Emp[[#This Row],[Helper 1]],-1,0)+1) -> 192 | I193: =IF(rng_Emp_Filter="",0,IF(ISNUMBER(SEARCH(rng_Emp_Filter,tbl_Emp[[#This Row],[Helper Key]])),tbl_Emp[[#This Row],[Helper 1]],"")) -> 0 | J193: =IFERROR(SMALL(tbl_Emp[Helper 2],tbl_Emp[[#This Row],[Helper 1]]),"") -> 0 | K193: =IF(OR(tbl_Emp[[#This Row],[Helper 2]]<>"",tbl_Emp[[#This Row],[Helper 3]]<>""),1,0) -> 1 | L193: =IF(rng_Emp_Filter="",0,IF(tbl_Emp[[#This Row],[Helper 2]]<>"",1,0)) -> 0 | M193: =IF(rng_Emp_Filter="",tbl_Emp[[#This Row],[Helper 1]],INDEX(tbl_Emp[Helper 3],tbl_Emp[[#This Row],[Helper 1]])) -> 192 | N193: =IFERROR(INDEX(tbl_Emp[Turn OFF Controls],tbl_Emp[[#This Row],[Link]]),"") -> HANNIBALLIAN REX
A194: DIVUS CONSTANTINE I | B194: 337-341 | C194: 337 | D194: 341 | E194: 17 | F194: 19300 | G194: =tbl_Emp[[#This Row],[Turn OFF Controls]] -> DIVUS CONSTANTINE I | H194: =IF(ISTEXT(OFFSET(tbl_Emp[[#This Row],[Helper 1]],-1,0)),1,OFFSET(tbl_Emp[[#This Row],[Helper 1]],-1,0)+1) -> 193 | I194: =IF(rng_Emp_Filter="",0,IF(ISNUMBER(SEARCH(rng_Emp_Filter,tbl_Emp[[#This Row],[Helper Key]])),tbl_Emp[[#This Row],[Helper 1]],"")) -> 0 | J194: =IFERROR(SMALL(tbl_Emp[Helper 2],tbl_Emp[[#This Row],[Helper 1]]),"") -> 0 | K194: =IF(OR(tbl_Emp[[#This Row],[Helper 2]]<>"",tbl_Emp[[#This Row],[Helper 3]]<>""),1,0) -> 1 | L194: =IF(rng_Emp_Filter="",0,IF(tbl_Emp[[#This Row],[Helper 2]]<>"",1,0)) -> 0 | M194: =IF(rng_Emp_Filter="",tbl_Emp[[#This Row],[Helper 1]],INDEX(tbl_Emp[Helper 3],tbl_Emp[[#This Row],[Helper 1]])) -> 193 | N194: =IFERROR(INDEX(tbl_Emp[Turn OFF Controls],tbl_Emp[[#This Row],[Link]]),"") -> DIVUS CONSTANTINE I
A195: CONSTANTINE II | B195: 337-340 | C195: 337 | D195: 340 | E195: 17 | F195: =F194+100 -> 19400 | G195: =tbl_Emp[[#This Row],[Turn OFF Controls]] -> CONSTANTINE II | H195: =IF(ISTEXT(OFFSET(tbl_Emp[[#This Row],[Helper 1]],-1,0)),1,OFFSET(tbl_Emp[[#This Row],[Helper 1]],-1,0)+1) -> 194 | I195: =IF(rng_Emp_Filter="",0,IF(ISNUMBER(SEARCH(rng_Emp_Filter,tbl_Emp[[#This Row],[Helper Key]])),tbl_Emp[[#This Row],[Helper 1]],"")) -> 0 | J195: =IFERROR(SMALL(tbl_Emp[Helper 2],tbl_Emp[[#This Row],[Helper 1]]),"") -> 0 | K195: =IF(OR(tbl_Emp[[#This Row],[Helper 2]]<>"",tbl_Emp[[#This Row],[Helper 3]]<>""),1,0) -> 1 | L195: =IF(rng_Emp_Filter="",0,IF(tbl_Emp[[#This Row],[Helper 2]]<>"",1,0)) -> 0 | M195: =IF(rng_Emp_Filter="",tbl_Emp[[#This Row],[Helper 1]],INDEX(tbl_Emp[Helper 3],tbl_Emp[[#This Row],[Helper 1]])) -> 194 | N195: =IFERROR(INDEX(tbl_Emp[Turn OFF Controls],tbl_Emp[[#This Row],[Link]]),"") -> CONSTANTINE II
A196: THEODORA | B196: 337-341 | C196: 337 | D196: 341 | E196: 17 | F196: 19500 | G196: =tbl_Emp[[#This Row],[Turn OFF Controls]] -> THEODORA | H196: =IF(ISTEXT(OFFSET(tbl_Emp[[#This Row],[Helper 1]],-1,0)),1,OFFSET(tbl_Emp[[#This Row],[Helper 1]],-1,0)+1) -> 195 | I196: =IF(rng_Emp_Filter="",0,IF(ISNUMBER(SEARCH(rng_Emp_Filter,tbl_Emp[[#This Row],[Helper Key]])),tbl_Emp[[#This Row],[Helper 1]],"")) -> 0 | J196: =IFERROR(SMALL(tbl_Emp[Helper 2],tbl_Emp[[#This Row],[Helper 1]]),"") -> 0 | K196: =IF(OR(tbl_Emp[[#This Row],[Helper 2]]<>"",tbl_Emp[[#This Row],[Helper 3]]<>""),1,0) -> 1 | L196: =IF(rng_Emp_Filter="",0,IF(tbl_Emp[[#This Row],[Helper 2]]<>"",1,0)) -> 0 | M196: =IF(rng_Emp_Filter="",tbl_Emp[[#This Row],[Helper 1]],INDEX(tbl_Emp[Helper 3],tbl_Emp[[#This Row],[Helper 1]])) -> 195 | N196: =IFERROR(INDEX(tbl_Emp[Turn OFF Controls],tbl_Emp[[#This Row],[Link]]),"") -> THEODORA
A197: CONSTANS | B197: 337-350 | C197: 337 | D197: 350 | F197: 19600 | G197: =tbl_Emp[[#This Row],[Turn OFF Controls]] -> CONSTANS | H197: =IF(ISTEXT(OFFSET(tbl_Emp[[#This Row],[Helper 1]],-1,0)),1,OFFSET(tbl_Emp[[#This Row],[Helper 1]],-1,0)+1) -> 196 | I197: =IF(rng_Emp_Filter="",0,IF(ISNUMBER(SEARCH(rng_Emp_Filter,tbl_Emp[[#This Row],[Helper Key]])),tbl_Emp[[#This Row],[Helper 1]],"")) -> 0 | J197: =IFERROR(SMALL(tbl_Emp[Helper 2],tbl_Emp[[#This Row],[Helper 1]]),"") -> 0 | K197: =IF(OR(tbl_Emp[[#This Row],[Helper 2]]<>"",tbl_Emp[[#This Row],[Helper 3]]<>""),1,0) -> 1 | L197: =IF(rng_Emp_Filter="",0,IF(tbl_Emp[[#This Row],[Helper 2]]<>"",1,0)) -> 0 | M197: =IF(rng_Emp_Filter="",tbl_Emp[[#This Row],[Helper 1]],INDEX(tbl_Emp[Helper 3],tbl_Emp[[#This Row],[Helper 1]])) -> 196 | N197: =IFERROR(INDEX(tbl_Emp[Turn OFF Controls],tbl_Emp[[#This Row],[Link]]),"") -> CONSTANS
A198: CONSTANTIUS II | B198: 337-361 | C198: 337 | D198: 361 | F198: 19700 | G198: =tbl_Emp[[#This Row],[Turn OFF Controls]] -> CONSTANTIUS II | H198: =IF(ISTEXT(OFFSET(tbl_Emp[[#This Row],[Helper 1]],-1,0)),1,OFFSET(tbl_Emp[[#This Row],[Helper 1]],-1,0)+1) -> 197 | I198: =IF(rng_Emp_Filter="",0,IF(ISNUMBER(SEARCH(rng_Emp_Filter,tbl_Emp[[#This Row],[Helper Key]])),tbl_Emp[[#This Row],[Helper 1]],"")) -> 0 | J198: =IFERROR(SMALL(tbl_Emp[Helper 2],tbl_Emp[[#This Row],[Helper 1]]),"") -> 0 | K198: =IF(OR(tbl_Emp[[#This Row],[Helper 2]]<>"",tbl_Emp[[#This Row],[Helper 3]]<>""),1,0) -> 1 | L198: =IF(rng_Emp_Filter="",0,IF(tbl_Emp[[#This Row],[Helper 2]]<>"",1,0)) -> 0 | M198: =IF(rng_Emp_Filter="",tbl_Emp[[#This Row],[Helper 1]],INDEX(tbl_Emp[Helper 3],tbl_Emp[[#This Row],[Helper 1]])) -> 197 | N198: =IFERROR(INDEX(tbl_Emp[Turn OFF Controls],tbl_Emp[[#This Row],[Link]]),"") -> CONSTANTIUS II
A199: POP ROMANUS | B199: 346-348 | C199: 346 | D199: 348 | E199: 17 | F199: 19800 | G199: =tbl_Emp[[#This Row],[Turn OFF Controls]] -> POP ROMANUS | H199: =IF(ISTEXT(OFFSET(tbl_Emp[[#This Row],[Helper 1]],-1,0)),1,OFFSET(tbl_Emp[[#This Row],[Helper 1]],-1,0)+1) -> 198 | I199: =IF(rng_Emp_Filter="",0,IF(ISNUMBER(SEARCH(rng_Emp_Filter,tbl_Emp[[#This Row],[Helper Key]])),tbl_Emp[[#This Row],[Helper 1]],"")) -> 0 | J199: =IFERROR(SMALL(tbl_Emp[Helper 2],tbl_Emp[[#This Row],[Helper 1]]),"") -> 0 | K199: =IF(OR(tbl_Emp[[#This Row],[Helper 2]]<>"",tbl_Emp[[#This Row],[Helper 3]]<>""),1,0) -> 1 | L199: =IF(rng_Emp_Filter="",0,IF(tbl_Emp[[#This Row],[Helper 2]]<>"",1,0)) -> 0 | M199: =IF(rng_Emp_Filter="",tbl_Emp[[#This Row],[Helper 1]],INDEX(tbl_Emp[Helper 3],tbl_Emp[[#This Row],[Helper 1]])) -> 198 | N199: =IFERROR(INDEX(tbl_Emp[Turn OFF Controls],tbl_Emp[[#This Row],[Link]]),"") -> POP ROMANUS
A200: NEPOTIAN | B200: 350 | C200: 350 | D200: 350 | E200: 18 | F200: 19900 | G200: =tbl_Emp[[#This Row],[Turn OFF Controls]] -> NEPOTIAN | H200: =IF(ISTEXT(OFFSET(tbl_Emp[[#This Row],[Helper 1]],-1,0)),1,OFFSET(tbl_Emp[[#This Row],[Helper 1]],-1,0)+1) -> 199 | I200: =IF(rng_Emp_Filter="",0,IF(ISNUMBER(SEARCH(rng_Emp_Filter,tbl_Emp[[#This Row],[Helper Key]])),tbl_Emp[[#This Row],[Helper 1]],"")) -> 0 | J200: =IFERROR(SMALL(tbl_Emp[Helper 2],tbl_Emp[[#This Row],[Helper 1]]),"") -> 0 | K200: =IF(OR(tbl_Emp[[#This Row],[Helper 2]]<>"",tbl_Emp[[#This Row],[Helper 3]]<>""),1,0) -> 1 | L200: =IF(rng_Emp_Filter="",0,IF(tbl_Emp[[#This Row],[Helper 2]]<>"",1,0)) -> 0 | M200: =IF(rng_Emp_Filter="",tbl_Emp[[#This Row],[Helper 1]],INDEX(tbl_Emp[Helper 3],tbl_Emp[[#This Row],[Helper 1]])) -> 199 | N200: =IFERROR(INDEX(tbl_Emp[Turn OFF Controls],tbl_Emp[[#This Row],[Link]]),"") -> NEPOTIAN
... 38 more rows

Sheet Denominations tbl
A1: Denomination | B1: Metal | C1: heirarchy | D1: Helper Key | E1: Helper 1 | F1: Helper 2 | G1: Helper 3 | H1: Helper 4 | I1: Helper 5 | J1: Link | K1: FilterDen | M1: rng_Den_Filter >>> | P1: <<< Hidden Technical Area
A2: Aureus | B2: Gold | C2: 100 | D2: =tbl_Den[[#This Row],[Denomination]] -> Aureus | E2: =IF(ISTEXT(OFFSET(tbl_Den[[#This Row],[Helper 1]],-1,0)),1,OFFSET(tbl_Den[[#This Row],[Helper 1]],-1,0)+1) -> 1 | F2: =IF(rng_Den_Filter="",0,IF(ISNUMBER(SEARCH(rng_Den_Filter,tbl_Den[[#This Row],[Helper Key]])),tbl_Den[[#This Row],[Helper 1]],"")) -> 0 | G2: =IFERROR(SMALL(tbl_Den[Helper 2],tbl_Den[[#This Row],[Helper 1]]),"") -> 0 | H2: =IF(OR(tbl_Den[[#This Row],[Helper 2]]<>"",tbl_Den[[#This Row],[Helper 3]]<>""),1,0) -> 1 | I2: =IF(rng_Den_Filter="",0,IF(tbl_Den[[#This Row],[Helper 2]]<>"",1,0)) -> 0 | J2: =IF(rng_Den_Filter="",tbl_Den[[#This Row],[Helper 1]],INDEX(tbl_Den[Helper 3],tbl_Den[[#This Row],[Helper 1]])) -> 1 | K2: =IFERROR(INDEX(tbl_Den[Denomination],tbl_Den[[#This Row],[Link]]),"") -> Aureus | M2: rng_DenCount >>> | N2: =COUNTA(tbl_Den[Helper 1])-COUNTIF(tbl_Den[Link],"") -> 30
A3: Solidus | B3: Gold | C3: =C2+100 -> 200 | D3: =tbl_Den[[#This Row],[Denomination]] -> Solidus | E3: =IF(ISTEXT(OFFSET(tbl_Den[[#This Row],[Helper 1]],-1,0)),1,OFFSET(tbl_Den[[#This Row],[Helper 1]],-1,0)+1) -> 2 | F3: =IF(rng_Den_Filter="",0,IF(ISNUMBER(SEARCH(rng_Den_Filter,tbl_Den[[#This Row],[Helper Key]])),tbl_Den[[#This Row],[Helper 1]],"")) -> 0 | G3: =IFERROR(SMALL(tbl_Den[Helper 2],tbl_Den[[#This Row],[Helper 1]]),"") -> 0 | H3: =IF(OR(tbl_Den[[#This Row],[Helper 2]]<>"",tbl_Den[[#This Row],[Helper 3]]<>""),1,0) -> 1 | I3: =IF(rng_Den_Filter="",0,IF(tbl_Den[[#This Row],[Helper 2]]<>"",1,0)) -> 0 | J3: =IF(rng_Den_Filter="",tbl_Den[[#This Row],[Helper 1]],INDEX(tbl_Den[Helper 3],tbl_Den[[#This Row],[Helper 1]])) -> 2 | K3: =IFERROR(INDEX(tbl_Den[Denomination],tbl_Den[[#This Row],[Link]]),"") -> Solidus | M3: rng_DenSel >>> | N3: Aureus
A4: Solidus (fraction) | B4: Gold | C4: 300 | D4: =tbl_Den[[#This Row],[Denomination]] -> Solidus (fraction) | E4: =IF(ISTEXT(OFFSET(tbl_Den[[#This Row],[Helper 1]],-1,0)),1,OFFSET(tbl_Den[[#This Row],[Helper 1]],-1,0)+1) -> 3 | F4: =IF(rng_Den_Filter="",0,IF(ISNUMBER(SEARCH(rng_Den_Filter,tbl_Den[[#This Row],[Helper Key]])),tbl_Den[[#This Row],[Helper 1]],"")) -> 0 | G4: =IFERROR(SMALL(tbl_Den[Helper 2],tbl_Den[[#This Row],[Helper 1]]),"") -> 0 | H4: =IF(OR(tbl_Den[[#This Row],[Helper 2]]<>"",tbl_Den[[#This Row],[Helper 3]]<>""),1,0) -> 1 | I4: =IF(rng_Den_Filter="",0,IF(tbl_Den[[#This Row],[Helper 2]]<>"",1,0)) -> 0 | J4: =IF(rng_Den_Filter="",tbl_Den[[#This Row],[Helper 1]],INDEX(tbl_Den[Helper 3],tbl_Den[[#This Row],[Helper 1]])) -> 3 | K4: =IFERROR(INDEX(tbl_Den[Denomination],tbl_Den[[#This Row],[Link]]),"") -> Solidus (fraction)
A5: Solidus (multiple) | B5: Gold | C5: 400 | D5: =tbl_Den[[#This Row],[Denomination]] -> Solidus (multiple) | E5: =IF(ISTEXT(OFFSET(tbl_Den[[#This Row],[Helper 1]],-1,0)),1,OFFSET(tbl_Den[[#This Row],[Helper 1]],-1,0)+1) -> 4 | F5: =IF(rng_Den_Filter="",0,IF(ISNUMBER(SEARCH(rng_Den_Filter,tbl_Den[[#This Row],[Helper Key]])),tbl_Den[[#This Row],[Helper 1]],"")) -> 0 | G5: =IFERROR(SMALL(tbl_Den[Helper 2],tbl_Den[[#This Row],[Helper 1]]),"") -> 0 | H5: =IF(OR(tbl_Den[[#This Row],[Helper 2]]<>"",tbl_Den[[#This Row],[Helper 3]]<>""),1,0) -> 1 | I5: =IF(rng_Den_Filter="",0,IF(tbl_Den[[#This Row],[Helper 2]]<>"",1,0)) -> 0 | J5: =IF(rng_Den_Filter="",tbl_Den[[#This Row],[Helper 1]],INDEX(tbl_Den[Helper 3],tbl_Den[[#This Row],[Helper 1]])) -> 4 | K5: =IFERROR(INDEX(tbl_Den[Denomination],tbl_Den[[#This Row],[Link]]),"") -> Solidus (multiple)
A6: Uncertain Gold | B6: Gold | C6: 500 | D6: =tbl_Den[[#This Row],[Denomination]] -> Uncertain Gold | E6: =IF(ISTEXT(OFFSET(tbl_Den[[#This Row],[Helper 1]],-1,0)),1,OFFSET(tbl_Den[[#This Row],[Helper 1]],-1,0)+1) -> 5 | F6: =IF(rng_Den_Filter="",0,IF(ISNUMBER(SEARCH(rng_Den_Filter,tbl_Den[[#This Row],[Helper Key]])),tbl_Den[[#This Row],[Helper 1]],"")) -> 0 | G6: =IFERROR(SMALL(tbl_Den[Helper 2],tbl_Den[[#This Row],[Helper 1]]),"") -> 0 | H6: =IF(OR(tbl_Den[[#This Row],[Helper 2]]<>"",tbl_Den[[#This Row],[Helper 3]]<>""),1,0) -> 1 | I6: =IF(rng_Den_Filter="",0,IF(tbl_Den[[#This Row],[Helper 2]]<>"",1,0)) -> 0 | J6: =IF(rng_Den_Filter="",tbl_Den[[#This Row],[Helper 1]],INDEX(tbl_Den[Helper 3],tbl_Den[[#This Row],[Helper 1]])) -> 5 | K6: =IFERROR(INDEX(tbl_Den[Denomination],tbl_Den[[#This Row],[Link]]),"") -> Uncertain Gold
A7: Denarius | B7: Silver | C7: 600 | D7: =tbl_Den[[#This Row],[Denomination]] -> Denarius | E7: =IF(ISTEXT(OFFSET(tbl_Den[[#This Row],[Helper 1]],-1,0)),1,OFFSET(tbl_Den[[#This Row],[Helper 1]],-1,0)+1) -> 6 | F7: =IF(rng_Den_Filter="",0,IF(ISNUMBER(SEARCH(rng_Den_Filter,tbl_Den[[#This Row],[Helper Key]])),tbl_Den[[#This Row],[Helper 1]],"")) -> 0 | G7: =IFERROR(SMALL(tbl_Den[Helper 2],tbl_Den[[#This Row],[Helper 1]]),"") -> 0 | H7: =IF(OR(tbl_Den[[#This Row],[Helper 2]]<>"",tbl_Den[[#This Row],[Helper 3]]<>""),1,0) -> 1 | I7: =IF(rng_Den_Filter="",0,IF(tbl_Den[[#This Row],[Helper 2]]<>"",1,0)) -> 0 | J7: =IF(rng_Den_Filter="",tbl_Den[[#This Row],[Helper 1]],INDEX(tbl_Den[Helper 3],tbl_Den[[#This Row],[Helper 1]])) -> 6 | K7: =IFERROR(INDEX(tbl_Den[Denomination],tbl_Den[[#This Row],[Link]]),"") -> Denarius
A8: Quinarius | B8: Silver | C8: 700 | D8: =tbl_Den[[#This Row],[Denomination]] -> Quinarius | E8: =IF(ISTEXT(OFFSET(tbl_Den[[#This Row],[Helper 1]],-1,0)),1,OFFSET(tbl_Den[[#This Row],[Helper 1]],-1,0)+1) -> 7 | F8: =IF(rng_Den_Filter="",0,IF(ISNUMBER(SEARCH(rng_Den_Filter,tbl_Den[[#This Row],[Helper Key]])),tbl_Den[[#This Row],[Helper 1]],"")) -> 0 | G8: =IFERROR(SMALL(tbl_Den[Helper 2],tbl_Den[[#This Row],[Helper 1]]),"") -> 0 | H8: =IF(OR(tbl_Den[[#This Row],[Helper 2]]<>"",tbl_Den[[#This Row],[Helper 3]]<>""),1,0) -> 1 | I8: =IF(rng_Den_Filter="",0,IF(tbl_Den[[#This Row],[Helper 2]]<>"",1,0)) -> 0 | J8: =IF(rng_Den_Filter="",tbl_Den[[#This Row],[Helper 1]],INDEX(tbl_Den[Helper 3],tbl_Den[[#This Row],[Helper 1]])) -> 7 | K8: =IFERROR(INDEX(tbl_Den[Denomination],tbl_Den[[#This Row],[Link]]),"") -> Quinarius
A9: Argenteus | B9: Silver | C9: 800 | D9: =tbl_Den[[#This Row],[Denomination]] -> Argenteus | E9: =IF(ISTEXT(OFFSET(tbl_Den[[#This Row],[Helper 1]],-1,0)),1,OFFSET(tbl_Den[[#This Row],[Helper 1]],-1,0)+1) -> 8 | F9: =IF(rng_Den_Filter="",0,IF(ISNUMBER(SEARCH(rng_Den_Filter,tbl_Den[[#This Row],[Helper Key]])),tbl_Den[[#This Row],[Helper 1]],"")) -> 0 | G9: =IFERROR(SMALL(tbl_Den[Helper 2],tbl_Den[[#This Row],[Helper 1]]),"") -> 0 | H9: =IF(OR(tbl_Den[[#This Row],[Helper 2]]<>"",tbl_Den[[#This Row],[Helper 3]]<>""),1,0) -> 1 | I9: =IF(rng_Den_Filter="",0,IF(tbl_Den[[#This Row],[Helper 2]]<>"",1,0)) -> 0 | J9: =IF(rng_Den_Filter="",tbl_Den[[#This Row],[Helper 1]],INDEX(tbl_Den[Helper 3],tbl_Den[[#This Row],[Helper 1]])) -> 8 | K9: =IFERROR(INDEX(tbl_Den[Denomination],tbl_Den[[#This Row],[Link]]),"") -> Argenteus
A10: Miliarensis | B10: Silver | C10: 900 | D10: =tbl_Den[[#This Row],[Denomination]] -> Miliarensis | E10: =IF(ISTEXT(OFFSET(tbl_Den[[#This Row],[Helper 1]],-1,0)),1,OFFSET(tbl_Den[[#This Row],[Helper 1]],-1,0)+1) -> 9 | F10: =IF(rng_Den_Filter="",0,IF(ISNUMBER(SEARCH(rng_Den_Filter,tbl_Den[[#This Row],[Helper Key]])),tbl_Den[[#This Row],[Helper 1]],"")) -> 0 | G10: =IFERROR(SMALL(tbl_Den[Helper 2],tbl_Den[[#This Row],[Helper 1]]),"") -> 0 | H10: =IF(OR(tbl_Den[[#This Row],[Helper 2]]<>"",tbl_Den[[#This Row],[Helper 3]]<>""),1,0) -> 1 | I10: =IF(rng_Den_Filter="",0,IF(tbl_Den[[#This Row],[Helper 2]]<>"",1,0)) -> 0 | J10: =IF(rng_Den_Filter="",tbl_Den[[#This Row],[Helper 1]],INDEX(tbl_Den[Helper 3],tbl_Den[[#This Row],[Helper 1]])) -> 9 | K10: =IFERROR(INDEX(tbl_Den[Denomination],tbl_Den[[#This Row],[Link]]),"") -> Miliarensis
A11: Siliqua | B11: Silver | C11: 1000 | D11: =tbl_Den[[#This Row],[Denomination]] -> Siliqua | E11: =IF(ISTEXT(OFFSET(tbl_Den[[#This Row],[Helper 1]],-1,0)),1,OFFSET(tbl_Den[[#This Row],[Helper 1]],-1,0)+1) -> 10 | F11: =IF(rng_Den_Filter="",0,IF(ISNUMBER(SEARCH(rng_Den_Filter,tbl_Den[[#This Row],[Helper Key]])),tbl_Den[[#This Row],[Helper 1]],"")) -> 0 | G11: =IFERROR(SMALL(tbl_Den[Helper 2],tbl_Den[[#This Row],[Helper 1]]),"") -> 0 | H11: =IF(OR(tbl_Den[[#This Row],[Helper 2]]<>"",tbl_Den[[#This Row],[Helper 3]]<>""),1,0) -> 1 | I11: =IF(rng_Den_Filter="",0,IF(tbl_Den[[#This Row],[Helper 2]]<>"",1,0)) -> 0 | J11: =IF(rng_Den_Filter="",tbl_Den[[#This Row],[Helper 1]],INDEX(tbl_Den[Helper 3],tbl_Den[[#This Row],[Helper 1]])) -> 10 | K11: =IFERROR(INDEX(tbl_Den[Denomination],tbl_Den[[#This Row],[Link]]),"") -> Siliqua
A12: Half-siliqua | B12: Silver | C12: 1100 | D12: =tbl_Den[[#This Row],[Denomination]] -> Half-siliqua | E12: =IF(ISTEXT(OFFSET(tbl_Den[[#This Row],[Helper 1]],-1,0)),1,OFFSET(tbl_Den[[#This Row],[Helper 1]],-1,0)+1) -> 11 | F12: =IF(rng_Den_Filter="",0,IF(ISNUMBER(SEARCH(rng_Den_Filter,tbl_Den[[#This Row],[Helper Key]])),tbl_Den[[#This Row],[Helper 1]],"")) -> 0 | G12: =IFERROR(SMALL(tbl_Den[Helper 2],tbl_Den[[#This Row],[Helper 1]]),"") -> 0 | H12: =IF(OR(tbl_Den[[#This Row],[Helper 2]]<>"",tbl_Den[[#This Row],[Helper 3]]<>""),1,0) -> 1 | I12: =IF(rng_Den_Filter="",0,IF(tbl_Den[[#This Row],[Helper 2]]<>"",1,0)) -> 0 | J12: =IF(rng_Den_Filter="",tbl_Den[[#This Row],[Helper 1]],INDEX(tbl_Den[Helper 3],tbl_Den[[#This Row],[Helper 1]])) -> 11 | K12: =IFERROR(INDEX(tbl_Den[Denomination],tbl_Den[[#This Row],[Link]]),"") -> Half-siliqua
A13: Uncertain Silver | B13: Silver | C13: 1200 | D13: =tbl_Den[[#This Row],[Denomination]] -> Uncertain Silver | E13: =IF(ISTEXT(OFFSET(tbl_Den[[#This Row],[Helper 1]],-1,0)),1,OFFSET(tbl_Den[[#This Row],[Helper 1]],-1,0)+1) -> 12 | F13: =IF(rng_Den_Filter="",0,IF(ISNUMBER(SEARCH(rng_Den_Filter,tbl_Den[[#This Row],[Helper Key]])),tbl_Den[[#This Row],[Helper 1]],"")) -> 0 | G13: =IFERROR(SMALL(tbl_Den[Helper 2],tbl_Den[[#This Row],[Helper 1]]),"") -> 0 | H13: =IF(OR(tbl_Den[[#This Row],[Helper 2]]<>"",tbl_Den[[#This Row],[Helper 3]]<>""),1,0) -> 1 | I13: =IF(rng_Den_Filter="",0,IF(tbl_Den[[#This Row],[Helper 2]]<>"",1,0)) -> 0 | J13: =IF(rng_Den_Filter="",tbl_Den[[#This Row],[Helper 1]],INDEX(tbl_Den[Helper 3],tbl_Den[[#This Row],[Helper 1]])) -> 12 | K13: =IFERROR(INDEX(tbl_Den[Denomination],tbl_Den[[#This Row],[Link]]),"") -> Uncertain Silver
A14: Radiate | B14: Billon | C14: 1300 | D14: =tbl_Den[[#This Row],[Denomination]] -> Radiate | E14: =IF(ISTEXT(OFFSET(tbl_Den[[#This Row],[Helper 1]],-1,0)),1,OFFSET(tbl_Den[[#This Row],[Helper 1]],-1,0)+1) -> 13 | F14: =IF(rng_Den_Filter="",0,IF(ISNUMBER(SEARCH(rng_Den_Filter,tbl_Den[[#This Row],[Helper Key]])),tbl_Den[[#This Row],[Helper 1]],"")) -> 0 | G14: =IFERROR(SMALL(tbl_Den[Helper 2],tbl_Den[[#This Row],[Helper 1]]),"") -> 0 | H14: =IF(OR(tbl_Den[[#This Row],[Helper 2]]<>"",tbl_Den[[#This Row],[Helper 3]]<>""),1,0) -> 1 | I14: =IF(rng_Den_Filter="",0,IF(tbl_Den[[#This Row],[Helper 2]]<>"",1,0)) -> 0 | J14: =IF(rng_Den_Filter="",tbl_Den[[#This Row],[Helper 1]],INDEX(tbl_Den[Helper 3],tbl_Den[[#This Row],[Helper 1]])) -> 13 | K14: =IFERROR(INDEX(tbl_Den[Denomination],tbl_Den[[#This Row],[Link]]),"") -> Radiate
A15: Double sestertius | B15: Copper alloy | C15: 1400 | D15: =tbl_Den[[#This Row],[Denomination]] -> Double sestertius | E15: =IF(ISTEXT(OFFSET(tbl_Den[[#This Row],[Helper 1]],-1,0)),1,OFFSET(tbl_Den[[#This Row],[Helper 1]],-1,0)+1) -> 14 | F15: =IF(rng_Den_Filter="",0,IF(ISNUMBER(SEARCH(rng_Den_Filter,tbl_Den[[#This Row],[Helper Key]])),tbl_Den[[#This Row],[Helper 1]],"")) -> 0 | G15: =IFERROR(SMALL(tbl_Den[Helper 2],tbl_Den[[#This Row],[Helper 1]]),"") -> 0 | H15: =IF(OR(tbl_Den[[#This Row],[Helper 2]]<>"",tbl_Den[[#This Row],[Helper 3]]<>""),1,0) -> 1 | I15: =IF(rng_Den_Filter="",0,IF(tbl_Den[[#This Row],[Helper 2]]<>"",1,0)) -> 0 | J15: =IF(rng_Den_Filter="",tbl_Den[[#This Row],[Helper 1]],INDEX(tbl_Den[Helper 3],tbl_Den[[#This Row],[Helper 1]])) -> 14 | K15: =IFERROR(INDEX(tbl_Den[Denomination],tbl_Den[[#This Row],[Link]]),"") -> Double sestertius
A16: Sestertius | B16: Copper alloy | C16: 1500 | D16: =tbl_Den[[#This Row],[Denomination]] -> Sestertius | E16: =IF(ISTEXT(OFFSET(tbl_Den[[#This Row],[Helper 1]],-1,0)),1,OFFSET(tbl_Den[[#This Row],[Helper 1]],-1,0)+1) -> 15 | F16: =IF(rng_Den_Filter="",0,IF(ISNUMBER(SEARCH(rng_Den_Filter,tbl_Den[[#This Row],[Helper Key]])),tbl_Den[[#This Row],[Helper 1]],"")) -> 0 | G16: =IFERROR(SMALL(tbl_Den[Helper 2],tbl_Den[[#This Row],[Helper 1]]),"") -> 0 | H16: =IF(OR(tbl_Den[[#This Row],[Helper 2]]<>"",tbl_Den[[#This Row],[Helper 3]]<>""),1,0) -> 1 | I16: =IF(rng_Den_Filter="",0,IF(tbl_Den[[#This Row],[Helper 2]]<>"",1,0)) -> 0 | J16: =IF(rng_Den_Filter="",tbl_Den[[#This Row],[Helper 1]],INDEX(tbl_Den[Helper 3],tbl_Den[[#This Row],[Helper 1]])) -> 15 | K16: =IFERROR(INDEX(tbl_Den[Denomination],tbl_Den[[#This Row],[Link]]),"") -> Sestertius
A17: Dupondius | B17: Copper alloy | C17: 1600 | D17: =tbl_Den[[#This Row],[Denomination]] -> Dupondius | E17: =IF(ISTEXT(OFFSET(tbl_Den[[#This Row],[Helper 1]],-1,0)),1,OFFSET(tbl_Den[[#This Row],[Helper 1]],-1,0)+1) -> 16 | F17: =IF(rng_Den_Filter="",0,IF(ISNUMBER(SEARCH(rng_Den_Filter,tbl_Den[[#This Row],[Helper Key]])),tbl_Den[[#This Row],[Helper 1]],"")) -> 0 | G17: =IFERROR(SMALL(tbl_Den[Helper 2],tbl_Den[[#This Row],[Helper 1]]),"") -> 0 | H17: =IF(OR(tbl_Den[[#This Row],[Helper 2]]<>"",tbl_Den[[#This Row],[Helper 3]]<>""),1,0) -> 1 | I17: =IF(rng_Den_Filter="",0,IF(tbl_Den[[#This Row],[Helper 2]]<>"",1,0)) -> 0 | J17: =IF(rng_Den_Filter="",tbl_Den[[#This Row],[Helper 1]],INDEX(tbl_Den[Helper 3],tbl_Den[[#This Row],[Helper 1]])) -> 16 | K17: =IFERROR(INDEX(tbl_Den[Denomination],tbl_Den[[#This Row],[Link]]),"") -> Dupondius
A18: As | B18: Copper alloy | C18: 1700 | D18: =tbl_Den[[#This Row],[Denomination]] -> As | E18: =IF(ISTEXT(OFFSET(tbl_Den[[#This Row],[Helper 1]],-1,0)),1,OFFSET(tbl_Den[[#This Row],[Helper 1]],-1,0)+1) -> 17 | F18: =IF(rng_Den_Filter="",0,IF(ISNUMBER(SEARCH(rng_Den_Filter,tbl_Den[[#This Row],[Helper Key]])),tbl_Den[[#This Row],[Helper 1]],"")) -> 0 | G18: =IFERROR(SMALL(tbl_Den[Helper 2],tbl_Den[[#This Row],[Helper 1]]),"") -> 0 | H18: =IF(OR(tbl_Den[[#This Row],[Helper 2]]<>"",tbl_Den[[#This Row],[Helper 3]]<>""),1,0) -> 1 | I18: =IF(rng_Den_Filter="",0,IF(tbl_Den[[#This Row],[Helper 2]]<>"",1,0)) -> 0 | J18: =IF(rng_Den_Filter="",tbl_Den[[#This Row],[Helper 1]],INDEX(tbl_Den[Helper 3],tbl_Den[[#This Row],[Helper 1]])) -> 17 | K18: =IFERROR(INDEX(tbl_Den[Denomination],tbl_Den[[#This Row],[Link]]),"") -> As
A19: Dupondius/As | B19: Copper alloy | C19: 1800 | D19: =tbl_Den[[#This Row],[Denomination]] -> Dupondius/As | E19: =IF(ISTEXT(OFFSET(tbl_Den[[#This Row],[Helper 1]],-1,0)),1,OFFSET(tbl_Den[[#This Row],[Helper 1]],-1,0)+1) -> 18 | F19: =IF(rng_Den_Filter="",0,IF(ISNUMBER(SEARCH(rng_Den_Filter,tbl_Den[[#This Row],[Helper Key]])),tbl_Den[[#This Row],[Helper 1]],"")) -> 0 | G19: =IFERROR(SMALL(tbl_Den[Helper 2],tbl_Den[[#This Row],[Helper 1]]),"") -> 0 | H19: =IF(OR(tbl_Den[[#This Row],[Helper 2]]<>"",tbl_Den[[#This Row],[Helper 3]]<>""),1,0) -> 1 | I19: =IF(rng_Den_Filter="",0,IF(tbl_Den[[#This Row],[Helper 2]]<>"",1,0)) -> 0 | J19: =IF(rng_Den_Filter="",tbl_Den[[#This Row],[Helper 1]],INDEX(tbl_Den[Helper 3],tbl_Den[[#This Row],[Helper 1]])) -> 18 | K19: =IFERROR(INDEX(tbl_Den[Denomination],tbl_Den[[#This Row],[Link]]),"") -> Dupondius/As
A20: Quadrans | B20: Copper alloy | C20: 1900 | D20: =tbl_Den[[#This Row],[Denomination]] -> Quadrans | E20: =IF(ISTEXT(OFFSET(tbl_Den[[#This Row],[Helper 1]],-1,0)),1,OFFSET(tbl_Den[[#This Row],[Helper 1]],-1,0)+1) -> 19 | F20: =IF(rng_Den_Filter="",0,IF(ISNUMBER(SEARCH(rng_Den_Filter,tbl_Den[[#This Row],[Helper Key]])),tbl_Den[[#This Row],[Helper 1]],"")) -> 0 | G20: =IFERROR(SMALL(tbl_Den[Helper 2],tbl_Den[[#This Row],[Helper 1]]),"") -> 0 | H20: =IF(OR(tbl_Den[[#This Row],[Helper 2]]<>"",tbl_Den[[#This Row],[Helper 3]]<>""),1,0) -> 1 | I20: =IF(rng_Den_Filter="",0,IF(tbl_Den[[#This Row],[Helper 2]]<>"",1,0)) -> 0 | J20: =IF(rng_Den_Filter="",tbl_Den[[#This Row],[Helper 1]],INDEX(tbl_Den[Helper 3],tbl_Den[[#This Row],[Helper 1]])) -> 19 | K20: =IFERROR(INDEX(tbl_Den[Denomination],tbl_Den[[#This Row],[Link]]),"") -> Quadrans
A21: Semis | B21: Copper alloy | C21: 2000 | D21: =tbl_Den[[#This Row],[Denomination]] -> Semis | E21: =IF(ISTEXT(OFFSET(tbl_Den[[#This Row],[Helper 1]],-1,0)),1,OFFSET(tbl_Den[[#This Row],[Helper 1]],-1,0)+1) -> 20 | F21: =IF(rng_Den_Filter="",0,IF(ISNUMBER(SEARCH(rng_Den_Filter,tbl_Den[[#This Row],[Helper Key]])),tbl_Den[[#This Row],[Helper 1]],"")) -> 0 | G21: =IFERROR(SMALL(tbl_Den[Helper 2],tbl_Den[[#This Row],[Helper 1]]),"") -> 0 | H21: =IF(OR(tbl_Den[[#This Row],[Helper 2]]<>"",tbl_Den[[#This Row],[Helper 3]]<>""),1,0) -> 1 | I21: =IF(rng_Den_Filter="",0,IF(tbl_Den[[#This Row],[Helper 2]]<>"",1,0)) -> 0 | J21: =IF(rng_Den_Filter="",tbl_Den[[#This Row],[Helper 1]],INDEX(tbl_Den[Helper 3],tbl_Den[[#This Row],[Helper 1]])) -> 20 | K21: =IFERROR(INDEX(tbl_Den[Denomination],tbl_Den[[#This Row],[Link]]),"") -> Semis
A22: Semis/Quadrans | B22: Copper alloy | C22: 2100 | D22: =tbl_Den[[#This Row],[Denomination]] -> Semis/Quadrans | E22: =IF(ISTEXT(OFFSET(tbl_Den[[#This Row],[Helper 1]],-1,0)),1,OFFSET(tbl_Den[[#This Row],[Helper 1]],-1,0)+1) -> 21 | F22: =IF(rng_Den_Filter="",0,IF(ISNUMBER(SEARCH(rng_Den_Filter,tbl_Den[[#This Row],[Helper Key]])),tbl_Den[[#This Row],[Helper 1]],"")) -> 0 | G22: =IFERROR(SMALL(tbl_Den[Helper 2],tbl_Den[[#This Row],[Helper 1]]),"") -> 0 | H22: =IF(OR(tbl_Den[[#This Row],[Helper 2]]<>"",tbl_Den[[#This Row],[Helper 3]]<>""),1,0) -> 1 | I22: =IF(rng_Den_Filter="",0,IF(tbl_Den[[#This Row],[Helper 2]]<>"",1,0)) -> 0 | J22: =IF(rng_Den_Filter="",tbl_Den[[#This Row],[Helper 1]],INDEX(tbl_Den[Helper 3],tbl_Den[[#This Row],[Helper 1]])) -> 21 | K22: =IFERROR(INDEX(tbl_Den[Denomination],tbl_Den[[#This Row],[Link]]),"") -> Semis/Quadrans
A23: Uncia | B23: Copper alloy | C23: 2200 | D23: =tbl_Den[[#This Row],[Denomination]] -> Uncia | E23: =IF(ISTEXT(OFFSET(tbl_Den[[#This Row],[Helper 1]],-1,0)),1,OFFSET(tbl_Den[[#This Row],[Helper 1]],-1,0)+1) -> 22 | F23: =IF(rng_Den_Filter="",0,IF(ISNUMBER(SEARCH(rng_Den_Filter,tbl_Den[[#This Row],[Helper Key]])),tbl_Den[[#This Row],[Helper 1]],"")) -> 0 | G23: =IFERROR(SMALL(tbl_Den[Helper 2],tbl_Den[[#This Row],[Helper 1]]),"") -> 0 | H23: =IF(OR(tbl_Den[[#This Row],[Helper 2]]<>"",tbl_Den[[#This Row],[Helper 3]]<>""),1,0) -> 1 | I23: =IF(rng_Den_Filter="",0,IF(tbl_Den[[#This Row],[Helper 2]]<>"",1,0)) -> 0 | J23: =IF(rng_Den_Filter="",tbl_Den[[#This Row],[Helper 1]],INDEX(tbl_Den[Helper 3],tbl_Den[[#This Row],[Helper 1]])) -> 22 | K23: =IFERROR(INDEX(tbl_Den[Denomination],tbl_Den[[#This Row],[Link]]),"") -> Uncia
A24: Roman Provincial | B24: Copper alloy | C24: 2300 | D24: =tbl_Den[[#This Row],[Denomination]] -> Roman Provincial | E24: =IF(ISTEXT(OFFSET(tbl_Den[[#This Row],[Helper 1]],-1,0)),1,OFFSET(tbl_Den[[#This Row],[Helper 1]],-1,0)+1) -> 23 | F24: =IF(rng_Den_Filter="",0,IF(ISNUMBER(SEARCH(rng_Den_Filter,tbl_Den[[#This Row],[Helper Key]])),tbl_Den[[#This Row],[Helper 1]],"")) -> 0 | G24: =IFERROR(SMALL(tbl_Den[Helper 2],tbl_Den[[#This Row],[Helper 1]]),"") -> 0 | H24: =IF(OR(tbl_Den[[#This Row],[Helper 2]]<>"",tbl_Den[[#This Row],[Helper 3]]<>""),1,0) -> 1 | I24: =IF(rng_Den_Filter="",0,IF(tbl_Den[[#This Row],[Helper 2]]<>"",1,0)) -> 0 | J24: =IF(rng_Den_Filter="",tbl_Den[[#This Row],[Helper 1]],INDEX(tbl_Den[Helper 3],tbl_Den[[#This Row],[Helper 1]])) -> 23 | K24: =IFERROR(INDEX(tbl_Den[Denomination],tbl_Den[[#This Row],[Link]]),"") -> Roman Provincial
A25: Nummus | B25: Billon/copper alloy | C25: 2400 | D25: =tbl_Den[[#This Row],[Denomination]] -> Nummus | E25: =IF(ISTEXT(OFFSET(tbl_Den[[#This Row],[Helper 1]],-1,0)),1,OFFSET(tbl_Den[[#This Row],[Helper 1]],-1,0)+1) -> 24 | F25: =IF(rng_Den_Filter="",0,IF(ISNUMBER(SEARCH(rng_Den_Filter,tbl_Den[[#This Row],[Helper Key]])),tbl_Den[[#This Row],[Helper 1]],"")) -> 0 | G25: =IFERROR(SMALL(tbl_Den[Helper 2],tbl_Den[[#This Row],[Helper 1]]),"") -> 0 | H25: =IF(OR(tbl_Den[[#This Row],[Helper 2]]<>"",tbl_Den[[#This Row],[Helper 3]]<>""),1,0) -> 1 | I25: =IF(rng_Den_Filter="",0,IF(tbl_Den[[#This Row],[Helper 2]]<>"",1,0)) -> 0 | J25: =IF(rng_Den_Filter="",tbl_Den[[#This Row],[Helper 1]],INDEX(tbl_Den[Helper 3],tbl_Den[[#This Row],[Helper 1]])) -> 24 | K25: =IFERROR(INDEX(tbl_Den[Denomination],tbl_Den[[#This Row],[Link]]),"") -> Nummus
A26: AE1 | B26: Billon/copper alloy | C26: 2500 | D26: =tbl_Den[[#This Row],[Denomination]] -> AE1 | E26: =IF(ISTEXT(OFFSET(tbl_Den[[#This Row],[Helper 1]],-1,0)),1,OFFSET(tbl_Den[[#This Row],[Helper 1]],-1,0)+1) -> 25 | F26: =IF(rng_Den_Filter="",0,IF(ISNUMBER(SEARCH(rng_Den_Filter,tbl_Den[[#This Row],[Helper Key]])),tbl_Den[[#This Row],[Helper 1]],"")) -> 0 | G26: =IFERROR(SMALL(tbl_Den[Helper 2],tbl_Den[[#This Row],[Helper 1]]),"") -> 0 | H26: =IF(OR(tbl_Den[[#This Row],[Helper 2]]<>"",tbl_Den[[#This Row],[Helper 3]]<>""),1,0) -> 1 | I26: =IF(rng_Den_Filter="",0,IF(tbl_Den[[#This Row],[Helper 2]]<>"",1,0)) -> 0 | J26: =IF(rng_Den_Filter="",tbl_Den[[#This Row],[Helper 1]],INDEX(tbl_Den[Helper 3],tbl_Den[[#This Row],[Helper 1]])) -> 25 | K26: =IFERROR(INDEX(tbl_Den[Denomination],tbl_Den[[#This Row],[Link]]),"") -> AE1
A27: AE2 | B27: Billon/copper alloy | C27: 2600 | D27: =tbl_Den[[#This Row],[Denomination]] -> AE2 | E27: =IF(ISTEXT(OFFSET(tbl_Den[[#This Row],[Helper 1]],-1,0)),1,OFFSET(tbl_Den[[#This Row],[Helper 1]],-1,0)+1) -> 26 | F27: =IF(rng_Den_Filter="",0,IF(ISNUMBER(SEARCH(rng_Den_Filter,tbl_Den[[#This Row],[Helper Key]])),tbl_Den[[#This Row],[Helper 1]],"")) -> 0 | G27: =IFERROR(SMALL(tbl_Den[Helper 2],tbl_Den[[#This Row],[Helper 1]]),"") -> 0 | H27: =IF(OR(tbl_Den[[#This Row],[Helper 2]]<>"",tbl_Den[[#This Row],[Helper 3]]<>""),1,0) -> 1 | I27: =IF(rng_Den_Filter="",0,IF(tbl_Den[[#This Row],[Helper 2]]<>"",1,0)) -> 0 | J27: =IF(rng_Den_Filter="",tbl_Den[[#This Row],[Helper 1]],INDEX(tbl_Den[Helper 3],tbl_Den[[#This Row],[Helper 1]])) -> 26 | K27: =IFERROR(INDEX(tbl_Den[Denomination],tbl_Den[[#This Row],[Link]]),"") -> AE2
A28: AE3 | B28: Billon/copper alloy | C28: 2700 | D28: =tbl_Den[[#This Row],[Denomination]] -> AE3 | E28: =IF(ISTEXT(OFFSET(tbl_Den[[#This Row],[Helper 1]],-1,0)),1,OFFSET(tbl_Den[[#This Row],[Helper 1]],-1,0)+1) -> 27 | F28: =IF(rng_Den_Filter="",0,IF(ISNUMBER(SEARCH(rng_Den_Filter,tbl_Den[[#This Row],[Helper Key]])),tbl_Den[[#This Row],[Helper 1]],"")) -> 0 | G28: =IFERROR(SMALL(tbl_Den[Helper 2],tbl_Den[[#This Row],[Helper 1]]),"") -> 0 | H28: =IF(OR(tbl_Den[[#This Row],[Helper 2]]<>"",tbl_Den[[#This Row],[Helper 3]]<>""),1,0) -> 1 | I28: =IF(rng_Den_Filter="",0,IF(tbl_Den[[#This Row],[Helper 2]]<>"",1,0)) -> 0 | J28: =IF(rng_Den_Filter="",tbl_Den[[#This Row],[Helper 1]],INDEX(tbl_Den[Helper 3],tbl_Den[[#This Row],[Helper 1]])) -> 27 | K28: =IFERROR(INDEX(tbl_Den[Denomination],tbl_Den[[#This Row],[Link]]),"") -> AE3
A29: AE4 | B29: Copper alloy | C29: 2800 | D29: =tbl_Den[[#This Row],[Denomination]] -> AE4 | E29: =IF(ISTEXT(OFFSET(tbl_Den[[#This Row],[Helper 1]],-1,0)),1,OFFSET(tbl_Den[[#This Row],[Helper 1]],-1,0)+1) -> 28 | F29: =IF(rng_Den_Filter="",0,IF(ISNUMBER(SEARCH(rng_Den_Filter,tbl_Den[[#This Row],[Helper Key]])),tbl_Den[[#This Row],[Helper 1]],"")) -> 0 | G29: =IFERROR(SMALL(tbl_Den[Helper 2],tbl_Den[[#This Row],[Helper 1]]),"") -> 0 | H29: =IF(OR(tbl_Den[[#This Row],[Helper 2]]<>"",tbl_Den[[#This Row],[Helper 3]]<>""),1,0) -> 1 | I29: =IF(rng_Den_Filter="",0,IF(tbl_Den[[#This Row],[Helper 2]]<>"",1,0)) -> 0 | J29: =IF(rng_Den_Filter="",tbl_Den[[#This Row],[Helper 1]],INDEX(tbl_Den[Helper 3],tbl_Den[[#This Row],[Helper 1]])) -> 28 | K29: =IFERROR(INDEX(tbl_Den[Denomination],tbl_Den[[#This Row],[Link]]),"") -> AE4
A30: AE4 minim | B30: Copper alloy | C30: 2900 | D30: =tbl_Den[[#This Row],[Denomination]] -> AE4 minim | E30: =IF(ISTEXT(OFFSET(tbl_Den[[#This Row],[Helper 1]],-1,0)),1,OFFSET(tbl_Den[[#This Row],[Helper 1]],-1,0)+1) -> 29 | F30: =IF(rng_Den_Filter="",0,IF(ISNUMBER(SEARCH(rng_Den_Filter,tbl_Den[[#This Row],[Helper Key]])),tbl_Den[[#This Row],[Helper 1]],"")) -> 0 | G30: =IFERROR(SMALL(tbl_Den[Helper 2],tbl_Den[[#This Row],[Helper 1]]),"") -> 0 | H30: =IF(OR(tbl_Den[[#This Row],[Helper 2]]<>"",tbl_Den[[#This Row],[Helper 3]]<>""),1,0) -> 1 | I30: =IF(rng_Den_Filter="",0,IF(tbl_Den[[#This Row],[Helper 2]]<>"",1,0)) -> 0 | J30: =IF(rng_Den_Filter="",tbl_Den[[#This Row],[Helper 1]],INDEX(tbl_Den[Helper 3],tbl_Den[[#This Row],[Helper 1]])) -> 29 | K30: =IFERROR(INDEX(tbl_Den[Denomination],tbl_Den[[#This Row],[Link]]),"") -> AE4 minim
A31: Uncertain AE | B31: Copper alloy | C31: 3000 | D31: =tbl_Den[[#This Row],[Denomination]] -> Uncertain AE | E31: =IF(ISTEXT(OFFSET(tbl_Den[[#This Row],[Helper 1]],-1,0)),1,OFFSET(tbl_Den[[#This Row],[Helper 1]],-1,0)+1) -> 30 | F31: =IF(rng_Den_Filter="",0,IF(ISNUMBER(SEARCH(rng_Den_Filter,tbl_Den[[#This Row],[Helper Key]])),tbl_Den[[#This Row],[Helper 1]],"")) -> 0 | G31: =IFERROR(SMALL(tbl_Den[Helper 2],tbl_Den[[#This Row],[Helper 1]]),"") -> 0 | H31: =IF(OR(tbl_Den[[#This Row],[Helper 2]]<>"",tbl_Den[[#This Row],[Helper 3]]<>""),1,0) -> 1 | I31: =IF(rng_Den_Filter="",0,IF(tbl_Den[[#This Row],[Helper 2]]<>"",1,0)) -> 0 | J31: =IF(rng_Den_Filter="",tbl_Den[[#This Row],[Helper 1]],INDEX(tbl_Den[Helper 3],tbl_Den[[#This Row],[Helper 1]])) -> 30 | K31: =IFERROR(INDEX(tbl_Den[Denomination],tbl_Den[[#This Row],[Link]]),"") -> Uncertain AE

Sheet Mints tbl
A1: Mint | B1: Additional information | C1: Helper Key | D1: Helper 1 | E1: Helper 2 | F1: Helper 3 | G1: Helper 4 | H1: Helper 5 | I1: Link | J1: FilterMint | L1: rng_Mint_Filter >>> | N1: <<< Hidden Technical Area
A2: African mint | B2: Later Republic (Mark Antony) | C2: =tbl_Mint[[#This Row],[Mint]] -> African mint | D2: =IF(ISTEXT(OFFSET(tbl_Mint[[#This Row],[Helper 1]],-1,0)),1,OFFSET(tbl_Mint[[#This Row],[Helper 1]],-1,0)+1) -> 1 | E2: =IF(rng_Mint_Filter="",0,IF(ISNUMBER(SEARCH(rng_Mint_Filter,tbl_Mint[[#This Row],[Helper Key]])),tbl_Mint[[#This Row],[Helper 1]],"")) -> 0 | F2: =IFERROR(SMALL(tbl_Mint[Helper 2],tbl_Mint[[#This Row],[Helper 1]]),"") -> 0 | G2: =IF(OR(tbl_Mint[[#This Row],[Helper 2]]<>"",tbl_Mint[[#This Row],[Helper 3]]<>""),1,0) -> 1 | H2: =IF(rng_Mint_Filter="",0,IF(tbl_Mint[[#This Row],[Helper 2]]<>"",1,0)) -> 0 | I2: =IF(rng_Mint_Filter="",tbl_Mint[[#This Row],[Helper 1]],INDEX(tbl_Mint[Helper 3],tbl_Mint[[#This Row],[Helper 1]])) -> 1 | J2: =IFERROR(INDEX(tbl_Mint[Mint],tbl_Mint[[#This Row],[Link]]),"") -> African mint | L2: rng_MintCount >>> | M2: =COUNTA(tbl_Mint[Helper 1])-COUNTIF(tbl_Mint[Link],"") -> 37
A3: Alexandria | B3: Egypt | C3: =tbl_Mint[[#This Row],[Mint]] -> Alexandria | D3: =IF(ISTEXT(OFFSET(tbl_Mint[[#This Row],[Helper 1]],-1,0)),1,OFFSET(tbl_Mint[[#This Row],[Helper 1]],-1,0)+1) -> 2 | E3: =IF(rng_Mint_Filter="",0,IF(ISNUMBER(SEARCH(rng_Mint_Filter,tbl_Mint[[#This Row],[Helper Key]])),tbl_Mint[[#This Row],[Helper 1]],"")) -> 0 | F3: =IFERROR(SMALL(tbl_Mint[Helper 2],tbl_Mint[[#This Row],[Helper 1]]),"") -> 0 | G3: =IF(OR(tbl_Mint[[#This Row],[Helper 2]]<>"",tbl_Mint[[#This Row],[Helper 3]]<>""),1,0) -> 1 | H3: =IF(rng_Mint_Filter="",0,IF(tbl_Mint[[#This Row],[Helper 2]]<>"",1,0)) -> 0 | I3: =IF(rng_Mint_Filter="",tbl_Mint[[#This Row],[Helper 1]],INDEX(tbl_Mint[Helper 3],tbl_Mint[[#This Row],[Helper 1]])) -> 2 | J3: =IFERROR(INDEX(tbl_Mint[Mint],tbl_Mint[[#This Row],[Link]]),"") -> Alexandria | L3: rng_MintSel >>>
A4: Amien | B4: Ambianum, France | C4: =tbl_Mint[[#This Row],[Mint]] -> Amien | D4: =IF(ISTEXT(OFFSET(tbl_Mint[[#This Row],[Helper 1]],-1,0)),1,OFFSET(tbl_Mint[[#This Row],[Helper 1]],-1,0)+1) -> 3 | E4: =IF(rng_Mint_Filter="",0,IF(ISNUMBER(SEARCH(rng_Mint_Filter,tbl_Mint[[#This Row],[Helper Key]])),tbl_Mint[[#This Row],[Helper 1]],"")) -> 0 | F4: =IFERROR(SMALL(tbl_Mint[Helper 2],tbl_Mint[[#This Row],[Helper 1]]),"") -> 0 | G4: =IF(OR(tbl_Mint[[#This Row],[Helper 2]]<>"",tbl_Mint[[#This Row],[Helper 3]]<>""),1,0) -> 1 | H4: =IF(rng_Mint_Filter="",0,IF(tbl_Mint[[#This Row],[Helper 2]]<>"",1,0)) -> 0 | I4: =IF(rng_Mint_Filter="",tbl_Mint[[#This Row],[Helper 1]],INDEX(tbl_Mint[Helper 3],tbl_Mint[[#This Row],[Helper 1]])) -> 3 | J4: =IFERROR(INDEX(tbl_Mint[Mint],tbl_Mint[[#This Row],[Link]]),"") -> Amien
A5: Antioch | B5: Antakya, Turkey | C5: =tbl_Mint[[#This Row],[Mint]] -> Antioch | D5: =IF(ISTEXT(OFFSET(tbl_Mint[[#This Row],[Helper 1]],-1,0)),1,OFFSET(tbl_Mint[[#This Row],[Helper 1]],-1,0)+1) -> 4 | E5: =IF(rng_Mint_Filter="",0,IF(ISNUMBER(SEARCH(rng_Mint_Filter,tbl_Mint[[#This Row],[Helper Key]])),tbl_Mint[[#This Row],[Helper 1]],"")) -> 0 | F5: =IFERROR(SMALL(tbl_Mint[Helper 2],tbl_Mint[[#This Row],[Helper 1]]),"") -> 0 | G5: =IF(OR(tbl_Mint[[#This Row],[Helper 2]]<>"",tbl_Mint[[#This Row],[Helper 3]]<>""),1,0) -> 1 | H5: =IF(rng_Mint_Filter="",0,IF(tbl_Mint[[#This Row],[Helper 2]]<>"",1,0)) -> 0 | I5: =IF(rng_Mint_Filter="",tbl_Mint[[#This Row],[Helper 1]],INDEX(tbl_Mint[Helper 3],tbl_Mint[[#This Row],[Helper 1]])) -> 4 | J5: =IFERROR(INDEX(tbl_Mint[Mint],tbl_Mint[[#This Row],[Link]]),"") -> Antioch
A6: Aquileia | B6: Italy | C6: =tbl_Mint[[#This Row],[Mint]] -> Aquileia | D6: =IF(ISTEXT(OFFSET(tbl_Mint[[#This Row],[Helper 1]],-1,0)),1,OFFSET(tbl_Mint[[#This Row],[Helper 1]],-1,0)+1) -> 5 | E6: =IF(rng_Mint_Filter="",0,IF(ISNUMBER(SEARCH(rng_Mint_Filter,tbl_Mint[[#This Row],[Helper Key]])),tbl_Mint[[#This Row],[Helper 1]],"")) -> 0 | F6: =IFERROR(SMALL(tbl_Mint[Helper 2],tbl_Mint[[#This Row],[Helper 1]]),"") -> 0 | G6: =IF(OR(tbl_Mint[[#This Row],[Helper 2]]<>"",tbl_Mint[[#This Row],[Helper 3]]<>""),1,0) -> 1 | H6: =IF(rng_Mint_Filter="",0,IF(tbl_Mint[[#This Row],[Helper 2]]<>"",1,0)) -> 0 | I6: =IF(rng_Mint_Filter="",tbl_Mint[[#This Row],[Helper 1]],INDEX(tbl_Mint[Helper 3],tbl_Mint[[#This Row],[Helper 1]])) -> 5 | J6: =IFERROR(INDEX(tbl_Mint[Mint],tbl_Mint[[#This Row],[Link]]),"") -> Aquileia
A7: Arles | B7: Arelatum/Constantina, France | C7: =tbl_Mint[[#This Row],[Mint]] -> Arles | D7: =IF(ISTEXT(OFFSET(tbl_Mint[[#This Row],[Helper 1]],-1,0)),1,OFFSET(tbl_Mint[[#This Row],[Helper 1]],-1,0)+1) -> 6 | E7: =IF(rng_Mint_Filter="",0,IF(ISNUMBER(SEARCH(rng_Mint_Filter,tbl_Mint[[#This Row],[Helper Key]])),tbl_Mint[[#This Row],[Helper 1]],"")) -> 0 | F7: =IFERROR(SMALL(tbl_Mint[Helper 2],tbl_Mint[[#This Row],[Helper 1]]),"") -> 0 | G7: =IF(OR(tbl_Mint[[#This Row],[Helper 2]]<>"",tbl_Mint[[#This Row],[Helper 3]]<>""),1,0) -> 1 | H7: =IF(rng_Mint_Filter="",0,IF(tbl_Mint[[#This Row],[Helper 2]]<>"",1,0)) -> 0 | I7: =IF(rng_Mint_Filter="",tbl_Mint[[#This Row],[Helper 1]],INDEX(tbl_Mint[Helper 3],tbl_Mint[[#This Row],[Helper 1]])) -> 6 | J7: =IFERROR(INDEX(tbl_Mint[Mint],tbl_Mint[[#This Row],[Link]]),"") -> Arles
A8: C mint | B8: Caruasian / Allectan mint - uncertain location, Britain | C8: =tbl_Mint[[#This Row],[Mint]] -> C mint | D8: =IF(ISTEXT(OFFSET(tbl_Mint[[#This Row],[Helper 1]],-1,0)),1,OFFSET(tbl_Mint[[#This Row],[Helper 1]],-1,0)+1) -> 7 | E8: =IF(rng_Mint_Filter="",0,IF(ISNUMBER(SEARCH(rng_Mint_Filter,tbl_Mint[[#This Row],[Helper Key]])),tbl_Mint[[#This Row],[Helper 1]],"")) -> 0 | F8: =IFERROR(SMALL(tbl_Mint[Helper 2],tbl_Mint[[#This Row],[Helper 1]]),"") -> 0 | G8: =IF(OR(tbl_Mint[[#This Row],[Helper 2]]<>"",tbl_Mint[[#This Row],[Helper 3]]<>""),1,0) -> 1 | H8: =IF(rng_Mint_Filter="",0,IF(tbl_Mint[[#This Row],[Helper 2]]<>"",1,0)) -> 0 | I8: =IF(rng_Mint_Filter="",tbl_Mint[[#This Row],[Helper 1]],INDEX(tbl_Mint[Helper 3],tbl_Mint[[#This Row],[Helper 1]])) -> 7 | J8: =IFERROR(INDEX(tbl_Mint[Mint],tbl_Mint[[#This Row],[Link]]),"") -> C mint
A9: Carthage | B9: Tunisia | C9: =tbl_Mint[[#This Row],[Mint]] -> Carthage | D9: =IF(ISTEXT(OFFSET(tbl_Mint[[#This Row],[Helper 1]],-1,0)),1,OFFSET(tbl_Mint[[#This Row],[Helper 1]],-1,0)+1) -> 8 | E9: =IF(rng_Mint_Filter="",0,IF(ISNUMBER(SEARCH(rng_Mint_Filter,tbl_Mint[[#This Row],[Helper Key]])),tbl_Mint[[#This Row],[Helper 1]],"")) -> 0 | F9: =IFERROR(SMALL(tbl_Mint[Helper 2],tbl_Mint[[#This Row],[Helper 1]]),"") -> 0 | G9: =IF(OR(tbl_Mint[[#This Row],[Helper 2]]<>"",tbl_Mint[[#This Row],[Helper 3]]<>""),1,0) -> 1 | H9: =IF(rng_Mint_Filter="",0,IF(tbl_Mint[[#This Row],[Helper 2]]<>"",1,0)) -> 0 | I9: =IF(rng_Mint_Filter="",tbl_Mint[[#This Row],[Helper 1]],INDEX(tbl_Mint[Helper 3],tbl_Mint[[#This Row],[Helper 1]])) -> 8 | J9: =IFERROR(INDEX(tbl_Mint[Mint],tbl_Mint[[#This Row],[Link]]),"") -> Carthage
A10: Cologne | B10: Colonia Agrippina, Germany | C10: =tbl_Mint[[#This Row],[Mint]] -> Cologne | D10: =IF(ISTEXT(OFFSET(tbl_Mint[[#This Row],[Helper 1]],-1,0)),1,OFFSET(tbl_Mint[[#This Row],[Helper 1]],-1,0)+1) -> 9 | E10: =IF(rng_Mint_Filter="",0,IF(ISNUMBER(SEARCH(rng_Mint_Filter,tbl_Mint[[#This Row],[Helper Key]])),tbl_Mint[[#This Row],[Helper 1]],"")) -> 0 | F10: =IFERROR(SMALL(tbl_Mint[Helper 2],tbl_Mint[[#This Row],[Helper 1]]),"") -> 0 | G10: =IF(OR(tbl_Mint[[#This Row],[Helper 2]]<>"",tbl_Mint[[#This Row],[Helper 3]]<>""),1,0) -> 1 | H10: =IF(rng_Mint_Filter="",0,IF(tbl_Mint[[#This Row],[Helper 2]]<>"",1,0)) -> 0 | I10: =IF(rng_Mint_Filter="",tbl_Mint[[#This Row],[Helper 1]],INDEX(tbl_Mint[Helper 3],tbl_Mint[[#This Row],[Helper 1]])) -> 9 | J10: =IFERROR(INDEX(tbl_Mint[Mint],tbl_Mint[[#This Row],[Link]]),"") -> Cologne
A11: Constantinople | B11: Istanbul, Turkey | C11: =tbl_Mint[[#This Row],[Mint]] -> Constantinople | D11: =IF(ISTEXT(OFFSET(tbl_Mint[[#This Row],[Helper 1]],-1,0)),1,OFFSET(tbl_Mint[[#This Row],[Helper 1]],-1,0)+1) -> 10 | E11: =IF(rng_Mint_Filter="",0,IF(ISNUMBER(SEARCH(rng_Mint_Filter,tbl_Mint[[#This Row],[Helper Key]])),tbl_Mint[[#This Row],[Helper 1]],"")) -> 0 | F11: =IFERROR(SMALL(tbl_Mint[Helper 2],tbl_Mint[[#This Row],[Helper 1]]),"") -> 0 | G11: =IF(OR(tbl_Mint[[#This Row],[Helper 2]]<>"",tbl_Mint[[#This Row],[Helper 3]]<>""),1,0) -> 1 | H11: =IF(rng_Mint_Filter="",0,IF(tbl_Mint[[#This Row],[Helper 2]]<>"",1,0)) -> 0 | I11: =IF(rng_Mint_Filter="",tbl_Mint[[#This Row],[Helper 1]],INDEX(tbl_Mint[Helper 3],tbl_Mint[[#This Row],[Helper 1]])) -> 10 | J11: =IFERROR(INDEX(tbl_Mint[Mint],tbl_Mint[[#This Row],[Link]]),"") -> Constantinople
A12: Cyzicus | B12: Turkey | C12: =tbl_Mint[[#This Row],[Mint]] -> Cyzicus | D12: =IF(ISTEXT(OFFSET(tbl_Mint[[#This Row],[Helper 1]],-1,0)),1,OFFSET(tbl_Mint[[#This Row],[Helper 1]],-1,0)+1) -> 11 | E12: =IF(rng_Mint_Filter="",0,IF(ISNUMBER(SEARCH(rng_Mint_Filter,tbl_Mint[[#This Row],[Helper Key]])),tbl_Mint[[#This Row],[Helper 1]],"")) -> 0 | F12: =IFERROR(SMALL(tbl_Mint[Helper 2],tbl_Mint[[#This Row],[Helper 1]]),"") -> 0 | G12: =IF(OR(tbl_Mint[[#This Row],[Helper 2]]<>"",tbl_Mint[[#This Row],[Helper 3]]<>""),1,0) -> 1 | H12: =IF(rng_Mint_Filter="",0,IF(tbl_Mint[[#This Row],[Helper 2]]<>"",1,0)) -> 0 | I12: =IF(rng_Mint_Filter="",tbl_Mint[[#This Row],[Helper 1]],INDEX(tbl_Mint[Helper 3],tbl_Mint[[#This Row],[Helper 1]])) -> 11 | J12: =IFERROR(INDEX(tbl_Mint[Mint],tbl_Mint[[#This Row],[Link]]),"") -> Cyzicus
A13: Eastern mint | C13: =tbl_Mint[[#This Row],[Mint]] -> Eastern mint | D13: =IF(ISTEXT(OFFSET(tbl_Mint[[#This Row],[Helper 1]],-1,0)),1,OFFSET(tbl_Mint[[#This Row],[Helper 1]],-1,0)+1) -> 12 | E13: =IF(rng_Mint_Filter="",0,IF(ISNUMBER(SEARCH(rng_Mint_Filter,tbl_Mint[[#This Row],[Helper Key]])),tbl_Mint[[#This Row],[Helper 1]],"")) -> 0 | F13: =IFERROR(SMALL(tbl_Mint[Helper 2],tbl_Mint[[#This Row],[Helper 1]]),"") -> 0 | G13: =IF(OR(tbl_Mint[[#This Row],[Helper 2]]<>"",tbl_Mint[[#This Row],[Helper 3]]<>""),1,0) -> 1 | H13: =IF(rng_Mint_Filter="",0,IF(tbl_Mint[[#This Row],[Helper 2]]<>"",1,0)) -> 0 | I13: =IF(rng_Mint_Filter="",tbl_Mint[[#This Row],[Helper 1]],INDEX(tbl_Mint[Helper 3],tbl_Mint[[#This Row],[Helper 1]])) -> 12 | J13: =IFERROR(INDEX(tbl_Mint[Mint],tbl_Mint[[#This Row],[Link]]),"") -> Eastern mint
A14: Gallic mint | B14: Gallic Empire - uncertain mint | C14: =tbl_Mint[[#This Row],[Mint]] -> Gallic mint | D14: =IF(ISTEXT(OFFSET(tbl_Mint[[#This Row],[Helper 1]],-1,0)),1,OFFSET(tbl_Mint[[#This Row],[Helper 1]],-1,0)+1) -> 13 | E14: =IF(rng_Mint_Filter="",0,IF(ISNUMBER(SEARCH(rng_Mint_Filter,tbl_Mint[[#This Row],[Helper Key]])),tbl_Mint[[#This Row],[Helper 1]],"")) -> 0 | F14: =IFERROR(SMALL(tbl_Mint[Helper 2],tbl_Mint[[#This Row],[Helper 1]]),"") -> 0 | G14: =IF(OR(tbl_Mint[[#This Row],[Helper 2]]<>"",tbl_Mint[[#This Row],[Helper 3]]<>""),1,0) -> 1 | H14: =IF(rng_Mint_Filter="",0,IF(tbl_Mint[[#This Row],[Helper 2]]<>"",1,0)) -> 0 | I14: =IF(rng_Mint_Filter="",tbl_Mint[[#This Row],[Helper 1]],INDEX(tbl_Mint[Helper 3],tbl_Mint[[#This Row],[Helper 1]])) -> 13 | J14: =IFERROR(INDEX(tbl_Mint[Mint],tbl_Mint[[#This Row],[Link]]),"") -> Gallic mint
A15: Gallic Mint I | B15: Gallic Empire - uncertain location, France/Germany | C15: =tbl_Mint[[#This Row],[Mint]] -> Gallic Mint I | D15: =IF(ISTEXT(OFFSET(tbl_Mint[[#This Row],[Helper 1]],-1,0)),1,OFFSET(tbl_Mint[[#This Row],[Helper 1]],-1,0)+1) -> 14 | E15: =IF(rng_Mint_Filter="",0,IF(ISNUMBER(SEARCH(rng_Mint_Filter,tbl_Mint[[#This Row],[Helper Key]])),tbl_Mint[[#This Row],[Helper 1]],"")) -> 0 | F15: =IFERROR(SMALL(tbl_Mint[Helper 2],tbl_Mint[[#This Row],[Helper 1]]),"") -> 0 | G15: =IF(OR(tbl_Mint[[#This Row],[Helper 2]]<>"",tbl_Mint[[#This Row],[Helper 3]]<>""),1,0) -> 1 | H15: =IF(rng_Mint_Filter="",0,IF(tbl_Mint[[#This Row],[Helper 2]]<>"",1,0)) -> 0 | I15: =IF(rng_Mint_Filter="",tbl_Mint[[#This Row],[Helper 1]],INDEX(tbl_Mint[Helper 3],tbl_Mint[[#This Row],[Helper 1]])) -> 14 | J15: =IFERROR(INDEX(tbl_Mint[Mint],tbl_Mint[[#This Row],[Link]]),"") -> Gallic Mint I
A16: Gallic Mint II | B16: Gallic Empire - uncertain location, France/Germany | C16: =tbl_Mint[[#This Row],[Mint]] -> Gallic Mint II | D16: =IF(ISTEXT(OFFSET(tbl_Mint[[#This Row],[Helper 1]],-1,0)),1,OFFSET(tbl_Mint[[#This Row],[Helper 1]],-1,0)+1) -> 15 | E16: =IF(rng_Mint_Filter="",0,IF(ISNUMBER(SEARCH(rng_Mint_Filter,tbl_Mint[[#This Row],[Helper Key]])),tbl_Mint[[#This Row],[Helper 1]],"")) -> 0 | F16: =IFERROR(SMALL(tbl_Mint[Helper 2],tbl_Mint[[#This Row],[Helper 1]]),"") -> 0 | G16: =IF(OR(tbl_Mint[[#This Row],[Helper 2]]<>"",tbl_Mint[[#This Row],[Helper 3]]<>""),1,0) -> 1 | H16: =IF(rng_Mint_Filter="",0,IF(tbl_Mint[[#This Row],[Helper 2]]<>"",1,0)) -> 0 | I16: =IF(rng_Mint_Filter="",tbl_Mint[[#This Row],[Helper 1]],INDEX(tbl_Mint[Helper 3],tbl_Mint[[#This Row],[Helper 1]])) -> 15 | J16: =IFERROR(INDEX(tbl_Mint[Mint],tbl_Mint[[#This Row],[Link]]),"") -> Gallic Mint II
A17: Greek mint | C17: =tbl_Mint[[#This Row],[Mint]] -> Greek mint | D17: =IF(ISTEXT(OFFSET(tbl_Mint[[#This Row],[Helper 1]],-1,0)),1,OFFSET(tbl_Mint[[#This Row],[Helper 1]],-1,0)+1) -> 16 | E17: =IF(rng_Mint_Filter="",0,IF(ISNUMBER(SEARCH(rng_Mint_Filter,tbl_Mint[[#This Row],[Helper Key]])),tbl_Mint[[#This Row],[Helper 1]],"")) -> 0 | F17: =IFERROR(SMALL(tbl_Mint[Helper 2],tbl_Mint[[#This Row],[Helper 1]]),"") -> 0 | G17: =IF(OR(tbl_Mint[[#This Row],[Helper 2]]<>"",tbl_Mint[[#This Row],[Helper 3]]<>""),1,0) -> 1 | H17: =IF(rng_Mint_Filter="",0,IF(tbl_Mint[[#This Row],[Helper 2]]<>"",1,0)) -> 0 | I17: =IF(rng_Mint_Filter="",tbl_Mint[[#This Row],[Helper 1]],INDEX(tbl_Mint[Helper 3],tbl_Mint[[#This Row],[Helper 1]])) -> 16 | J17: =IFERROR(INDEX(tbl_Mint[Mint],tbl_Mint[[#This Row],[Link]]),"") -> Greek mint
A18: Heraclea | B18: Turkey | C18: =tbl_Mint[[#This Row],[Mint]] -> Heraclea | D18: =IF(ISTEXT(OFFSET(tbl_Mint[[#This Row],[Helper 1]],-1,0)),1,OFFSET(tbl_Mint[[#This Row],[Helper 1]],-1,0)+1) -> 17 | E18: =IF(rng_Mint_Filter="",0,IF(ISNUMBER(SEARCH(rng_Mint_Filter,tbl_Mint[[#This Row],[Helper Key]])),tbl_Mint[[#This Row],[Helper 1]],"")) -> 0 | F18: =IFERROR(SMALL(tbl_Mint[Helper 2],tbl_Mint[[#This Row],[Helper 1]]),"") -> 0 | G18: =IF(OR(tbl_Mint[[#This Row],[Helper 2]]<>"",tbl_Mint[[#This Row],[Helper 3]]<>""),1,0) -> 1 | H18: =IF(rng_Mint_Filter="",0,IF(tbl_Mint[[#This Row],[Helper 2]]<>"",1,0)) -> 0 | I18: =IF(rng_Mint_Filter="",tbl_Mint[[#This Row],[Helper 1]],INDEX(tbl_Mint[Helper 3],tbl_Mint[[#This Row],[Helper 1]])) -> 17 | J18: =IFERROR(INDEX(tbl_Mint[Mint],tbl_Mint[[#This Row],[Link]]),"") -> Heraclea
A19: Italian mint | C19: =tbl_Mint[[#This Row],[Mint]] -> Italian mint | D19: =IF(ISTEXT(OFFSET(tbl_Mint[[#This Row],[Helper 1]],-1,0)),1,OFFSET(tbl_Mint[[#This Row],[Helper 1]],-1,0)+1) -> 18 | E19: =IF(rng_Mint_Filter="",0,IF(ISNUMBER(SEARCH(rng_Mint_Filter,tbl_Mint[[#This Row],[Helper Key]])),tbl_Mint[[#This Row],[Helper 1]],"")) -> 0 | F19: =IFERROR(SMALL(tbl_Mint[Helper 2],tbl_Mint[[#This Row],[Helper 1]]),"") -> 0 | G19: =IF(OR(tbl_Mint[[#This Row],[Helper 2]]<>"",tbl_Mint[[#This Row],[Helper 3]]<>""),1,0) -> 1 | H19: =IF(rng_Mint_Filter="",0,IF(tbl_Mint[[#This Row],[Helper 2]]<>"",1,0)) -> 0 | I19: =IF(rng_Mint_Filter="",tbl_Mint[[#This Row],[Helper 1]],INDEX(tbl_Mint[Helper 3],tbl_Mint[[#This Row],[Helper 1]])) -> 18 | J19: =IFERROR(INDEX(tbl_Mint[Mint],tbl_Mint[[#This Row],[Link]]),"") -> Italian mint
A20: London | B20: Londinium, Britain | C20: =tbl_Mint[[#This Row],[Mint]] -> London | D20: =IF(ISTEXT(OFFSET(tbl_Mint[[#This Row],[Helper 1]],-1,0)),1,OFFSET(tbl_Mint[[#This Row],[Helper 1]],-1,0)+1) -> 19 | E20: =IF(rng_Mint_Filter="",0,IF(ISNUMBER(SEARCH(rng_Mint_Filter,tbl_Mint[[#This Row],[Helper Key]])),tbl_Mint[[#This Row],[Helper 1]],"")) -> 0 | F20: =IFERROR(SMALL(tbl_Mint[Helper 2],tbl_Mint[[#This Row],[Helper 1]]),"") -> 0 | G20: =IF(OR(tbl_Mint[[#This Row],[Helper 2]]<>"",tbl_Mint[[#This Row],[Helper 3]]<>""),1,0) -> 1 | H20: =IF(rng_Mint_Filter="",0,IF(tbl_Mint[[#This Row],[Helper 2]]<>"",1,0)) -> 0 | I20: =IF(rng_Mint_Filter="",tbl_Mint[[#This Row],[Helper 1]],INDEX(tbl_Mint[Helper 3],tbl_Mint[[#This Row],[Helper 1]])) -> 19 | J20: =IFERROR(INDEX(tbl_Mint[Mint],tbl_Mint[[#This Row],[Link]]),"") -> London
A21: Lyon | B21: Lugdunum, France | C21: =tbl_Mint[[#This Row],[Mint]] -> Lyon | D21: =IF(ISTEXT(OFFSET(tbl_Mint[[#This Row],[Helper 1]],-1,0)),1,OFFSET(tbl_Mint[[#This Row],[Helper 1]],-1,0)+1) -> 20 | E21: =IF(rng_Mint_Filter="",0,IF(ISNUMBER(SEARCH(rng_Mint_Filter,tbl_Mint[[#This Row],[Helper Key]])),tbl_Mint[[#This Row],[Helper 1]],"")) -> 0 | F21: =IFERROR(SMALL(tbl_Mint[Helper 2],tbl_Mint[[#This Row],[Helper 1]]),"") -> 0 | G21: =IF(OR(tbl_Mint[[#This Row],[Helper 2]]<>"",tbl_Mint[[#This Row],[Helper 3]]<>""),1,0) -> 1 | H21: =IF(rng_Mint_Filter="",0,IF(tbl_Mint[[#This Row],[Helper 2]]<>"",1,0)) -> 0 | I21: =IF(rng_Mint_Filter="",tbl_Mint[[#This Row],[Helper 1]],INDEX(tbl_Mint[Helper 3],tbl_Mint[[#This Row],[Helper 1]])) -> 20 | J21: =IFERROR(INDEX(tbl_Mint[Mint],tbl_Mint[[#This Row],[Link]]),"") -> Lyon
A22: Milan | B22: Mediolanum, Italy | C22: =tbl_Mint[[#This Row],[Mint]] -> Milan | D22: =IF(ISTEXT(OFFSET(tbl_Mint[[#This Row],[Helper 1]],-1,0)),1,OFFSET(tbl_Mint[[#This Row],[Helper 1]],-1,0)+1) -> 21 | E22: =IF(rng_Mint_Filter="",0,IF(ISNUMBER(SEARCH(rng_Mint_Filter,tbl_Mint[[#This Row],[Helper Key]])),tbl_Mint[[#This Row],[Helper 1]],"")) -> 0 | F22: =IFERROR(SMALL(tbl_Mint[Helper 2],tbl_Mint[[#This Row],[Helper 1]]),"") -> 0 | G22: =IF(OR(tbl_Mint[[#This Row],[Helper 2]]<>"",tbl_Mint[[#This Row],[Helper 3]]<>""),1,0) -> 1 | H22: =IF(rng_Mint_Filter="",0,IF(tbl_Mint[[#This Row],[Helper 2]]<>"",1,0)) -> 0 | I22: =IF(rng_Mint_Filter="",tbl_Mint[[#This Row],[Helper 1]],INDEX(tbl_Mint[Helper 3],tbl_Mint[[#This Row],[Helper 1]])) -> 21 | J22: =IFERROR(INDEX(tbl_Mint[Mint],tbl_Mint[[#This Row],[Link]]),"") -> Milan
A23: Nicomedia | B23: Izmit, Turkey | C23: =tbl_Mint[[#This Row],[Mint]] -> Nicomedia | D23: =IF(ISTEXT(OFFSET(tbl_Mint[[#This Row],[Helper 1]],-1,0)),1,OFFSET(tbl_Mint[[#This Row],[Helper 1]],-1,0)+1) -> 22 | E23: =IF(rng_Mint_Filter="",0,IF(ISNUMBER(SEARCH(rng_Mint_Filter,tbl_Mint[[#This Row],[Helper Key]])),tbl_Mint[[#This Row],[Helper 1]],"")) -> 0 | F23: =IFERROR(SMALL(tbl_Mint[Helper 2],tbl_Mint[[#This Row],[Helper 1]]),"") -> 0 | G23: =IF(OR(tbl_Mint[[#This Row],[Helper 2]]<>"",tbl_Mint[[#This Row],[Helper 3]]<>""),1,0) -> 1 | H23: =IF(rng_Mint_Filter="",0,IF(tbl_Mint[[#This Row],[Helper 2]]<>"",1,0)) -> 0 | I23: =IF(rng_Mint_Filter="",tbl_Mint[[#This Row],[Helper 1]],INDEX(tbl_Mint[Helper 3],tbl_Mint[[#This Row],[Helper 1]])) -> 22 | J23: =IFERROR(INDEX(tbl_Mint[Mint],tbl_Mint[[#This Row],[Link]]),"") -> Nicomedia
A24: Ostia | B24: Italy | C24: =tbl_Mint[[#This Row],[Mint]] -> Ostia | D24: =IF(ISTEXT(OFFSET(tbl_Mint[[#This Row],[Helper 1]],-1,0)),1,OFFSET(tbl_Mint[[#This Row],[Helper 1]],-1,0)+1) -> 23 | E24: =IF(rng_Mint_Filter="",0,IF(ISNUMBER(SEARCH(rng_Mint_Filter,tbl_Mint[[#This Row],[Helper Key]])),tbl_Mint[[#This Row],[Helper 1]],"")) -> 0 | F24: =IFERROR(SMALL(tbl_Mint[Helper 2],tbl_Mint[[#This Row],[Helper 1]]),"") -> 0 | G24: =IF(OR(tbl_Mint[[#This Row],[Helper 2]]<>"",tbl_Mint[[#This Row],[Helper 3]]<>""),1,0) -> 1 | H24: =IF(rng_Mint_Filter="",0,IF(tbl_Mint[[#This Row],[Helper 2]]<>"",1,0)) -> 0 | I24: =IF(rng_Mint_Filter="",tbl_Mint[[#This Row],[Helper 1]],INDEX(tbl_Mint[Helper 3],tbl_Mint[[#This Row],[Helper 1]])) -> 23 | J24: =IFERROR(INDEX(tbl_Mint[Mint],tbl_Mint[[#This Row],[Link]]),"") -> Ostia
A25: Ravenna | B25: Italy | C25: =tbl_Mint[[#This Row],[Mint]] -> Ravenna | D25: =IF(ISTEXT(OFFSET(tbl_Mint[[#This Row],[Helper 1]],-1,0)),1,OFFSET(tbl_Mint[[#This Row],[Helper 1]],-1,0)+1) -> 24 | E25: =IF(rng_Mint_Filter="",0,IF(ISNUMBER(SEARCH(rng_Mint_Filter,tbl_Mint[[#This Row],[Helper Key]])),tbl_Mint[[#This Row],[Helper 1]],"")) -> 0 | F25: =IFERROR(SMALL(tbl_Mint[Helper 2],tbl_Mint[[#This Row],[Helper 1]]),"") -> 0 | G25: =IF(OR(tbl_Mint[[#This Row],[Helper 2]]<>"",tbl_Mint[[#This Row],[Helper 3]]<>""),1,0) -> 1 | H25: =IF(rng_Mint_Filter="",0,IF(tbl_Mint[[#This Row],[Helper 2]]<>"",1,0)) -> 0 | I25: =IF(rng_Mint_Filter="",tbl_Mint[[#This Row],[Helper 1]],INDEX(tbl_Mint[Helper 3],tbl_Mint[[#This Row],[Helper 1]])) -> 24 | J25: =IFERROR(INDEX(tbl_Mint[Mint],tbl_Mint[[#This Row],[Link]]),"") -> Ravenna
A26: Rome | B26: Italy | C26: =tbl_Mint[[#This Row],[Mint]] -> Rome | D26: =IF(ISTEXT(OFFSET(tbl_Mint[[#This Row],[Helper 1]],-1,0)),1,OFFSET(tbl_Mint[[#This Row],[Helper 1]],-1,0)+1) -> 25 | E26: =IF(rng_Mint_Filter="",0,IF(ISNUMBER(SEARCH(rng_Mint_Filter,tbl_Mint[[#This Row],[Helper Key]])),tbl_Mint[[#This Row],[Helper 1]],"")) -> 0 | F26: =IFERROR(SMALL(tbl_Mint[Helper 2],tbl_Mint[[#This Row],[Helper 1]]),"") -> 0 | G26: =IF(OR(tbl_Mint[[#This Row],[Helper 2]]<>"",tbl_Mint[[#This Row],[Helper 3]]<>""),1,0) -> 1 | H26: =IF(rng_Mint_Filter="",0,IF(tbl_Mint[[#This Row],[Helper 2]]<>"",1,0)) -> 0 | I26: =IF(rng_Mint_Filter="",tbl_Mint[[#This Row],[Helper 1]],INDEX(tbl_Mint[Helper 3],tbl_Mint[[#This Row],[Helper 1]])) -> 25 | J26: =IFERROR(INDEX(tbl_Mint[Mint],tbl_Mint[[#This Row],[Link]]),"") -> Rome
A27: Rouen | B27: Rotomagus, France | C27: =tbl_Mint[[#This Row],[Mint]] -> Rouen | D27: =IF(ISTEXT(OFFSET(tbl_Mint[[#This Row],[Helper 1]],-1,0)),1,OFFSET(tbl_Mint[[#This Row],[Helper 1]],-1,0)+1) -> 26 | E27: =IF(rng_Mint_Filter="",0,IF(ISNUMBER(SEARCH(rng_Mint_Filter,tbl_Mint[[#This Row],[Helper Key]])),tbl_Mint[[#This Row],[Helper 1]],"")) -> 0 | F27: =IFERROR(SMALL(tbl_Mint[Helper 2],tbl_Mint[[#This Row],[Helper 1]]),"") -> 0 | G27: =IF(OR(tbl_Mint[[#This Row],[Helper 2]]<>"",tbl_Mint[[#This Row],[Helper 3]]<>""),1,0) -> 1 | H27: =IF(rng_Mint_Filter="",0,IF(tbl_Mint[[#This Row],[Helper 2]]<>"",1,0)) -> 0 | I27: =IF(rng_Mint_Filter="",tbl_Mint[[#This Row],[Helper 1]],INDEX(tbl_Mint[Helper 3],tbl_Mint[[#This Row],[Helper 1]])) -> 26 | J27: =IFERROR(INDEX(tbl_Mint[Mint],tbl_Mint[[#This Row],[Link]]),"") -> Rouen
A28: Serdica | B28: Sophia, Bulgaria | C28: =tbl_Mint[[#This Row],[Mint]] -> Serdica | D28: =IF(ISTEXT(OFFSET(tbl_Mint[[#This Row],[Helper 1]],-1,0)),1,OFFSET(tbl_Mint[[#This Row],[Helper 1]],-1,0)+1) -> 27 | E28: =IF(rng_Mint_Filter="",0,IF(ISNUMBER(SEARCH(rng_Mint_Filter,tbl_Mint[[#This Row],[Helper Key]])),tbl_Mint[[#This Row],[Helper 1]],"")) -> 0 | F28: =IFERROR(SMALL(tbl_Mint[Helper 2],tbl_Mint[[#This Row],[Helper 1]]),"") -> 0 | G28: =IF(OR(tbl_Mint[[#This Row],[Helper 2]]<>"",tbl_Mint[[#This Row],[Helper 3]]<>""),1,0) -> 1 | H28: =IF(rng_Mint_Filter="",0,IF(tbl_Mint[[#This Row],[Helper 2]]<>"",1,0)) -> 0 | I28: =IF(rng_Mint_Filter="",tbl_Mint[[#This Row],[Helper 1]],INDEX(tbl_Mint[Helper 3],tbl_Mint[[#This Row],[Helper 1]])) -> 27 | J28: =IFERROR(INDEX(tbl_Mint[Mint],tbl_Mint[[#This Row],[Link]]),"") -> Serdica
A29: Sicilian mint | C29: =tbl_Mint[[#This Row],[Mint]] -> Sicilian mint | D29: =IF(ISTEXT(OFFSET(tbl_Mint[[#This Row],[Helper 1]],-1,0)),1,OFFSET(tbl_Mint[[#This Row],[Helper 1]],-1,0)+1) -> 28 | E29: =IF(rng_Mint_Filter="",0,IF(ISNUMBER(SEARCH(rng_Mint_Filter,tbl_Mint[[#This Row],[Helper Key]])),tbl_Mint[[#This Row],[Helper 1]],"")) -> 0 | F29: =IFERROR(SMALL(tbl_Mint[Helper 2],tbl_Mint[[#This Row],[Helper 1]]),"") -> 0 | G29: =IF(OR(tbl_Mint[[#This Row],[Helper 2]]<>"",tbl_Mint[[#This Row],[Helper 3]]<>""),1,0) -> 1 | H29: =IF(rng_Mint_Filter="",0,IF(tbl_Mint[[#This Row],[Helper 2]]<>"",1,0)) -> 0 | I29: =IF(rng_Mint_Filter="",tbl_Mint[[#This Row],[Helper 1]],INDEX(tbl_Mint[Helper 3],tbl_Mint[[#This Row],[Helper 1]])) -> 28 | J29: =IFERROR(INDEX(tbl_Mint[Mint],tbl_Mint[[#This Row],[Link]]),"") -> Sicilian mint
A30: Sirmium | B30: Sremska Mitrovica, Serbia | C30: =tbl_Mint[[#This Row],[Mint]] -> Sirmium | D30: =IF(ISTEXT(OFFSET(tbl_Mint[[#This Row],[Helper 1]],-1,0)),1,OFFSET(tbl_Mint[[#This Row],[Helper 1]],-1,0)+1) -> 29 | E30: =IF(rng_Mint_Filter="",0,IF(ISNUMBER(SEARCH(rng_Mint_Filter,tbl_Mint[[#This Row],[Helper Key]])),tbl_Mint[[#This Row],[Helper 1]],"")) -> 0 | F30: =IFERROR(SMALL(tbl_Mint[Helper 2],tbl_Mint[[#This Row],[Helper 1]]),"") -> 0 | G30: =IF(OR(tbl_Mint[[#This Row],[Helper 2]]<>"",tbl_Mint[[#This Row],[Helper 3]]<>""),1,0) -> 1 | H30: =IF(rng_Mint_Filter="",0,IF(tbl_Mint[[#This Row],[Helper 2]]<>"",1,0)) -> 0 | I30: =IF(rng_Mint_Filter="",tbl_Mint[[#This Row],[Helper 1]],INDEX(tbl_Mint[Helper 3],tbl_Mint[[#This Row],[Helper 1]])) -> 29 | J30: =IFERROR(INDEX(tbl_Mint[Mint],tbl_Mint[[#This Row],[Link]]),"") -> Sirmium
A31: Siscia | B31: Sisak, Croatia | C31: =tbl_Mint[[#This Row],[Mint]] -> Siscia | D31: =IF(ISTEXT(OFFSET(tbl_Mint[[#This Row],[Helper 1]],-1,0)),1,OFFSET(tbl_Mint[[#This Row],[Helper 1]],-1,0)+1) -> 30 | E31: =IF(rng_Mint_Filter="",0,IF(ISNUMBER(SEARCH(rng_Mint_Filter,tbl_Mint[[#This Row],[Helper Key]])),tbl_Mint[[#This Row],[Helper 1]],"")) -> 0 | F31: =IFERROR(SMALL(tbl_Mint[Helper 2],tbl_Mint[[#This Row],[Helper 1]]),"") -> 0 | G31: =IF(OR(tbl_Mint[[#This Row],[Helper 2]]<>"",tbl_Mint[[#This Row],[Helper 3]]<>""),1,0) -> 1 | H31: =IF(rng_Mint_Filter="",0,IF(tbl_Mint[[#This Row],[Helper 2]]<>"",1,0)) -> 0 | I31: =IF(rng_Mint_Filter="",tbl_Mint[[#This Row],[Helper 1]],INDEX(tbl_Mint[Helper 3],tbl_Mint[[#This Row],[Helper 1]])) -> 30 | J31: =IFERROR(INDEX(tbl_Mint[Mint],tbl_Mint[[#This Row],[Link]]),"") -> Siscia
A32: Spain mint | C32: =tbl_Mint[[#This Row],[Mint]] -> Spain mint | D32: =IF(ISTEXT(OFFSET(tbl_Mint[[#This Row],[Helper 1]],-1,0)),1,OFFSET(tbl_Mint[[#This Row],[Helper 1]],-1,0)+1) -> 31 | E32: =IF(rng_Mint_Filter="",0,IF(ISNUMBER(SEARCH(rng_Mint_Filter,tbl_Mint[[#This Row],[Helper Key]])),tbl_Mint[[#This Row],[Helper 1]],"")) -> 0 | F32: =IFERROR(SMALL(tbl_Mint[Helper 2],tbl_Mint[[#This Row],[Helper 1]]),"") -> 0 | G32: =IF(OR(tbl_Mint[[#This Row],[Helper 2]]<>"",tbl_Mint[[#This Row],[Helper 3]]<>""),1,0) -> 1 | H32: =IF(rng_Mint_Filter="",0,IF(tbl_Mint[[#This Row],[Helper 2]]<>"",1,0)) -> 0 | I32: =IF(rng_Mint_Filter="",tbl_Mint[[#This Row],[Helper 1]],INDEX(tbl_Mint[Helper 3],tbl_Mint[[#This Row],[Helper 1]])) -> 31 | J32: =IFERROR(INDEX(tbl_Mint[Mint],tbl_Mint[[#This Row],[Link]]),"") -> Spain mint
A33: Tarragona | B33: Tarraco, Spain | C33: =tbl_Mint[[#This Row],[Mint]] -> Tarragona | D33: =IF(ISTEXT(OFFSET(tbl_Mint[[#This Row],[Helper 1]],-1,0)),1,OFFSET(tbl_Mint[[#This Row],[Helper 1]],-1,0)+1) -> 32 | E33: =IF(rng_Mint_Filter="",0,IF(ISNUMBER(SEARCH(rng_Mint_Filter,tbl_Mint[[#This Row],[Helper Key]])),tbl_Mint[[#This Row],[Helper 1]],"")) -> 0 | F33: =IFERROR(SMALL(tbl_Mint[Helper 2],tbl_Mint[[#This Row],[Helper 1]]),"") -> 0 | G33: =IF(OR(tbl_Mint[[#This Row],[Helper 2]]<>"",tbl_Mint[[#This Row],[Helper 3]]<>""),1,0) -> 1 | H33: =IF(rng_Mint_Filter="",0,IF(tbl_Mint[[#This Row],[Helper 2]]<>"",1,0)) -> 0 | I33: =IF(rng_Mint_Filter="",tbl_Mint[[#This Row],[Helper 1]],INDEX(tbl_Mint[Helper 3],tbl_Mint[[#This Row],[Helper 1]])) -> 32 | J33: =IFERROR(INDEX(tbl_Mint[Mint],tbl_Mint[[#This Row],[Link]]),"") -> Tarragona
A34: Thessalonica | B34: Salonika, Greece | C34: =tbl_Mint[[#This Row],[Mint]] -> Thessalonica | D34: =IF(ISTEXT(OFFSET(tbl_Mint[[#This Row],[Helper 1]],-1,0)),1,OFFSET(tbl_Mint[[#This Row],[Helper 1]],-1,0)+1) -> 33 | E34: =IF(rng_Mint_Filter="",0,IF(ISNUMBER(SEARCH(rng_Mint_Filter,tbl_Mint[[#This Row],[Helper Key]])),tbl_Mint[[#This Row],[Helper 1]],"")) -> 0 | F34: =IFERROR(SMALL(tbl_Mint[Helper 2],tbl_Mint[[#This Row],[Helper 1]]),"") -> 0 | G34: =IF(OR(tbl_Mint[[#This Row],[Helper 2]]<>"",tbl_Mint[[#This Row],[Helper 3]]<>""),1,0) -> 1 | H34: =IF(rng_Mint_Filter="",0,IF(tbl_Mint[[#This Row],[Helper 2]]<>"",1,0)) -> 0 | I34: =IF(rng_Mint_Filter="",tbl_Mint[[#This Row],[Helper 1]],INDEX(tbl_Mint[Helper 3],tbl_Mint[[#This Row],[Helper 1]])) -> 33 | J34: =IFERROR(INDEX(tbl_Mint[Mint],tbl_Mint[[#This Row],[Link]]),"") -> Thessalonica
A35: Ticinum | B35: Pavia, Italy | C35: =tbl_Mint[[#This Row],[Mint]] -> Ticinum | D35: =IF(ISTEXT(OFFSET(tbl_Mint[[#This Row],[Helper 1]],-1,0)),1,OFFSET(tbl_Mint[[#This Row],[Helper 1]],-1,0)+1) -> 34 | E35: =IF(rng_Mint_Filter="",0,IF(ISNUMBER(SEARCH(rng_Mint_Filter,tbl_Mint[[#This Row],[Helper Key]])),tbl_Mint[[#This Row],[Helper 1]],"")) -> 0 | F35: =IFERROR(SMALL(tbl_Mint[Helper 2],tbl_Mint[[#This Row],[Helper 1]]),"") -> 0 | G35: =IF(OR(tbl_Mint[[#This Row],[Helper 2]]<>"",tbl_Mint[[#This Row],[Helper 3]]<>""),1,0) -> 1 | H35: =IF(rng_Mint_Filter="",0,IF(tbl_Mint[[#This Row],[Helper 2]]<>"",1,0)) -> 0 | I35: =IF(rng_Mint_Filter="",tbl_Mint[[#This Row],[Helper 1]],INDEX(tbl_Mint[Helper 3],tbl_Mint[[#This Row],[Helper 1]])) -> 34 | J35: =IFERROR(INDEX(tbl_Mint[Mint],tbl_Mint[[#This Row],[Link]]),"") -> Ticinum
A36: Trier | B36: Treveri, Germany | C36: =tbl_Mint[[#This Row],[Mint]] -> Trier | D36: =IF(ISTEXT(OFFSET(tbl_Mint[[#This Row],[Helper 1]],-1,0)),1,OFFSET(tbl_Mint[[#This Row],[Helper 1]],-1,0)+1) -> 35 | E36: =IF(rng_Mint_Filter="",0,IF(ISNUMBER(SEARCH(rng_Mint_Filter,tbl_Mint[[#This Row],[Helper Key]])),tbl_Mint[[#This Row],[Helper 1]],"")) -> 0 | F36: =IFERROR(SMALL(tbl_Mint[Helper 2],tbl_Mint[[#This Row],[Helper 1]]),"") -> 0 | G36: =IF(OR(tbl_Mint[[#This Row],[Helper 2]]<>"",tbl_Mint[[#This Row],[Helper 3]]<>""),1,0) -> 1 | H36: =IF(rng_Mint_Filter="",0,IF(tbl_Mint[[#This Row],[Helper 2]]<>"",1,0)) -> 0 | I36: =IF(rng_Mint_Filter="",tbl_Mint[[#This Row],[Helper 1]],INDEX(tbl_Mint[Helper 3],tbl_Mint[[#This Row],[Helper 1]])) -> 35 | J36: =IFERROR(INDEX(tbl_Mint[Mint],tbl_Mint[[#This Row],[Link]]),"") -> Trier
A37: Tripolis | B37: Tripoli, Lebanon | C37: =tbl_Mint[[#This Row],[Mint]] -> Tripolis | D37: =IF(ISTEXT(OFFSET(tbl_Mint[[#This Row],[Helper 1]],-1,0)),1,OFFSET(tbl_Mint[[#This Row],[Helper 1]],-1,0)+1) -> 36 | E37: =IF(rng_Mint_Filter="",0,IF(ISNUMBER(SEARCH(rng_Mint_Filter,tbl_Mint[[#This Row],[Helper Key]])),tbl_Mint[[#This Row],[Helper 1]],"")) -> 0 | F37: =IFERROR(SMALL(tbl_Mint[Helper 2],tbl_Mint[[#This Row],[Helper 1]]),"") -> 0 | G37: =IF(OR(tbl_Mint[[#This Row],[Helper 2]]<>"",tbl_Mint[[#This Row],[Helper 3]]<>""),1,0) -> 1 | H37: =IF(rng_Mint_Filter="",0,IF(tbl_Mint[[#This Row],[Helper 2]]<>"",1,0)) -> 0 | I37: =IF(rng_Mint_Filter="",tbl_Mint[[#This Row],[Helper 1]],INDEX(tbl_Mint[Helper 3],tbl_Mint[[#This Row],[Helper 1]])) -> 36 | J37: =IFERROR(INDEX(tbl_Mint[Mint],tbl_Mint[[#This Row],[Link]]),"") -> Tripolis
A38: Viminacium | B38: Kostalac, Serbia | C38: =tbl_Mint[[#This Row],[Mint]] -> Viminacium | D38: =IF(ISTEXT(OFFSET(tbl_Mint[[#This Row],[Helper 1]],-1,0)),1,OFFSET(tbl_Mint[[#This Row],[Helper 1]],-1,0)+1) -> 37 | E38: =IF(rng_Mint_Filter="",0,IF(ISNUMBER(SEARCH(rng_Mint_Filter,tbl_Mint[[#This Row],[Helper Key]])),tbl_Mint[[#This Row],[Helper 1]],"")) -> 0 | F38: =IFERROR(SMALL(tbl_Mint[Helper 2],tbl_Mint[[#This Row],[Helper 1]]),"") -> 0 | G38: =IF(OR(tbl_Mint[[#This Row],[Helper 2]]<>"",tbl_Mint[[#This Row],[Helper 3]]<>""),1,0) -> 1 | H38: =IF(rng_Mint_Filter="",0,IF(tbl_Mint[[#This Row],[Helper 2]]<>"",1,0)) -> 0 | I38: =IF(rng_Mint_Filter="",tbl_Mint[[#This Row],[Helper 1]],INDEX(tbl_Mint[Helper 3],tbl_Mint[[#This Row],[Helper 1]])) -> 37 | J38: =IFERROR(INDEX(tbl_Mint[Mint],tbl_Mint[[#This Row],[Link]]),"") -> Viminacium

Sheet RCIP tbl
A1: RCIP | B1: IP date range | C1: Emperor / Dynasty | D1: copies in IPs
A2: 1 | B2: Roman to AD 41 | C2: Republican to Gaius
A3: 2 | B3: 41-54 | C3: Claudius | D3: Claudian copies
A4: 3 | B4: 54-69 | C4: Nero & Year of Four Emperors
A5: 4 | B5: 69-96 | C5: Flavian
A6: 5 | B6: 96-117 | C6: Nerva & Trajan
A7: 6 | B7: 117-138 | C7: Hadrian
A8: 7 | B8: 138-161 | C8: Antoninus Pius - Antonine I
A9: 8 | B9: 161-180 | C9: Marcus Aurelius - Antonine II
A10: 9 | B10: 180-192 | C10: Commodus - Antonine III
A11: 10 | B11: 193-222 | C11: Severan I | D11: Severan imitations
A12: 11 | B12: 222-238 | C12: Severan II
A13: 12 | B13: 238-260 | C13: Military Anarchy I
A14: 13 | B14: 260-275 | C14: Military Anarchy II
A15: 14 | B15: 275-296 | C15: Military Anarchy III | D15: Radiate copies
A16: 15 | B16: 296-317 | C16: Tetrarchy
A17: 16 | B17: 317-330 | C17: House of Constantine I
A18: 17 | B18: 330-348 | C18: House of Constantine II | D18: GLORIA EXERCITVS etc. copies
A19: 18 | B19: 348-364 | C19: House of Constantine III | D19: FEL TEMP REPARATIO etc. copies
A20: 19 | B20: 364-378 | C20: House of Valentinian I
A21: 20 | B21: 378-388 | C21: House of Valentinian II
A22: 21 | B22: 388-402 | C22: House of Theodosius I
A23: 22 | B23: 402-445 | C23: House of Theodosius II
